Workbook

Sheet 2005
A2: Week 1 | E2: Week 2 | I2: Week 3 | M2: Week 4 | Q2: Week 5 | U2: Week 6 | Y2: Week 7 | AC2: Week 8 | AG2: Week 9 | AK2: Week 10 | AO2: Week 11 | AS2: Week 12 | AW2: Week 13 | BA2: Week 14 | BE2: Week 15 | BI2: Week 16 | BL2: Final Standings
B3: Score | F3: Score | J3: Score | N3: Score | R3: Score | V3: Score | Z3: Score | AD3: Score | AH3: Score | AL3: Score | AP3: Score | AT3: Score | AX3: Score | BB3: Score | BF3: Score | BJ3: Score
A4: Team Ludoleif | B4: =B75 -> 861 | E4: Team Ludoleif | F4: =F75 -> 680 | I4: Team Ludoleif | J4: =J75 -> 1214 | M4: Team Ludoleif | N4: =N75 -> 915 | Q4: Team Ludoleif | R4: =R75 -> 929 | U4: Team Ludoleif | V4: =V75 -> 1160 | Y4: Team Ludoleif | Z4: =Z75 -> 741 | AC4: Team Ludoleif | AD4: =AD75 -> 659 | AG4: Team Ludoleif | AH4: =AH75 -> 1083 | AK4: Team Ludoleif | AL4: =AL75 -> 1210 | AO4: Team Ludoleif | AP4: =AP75 -> 799 | AS4: Team Ludoleif | AT4: =AT75 -> 1116 | AW4: Team Ludoleif | AX4: =AX75 -> 902 | BA4: Team Ludoleif | BB4: =BB75 -> 828 | BE4: Championship | BI4: Final | BL4: =IF(AND($BJ$6=0,$BJ$7=0),"",IF($BJ$6>$BJ$7,BI6,BI7)) -> Pilgaards Mannschaft
A5: Pilgaards Mannschaft | B5: =B89 -> 879 | E5: Team Go'o | F5: =F89 -> 601 | I5: Lam i roen | J5: =J89 -> 748 | M5: Nilsson Monkeys | N5: =N89 -> 740 | Q5: Team-UhUh | R5: =R89 -> 940 | U5: Weak Knees Revenge | V5: =V89 -> 633 | Y5: Djohn | Z5: =Z89 -> 795 | AC5: Pilgaards Mannschaft | AD5: =AD89 -> 505 | AG5: Team Go'o | AH5: =AH89 -> 499 | AK5: Lam i roen | AL5: =AL89 -> 636 | AO5: Nilsson Monkeys | AP5: =AP89 -> 1304 | AS5: Team-UhUh | AT5: =AT89 -> 796 | AW5: Weak Knees Revenge | AX5: =AX89 -> 490 | BA5: Djohn | BB5: =BB89 -> 738 | BL5: =IF(AND($BJ$6=0,$BJ$7=0),"",IF($BJ$6>$BJ$7,BI7,BI6)) -> Nilsson Monkeys
BE6: =$BA$19 -> Djohn | BF6: =BF75 -> 903 | BI6: =IF(AND($BF$6=0,$BF$7=0),"",IF($BF$6>$BF$7,$BE$6,$BE$7)) -> Pilgaards Mannschaft | BJ6: =BJ75 -> 1064 | BL6: =IF(AND($BJ$11=0,$BJ$12=0),"",IF($BJ$11>$BJ$12,BI11,BI12)) -> Djohn
A7: Lam i roen | B7: =B105 -> 767 | E7: Pilgaards Mannschaft | F7: =F105 -> 843 | I7: Pilgaards Mannschaft | J7: =J105 -> 885 | M7: Pilgaards Mannschaft | N7: =N105 -> 749 | Q7: Pilgaards Mannschaft | R7: =R105 -> 752 | U7: Pilgaards Mannschaft | V7: =V105 -> 773 | Y7: Pilgaards Mannschaft | Z7: =Z105 -> 655 | AC7: Lam i roen | AD7: =AD105 -> 821 | AG7: Pilgaards Mannschaft | AH7: =AH105 -> 807 | AK7: Pilgaards Mannschaft | AL7: =AL105 -> 879 | AO7: Pilgaards Mannschaft | AP7: =AP105 -> 868 | AS7: Pilgaards Mannschaft | AT7: =AT105 -> 1063 | AW7: Pilgaards Mannschaft | AX7: =AX105 -> 715 | BA7: Pilgaards Mannschaft | BB7: =BB105 -> 1315 | BE7: =$BA$22 -> Pilgaards Mannschaft | BF7: =BF89 -> 913 | BI7: =IF(AND($BF$9=0,$BF$10=0),"",IF($BF$9>$BF$10,$BE$9,$BE$10)) -> Nilsson Monkeys | BJ7: =BJ89 -> 860 | BL7: =IF(AND($BJ$11=0,$BJ$12=0),"",IF($BJ$11>$BJ$12,BI12,BI11)) -> Team Ludoleif
A8: Djohn | B8: =B119 -> 926 | E8: Lam i roen | F8: =F119 -> 1006 | I8: Nilsson Monkeys | J8: =J119 -> 859 | M8: Team-UhUh | N8: =N119 -> 891 | Q8: Weak Knees Revenge | R8: =R119 -> 451 | U8: Djohn | V8: =V119 -> 1091 | Y8: Team Go'o | Z8: =Z119 -> 884 | AC8: Djohn | AD8: =AD119 -> 1001 | AG8: Lam i roen | AH8: =AH119 -> 613 | AK8: Nilsson Monkeys | AL8: =AL119 -> 573 | AO8: Team-UhUh | AP8: =AP119 -> 772 | AS8: Weak Knees Revenge | AT8: =AT119 -> 714 | AW8: Djohn | AX8: =AX119 -> 763 | BA8: Team Go'o | BB8: =BB119 -> 657 | BL8: =IF(AND($BJ$16=0,$BJ$17=0),"",IF($BJ$16>$BJ$17,BI16,BI17)) -> Lam i roen
BE9: =$BA$20 -> Team Ludoleif | BF9: =BF105 -> 750 | BI9: 3rd Place Game | BL9: =IF(AND($BJ$16=0,$BJ$17=0),"",IF($BJ$16>$BJ$17,BI17,BI16)) -> Team-UhUh
A10: Nilsson Monkeys | B10: =B135 -> 688 | E10: Nilsson Monkeys | F10: =F135 -> 617 | I10: Team-UhUh | J10: =J135 -> 922 | M10: Lam i roen | N10: =N135 -> 773 | Q10: Lam i roen | R10: =R135 -> 649 | U10: Lam i roen | V10: =V135 -> 618 | Y10: Lam i roen | Z10: =Z135 -> 658 | AC10: Nilsson Monkeys | AD10: =AD135 -> 968 | AG10: Nilsson Monkeys | AH10: =AH135 -> 803 | AK10: Team-UhUh | AL10: =AL135 -> 776 | AO10: Lam i roen | AP10: =AP135 -> 767 | AS10: Lam i roen | AT10: =AT135 -> 670 | AW10: Lam i roen | AX10: =AX135 -> 713 | BA10: Lam i roen | BB10: =BB135 -> 1065 | BE10: =$BA$21 -> Nilsson Monkeys | BF10: =BF119 -> 1047 | BL10: =IF(AND($BJ$21=0,$BJ$22=0),"",IF($BJ$21>$BJ$22,BI21,BI22)) -> Weak Knees Revenge
A11: Weak Knees Revenge | B11: =B149 -> 467 | E11: Djohn | F11: =F149 -> 1099 | I11: Djohn | J11: =J149 -> 1285 | M11: Team Go'o | N11: =N149 -> 1150 | Q11: Nilsson Monkeys | R11: =R149 -> 970 | U11: Team-UhUh | V11: =V149 -> 957 | Y11: Weak Knees Revenge | Z11: =Z149 -> 838 | AC11: Weak Knees Revenge | AD11: =AD149 -> 671 | AG11: Djohn | AH11: =AH149 -> 1040 | AK11: Djohn | AL11: =AL149 -> 1070 | AO11: Team Go'o | AP11: =AP149 -> 1097 | AS11: Nilsson Monkeys | AT11: =AT149 -> 802 | AW11: Team-UhUh | AX11: =AX149 -> 477 | BA11: Weak Knees Revenge | BB11: =BB149 -> 531 | BI11: =IF(AND($BF$6=0,$BF$7=0),"",IF($BF$6>$BF$7,$BE$7,$BE$6)) -> Djohn | BJ11: =BJ105 -> 1264 | BL11: =IF(AND($BJ$21=0,$BJ$22=0),"",IF($BJ$21>$BJ$22,BI22,BI21)) -> Team Go'o
BE12: Consolation | BI12: =IF(AND($BF$9=0,$BF$10=0),"",IF($BF$9>$BF$10,$BE$10,$BE$9)) -> Team Ludoleif | BJ12: =BJ119 -> 740
A13: Team-UhUh | B13: =B165 -> 651 | E13: Team-UhUh | F13: =F165 -> 922 | I13: Weak Knees Revenge | J13: =J165 -> 603 | M13: Weak Knees Revenge | N13: =N165 -> 741 | Q13: Djohn | R13: =R165 -> 988 | U13: Nilsson Monkeys | V13: =V165 -> 885 | Y13: Nilsson Monkeys | Z13: =Z165 -> 622 | AC13: Team-UhUh | AD13: =AD165 -> 828 | AG13: Team-UhUh | AH13: =AH165 -> 714 | AK13: Weak Knees Revenge | AL13: =AL165 -> 597 | AO13: Weak Knees Revenge | AP13: =AP165 -> 678 | AS13: Djohn | AT13: =AT165 -> 708 | AW13: Nilsson Monkeys | AX13: =AX165 -> 1046 | BA13: Nilsson Monkeys | BB13: =BB165 -> 1062
A14: Team Go'o | B14: =B179 -> 551 | E14: Weak Knees Revenge | F14: =F179 -> 518 | I14: Team Go'o | J14: =J179 -> 683 | M14: Djohn | N14: =N179 -> 1029 | Q14: Team Go'o | R14: =R179 -> 401 | U14: Team Go'o | V14: =V179 -> 838 | Y14: Team-UhUh | Z14: =Z179 -> 1119 | AC14: Team Go'o | AD14: =AD179 -> 763 | AG14: Weak Knees Revenge | AH14: =AH179 -> 501 | AK14: Team Go'o | AL14: =AL179 -> 733 | AO14: Djohn | AP14: =AP179 -> 1060 | AS14: Team Go'o | AT14: =AT179 -> 739 | AW14: Team Go'o | AX14: =AX179 -> 793 | BA14: Team-UhUh | BB14: =BB179 -> 756 | BE14: =$BA$23 -> Team-UhUh | BF14: =BF135 -> 800 | BI14: 5th Place Game
BE15: =$BA$26 -> Weak Knees Revenge | BF15: =BF149 -> 418
BI16: =IF(AND($BF$14=0,$BF$15=0),"",IF($BF$14>$BF$15,$BE$14,$BE$15)) -> Team-UhUh | BJ16: =BJ135 -> 704
A17: Standings Week 1 | E17: Standings Week 2 | I17: Standings Week 3 | M17: Standings Week 4 | Q17: Standings Week 5 | U17: Standings Week 6 | Y17: Standings Week 7 | AC17: Standings Week 8 | AG17: Standings Week 9 | AK17: Standings Week 10 | AO17: Standings Week 11 | AS17: Standings Week 12 | AW17: Standings Week 13 | BA17: Standings Week 14 | BE17: =$BA$24 -> Team Go'o | BF17: =BF165 -> 834 | BI17: =IF(AND($BF$17=0,$BF$18=0),"",IF($BF$17>$BF$18,$BE$17,$BE$18)) -> Lam i roen | BJ17: =BJ149 -> 1057
B18: Record | C18: TPS | F18: Record | G18: TPS | J18: Record | K18: TPS | N18: Record | O18: TPS | R18: Record | S18: TPS | V18: Record | W18: TPS | Z18: Record | AA18: TPS | AD18: Record | AE18: TPS | AH18: Record | AI18: TPS | AL18: Record | AM18: TPS | AP18: Record | AQ18: TPS | AT18: Record | AU18: TPS | AX18: Record | AY18: TPS | BB18: Record | BC18: TPS | BE18: =$BA$25 -> Lam i roen | BF18: =BF179 -> 893
A19: Djohn | B19: =RecordUpdate("0-0-0",$B$8,$B$7,0,0,0,0,0,0,0,0,0,0,0,0,0,0,0,0,0,0,0,0,0,0,0,0,0,0) -> 1-0-0 | C19: =$B$8 -> 926 | E19: Djohn | F19: =RecordUpdate("0-0-0",$B$8,$B$7,$F$11,$F$10,0,0,0,0,0,0,0,0,0,0,0,0,0,0,0,0,0,0,0,0,0,0,0,0) -> 2-0-0 | G19: =$B$8+$F$11 -> 2025 | I19: Djohn | J19: =RecordUpdate("0-0-0",$B$8,$B$7,$F$11,$F$10,$J$11,$J$10,0,0,0,0,0,0,0,0,0,0,0,0,0,0,0,0,0,0,0,0,0,0) -> 3-0-0 | K19: =$B$8+$F$11+$J$11 -> 3310 | M19: Djohn | N19: =RecordUpdate("0-0-0",$B$8,$B$7,$F$11,$F$10,$J$11,$J$10,$N$14,$N$13,0,0,0,0,0,0,0,0,0,0,0,0,0,0,0,0,0,0,0,0) -> 4-0-0 | O19: =$B$8+$F$11+$J$11+$N$14 -> 4339 | Q19: Djohn | R19: =RecordUpdate("0-0-0",$B$8,$B$7,$F$11,$F$10,$J$11,$J$10,$N$14,$N$13,$R$13,$R$14,0,0,0,0,0,0,0,0,0,0,0,0,0,0,0,0,0,0) -> 5-0-0 | S19: =$B$8+$F$11+$J$11+$N$14+$R$13 -> 5327 | U19: Djohn | V19: =RecordUpdate("0-0-0",$B$8,$B$7,$F$11,$F$10,$J$11,$J$10,$N$14,$N$13,$R$13,$R$14,$V$8,$V$7,0,0,0,0,0,0,0,0,0,0,0,0,0,0,0,0) -> 6-0-0 | W19: =$B$8+$F$11+$J$11+$N$14+$R$13+$V$8 -> 6418 | Y19: Djohn | Z19: =RecordUpdate("0-0-0",$B$8,$B$7,$F$11,$F$10,$J$11,$J$10,$N$14,$N$13,$R$13,$R$14,$V$8,$V$7,$Z$5,$Z$4,0,0,0,0,0,0,0,0,0,0,0,0,0,0) -> 7-0-0 | AA19: =$B$8+$F$11+$J$11+$N$14+$R$13+$V$8+$Z$5 -> 7213 | AC19: Djohn | AD19: =RecordUpdate("0-0-0",$B$8,$B$7,$F$11,$F$10,$J$11,$J$10,$N$14,$N$13,$R$13,$R$14,$V$8,$V$7,$Z$5,$Z$4,$AD$8,$AD$7,0,0,0,0,0,0,0,0,0,0,0,0) -> 8-0-0 | AE19: =$B$8+$F$11+$J$11+$N$14+$R$13+$V$8+$Z$5+$AD$8 -> 8214 | AG19: Djohn | AH19: =RecordUpdate("0-0-0",$B$8,$B$7,$F$11,$F$10,$J$11,$J$10,$N$14,$N$13,$R$13,$R$14,$V$8,$V$7,$Z$5,$Z$4,$AD$8,$AD$7,$AH$11,$AH$10,0,0,0,0,0,0,0,0,0,0) -> 9-0-0 | AI19: =$B$8+$F$11+$J$11+$N$14+$R$13+$V$8+$Z$5+$AD$8+$AH$11 -> 9254 | AK19: Djohn | AL19: =RecordUpdate("0-0-0",$B$8,$B$7,$F$11,$F$10,$J$11,$J$10,$N$14,$N$13,$R$13,$R$14,$V$8,$V$7,$Z$5,$Z$4,$AD$8,$AD$7,$AH$11,$AH$10,$AL$11,$AL$10,0,0,0,0,0,0,0,0) -> 10-0-0 | AM19: =$B$8+$F$11+$J$11+$N$14+$R$13+$V$8+$Z$5+$AD$8+$AH$11+$AL$11 -> 10324 | AO19: Djohn | AP19: =RecordUpdate("0-0-0",$B$8,$B$7,$F$11,$F$10,$J$11,$J$10,$N$14,$N$13,$R$13,$R$14,$V$8,$V$7,$Z$5,$Z$4,$AD$8,$AD$7,$AH$11,$AH$10,$AL$11,$AL$10,$AP$14,$AP$13,0,0,0,0,0,0) -> 11-0-0 | AQ19: =$B$8+$F$11+$J$11+$N$14+$R$13+$V$8+$Z$5+$AD$8+$AH$11+$AL$11+$AP$14 -> 11384 | AS19: Djohn | AT19: =RecordUpdate("0-0-0",$B$8,$B$7,$F$11,$F$10,$J$11,$J$10,$N$14,$N$13,$R$13,$R$14,$V$8,$V$7,$Z$5,$Z$4,$AD$8,$AD$7,$AH$11,$AH$10,$AL$11,$AL$10,$AP$14,$AP$13,$AT$13,$AT$14,0,0,0,0) -> 11-1-0 | AU19: =$B$8+$F$11+$J$11+$N$14+$R$13+$V$8+$Z$5+$AD$8+$AH$11+$AL$11+$AP$14+$AT$13 -> 12092 | AW19: Djohn | AX19: =RecordUpdate("0-0-0",$B$8,$B$7,$F$11,$F$10,$J$11,$J$10,$N$14,$N$13,$R$13,$R$14,$V$8,$V$7,$Z$5,$Z$4,$AD$8,$AD$7,$AH$11,$AH$10,$AL$11,$AL$10,$AP$14,$AP$13,$AT$13,$AT$14,$AX$8,$AX$7,0,0) -> 12-1-0 | AY19: =$B$8+$F$11+$J$11+$N$14+$R$13+$V$8+$Z$5+$AD$8+$AH$11+$AL$11+$AP$14+$AT$13+$AX$8 -> 12855 | BA19: Djohn | BB19: =RecordUpdate("0-0-0",$B$8,$B$7,$F$11,$F$10,$J$11,$J$10,$N$14,$N$13,$R$13,$R$14,$V$8,$V$7,$Z$5,$Z$4,$AD$8,$AD$7,$AH$11,$AH$10,$AL$11,$AL$10,$AP$14,$AP$13,$AT$13,$AT$14,$AX$8,$AX$7,$BB$5,$BB$4) -> 12-2-0 | BC19: =$B$8+$F$11+$J$11+$N$14+$R$13+$V$8+$Z$5+$AD$8+$AH$11+$AL$11+$AP$14+$AT$13+$AX$8+$BB$5 -> 13593 | BI19: 7th Place Game
A20: Pilgaards Mannschaft | B20: =RecordUpdate("0-0-0",$B$5,$B$4,0,0,0,0,0,0,0,0,0,0,0,0,0,0,0,0,0,0,0,0,0,0,0,0,0,0) -> 1-0-0 | C20: =$B$5 -> 879 | E20: Team-UhUh | F20: =RecordUpdate("0-0-0",$B$13,$B$14,$F$13,$F$14,0,0,0,0,0,0,0,0,0,0,0,0,0,0,0,0,0,0,0,0,0,0,0,0) -> 2-0-0 | G20: =$B$13+$F$13 -> 1573 | I20: Team Ludoleif | J20: =RecordUpdate("0-0-0",$B$4,$B$5,$F$4,$F$5,$J$4,$J$5,0,0,0,0,0,0,0,0,0,0,0,0,0,0,0,0,0,0,0,0,0,0) -> 2-1-0 | K20: =$B$4+$F$4+$J$4 -> 2755 | M20: Team Ludoleif | N20: =RecordUpdate("0-0-0",$B$4,$B$5,$F$4,$F$5,$J$4,$J$5,$N$4,$N$5,0,0,0,0,0,0,0,0,0,0,0,0,0,0,0,0,0,0,0,0) -> 3-1-0 | O20: =$B$4+$F$4+$J$4+$N$4 -> 3670 | Q20: Team-UhUh | R20: =RecordUpdate("0-0-0",$B$13,$B$14,$F$13,$F$14,$J$10,$J$11,$N$8,$N$7,$R$5,$R$4,0,0,0,0,0,0,0,0,0,0,0,0,0,0,0,0,0,0) -> 4-1-0 | S20: =$B$13+$F$13+$J$10+$N$8+$R$5 -> 4326 | U20: Team-UhUh | V20: =RecordUpdate("0-0-0",$B$13,$B$14,$F$13,$F$14,$J$10,$J$11,$N$8,$N$7,$R$5,$R$4,$V$11,$V$10,0,0,0,0,0,0,0,0,0,0,0,0,0,0,0,0) -> 5-1-0 | W20: =$B$13+$F$13+$J$10+$N$8+$R$5+$V$11 -> 5283 | Y20: Team-UhUh | Z20: =RecordUpdate("0-0-0",$B$13,$B$14,$F$13,$F$14,$J$10,$J$11,$N$8,$N$7,$R$5,$R$4,$V$11,$V$10,$Z$14,$Z$13,0,0,0,0,0,0,0,0,0,0,0,0,0,0) -> 6-1-0 | AA20: =$B$13+$F$13+$J$10+$N$8+$R$5+$V$11+$Z$14 -> 6402 | AC20: Team-UhUh | AD20: =RecordUpdate("0-0-0",$B$13,$B$14,$F$13,$F$14,$J$10,$J$11,$N$8,$N$7,$R$5,$R$4,$V$11,$V$10,$Z$14,$Z$13,$AD$13,$AD$14,0,0,0,0,0,0,0,0,0,0,0,0) -> 7-1-0 | AE20: =$B$13+$F$13+$J$10+$N$8+$R$5+$V$11+$Z$14+$AD$13 -> 7230 | AG20: Team-UhUh | AH20: =RecordUpdate("0-0-0",$B$13,$B$14,$F$13,$F$14,$J$10,$J$11,$N$8,$N$7,$R$5,$R$4,$V$11,$V$10,$Z$14,$Z$13,$AD$13,$AD$14,$AH$13,$AH$14,0,0,0,0,0,0,0,0,0,0) -> 8-1-0 | AI20: =$B$13+$F$13+$J$10+$N$8+$R$5+$V$11+$Z$14+$AD$13+$AH$13 -> 7944 | AK20: Team-UhUh | AL20: =RecordUpdate("0-0-0",$B$13,$B$14,$F$13,$F$14,$J$10,$J$11,$N$8,$N$7,$R$5,$R$4,$V$11,$V$10,$Z$14,$Z$13,$AD$13,$AD$14,$AH$13,$AH$14,$AL$10,$AL$11,0,0,0,0,0,0,0,0) -> 8-2-0 | AM20: =$B$13+$F$13+$J$10+$N$8+$R$5+$V$11+$Z$14+$AD$13+$AH$13+$AL$10 -> 8720 | AO20: Team-UhUh | AP20: =RecordUpdate("0-0-0",$B$13,$B$14,$F$13,$F$14,$J$10,$J$11,$N$8,$N$7,$R$5,$R$4,$V$11,$V$10,$Z$14,$Z$13,$AD$13,$AD$14,$AH$13,$AH$14,$AL$10,$AL$11,$AP$8,$AP$7,0,0,0,0,0,0) -> 8-3-0 | AQ20: =$B$13+$F$13+$J$10+$N$8+$R$5+$V$11+$Z$14+$AD$13+$AH$13+$AL$10+$AP$8 -> 9492 | AS20: Team Ludoleif | AT20: =RecordUpdate("0-0-0",$B$4,$B$5,$F$4,$F$5,$J$4,$J$5,$N$4,$N$5,$R$4,$R$5,$V$4,$V$5,$Z$4,$Z$5,$AD$4,$AD$5,$AH$4,$AH$5,$AL$4,$AL$5,$AP$4,$AP$5,$AT$4,$AT$5,0,0,0,0) -> 8-4-0 | AU20: =$B$4+$F$4+$J$4+$N$4+$R$4+$V$4+$Z$4+$AD$4+$AH$4+$AL$4+$AP$4+$AT$4 -> 11367 | AW20: Team Ludoleif | AX20: =RecordUpdate("0-0-0",$B$4,$B$5,$F$4,$F$5,$J$4,$J$5,$N$4,$N$5,$R$4,$R$5,$V$4,$V$5,$Z$4,$Z$5,$AD$4,$AD$5,$AH$4,$AH$5,$AL$4,$AL$5,$AP$4,$AP$5,$AT$4,$AT$5,$AX$4,$AX$5,0,0) -> 9-4-0 | AY20: =$B$4+$F$4+$J$4+$N$4+$R$4+$V$4+$Z$4+$AD$4+$AH$4+$AL$4+$AP$4+$AT$4+$AX$4 -> 12269 | BA20: Team Ludoleif | BB20: =RecordUpdate("0-0-0",$B$4,$B$5,$F$4,$F$5,$J$4,$J$5,$N$4,$N$5,$R$4,$R$5,$V$4,$V$5,$Z$4,$Z$5,$AD$4,$AD$5,$AH$4,$AH$5,$AL$4,$AL$5,$AP$4,$AP$5,$AT$4,$AT$5,$AX$4,$AX$5,$BB$4,$BB$5) -> 10-4-0 | BC20: =$B$4+$F$4+$J$4+$N$4+$R$4+$V$4+$Z$4+$AD$4+$AH$4+$AL$4+$AP$4+$AT$4+$AX$4+$BB$4 -> 13097
A21: Nilsson Monkeys | B21: =RecordUpdate("0-0-0",$B$10,$B$11,0,0,0,0,0,0,0,0,0,0,0,0,0,0,0,0,0,0,0,0,0,0,0,0,0,0) -> 1-0-0 | C21: =$B$10 -> 688 | E21: Lam i roen | F21: =RecordUpdate("0-0-0",$B$7,$B$8,$F$8,$F$7,0,0,0,0,0,0,0,0,0,0,0,0,0,0,0,0,0,0,0,0,0,0,0,0) -> 1-1-0 | G21: =$B$7+$F$8 -> 1773 | I21: Pilgaards Mannschaft | J21: =RecordUpdate("0-0-0",$B$5,$B$4,$F$7,$F$8,$J$7,$J$8,0,0,0,0,0,0,0,0,0,0,0,0,0,0,0,0,0,0,0,0,0,0) -> 2-1-0 | K21: =$B$5+$F$7+$J$7 -> 2607 | M21: Team-UhUh | N21: =RecordUpdate("0-0-0",$B$13,$B$14,$F$13,$F$14,$J$10,$J$11,$N$8,$N$7,0,0,0,0,0,0,0,0,0,0,0,0,0,0,0,0,0,0,0,0) -> 3-1-0 | O21: =$B$13+$F$13+$J$10+$N$8 -> 3386 | Q21: Team Ludoleif | R21: =RecordUpdate("0-0-0",$B$4,$B$5,$F$4,$F$5,$J$4,$J$5,$N$4,$N$5,$R$4,$R$5,0,0,0,0,0,0,0,0,0,0,0,0,0,0,0,0,0,0) -> 3-2-0 | S21: =$B$4+$F$4+$J$4+$N$4+$R$4 -> 4599 | U21: Team Ludoleif | V21: =RecordUpdate("0-0-0",$B$4,$B$5,$F$4,$F$5,$J$4,$J$5,$N$4,$N$5,$R$4,$R$5,$V$4,$V$5,0,0,0,0,0,0,0,0,0,0,0,0,0,0,0,0) -> 4-2-0 | W21: =$B$4+$F$4+$J$4+$N$4+$R$4+$V$4 -> 5759 | Y21: Team Ludoleif | Z21: =RecordUpdate("0-0-0",$B$4,$B$5,$F$4,$F$5,$J$4,$J$5,$N$4,$N$5,$R$4,$R$5,$V$4,$V$5,$Z$4,$Z$5,0,0,0,0,0,0,0,0,0,0,0,0,0,0) -> 4-3-0 | AA21: =$B$4+$F$4+$J$4+$N$4+$R$4+$V$4+$Z$4 -> 6500 | AC21: Team Ludoleif | AD21: =RecordUpdate("0-0-0",$B$4,$B$5,$F$4,$F$5,$J$4,$J$5,$N$4,$N$5,$R$4,$R$5,$V$4,$V$5,$Z$4,$Z$5,$AD$4,$AD$5,0,0,0,0,0,0,0,0,0,0,0,0) -> 5-3-0 | AE21: =$B$4+$F$4+$J$4+$N$4+$R$4+$V$4+$Z$4+$AD$4 -> 7159 | AG21: Team Ludoleif | AH21: =RecordUpdate("0-0-0",$B$4,$B$5,$F$4,$F$5,$J$4,$J$5,$N$4,$N$5,$R$4,$R$5,$V$4,$V$5,$Z$4,$Z$5,$AD$4,$AD$5,$AH$4,$AH$5,0,0,0,0,0,0,0,0,0,0) -> 6-3-0 | AI21: =$B$4+$F$4+$J$4+$N$4+$R$4+$V$4+$Z$4+$AD$4+$AH$4 -> 8242 | AK21: Team Ludoleif | AL21: =RecordUpdate("0-0-0",$B$4,$B$5,$F$4,$F$5,$J$4,$J$5,$N$4,$N$5,$R$4,$R$5,$V$4,$V$5,$Z$4,$Z$5,$AD$4,$AD$5,$AH$4,$AH$5,$AL$4,$AL$5,0,0,0,0,0,0,0,0) -> 7-3-0 | AM21: =$B$4+$F$4+$J$4+$N$4+$R$4+$V$4+$Z$4+$AD$4+$AH$4+$AL$4 -> 9452 | AO21: Team Ludoleif | AP21: =RecordUpdate("0-0-0",$B$4,$B$5,$F$4,$F$5,$J$4,$J$5,$N$4,$N$5,$R$4,$R$5,$V$4,$V$5,$Z$4,$Z$5,$AD$4,$AD$5,$AH$4,$AH$5,$AL$4,$AL$5,$AP$4,$AP$5,0,0,0,0,0,0) -> 7-4-0 | AQ21: =$B$4+$F$4+$J$4+$N$4+$R$4+$V$4+$Z$4+$AD$4+$AH$4+$AL$4+$AP$4 -> 10251 | AS21: Team-UhUh | AT21: =RecordUpdate("0-0-0",$B$13,$B$14,$F$13,$F$14,$J$10,$J$11,$N$8,$N$7,$R$5,$R$4,$V$11,$V$10,$Z$14,$Z$13,$AD$13,$AD$14,$AH$13,$AH$14,$AL$10,$AL$11,$AP$8,$AP$7,$AT$5,$AT$4,0,0,0,0) -> 8-4-0 | AU21: =$B$13+$F$13+$J$10+$N$8+$R$5+$V$11+$Z$14+$AD$13+$AH$13+$AL$10+$AP$8+$AT$5 -> 10288 | AW21: Team-UhUh | AX21: =RecordUpdate("0-0-0",$B$13,$B$14,$F$13,$F$14,$J$10,$J$11,$N$8,$N$7,$R$5,$R$4,$V$11,$V$10,$Z$14,$Z$13,$AD$13,$AD$14,$AH$13,$AH$14,$AL$10,$AL$11,$AP$8,$AP$7,$AT$5,$AT$4,$AX$11,$AX$10,0,0) -> 8-5-0 | AY21: =$B$13+$F$13+$J$10+$N$8+$R$5+$V$11+$Z$14+$AD$13+$AH$13+$AL$10+$AP$8+$AT$5+$AX$11 -> 10765 | BA21: Nilsson Monkeys | BB21: =RecordUpdate("0-0-0",$B$10,$B$11,$F$10,$F$11,$J$8,$J$7,$N$5,$N$4,$R$11,$R$10,$V$13,$V$14,$Z$13,$Z$14,$AD$10,$AD$11,$AH$10,$AH$11,$AL$8,$AL$7,$AP$5,$AP$4,$AT$11,$AT$10,$AX$13,$AX$14,$BB$13,$BB$14) -> 8-6-0 | BC21: =$B$10+$F$10+$J$8+$N$5+$R$11+$V$13+$Z$13+$AD$10+$AH$10+$AL$8+$AP$5+$AT$11+$AX$13+$BB$13 -> 11939 | BI21: =IF(AND($BF$14=0,$BF$15=0),"",IF($BF$14>$BF$15,$BE$15,$BE$14)) -> Weak Knees Revenge | BJ21: =BJ165 -> 575
A22: Team-UhUh | B22: =RecordUpdate("0-0-0",$B$13,$B$14,0,0,0,0,0,0,0,0,0,0,0,0,0,0,0,0,0,0,0,0,0,0,0,0,0,0) -> 1-0-0 | C22: =$B$13 -> 651 | E22: Pilgaards Mannschaft | F22: =RecordUpdate("0-0-0",$B$5,$B$4,$F$7,$F$8,0,0,0,0,0,0,0,0,0,0,0,0,0,0,0,0,0,0,0,0,0,0,0,0) -> 1-1-0 | G22: =$B$5+$F$7 -> 1722 | I22: Team-UhUh | J22: =RecordUpdate("0-0-0",$B$13,$B$14,$F$13,$F$14,$J$10,$J$11,0,0,0,0,0,0,0,0,0,0,0,0,0,0,0,0,0,0,0,0,0,0) -> 2-1-0 | K22: =$B$13+$F$13+$J$10 -> 2495 | M22: Pilgaards Mannschaft | N22: =RecordUpdate("0-0-0",$B$5,$B$4,$F$7,$F$8,$J$7,$J$8,$N$7,$N$8,0,0,0,0,0,0,0,0,0,0,0,0,0,0,0,0,0,0,0,0) -> 2-2-0 | O22: =$B$5+$F$7+$J$7+$N$7 -> 3356 | Q22: Pilgaards Mannschaft | R22: =RecordUpdate("0-0-0",$B$5,$B$4,$F$7,$F$8,$J$7,$J$8,$N$7,$N$8,$R$7,$R$8,0,0,0,0,0,0,0,0,0,0,0,0,0,0,0,0,0,0) -> 3-2-0 | S22: =$B$5+$F$7+$J$7+$N$7+$R$7 -> 4108 | U22: Pilgaards Mannschaft | V22: =RecordUpdate("0-0-0",$B$5,$B$4,$F$7,$F$8,$J$7,$J$8,$N$7,$N$8,$R$7,$R$8,$V$7,$V$8,0,0,0,0,0,0,0,0,0,0,0,0,0,0,0,0) -> 3-3-0 | W22: =$B$5+$F$7+$J$7+$N$7+$R$7+$V$7 -> 4881 | Y22: Pilgaards Mannschaft | Z22: =RecordUpdate("0-0-0",$B$5,$B$4,$F$7,$F$8,$J$7,$J$8,$N$7,$N$8,$R$7,$R$8,$V$7,$V$8,$Z$7,$Z$8,0,0,0,0,0,0,0,0,0,0,0,0,0,0) -> 3-4-0 | AA22: =$B$5+$F$7+$J$7+$N$7+$R$7+$V$7+$Z$7 -> 5536 | AC22: Nilsson Monkeys | AD22: =RecordUpdate("0-0-0",$B$10,$B$11,$F$10,$F$11,$J$8,$J$7,$N$5,$N$4,$R$11,$R$10,$V$13,$V$14,$Z$13,$Z$14,$AD$10,$AD$11,0,0,0,0,0,0,0,0,0,0,0,0) -> 4-4-0 | AE22: =$B$10+$F$10+$J$8+$N$5+$R$11+$V$13+$Z$13+$AD$10 -> 6349 | AG22: Nilsson Monkeys | AH22: =RecordUpdate("0-0-0",$B$10,$B$11,$F$10,$F$11,$J$8,$J$7,$N$5,$N$4,$R$11,$R$10,$V$13,$V$14,$Z$13,$Z$14,$AD$10,$AD$11,$AH$10,$AH$11,0,0,0,0,0,0,0,0,0,0) -> 4-5-0 | AI22: =$B$10+$F$10+$J$8+$N$5+$R$11+$V$13+$Z$13+$AD$10+$AH$10 -> 7152 | AK22: Pilgaards Mannschaft | AL22: =RecordUpdate("0-0-0",$B$5,$B$4,$F$7,$F$8,$J$7,$J$8,$N$7,$N$8,$R$7,$R$8,$V$7,$V$8,$Z$7,$Z$8,$AD$5,$AD$4,$AH$7,$AH$8,$AL$7,$AL$8,0,0,0,0,0,0,0,0) -> 5-5-0 | AM22: =$B$5+$F$7+$J$7+$N$7+$R$7+$V$7+$Z$7+$AD$5+$AH$7+$AL$7 -> 7727 | AO22: Pilgaards Mannschaft | AP22: =RecordUpdate("0-0-0",$B$5,$B$4,$F$7,$F$8,$J$7,$J$8,$N$7,$N$8,$R$7,$R$8,$V$7,$V$8,$Z$7,$Z$8,$AD$5,$AD$4,$AH$7,$AH$8,$AL$7,$AL$8,$AP$7,$AP$8,0,0,0,0,0,0) -> 6-5-0 | AQ22: =$B$5+$F$7+$J$7+$N$7+$R$7+$V$7+$Z$7+$AD$5+$AH$7+$AL$7+$AP$7 -> 8595 | AS22: Pilgaards Mannschaft | AT22: =RecordUpdate("0-0-0",$B$5,$B$4,$F$7,$F$8,$J$7,$J$8,$N$7,$N$8,$R$7,$R$8,$V$7,$V$8,$Z$7,$Z$8,$AD$5,$AD$4,$AH$7,$AH$8,$AL$7,$AL$8,$AP$7,$AP$8,$AT$7,$AT$8,0,0,0,0) -> 7-5-0 | AU22: =$B$5+$F$7+$J$7+$N$7+$R$7+$V$7+$Z$7+$AD$5+$AH$7+$AL$7+$AP$7+$AT$7 -> 9658 | AW22: Nilsson Monkeys | AX22: =RecordUpdate("0-0-0",$B$10,$B$11,$F$10,$F$11,$J$8,$J$7,$N$5,$N$4,$R$11,$R$10,$V$13,$V$14,$Z$13,$Z$14,$AD$10,$AD$11,$AH$10,$AH$11,$AL$8,$AL$7,$AP$5,$AP$4,$AT$11,$AT$10,$AX$13,$AX$14,0,0) -> 7-6-0 | AY22: =$B$10+$F$10+$J$8+$N$5+$R$11+$V$13+$Z$13+$AD$10+$AH$10+$AL$8+$AP$5+$AT$11+$AX$13 -> 10877 | BA22: Pilgaards Mannschaft | BB22: =RecordUpdate("0-0-0",$B$5,$B$4,$F$7,$F$8,$J$7,$J$8,$N$7,$N$8,$R$7,$R$8,$V$7,$V$8,$Z$7,$Z$8,$AD$5,$AD$4,$AH$7,$AH$8,$AL$7,$AL$8,$AP$7,$AP$8,$AT$7,$AT$8,$AX$7,$AX$8,$BB$7,$BB$8) -> 8-6-0 | BC22: =$B$5+$F$7+$J$7+$N$7+$R$7+$V$7+$Z$7+$AD$5+$AH$7+$AL$7+$AP$7+$AT$7+$AX$7+$BB$7 -> 11688 | BI22: =IF(AND($BF$17=0,$BF$18=0),"",IF($BF$17>$BF$18,$BE$18,$BE$17)) -> Team Go'o | BJ22: =BJ179 -> 334
A23: Team Ludoleif | B23: =RecordUpdate("0-0-0",$B$4,$B$5,0,0,0,0,0,0,0,0,0,0,0,0,0,0,0,0,0,0,0,0,0,0,0,0,0,0) -> 0-1-0 | C23: =$B$4 -> 861 | E23: Team Ludoleif | F23: =RecordUpdate("0-0-0",$B$4,$B$5,$F$4,$F$5,0,0,0,0,0,0,0,0,0,0,0,0,0,0,0,0,0,0,0,0,0,0,0,0) -> 1-1-0 | G23: =$B$4+$F$4 -> 1541 | I23: Lam i roen | J23: =RecordUpdate("0-0-0",$B$7,$B$8,$F$8,$F$7,$J$5,$J$4,0,0,0,0,0,0,0,0,0,0,0,0,0,0,0,0,0,0,0,0,0,0) -> 1-2-0 | K23: =$B$7+$F$8+$J$5 -> 2521 | M23: Team Go'o | N23: =RecordUpdate("0-0-0",$B$14,$B$13,$F$5,$F$4,$J$14,$J$13,$N$11,$N$10,0,0,0,0,0,0,0,0,0,0,0,0,0,0,0,0,0,0,0,0) -> 2-2-0 | O23: =$B$14+$F$5+$J$14+$N$11 -> 2985 | Q23: Nilsson Monkeys | R23: =RecordUpdate("0-0-0",$B$10,$B$11,$F$10,$F$11,$J$8,$J$7,$N$5,$N$4,$R$11,$R$10,0,0,0,0,0,0,0,0,0,0,0,0,0,0,0,0,0,0) -> 2-3-0 | S23: =$B$10+$F$10+$J$8+$N$5+$R$11 -> 3874 | U23: Nilsson Monkeys | V23: =RecordUpdate("0-0-0",$B$10,$B$11,$F$10,$F$11,$J$8,$J$7,$N$5,$N$4,$R$11,$R$10,$V$13,$V$14,0,0,0,0,0,0,0,0,0,0,0,0,0,0,0,0) -> 3-3-0 | W23: =$B$10+$F$10+$J$8+$N$5+$R$11+$V$13 -> 4759 | Y23: Nilsson Monkeys | Z23: =RecordUpdate("0-0-0",$B$10,$B$11,$F$10,$F$11,$J$8,$J$7,$N$5,$N$4,$R$11,$R$10,$V$13,$V$14,$Z$13,$Z$14,0,0,0,0,0,0,0,0,0,0,0,0,0,0) -> 3-4-0 | AA23: =$B$10+$F$10+$J$8+$N$5+$R$11+$V$13+$Z$13 -> 5381 | AC23: Pilgaards Mannschaft | AD23: =RecordUpdate("0-0-0",$B$5,$B$4,$F$7,$F$8,$J$7,$J$8,$N$7,$N$8,$R$7,$R$8,$V$7,$V$8,$Z$7,$Z$8,$AD$5,$AD$4,0,0,0,0,0,0,0,0,0,0,0,0) -> 3-5-0 | AE23: =$B$5+$F$7+$J$7+$N$7+$R$7+$V$7+$Z$7+$AD$5 -> 6041 | AG23: Pilgaards Mannschaft | AH23: =RecordUpdate("0-0-0",$B$5,$B$4,$F$7,$F$8,$J$7,$J$8,$N$7,$N$8,$R$7,$R$8,$V$7,$V$8,$Z$7,$Z$8,$AD$5,$AD$4,$AH$7,$AH$8,0,0,0,0,0,0,0,0,0,0) -> 4-5-0 | AI23: =$B$5+$F$7+$J$7+$N$7+$R$7+$V$7+$Z$7+$AD$5+$AH$7 -> 6848 | AK23: Nilsson Monkeys | AL23: =RecordUpdate("0-0-0",$B$10,$B$11,$F$10,$F$11,$J$8,$J$7,$N$5,$N$4,$R$11,$R$10,$V$13,$V$14,$Z$13,$Z$14,$AD$10,$AD$11,$AH$10,$AH$11,$AL$8,$AL$7,0,0,0,0,0,0,0,0) -> 4-6-0 | AM23: =$B$10+$F$10+$J$8+$N$5+$R$11+$V$13+$Z$13+$AD$10+$AH$10+$AL$8 -> 7725 | AO23: Nilsson Monkeys | AP23: =RecordUpdate("0-0-0",$B$10,$B$11,$F$10,$F$11,$J$8,$J$7,$N$5,$N$4,$R$11,$R$10,$V$13,$V$14,$Z$13,$Z$14,$AD$10,$AD$11,$AH$10,$AH$11,$AL$8,$AL$7,$AP$5,$AP$4,0,0,0,0,0,0) -> 5-6-0 | AQ23: =$B$10+$F$10+$J$8+$N$5+$R$11+$V$13+$Z$13+$AD$10+$AH$10+$AL$8+$AP$5 -> 9029 | AS23: Nilsson Monkeys | AT23: =RecordUpdate("0-0-0",$B$10,$B$11,$F$10,$F$11,$J$8,$J$7,$N$5,$N$4,$R$11,$R$10,$V$13,$V$14,$Z$13,$Z$14,$AD$10,$AD$11,$AH$10,$AH$11,$AL$8,$AL$7,$AP$5,$AP$4,$AT$11,$AT$10,0,0,0,0) -> 6-6-0 | AU23: =$B$10+$F$10+$J$8+$N$5+$R$11+$V$13+$Z$13+$AD$10+$AH$10+$AL$8+$AP$5+$AT$11 -> 9831 | AW23: Pilgaards Mannschaft | AX23: =RecordUpdate("0-0-0",$B$5,$B$4,$F$7,$F$8,$J$7,$J$8,$N$7,$N$8,$R$7,$R$8,$V$7,$V$8,$Z$7,$Z$8,$AD$5,$AD$4,$AH$7,$AH$8,$AL$7,$AL$8,$AP$7,$AP$8,$AT$7,$AT$8,$AX$7,$AX$8,0,0) -> 7-6-0 | AY23: =$B$5+$F$7+$J$7+$N$7+$R$7+$V$7+$Z$7+$AD$5+$AH$7+$AL$7+$AP$7+$AT$7+$AX$7 -> 10373 | BA23: Team-UhUh | BB23: =RecordUpdate("0-0-0",$B$13,$B$14,$F$13,$F$14,$J$10,$J$11,$N$8,$N$7,$R$5,$R$4,$V$11,$V$10,$Z$14,$Z$13,$AD$13,$AD$14,$AH$13,$AH$14,$AL$10,$AL$11,$AP$8,$AP$7,$AT$5,$AT$4,$AX$11,$AX$10,$BB$14,$BB$13) -> 8-6-0 | BC23: =$B$13+$F$13+$J$10+$N$8+$R$5+$V$11+$Z$14+$AD$13+$AH$13+$AL$10+$AP$8+$AT$5+$AX$11+$BB$14 -> 11521
A24: Lam i roen | B24: =RecordUpdate("0-0-0",$B$7,$B$8,0,0,0,0,0,0,0,0,0,0,0,0,0,0,0,0,0,0,0,0,0,0,0,0,0,0) -> 0-1-0 | C24: =$B$7 -> 767 | E24: Nilsson Monkeys | F24: =RecordUpdate("0-0-0",$B$10,$B$11,$F$10,$F$11,0,0,0,0,0,0,0,0,0,0,0,0,0,0,0,0,0,0,0,0,0,0,0,0) -> 1-1-0 | G24: =$B$10+$F$10 -> 1305 | I24: Nilsson Monkeys | J24: =RecordUpdate("0-0-0",$B$10,$B$11,$F$10,$F$11,$J$8,$J$7,0,0,0,0,0,0,0,0,0,0,0,0,0,0,0,0,0,0,0,0,0,0) -> 1-2-0 | K24: =$B$10+$F$10+$J$8 -> 2164 | M24: Lam i roen | N24: =RecordUpdate("0-0-0",$B$7,$B$8,$F$8,$F$7,$J$5,$J$4,$N$10,$N$11,0,0,0,0,0,0,0,0,0,0,0,0,0,0,0,0,0,0,0,0) -> 1-3-0 | O24: =$B$7+$F$8+$J$5+$N$10 -> 3294 | Q24: Team Go'o | R24: =RecordUpdate("0-0-0",$B$14,$B$13,$F$5,$F$4,$J$14,$J$13,$N$11,$N$10,$R$14,$R$13,0,0,0,0,0,0,0,0,0,0,0,0,0,0,0,0,0,0) -> 2-3-0 | S24: =$B$14+$F$5+$J$14+$N$11+$R$14 -> 3386 | U24: Team Go'o | V24: =RecordUpdate("0-0-0",$B$14,$B$13,$F$5,$F$4,$J$14,$J$13,$N$11,$N$10,$R$14,$R$13,$V$14,$V$13,0,0,0,0,0,0,0,0,0,0,0,0,0,0,0,0) -> 2-4-0 | W24: =$B$14+$F$5+$J$14+$N$11+$R$14+$V$14 -> 4224 | Y24: Team Go'o | Z24: =RecordUpdate("0-0-0",$B$14,$B$13,$F$5,$F$4,$J$14,$J$13,$N$11,$N$10,$R$14,$R$13,$V$14,$V$13,$Z$8,$Z$7,0,0,0,0,0,0,0,0,0,0,0,0,0,0) -> 3-4-0 | AA24: =$B$14+$F$5+$J$14+$N$11+$R$14+$V$14+$Z$8 -> 5108 | AC24: Team Go'o | AD24: =RecordUpdate("0-0-0",$B$14,$B$13,$F$5,$F$4,$J$14,$J$13,$N$11,$N$10,$R$14,$R$13,$V$14,$V$13,$Z$8,$Z$7,$AD$14,$AD$13,0,0,0,0,0,0,0,0,0,0,0,0) -> 3-5-0 | AE24: =$B$14+$F$5+$J$14+$N$11+$R$14+$V$14+$Z$8+$AD$14 -> 5871 | AG24: Team Go'o | AH24: =RecordUpdate("0-0-0",$B$14,$B$13,$F$5,$F$4,$J$14,$J$13,$N$11,$N$10,$R$14,$R$13,$V$14,$V$13,$Z$8,$Z$7,$AD$14,$AD$13,$AH$5,$AH$4,0,0,0,0,0,0,0,0,0,0) -> 3-6-0 | AI24: =$B$14+$F$5+$J$14+$N$11+$R$14+$V$14+$Z$8+$AD$14+$AH$5 -> 6370 | AK24: Team Go'o | AL24: =RecordUpdate("0-0-0",$B$14,$B$13,$F$5,$F$4,$J$14,$J$13,$N$11,$N$10,$R$14,$R$13,$V$14,$V$13,$Z$8,$Z$7,$AD$14,$AD$13,$AH$5,$AH$4,$AL$14,$AL$13,0,0,0,0,0,0,0,0) -> 4-6-0 | AM24: =$B$14+$F$5+$J$14+$N$11+$R$14+$V$14+$Z$8+$AD$14+$AH$5+$AL$14 -> 7103 | AO24: Team Go'o | AP24: =RecordUpdate("0-0-0",$B$14,$B$13,$F$5,$F$4,$J$14,$J$13,$N$11,$N$10,$R$14,$R$13,$V$14,$V$13,$Z$8,$Z$7,$AD$14,$AD$13,$AH$5,$AH$4,$AL$14,$AL$13,$AP$11,$AP$10,0,0,0,0,0,0) -> 5-6-0 | AQ24: =$B$14+$F$5+$J$14+$N$11+$R$14+$V$14+$Z$8+$AD$14+$AH$5+$AL$14+$AP$11 -> 8200 | AS24: Team Go'o | AT24: =RecordUpdate("0-0-0",$B$14,$B$13,$F$5,$F$4,$J$14,$J$13,$N$11,$N$10,$R$14,$R$13,$V$14,$V$13,$Z$8,$Z$7,$AD$14,$AD$13,$AH$5,$AH$4,$AL$14,$AL$13,$AP$11,$AP$10,$AT$14,$AT$13,0,0,0,0) -> 6-6-0 | AU24: =$B$14+$F$5+$J$14+$N$11+$R$14+$V$14+$Z$8+$AD$14+$AH$5+$AL$14+$AP$11+$AT$14 -> 8939 | AW24: Team Go'o | AX24: =RecordUpdate("0-0-0",$B$14,$B$13,$F$5,$F$4,$J$14,$J$13,$N$11,$N$10,$R$14,$R$13,$V$14,$V$13,$Z$8,$Z$7,$AD$14,$AD$13,$AH$5,$AH$4,$AL$14,$AL$13,$AP$11,$AP$10,$AT$14,$AT$13,$AX$14,$AX$13,0,0) -> 6-7-0 | AY24: =$B$14+$F$5+$J$14+$N$11+$R$14+$V$14+$Z$8+$AD$14+$AH$5+$AL$14+$AP$11+$AT$14+$AX$14 -> 9732 | BA24: Team Go'o | BB24: =RecordUpdate("0-0-0",$B$14,$B$13,$F$5,$F$4,$J$14,$J$13,$N$11,$N$10,$R$14,$R$13,$V$14,$V$13,$Z$8,$Z$7,$AD$14,$AD$13,$AH$5,$AH$4,$AL$14,$AL$13,$AP$11,$AP$10,$AT$14,$AT$13,$AX$14,$AX$13,$BB$8,$BB$7) -> 6-8-0 | BC24: =$B$14+$F$5+$J$14+$N$11+$R$14+$V$14+$Z$8+$AD$14+$AH$5+$AL$14+$AP$11+$AT$14+$AX$14+$BB$8 -> 10389
A25: Team Go'o | B25: =RecordUpdate("0-0-0",$B$14,$B$13,0,0,0,0,0,0,0,0,0,0,0,0,0,0,0,0,0,0,0,0,0,0,0,0,0,0) -> 0-1-0 | C25: =$B$14 -> 551 | E25: Team Go'o | F25: =RecordUpdate("0-0-0",$B$14,$B$13,$F$5,$F$4,0,0,0,0,0,0,0,0,0,0,0,0,0,0,0,0,0,0,0,0,0,0,0,0) -> 0-2-0 | G25: =$B$14+$F$5 -> 1152 | I25: Team Go'o | J25: =RecordUpdate("0-0-0",$B$14,$B$13,$F$5,$F$4,$J$14,$J$13,0,0,0,0,0,0,0,0,0,0,0,0,0,0,0,0,0,0,0,0,0,0) -> 1-2-0 | K25: =$B$14+$F$5+$J$14 -> 1835 | M25: Nilsson Monkeys | N25: =RecordUpdate("0-0-0",$B$10,$B$11,$F$10,$F$11,$J$8,$J$7,$N$5,$N$4,0,0,0,0,0,0,0,0,0,0,0,0,0,0,0,0,0,0,0,0) -> 1-3-0 | O25: =$B$10+$F$10+$J$8+$N$5 -> 2904 | Q25: Lam i roen | R25: =RecordUpdate("0-0-0",$B$7,$B$8,$F$8,$F$7,$J$5,$J$4,$N$10,$N$11,$R$10,$R$11,0,0,0,0,0,0,0,0,0,0,0,0,0,0,0,0,0,0) -> 1-4-0 | S25: =$B$7+$F$8+$J$5+$N$10+$R$10 -> 3943 | U25: Lam i roen | V25: =RecordUpdate("0-0-0",$B$7,$B$8,$F$8,$F$7,$J$5,$J$4,$N$10,$N$11,$R$10,$R$11,$V$10,$V$11,0,0,0,0,0,0,0,0,0,0,0,0,0,0,0,0) -> 1-5-0 | W25: =$B$7+$F$8+$J$5+$N$10+$R$10+$V$10 -> 4561 | Y25: Lam i roen | Z25: =RecordUpdate("0-0-0",$B$7,$B$8,$F$8,$F$7,$J$5,$J$4,$N$10,$N$11,$R$10,$R$11,$V$10,$V$11,$Z$10,$Z$11,0,0,0,0,0,0,0,0,0,0,0,0,0,0) -> 1-6-0 | AA25: =$B$7+$F$8+$J$5+$N$10+$R$10+$V$10+$Z$10 -> 5219 | AC25: Lam i roen | AD25: =RecordUpdate("0-0-0",$B$7,$B$8,$F$8,$F$7,$J$5,$J$4,$N$10,$N$11,$R$10,$R$11,$V$10,$V$11,$Z$10,$Z$11,$AD$7,$AD$8,0,0,0,0,0,0,0,0,0,0,0,0) -> 1-7-0 | AE25: =$B$7+$F$8+$J$5+$N$10+$R$10+$V$10+$Z$10+$AD$7 -> 6040 | AG25: Lam i roen | AH25: =RecordUpdate("0-0-0",$B$7,$B$8,$F$8,$F$7,$J$5,$J$4,$N$10,$N$11,$R$10,$R$11,$V$10,$V$11,$Z$10,$Z$11,$AD$7,$AD$8,$AH$8,$AH$7,0,0,0,0,0,0,0,0,0,0) -> 1-8-0 | AI25: =$B$7+$F$8+$J$5+$N$10+$R$10+$V$10+$Z$10+$AD$7+$AH$8 -> 6653 | AK25: Lam i roen | AL25: =RecordUpdate("0-0-0",$B$7,$B$8,$F$8,$F$7,$J$5,$J$4,$N$10,$N$11,$R$10,$R$11,$V$10,$V$11,$Z$10,$Z$11,$AD$7,$AD$8,$AH$8,$AH$7,$AL$5,$AL$4,0,0,0,0,0,0,0,0) -> 1-9-0 | AM25: =$B$7+$F$8+$J$5+$N$10+$R$10+$V$10+$Z$10+$AD$7+$AH$8+$AL$5 -> 7289 | AO25: Lam i roen | AP25: =RecordUpdate("0-0-0",$B$7,$B$8,$F$8,$F$7,$J$5,$J$4,$N$10,$N$11,$R$10,$R$11,$V$10,$V$11,$Z$10,$Z$11,$AD$7,$AD$8,$AH$8,$AH$7,$AL$5,$AL$4,$AP$10,$AP$11,0,0,0,0,0,0) -> 1-10-0 | AQ25: =$B$7+$F$8+$J$5+$N$10+$R$10+$V$10+$Z$10+$AD$7+$AH$8+$AL$5+$AP$10 -> 8056 | AS25: Lam i roen | AT25: =RecordUpdate("0-0-0",$B$7,$B$8,$F$8,$F$7,$J$5,$J$4,$N$10,$N$11,$R$10,$R$11,$V$10,$V$11,$Z$10,$Z$11,$AD$7,$AD$8,$AH$8,$AH$7,$AL$5,$AL$4,$AP$10,$AP$11,$AT$10,$AT$11,0,0,0,0) -> 1-11-0 | AU25: =$B$7+$F$8+$J$5+$N$10+$R$10+$V$10+$Z$10+$AD$7+$AH$8+$AL$5+$AP$10+$AT$10 -> 8726 | AW25: Lam i roen | AX25: =RecordUpdate("0-0-0",$B$7,$B$8,$F$8,$F$7,$J$5,$J$4,$N$10,$N$11,$R$10,$R$11,$V$10,$V$11,$Z$10,$Z$11,$AD$7,$AD$8,$AH$8,$AH$7,$AL$5,$AL$4,$AP$10,$AP$11,$AT$10,$AT$11,$AX$10,$AX$11,0,0) -> 2-11-0 | AY25: =$B$7+$F$8+$J$5+$N$10+$R$10+$V$10+$Z$10+$AD$7+$AH$8+$AL$5+$AP$10+$AT$10+$AX$10 -> 9439 | BA25: Lam i roen | BB25: =RecordUpdate("0-0-0",$B$7,$B$8,$F$8,$F$7,$J$5,$J$4,$N$10,$N$11,$R$10,$R$11,$V$10,$V$11,$Z$10,$Z$11,$AD$7,$AD$8,$AH$8,$AH$7,$AL$5,$AL$4,$AP$10,$AP$11,$AT$10,$AT$11,$AX$10,$AX$11,$BB$10,$BB$11) -> 3-11-0 | BC25: =$B$7+$F$8+$J$5+$N$10+$R$10+$V$10+$Z$10+$AD$7+$AH$8+$AL$5+$AP$10+$AT$10+$AX$10+$BB$10 -> 10504
A26: Weak Knees Revenge | B26: =RecordUpdate("0-0-0",$B$11,$B$10,0,0,0,0,0,0,0,0,0,0,0,0,0,0,0,0,0,0,0,0,0,0,0,0,0,0) -> 0-1-0 | C26: =$B$11 -> 467 | E26: Weak Knees Revenge | F26: =RecordUpdate("0-0-0",$B$11,$B$10,$F$14,$F$13,0,0,0,0,0,0,0,0,0,0,0,0,0,0,0,0,0,0,0,0,0,0,0,0) -> 0-2-0 | G26: =$B$11+$F$14 -> 985 | I26: Weak Knees Revenge | J26: =RecordUpdate("0-0-0",$B$11,$B$10,$F$14,$F$13,$J$13,$J$14,0,0,0,0,0,0,0,0,0,0,0,0,0,0,0,0,0,0,0,0,0,0) -> 0-3-0 | K26: =$B$11+$F$14+$J$13 -> 1588 | M26: Weak Knees Revenge | N26: =RecordUpdate("0-0-0",$B$11,$B$10,$F$14,$F$13,$J$13,$J$14,$N$13,$N$14,0,0,0,0,0,0,0,0,0,0,0,0,0,0,0,0,0,0,0,0) -> 0-4-0 | O26: =$B$11+$F$14+$J$13+$N$13 -> 2329 | Q26: Weak Knees Revenge | R26: =RecordUpdate("0-0-0",$B$11,$B$10,$F$14,$F$13,$J$13,$J$14,$N$13,$N$14,$R$8,$R$7,0,0,0,0,0,0,0,0,0,0,0,0,0,0,0,0,0,0) -> 0-5-0 | S26: =$B$11+$F$14+$J$13+$N$13+$R$8 -> 2780 | U26: Weak Knees Revenge | V26: =RecordUpdate("0-0-0",$B$11,$B$10,$F$14,$F$13,$J$13,$J$14,$N$13,$N$14,$R$8,$R$7,$V$5,$V$4,0,0,0,0,0,0,0,0,0,0,0,0,0,0,0,0) -> 0-6-0 | W26: =$B$11+$F$14+$J$13+$N$13+$R$8+$V$5 -> 3413 | Y26: Weak Knees Revenge | Z26: =RecordUpdate("0-0-0",$B$11,$B$10,$F$14,$F$13,$J$13,$J$14,$N$13,$N$14,$R$8,$R$7,$V$5,$V$4,$Z$11,$Z$10,0,0,0,0,0,0,0,0,0,0,0,0,0,0) -> 1-6-0 | AA26: =$B$11+$F$14+$J$13+$N$13+$R$8+$V$5+$Z$11 -> 4251 | AC26: Weak Knees Revenge | AD26: =RecordUpdate("0-0-0",$B$11,$B$10,$F$14,$F$13,$J$13,$J$14,$N$13,$N$14,$R$8,$R$7,$V$5,$V$4,$Z$11,$Z$10,$AD$11,$AD$10,0,0,0,0,0,0,0,0,0,0,0,0) -> 1-7-0 | AE26: =$B$11+$F$14+$J$13+$N$13+$R$8+$V$5+$Z$11+$AD$11 -> 4922 | AG26: Weak Knees Revenge | AH26: =RecordUpdate("0-0-0",$B$11,$B$10,$F$14,$F$13,$J$13,$J$14,$N$13,$N$14,$R$8,$R$7,$V$5,$V$4,$Z$11,$Z$10,$AD$11,$AD$10,$AH$14,$AH$13,0,0,0,0,0,0,0,0,0,0) -> 1-8-0 | AI26: =$B$11+$F$14+$J$13+$N$13+$R$8+$V$5+$Z$11+$AD$11+$AH$14 -> 5423 | AK26: Weak Knees Revenge | AL26: =RecordUpdate("0-0-0",$B$11,$B$10,$F$14,$F$13,$J$13,$J$14,$N$13,$N$14,$R$8,$R$7,$V$5,$V$4,$Z$11,$Z$10,$AD$11,$AD$10,$AH$14,$AH$13,$AL$13,$AL$14,0,0,0,0,0,0,0,0) -> 1-9-0 | AM26: =$B$11+$F$14+$J$13+$N$13+$R$8+$V$5+$Z$11+$AD$11+$AH$14+$AL$13 -> 6020 | AO26: Weak Knees Revenge | AP26: =RecordUpdate("0-0-0",$B$11,$B$10,$F$14,$F$13,$J$13,$J$14,$N$13,$N$14,$R$8,$R$7,$V$5,$V$4,$Z$11,$Z$10,$AD$11,$AD$10,$AH$14,$AH$13,$AL$13,$AL$14,$AP$13,$AP$14,0,0,0,0,0,0) -> 1-10-0 | AQ26: =$B$11+$F$14+$J$13+$N$13+$R$8+$V$5+$Z$11+$AD$11+$AH$14+$AL$13+$AP$13 -> 6698 | AS26: Weak Knees Revenge | AT26: =RecordUpdate("0-0-0",$B$11,$B$10,$F$14,$F$13,$J$13,$J$14,$N$13,$N$14,$R$8,$R$7,$V$5,$V$4,$Z$11,$Z$10,$AD$11,$AD$10,$AH$14,$AH$13,$AL$13,$AL$14,$AP$13,$AP$14,$AT$8,$AT$7,0,0,0,0) -> 1-11-0 | AU26: =$B$11+$F$14+$J$13+$N$13+$R$8+$V$5+$Z$11+$AD$11+$AH$14+$AL$13+$AP$13+$AT$8 -> 7412 | AW26: Weak Knees Revenge | AX26: =RecordUpdate("0-0-0",$B$11,$B$10,$F$14,$F$13,$J$13,$J$14,$N$13,$N$14,$R$8,$R$7,$V$5,$V$4,$Z$11,$Z$10,$AD$11,$AD$10,$AH$14,$AH$13,$AL$13,$AL$14,$AP$13,$AP$14,$AT$8,$AT$7,$AX$5,$AX$4,0,0) -> 1-12-0 | AY26: =$B$11+$F$14+$J$13+$N$13+$R$8+$V$5+$Z$11+$AD$11+$AH$14+$AL$13+$AP$13+$AT$8+$AX$5 -> 7902 | BA26: Weak Knees Revenge | BB26: =RecordUpdate("0-0-0",$B$11,$B$10,$F$14,$F$13,$J$13,$J$14,$N$13,$N$14,$R$8,$R$7,$V$5,$V$4,$Z$11,$Z$10,$AD$11,$AD$10,$AH$14,$AH$13,$AL$13,$AL$14,$AP$13,$AP$14,$AT$8,$AT$7,$AX$5,$AX$4,$BB$11,$BB$10) -> 1-13-0 | BC26: =$B$11+$F$14+$J$13+$N$13+$R$8+$V$5+$Z$11+$AD$11+$AH$14+$AL$13+$AP$13+$AT$8+$AX$5+$BB$11 -> 8433
B32: Record | C32: TPS | D32: TPC | F32: TPS/PG | G32: TPC/PG | J32: Record | K32: TPS | L32: TPC | N32: TPS/PG | O32: TPC/PG | R32: Record | S32: TPS | T32: TPC | V32: TPS/PG | W32: TPC/PG | Z32: Record | AA32: TPS | AB32: TPC | AD32: TPS/PG | AE32: TPC/PG | AH32: Record | AI32: TPS | AJ32: TPC | AL32: TPS/PG | AM32: TPC/PG | AP32: Record | AQ32: TPS | AR32: TPC | AT32: TPS/PG | AU32: TPC/PG | AX32: Record | AY32: TPS | AZ32: TPC | BB32: TPS/PG | BC32: TPC/PG | BF32: Record | BG32: TPS | BH32: TPC | BJ32: TPS/PG | BK32: TPC/PG
A33: Team Ludoleif | B33: =RecordUpdate("0-0-0",$B$4,$B$5,$F$4,$F$5,$J$4,$J$5,$N$4,$N$5,$R$4,$R$5,$V$4,$V$5,$Z$4,$Z$5,$AD$4,$AD$5,$AH$4,$AH$5,$AL$4,$AL$5,$AP$4,$AP$5,$AT$4,$AT$5,$AX$4,$AX$5,$BB$4,$BB$5) -> 10-4-0 | C33: =$B$4+$F$4+$J$4+$N$4+$R$4+$V$4+$Z$4+$AD$4+$AH$4+$AL$4+$AP$4+$AT$4+$AX$4+$BB$4 -> 13097 | D33: =$B$5+$F$5+$J$5+$N$5+$R$5+$V$5+$Z$5+$AD$5+$AH$5+$AL$5+$AP$5+$AT$5+$AX$5+$BB$5 -> 10304 | E33: This season | F33: =SUM(C33/GamesPlayed(B33)) -> 935.5 | G33: =SUM(D33/GamesPlayed(B33)) -> 736 | I33: Pilgaards Mannschaft | J33: =RecordUpdate("0-0-0",$B$5,$B$4,$F$7,$F$8,$J$7,$J$8,$N$7,$N$8,$R$7,$R$8,$V$7,$V$8,$Z$7,$Z$8,$AD$5,$AD$4,$AH$7,$AH$8,$AL$7,$AL$8,$AP$7,$AP$8,$AT$7,$AT$8,$AX$7,$AX$8,$BB$7,$BB$8) -> 8-6-0 | K33: =$B$5+$F$7+$J$7+$N$7+$R$7+$V$7+$Z$7+$AD$5+$AH$7+$AL$7+$AP$7+$AT$7+$AX$7+$BB$7 -> 11688 | L33: =$B$4+$F$8+$J$8+$N$8+$R$8+$V$8+$Z$8+$AD$4+$AH$8+$AL$8+$AP$8+$AT$8+$AX$8+$BB$8 -> 10794 | M33: This season | N33: =SUM(K33/GamesPlayed(J33)) -> 834.8571429 | O33: =SUM(L33/GamesPlayed(J33)) -> 771 | Q33: Lam i roen | R33: =RecordUpdate("0-0-0",$B$7,$B$8,$F$8,$F$7,$J$5,$J$4,$N$10,$N$11,$R$10,$R$11,$V$10,$V$11,$Z$10,$Z$11,$AD$7,$AD$8,$AH$8,$AH$7,$AL$5,$AL$4,$AP$10,$AP$11,$AT$10,$AT$11,$AX$10,$AX$11,$BB$10,$BB$11) -> 3-11-0 | S33: =$B$7+$F$8+$J$5+$N$10+$R$10+$V$10+$Z$10+$AD$7+$AH$8+$AL$5+$AP$10+$AT$10+$AX$10+$BB$10 -> 10504 | T33: =$B$8+$F$7+$J$4+$N$11+$R$11+$V$11+$Z$11+$AD$8+$AH$7+$AL$4+$AP$11+$AT$11+$AX$11+$BB$11 -> 12823 | U33: This season | V33: =SUM(S33/GamesPlayed(R33)) -> 750.2857143 | W33: =SUM(T33/GamesPlayed(R33)) -> 915.9285714 | Y33: Djohn | Z33: =RecordUpdate("0-0-0",$B$8,$B$7,$F$11,$F$10,$J$11,$J$10,$N$14,$N$13,$R$13,$R$14,$V$8,$V$7,$Z$5,$Z$4,$AD$8,$AD$7,$AH$11,$AH$10,$AL$11,$AL$10,$AP$14,$AP$13,$AT$13,$AT$14,$AX$8,$AX$7,$BB$5,$BB$4) -> 12-2-0 | AA33: =$B$8+$F$11+$J$11+$N$14+$R$13+$V$8+$Z$5+$AD$8+$AH$11+$AL$11+$AP$14+$AT$13+$AX$8+$BB$5 -> 13593 | AB33: =$B$7+$F$10+$J$10+$N$13+$R$14+$V$7+$Z$4+$AD$7+$AH$10+$AL$10+$AP$13+$AT$14+$AX$7+$BB$4 -> 10322 | AC33: This season | AD33: =SUM(AA33/GamesPlayed(Z33)) -> 970.9285714 | AE33: =SUM(AB33/GamesPlayed(Z33)) -> 737.2857143 | AG33: Nilsson Monkeys | AH33: =RecordUpdate("0-0-0",$B$10,$B$11,$F$10,$F$11,$J$8,$J$7,$N$5,$N$4,$R$11,$R$10,$V$13,$V$14,$Z$13,$Z$14,$AD$10,$AD$11,$AH$10,$AH$11,$AL$8,$AL$7,$AP$5,$AP$4,$AT$11,$AT$10,$AX$13,$AX$14,$BB$13,$BB$14) -> 8-6-0 | AI33: =$B$10+$F$10+$J$8+$N$5+$R$11+$V$13+$Z$13+$AD$10+$AH$10+$AL$8+$AP$5+$AT$11+$AX$13+$BB$13 -> 11939 | AJ33: =$B$11+$F$11+$J$7+$N$4+$R$10+$V$14+$Z$14+$AD$11+$AH$11+$AL$7+$AP$4+$AT$10+$AX$14+$BB$14 -> 11580 | AK33: This season | AL33: =SUM(AI33/GamesPlayed(AH33)) -> 852.7857143 | AM33: =SUM(AJ33/GamesPlayed(AH33)) -> 827.1428571 | AO33: Weak Knees Revenge | AP33: =RecordUpdate("0-0-0",$B$11,$B$10,$F$14,$F$13,$J$13,$J$14,$N$13,$N$14,$R$8,$R$7,$V$5,$V$4,$Z$11,$Z$10,$AD$11,$AD$10,$AH$14,$AH$13,$AL$13,$AL$14,$AP$13,$AP$14,$AT$8,$AT$7,$AX$5,$AX$4,$BB$11,$BB$10) -> 1-13-0 | AQ33: =$B$11+$F$14+$J$13+$N$13+$R$8+$V$5+$Z$11+$AD$11+$AH$14+$AL$13+$AP$13+$AT$8+$AX$5+$BB$11 -> 8433 | AR33: =$B$10+$F$13+$J$14+$N$14+$R$7+$V$4+$Z$10+$AD$10+$AH$13+$AL$14+$AP$14+$AT$7+$AX$4+$BB$10 -> 12397 | AS33: This season | AT33: =SUM(AQ33/GamesPlayed(AP33)) -> 602.3571429 | AU33: =SUM(AR33/GamesPlayed(AP33)) -> 885.5 | AW33: Team-UhUh | AX33: =RecordUpdate("0-0-0",$B$13,$B$14,$F$13,$F$14,$J$10,$J$11,$N$8,$N$7,$R$5,$R$4,$V$11,$V$10,$Z$14,$Z$13,$AD$13,$AD$14,$AH$13,$AH$14,$AL$10,$AL$11,$AP$8,$AP$7,$AT$5,$AT$4,$AX$11,$AX$10,$BB$14,$BB$13) -> 8-6-0 | AY33: =$B$13+$F$13+$J$10+$N$8+$R$5+$V$11+$Z$14+$AD$13+$AH$13+$AL$10+$AP$8+$AT$5+$AX$11+$BB$14 -> 11521 | AZ33: =$B$14+$F$14+$J$11+$N$7+$R$4+$V$10+$Z$13+$AD$14+$AH$14+$AL$11+$AP$7+$AT$4+$AX$10+$BB$13 -> 11365 | BA33: This season | BB33: =SUM(AY33/GamesPlayed(AX33)) -> 822.9285714 | BC33: =SUM(AZ33/GamesPlayed(AX33)) -> 811.7857143 | BE33: Team Go'o | BF33: =RecordUpdate("0-0-0",$B$14,$B$13,$F$5,$F$4,$J$14,$J$13,$N$11,$N$10,$R$14,$R$13,$V$14,$V$13,$Z$8,$Z$7,$AD$14,$AD$13,$AH$5,$AH$4,$AL$14,$AL$13,$AP$11,$AP$10,$AT$14,$AT$13,$AX$14,$AX$13,$BB$8,$BB$7) -> 6-8-0 | BG33: =$B$14+$F$5+$J$14+$N$11+$R$14+$V$14+$Z$8+$AD$14+$AH$5+$AL$14+$AP$11+$AT$14+$AX$14+$BB$8 -> 10389 | BH33: =$B$13+$F$4+$J$13+$N$10+$R$13+$V$13+$Z$7+$AD$13+$AH$4+$AL$13+$AP$10+$AT$13+$AX$13+$BB$7 -> 11579 | BI33: This season | BJ33: =SUM(BG33/GamesPlayed(BF33)) -> 742.0714286 | BK33: =SUM(BH33/GamesPlayed(BF33)) -> 827.0714286
B34: =ATRecord("0-0-0",B33) -> 10-4-0 | C34: =C33+0 -> 13097 | D34: =D33+0 -> 10304 | E34: All Time | F34: =SUM(C34/GamesPlayed(B34)) -> 935.5 | G34: =SUM(D34/GamesPlayed(B34)) -> 736 | J34: =ATRecord("0-0-0",J33) -> 8-6-0 | K34: =K33+0 -> 11688 | L34: =L33+0 -> 10794 | M34: All Time | N34: =SUM(K34/GamesPlayed(J34)) -> 834.8571429 | O34: =SUM(L34/GamesPlayed(J34)) -> 771 | R34: =ATRecord("0-0-0",R33) -> 3-11-0 | S34: =S33+0 -> 10504 | T34: =T33+0 -> 12823 | U34: All Time | V34: =SUM(S34/GamesPlayed(R34)) -> 750.2857143 | W34: =SUM(T34/GamesPlayed(R34)) -> 915.9285714 | Z34: =ATRecord("0-0-0",Z33) -> 12-2-0 | AA34: =AA33+0 -> 13593 | AB34: =AB33+0 -> 10322 | AC34: All Time | AD34: =SUM(AA34/GamesPlayed(Z34)) -> 970.9285714 | AE34: =SUM(AB34/GamesPlayed(Z34)) -> 737.2857143 | AH34: =ATRecord("0-0-0",AH33) -> 8-6-0 | AI34: =AI33+0 -> 11939 | AJ34: =AJ33+0 -> 11580 | AK34: All Time | AL34: =SUM(AI34/GamesPlayed(AH34)) -> 852.7857143 | AM34: =SUM(AJ34/GamesPlayed(AH34)) -> 827.1428571 | AP34: =ATRecord("0-0-0",AP33) -> 1-13-0 | AQ34: =AQ33+0 -> 8433 | AR34: =AR33+0 -> 12397 | AS34: All Time | AT34: =SUM(AQ34/GamesPlayed(AP34)) -> 602.3571429 | AU34: =SUM(AR34/GamesPlayed(AP34)) -> 885.5 | AX34: =ATRecord("0-0-0",AX33) -> 8-6-0 | AY34: =AY33+0 -> 11521 | AZ34: =AZ33+0 -> 11365 | BA34: All Time | BB34: =SUM(AY34/GamesPlayed(AX34)) -> 822.9285714 | BC34: =SUM(AZ34/GamesPlayed(AX34)) -> 811.7857143 | BF34: =ATRecord("0-0-0",BF33) -> 6-8-0 | BG34: =BG33+0 -> 10389 | BH34: =BH33+0 -> 11579 | BI34: All Time | BJ34: =SUM(BG34/GamesPlayed(BF34)) -> 742.0714286 | BK34: =SUM(BH34/GamesPlayed(BF34)) -> 827.0714286
A36: vs. | B36: Record | C36: TPS | D36: TPC | F36: TPS/PG | G36: TPC/PG | I36: vs. | J36: Record | K36: TPS | L36: TPC | N36: TPS/PG | O36: TPC/PG | Q36: vs. | R36: Record | S36: TPS | T36: TPC | V36: TPS/PG | W36: TPC/PG | Y36: vs. | Z36: Record | AA36: TPS | AB36: TPC | AD36: TPS/PG | AE36: TPC/PG | AG36: vs. | AH36: Record | AI36: TPS | AJ36: TPC | AL36: TPS/PG | AM36: TPC/PG | AO36: vs. | AP36: Record | AQ36: TPS | AR36: TPC | AT36: TPS/PG | AU36: TPC/PG | AW36: vs. | AX36: Record | AY36: TPS | AZ36: TPC | BB36: TPS/PG | BC36: TPC/PG | BE36: vs. | BF36: Record | BG36: TPS | BH36: TPC | BJ36: TPS/PG | BK36: TPC/PG
A37: Pilgaards Mannschaft | B37: =RecordUpdate("0-0-0",$B$4,$B$5,$AD$4,$AD$5,0,0,0,0,0,0,0,0,0,0,0,0,0,0,0,0,0,0,0,0,0,0,0,0) -> 1-1-0 | C37: =$B$4+$AD$4 -> 1520 | D37: =$B$5+$AD$5 -> 1384 | E37: This season | F37: =SUM(C37/GamesPlayed(B37)) -> 760 | G37: =SUM(D37/GamesPlayed(B37)) -> 692 | I37: Team Ludoleif | J37: =RecordUpdate("0-0-0",$B$5,$B$4,$AD$5,$AD$4,0,0,0,0,0,0,0,0,0,0,0,0,0,0,0,0,0,0,0,0,0,0,0,0) -> 1-1-0 | K37: =$B$5+$AD$5 -> 1384 | L37: =$B$4+$AD$4 -> 1520 | M37: This season | N37: =SUM(K37/GamesPlayed(J37)) -> 692 | O37: =SUM(L37/GamesPlayed(J37)) -> 760 | Q37: Team Ludoleif | R37: =RecordUpdate("0-0-0",$J$5,$J$4,$AL$5,$AL$4,0,0,0,0,0,0,0,0,0,0,0,0,0,0,0,0,0,0,0,0,0,0,0,0) -> 0-2-0 | S37: =$J$5+$AL$5 -> 1384 | T37: =$J$4+$AL$4 -> 2424 | U37: This season | V37: =SUM(S37/GamesPlayed(R37)) -> 692 | W37: =SUM(T37/GamesPlayed(R37)) -> 1212 | Y37: Team Ludoleif | Z37: =RecordUpdate("0-0-0",$Z$5,$Z$4,$BB$5,$BB$4,0,0,0,0,0,0,0,0,0,0,0,0,0,0,0,0,0,0,0,0,0,0,0,0) -> 1-1-0 | AA37: =$Z$5+$BB$5 -> 1533 | AB37: =$Z$4+$BB$4 -> 1569 | AC37: This season | AD37: =SUM(AA37/GamesPlayed(Z37)) -> 766.5 | AE37: =SUM(AB37/GamesPlayed(Z37)) -> 784.5 | AG37: Team Ludoleif | AH37: =RecordUpdate("0-0-0",$N$5,$N$4,$AP$5,$AP$4,0,0,0,0,0,0,0,0,0,0,0,0,0,0,0,0,0,0,0,0,0,0,0,0) -> 1-1-0 | AI37: =$N$5+$AP$5 -> 2044 | AJ37: =$N$4+$AP$4 -> 1714 | AK37: This season | AL37: =SUM(AI37/GamesPlayed(AH37)) -> 1022 | AM37: =SUM(AJ37/GamesPlayed(AH37)) -> 857 | AO37: Team Ludoleif | AP37: =RecordUpdate("0-0-0",$V$5,$V$4,$AX$5,$AX$4,0,0,0,0,0,0,0,0,0,0,0,0,0,0,0,0,0,0,0,0,0,0,0,0) -> 0-2-0 | AQ37: =$V$5+$AX$5 -> 1123 | AR37: =$V$4+$AX$4 -> 2062 | AS37: This season | AT37: =SUM(AQ37/GamesPlayed(AP37)) -> 561.5 | AU37: =SUM(AR37/GamesPlayed(AP37)) -> 1031 | AW37: Team Ludoleif | AX37: =RecordUpdate("0-0-0",$R$5,$R$4,$AT$5,$AT$4,0,0,0,0,0,0,0,0,0,0,0,0,0,0,0,0,0,0,0,0,0,0,0,0) -> 1-1-0 | AY37: =$R$5+$AT$5 -> 1736 | AZ37: =$R$4+$AT$4 -> 2045 | BA37: This season | BB37: =SUM(AY37/GamesPlayed(AX37)) -> 868 | BC37: =SUM(AZ37/GamesPlayed(AX37)) -> 1022.5 | BE37: Team Ludoleif | BF37: =RecordUpdate("0-0-0",$F$5,$F$4,$AH$5,$AH$4,0,0,0,0,0,0,0,0,0,0,0,0,0,0,0,0,0,0,0,0,0,0,0,0) -> 0-2-0 | BG37: =$F$5+$AH$5 -> 1100 | BH37: =$F$4+$AH$4 -> 1763 | BI37: This season | BJ37: =SUM(BG37/GamesPlayed(BF37)) -> 550 | BK37: =SUM(BH37/GamesPlayed(BF37)) -> 881.5
B38: =ATRecord("0-0-0",B37) -> 1-1-0 | C38: =C37+0 -> 1520 | D38: =D37+0 -> 1384 | E38: All Time | F38: =SUM(C38/GamesPlayed(B38)) -> 760 | G38: =SUM(D38/GamesPlayed(B38)) -> 692 | J38: =ATRecord("0-0-0",J37) -> 1-1-0 | K38: =K37+0 -> 1384 | L38: =L37+0 -> 1520 | M38: All Time | N38: =SUM(K38/GamesPlayed(J38)) -> 692 | O38: =SUM(L38/GamesPlayed(J38)) -> 760 | R38: =ATRecord("0-0-0",R37) -> 0-2-0 | S38: =S37+0 -> 1384 | T38: =T37+0 -> 2424 | U38: All Time | V38: =SUM(S38/GamesPlayed(R38)) -> 692 | W38: =SUM(T38/GamesPlayed(R38)) -> 1212 | Z38: =ATRecord("0-0-0",Z37) -> 1-1-0 | AA38: =AA37+0 -> 1533 | AB38: =AB37+0 -> 1569 | AC38: All Time | AD38: =SUM(AA38/GamesPlayed(Z38)) -> 766.5 | AE38: =SUM(AB38/GamesPlayed(Z38)) -> 784.5 | AH38: =ATRecord("0-0-0",AH37) -> 1-1-0 | AI38: =AI37+0 -> 2044 | AJ38: =AJ37+0 -> 1714 | AK38: All Time | AL38: =SUM(AI38/GamesPlayed(AH38)) -> 1022 | AM38: =SUM(AJ38/GamesPlayed(AH38)) -> 857 | AP38: =ATRecord("0-0-0",AP37) -> 0-2-0 | AQ38: =AQ37+0 -> 1123 | AR38: =AR37+0 -> 2062 | AS38: All Time | AT38: =SUM(AQ38/GamesPlayed(AP38)) -> 561.5 | AU38: =SUM(AR38/GamesPlayed(AP38)) -> 1031 | AX38: =ATRecord("0-0-0",AX37) -> 1-1-0 | AY38: =AY37+0 -> 1736 | AZ38: =AZ37+0 -> 2045 | BA38: All Time | BB38: =SUM(AY38/GamesPlayed(AX38)) -> 868 | BC38: =SUM(AZ38/GamesPlayed(AX38)) -> 1022.5 | BF38: =ATRecord("0-0-0",BF37) -> 0-2-0 | BG38: =BG37+0 -> 1100 | BH38: =BH37+0 -> 1763 | BI38: All Time | BJ38: =SUM(BG38/GamesPlayed(BF38)) -> 550 | BK38: =SUM(BH38/GamesPlayed(BF38)) -> 881.5
A40: Lam i roen | B40: =RecordUpdate("0-0-0",$J$4,$J$5,$AL$4,$AL$5,0,0,0,0,0,0,0,0,0,0,0,0,0,0,0,0,0,0,0,0,0,0,0,0) -> 2-0-0 | C40: =$J$4+$AL$4 -> 2424 | D40: =$J$5+$AL$5 -> 1384 | E40: This season | F40: =SUM(C40/GamesPlayed(B40)) -> 1212 | G40: =SUM(D40/GamesPlayed(B40)) -> 692 | I40: Lam i roen | J40: =RecordUpdate("0-0-0",$F$7,$F$8,$AH$7,$AH$8,0,0,0,0,0,0,0,0,0,0,0,0,0,0,0,0,0,0,0,0,0,0,0,0) -> 1-1-0 | K40: =$F$7+$AH$7 -> 1650 | L40: =$F$8+$AH$8 -> 1619 | M40: This season | N40: =SUM(K40/GamesPlayed(J40)) -> 825 | O40: =SUM(L40/GamesPlayed(J40)) -> 809.5 | Q40: Pilgaards Mannschaft | R40: =RecordUpdate("0-0-0",$F$8,$F$7,$AH$8,$AH$7,0,0,0,0,0,0,0,0,0,0,0,0,0,0,0,0,0,0,0,0,0,0,0,0) -> 1-1-0 | S40: =$F$8+$AH$8 -> 1619 | T40: =$F$7+$AH$7 -> 1650 | U40: This season | V40: =SUM(S40/GamesPlayed(R40)) -> 809.5 | W40: =SUM(T40/GamesPlayed(R40)) -> 825 | Y40: Pilgaards Mannschaft | Z40: =RecordUpdate("0-0-0",$V$8,$V$7,$AX$8,$AX$7,0,0,0,0,0,0,0,0,0,0,0,0,0,0,0,0,0,0,0,0,0,0,0,0) -> 2-0-0 | AA40: =$V$8+$AX$8 -> 1854 | AB40: =$V$7+$AX$7 -> 1488 | AC40: This season | AD40: =SUM(AA40/GamesPlayed(Z40)) -> 927 | AE40: =SUM(AB40/GamesPlayed(Z40)) -> 744 | AG40: Pilgaards Mannschaft | AH40: =RecordUpdate("0-0-0",$J$8,$J$7,$AL$8,$AL$7,0,0,0,0,0,0,0,0,0,0,0,0,0,0,0,0,0,0,0,0,0,0,0,0) -> 0-2-0 | AI40: =$J$8+$AL$8 -> 1432 | AJ40: =$J$7+$AL$7 -> 1764 | AK40: This season | AL40: =SUM(AI40/GamesPlayed(AH40)) -> 716 | AM40: =SUM(AJ40/GamesPlayed(AH40)) -> 882 | AO40: Pilgaards Mannschaft | AP40: =RecordUpdate("0-0-0",$R$8,$R$7,$AT$8,$AT$7,0,0,0,0,0,0,0,0,0,0,0,0,0,0,0,0,0,0,0,0,0,0,0,0) -> 0-2-0 | AQ40: =$R$8+$AT$8 -> 1165 | AR40: =$R$7+$AT$7 -> 1815 | AS40: This season | AT40: =SUM(AQ40/GamesPlayed(AP40)) -> 582.5 | AU40: =SUM(AR40/GamesPlayed(AP40)) -> 907.5 | AW40: Pilgaards Mannschaft | AX40: =RecordUpdate("0-0-0",$N$8,$N$7,$AP$8,$AP$7,0,0,0,0,0,0,0,0,0,0,0,0,0,0,0,0,0,0,0,0,0,0,0,0) -> 1-1-0 | AY40: =$N$8+$AP$8 -> 1663 | AZ40: =$N$7+$AP$7 -> 1617 | BA40: This season | BB40: =SUM(AY40/GamesPlayed(AX40)) -> 831.5 | BC40: =SUM(AZ40/GamesPlayed(AX40)) -> 808.5 | BE40: Pilgaards Mannschaft | BF40: =RecordUpdate("0-0-0",$Z$8,$Z$7,$BB$8,$BB$7,0,0,0,0,0,0,0,0,0,0,0,0,0,0,0,0,0,0,0,0,0,0,0,0) -> 1-1-0 | BG40: =$Z$8+$BB$8 -> 1541 | BH40: =$Z$7+$BB$7 -> 1970 | BI40: This season | BJ40: =SUM(BG40/GamesPlayed(BF40)) -> 770.5 | BK40: =SUM(BH40/GamesPlayed(BF40)) -> 985
B41: =ATRecord("0-0-0",B40) -> 2-0-0 | C41: =C40+0 -> 2424 | D41: =D40+0 -> 1384 | E41: All Time | F41: =SUM(C41/GamesPlayed(B41)) -> 1212 | G41: =SUM(D41/GamesPlayed(B41)) -> 692 | J41: =ATRecord("0-0-0",J40) -> 1-1-0 | K41: =K40+0 -> 1650 | L41: =L40+0 -> 1619 | M41: All Time | N41: =SUM(K41/GamesPlayed(J41)) -> 825 | O41: =SUM(L41/GamesPlayed(J41)) -> 809.5 | R41: =ATRecord("0-0-0",R40) -> 1-1-0 | S41: =S40+0 -> 1619 | T41: =T40+0 -> 1650 | U41: All Time | V41: =SUM(S41/GamesPlayed(R41)) -> 809.5 | W41: =SUM(T41/GamesPlayed(R41)) -> 825 | Z41: =ATRecord("0-0-0",Z40) -> 2-0-0 | AA41: =AA40+0 -> 1854 | AB41: =AB40+0 -> 1488 | AC41: All Time | AD41: =SUM(AA41/GamesPlayed(Z41)) -> 927 | AE41: =SUM(AB41/GamesPlayed(Z41)) -> 744 | AH41: =ATRecord("0-0-0",AH40) -> 0-2-0 | AI41: =AI40+0 -> 1432 | AJ41: =AJ40+0 -> 1764 | AK41: All Time | AL41: =SUM(AI41/GamesPlayed(AH41)) -> 716 | AM41: =SUM(AJ41/GamesPlayed(AH41)) -> 882 | AP41: =ATRecord("0-0-0",AP40) -> 0-2-0 | AQ41: =AQ40+0 -> 1165 | AR41: =AR40+0 -> 1815 | AS41: All Time | AT41: =SUM(AQ41/GamesPlayed(AP41)) -> 582.5 | AU41: =SUM(AR41/GamesPlayed(AP41)) -> 907.5 | AX41: =ATRecord("0-0-0",AX40) -> 1-1-0 | AY41: =AY40+0 -> 1663 | AZ41: =AZ40+0 -> 1617 | BA41: All Time | BB41: =SUM(AY41/GamesPlayed(AX41)) -> 831.5 | BC41: =SUM(AZ41/GamesPlayed(AX41)) -> 808.5 | BF41: =ATRecord("0-0-0",BF40) -> 1-1-0 | BG41: =BG40+0 -> 1541 | BH41: =BH40+0 -> 1970 | BI41: All Time | BJ41: =SUM(BG41/GamesPlayed(BF41)) -> 770.5 | BK41: =SUM(BH41/GamesPlayed(BF41)) -> 985
A43: Djohn | B43: =RecordUpdate("0-0-0",$Z$4,$Z$5,$BB$4,$BB$5,0,0,0,0,0,0,0,0,0,0,0,0,0,0,0,0,0,0,0,0,0,0,0,0) -> 1-1-0 | C43: =$Z$4+$BB$4 -> 1569 | D43: =$Z$5+$BB$5 -> 1533 | E43: This season | F43: =SUM(C43/GamesPlayed(B43)) -> 784.5 | G43: =SUM(D43/GamesPlayed(B43)) -> 766.5 | I43: Djohn | J43: =RecordUpdate("0-0-0",$V$7,$V$8,$AX$7,$AX$8,0,0,0,0,0,0,0,0,0,0,0,0,0,0,0,0,0,0,0,0,0,0,0,0) -> 0-2-0 | K43: =$V$7+$AX$7 -> 1488 | L43: =$V$8+$AX$8 -> 1854 | M43: This season | N43: =SUM(K43/GamesPlayed(J43)) -> 744 | O43: =SUM(L43/GamesPlayed(J43)) -> 927 | Q43: Djohn | R43: =RecordUpdate("0-0-0",$B$7,$B$8,$AD$7,$AD$8,0,0,0,0,0,0,0,0,0,0,0,0,0,0,0,0,0,0,0,0,0,0,0,0) -> 0-2-0 | S43: =$B$7+$AD$7 -> 1588 | T43: =$B$8+$AD$8 -> 1927 | U43: This season | V43: =SUM(S43/GamesPlayed(R43)) -> 794 | W43: =SUM(T43/GamesPlayed(R43)) -> 963.5 | Y43: Lam i roen | Z43: =RecordUpdate("0-0-0",$B$8,$B$7,$AD$8,$AD$7,0,0,0,0,0,0,0,0,0,0,0,0,0,0,0,0,0,0,0,0,0,0,0,0) -> 2-0-0 | AA43: =$B$8+$AD$8 -> 1927 | AB43: =$B$7+$AD$7 -> 1588 | AC43: This season | AD43: =SUM(AA43/GamesPlayed(Z43)) -> 963.5 | AE43: =SUM(AB43/GamesPlayed(Z43)) -> 794 | AG43: Lam i roen | AH43: =RecordUpdate("0-0-0",$R$11,$R$10,$AT$11,$AT$10,0,0,0,0,0,0,0,0,0,0,0,0,0,0,0,0,0,0,0,0,0,0,0,0) -> 2-0-0 | AI43: =$R$11+$AT$11 -> 1772 | AJ43: =$R$10+$AT$10 -> 1319 | AK43: This season | AL43: =SUM(AI43/GamesPlayed(AH43)) -> 886 | AM43: =SUM(AJ43/GamesPlayed(AH43)) -> 659.5 | AO43: Lam i roen | AP43: =RecordUpdate("0-0-0",$Z$11,$Z$10,$BB$11,$BB$10,0,0,0,0,0,0,0,0,0,0,0,0,0,0,0,0,0,0,0,0,0,0,0,0) -> 1-1-0 | AQ43: =$Z$11+$BB$11 -> 1369 | AR43: =$Z$10+$BB$10 -> 1723 | AS43: This season | AT43: =SUM(AQ43/GamesPlayed(AP43)) -> 684.5 | AU43: =SUM(AR43/GamesPlayed(AP43)) -> 861.5 | AW43: Lam i roen | AX43: =RecordUpdate("0-0-0",$V$11,$V$10,$AX$11,$AX$10,0,0,0,0,0,0,0,0,0,0,0,0,0,0,0,0,0,0,0,0,0,0,0,0) -> 1-1-0 | AY43: =$V$11+$AX$11 -> 1434 | AZ43: =$V$10+$AX$10 -> 1331 | BA43: This season | BB43: =SUM(AY43/GamesPlayed(AX43)) -> 717 | BC43: =SUM(AZ43/GamesPlayed(AX43)) -> 665.5 | BE43: Lam i roen | BF43: =RecordUpdate("0-0-0",$N$11,$N$10,$AP$11,$AP$10,0,0,0,0,0,0,0,0,0,0,0,0,0,0,0,0,0,0,0,0,0,0,0,0) -> 2-0-0 | BG43: =$N$11+$AP$11 -> 2247 | BH43: =$N$10+$AP$10 -> 1540 | BI43: This season | BJ43: =SUM(BG43/GamesPlayed(BF43)) -> 1123.5 | BK43: =SUM(BH43/GamesPlayed(BF43)) -> 770
B44: =ATRecord("0-0-0",B43) -> 1-1-0 | C44: =C43+0 -> 1569 | D44: =D43+0 -> 1533 | E44: All Time | F44: =SUM(C44/GamesPlayed(B44)) -> 784.5 | G44: =SUM(D44/GamesPlayed(B44)) -> 766.5 | J44: =ATRecord("0-0-0",J43) -> 0-2-0 | K44: =K43+0 -> 1488 | L44: =L43+0 -> 1854 | M44: All Time | N44: =SUM(K44/GamesPlayed(J44)) -> 744 | O44: =SUM(L44/GamesPlayed(J44)) -> 927 | R44: =ATRecord("0-0-0",R43) -> 0-2-0 | S44: =S43+0 -> 1588 | T44: =T43+0 -> 1927 | U44: All Time | V44: =SUM(S44/GamesPlayed(R44)) -> 794 | W44: =SUM(T44/GamesPlayed(R44)) -> 963.5 | Z44: =ATRecord("0-0-0",Z43) -> 2-0-0 | AA44: =AA43+0 -> 1927 | AB44: =AB43+0 -> 1588 | AC44: All Time | AD44: =SUM(AA44/GamesPlayed(Z44)) -> 963.5 | AE44: =SUM(AB44/GamesPlayed(Z44)) -> 794 | AH44: =ATRecord("0-0-0",AH43) -> 2-0-0 | AI44: =AI43+0 -> 1772 | AJ44: =AJ43+0 -> 1319 | AK44: All Time | AL44: =SUM(AI44/GamesPlayed(AH44)) -> 886 | AM44: =SUM(AJ44/GamesPlayed(AH44)) -> 659.5 | AP44: =ATRecord("0-0-0",AP43) -> 1-1-0 | AQ44: =AQ43+0 -> 1369 | AR44: =AR43+0 -> 1723 | AS44: All Time | AT44: =SUM(AQ44/GamesPlayed(AP44)) -> 684.5 | AU44: =SUM(AR44/GamesPlayed(AP44)) -> 861.5 | AX44: =ATRecord("0-0-0",AX43) -> 1-1-0 | AY44: =AY43+0 -> 1434 | AZ44: =AZ43+0 -> 1331 | BA44: All Time | BB44: =SUM(AY44/GamesPlayed(AX44)) -> 717 | BC44: =SUM(AZ44/GamesPlayed(AX44)) -> 665.5 | BF44: =ATRecord("0-0-0",BF43) -> 2-0-0 | BG44: =BG43+0 -> 2247 | BH44: =BH43+0 -> 1540 | BI44: All Time | BJ44: =SUM(BG44/GamesPlayed(BF44)) -> 1123.5 | BK44: =SUM(BH44/GamesPlayed(BF44)) -> 770
A46: Nilsson Monkeys | B46: =RecordUpdate("0-0-0",$N$4,$N$5,$AP$4,$AP$5,0,0,0,0,0,0,0,0,0,0,0,0,0,0,0,0,0,0,0,0,0,0,0,0) -> 1-1-0 | C46: =$N$4+$AP$4 -> 1714 | D46: =$N$5+$AP$5 -> 2044 | E46: This season | F46: =SUM(C46/GamesPlayed(B46)) -> 857 | G46: =SUM(D46/GamesPlayed(B46)) -> 1022 | I46: Nilsson Monkeys | J46: =RecordUpdate("0-0-0",$J$7,$J$8,$AL$7,$AL$8,0,0,0,0,0,0,0,0,0,0,0,0,0,0,0,0,0,0,0,0,0,0,0,0) -> 2-0-0 | K46: =$J$7+$AL$7 -> 1764 | L46: =$J$8+$AL$8 -> 1432 | M46: This season | N46: =SUM(K46/GamesPlayed(J46)) -> 882 | O46: =SUM(L46/GamesPlayed(J46)) -> 716 | Q46: Nilsson Monkeys | R46: =RecordUpdate("0-0-0",$R$10,$R$11,$AT$10,$AT$11,0,0,0,0,0,0,0,0,0,0,0,0,0,0,0,0,0,0,0,0,0,0,0,0) -> 0-2-0 | S46: =$R$10+$AT$10 -> 1319 | T46: =$R$11+$AT$11 -> 1772 | U46: This season | V46: =SUM(S46/GamesPlayed(R46)) -> 659.5 | W46: =SUM(T46/GamesPlayed(R46)) -> 886 | Y46: Nilsson Monkeys | Z46: =RecordUpdate("0-0-0",$F$11,$F$10,$AH$11,$AH$10,0,0,0,0,0,0,0,0,0,0,0,0,0,0,0,0,0,0,0,0,0,0,0,0) -> 2-0-0 | AA46: =$F$11+$AH$11 -> 2139 | AB46: =$F$10+$AH$10 -> 1420 | AC46: This season | AD46: =SUM(AA46/GamesPlayed(Z46)) -> 1069.5 | AE46: =SUM(AB46/GamesPlayed(Z46)) -> 710 | AG46: Djohn | AH46: =RecordUpdate("0-0-0",$F$10,$F$11,$AH$10,$AH$11,0,0,0,0,0,0,0,0,0,0,0,0,0,0,0,0,0,0,0,0,0,0,0,0) -> 0-2-0 | AI46: =$F$10+$AH$10 -> 1420 | AJ46: =$F$11+$AH$11 -> 2139 | AK46: This season | AL46: =SUM(AI46/GamesPlayed(AH46)) -> 710 | AM46: =SUM(AJ46/GamesPlayed(AH46)) -> 1069.5 | AO46: Djohn | AP46: =RecordUpdate("0-0-0",$N$13,$N$14,$AP$13,$AP$14,0,0,0,0,0,0,0,0,0,0,0,0,0,0,0,0,0,0,0,0,0,0,0,0) -> 0-2-0 | AQ46: =$N$13+$AP$13 -> 1419 | AR46: =$N$14+$AP$14 -> 2089 | AS46: This season | AT46: =SUM(AQ46/GamesPlayed(AP46)) -> 709.5 | AU46: =SUM(AR46/GamesPlayed(AP46)) -> 1044.5 | AW46: Djohn | AX46: =RecordUpdate("0-0-0",$J$10,$J$11,$AL$10,$AL$11,0,0,0,0,0,0,0,0,0,0,0,0,0,0,0,0,0,0,0,0,0,0,0,0) -> 0-2-0 | AY46: =$J$10+$AL$10 -> 1698 | AZ46: =$J$11+$AL$11 -> 2355 | BA46: This season | BB46: =SUM(AY46/GamesPlayed(AX46)) -> 849 | BC46: =SUM(AZ46/GamesPlayed(AX46)) -> 1177.5 | BE46: Djohn | BF46: =RecordUpdate("0-0-0",$R$14,$R$13,$AT$14,$AT$13,0,0,0,0,0,0,0,0,0,0,0,0,0,0,0,0,0,0,0,0,0,0,0,0) -> 1-1-0 | BG46: =$R$14+$AT$14 -> 1140 | BH46: =$R$13+$AT$13 -> 1696 | BI46: This season | BJ46: =SUM(BG46/GamesPlayed(BF46)) -> 570 | BK46: =SUM(BH46/GamesPlayed(BF46)) -> 848
B47: =ATRecord("0-0-0",B46) -> 1-1-0 | C47: =C46+0 -> 1714 | D47: =D46+0 -> 2044 | E47: All Time | F47: =SUM(C47/GamesPlayed(B47)) -> 857 | G47: =SUM(D47/GamesPlayed(B47)) -> 1022 | J47: =ATRecord("0-0-0",J46) -> 2-0-0 | K47: =K46+0 -> 1764 | L47: =L46+0 -> 1432 | M47: All Time | N47: =SUM(K47/GamesPlayed(J47)) -> 882 | O47: =SUM(L47/GamesPlayed(J47)) -> 716 | R47: =ATRecord("0-0-0",R46) -> 0-2-0 | S47: =S46+0 -> 1319 | T47: =T46+0 -> 1772 | U47: All Time | V47: =SUM(S47/GamesPlayed(R47)) -> 659.5 | W47: =SUM(T47/GamesPlayed(R47)) -> 886 | Z47: =ATRecord("0-0-0",Z46) -> 2-0-0 | AA47: =AA46+0 -> 2139 | AB47: =AB46+0 -> 1420 | AC47: All Time | AD47: =SUM(AA47/GamesPlayed(Z47)) -> 1069.5 | AE47: =SUM(AB47/GamesPlayed(Z47)) -> 710 | AH47: =ATRecord("0-0-0",AH46) -> 0-2-0 | AI47: =AI46+0 -> 1420 | AJ47: =AJ46+0 -> 2139 | AK47: All Time | AL47: =SUM(AI47/GamesPlayed(AH47)) -> 710 | AM47: =SUM(AJ47/GamesPlayed(AH47)) -> 1069.5 | AP47: =ATRecord("0-0-0",AP46) -> 0-2-0 | AQ47: =AQ46+0 -> 1419 | AR47: =AR46+0 -> 2089 | AS47: All Time | AT47: =SUM(AQ47/GamesPlayed(AP47)) -> 709.5 | AU47: =SUM(AR47/GamesPlayed(AP47)) -> 1044.5 | AX47: =ATRecord("0-0-0",AX46) -> 0-2-0 | AY47: =AY46+0 -> 1698 | AZ47: =AZ46+0 -> 2355 | BA47: All Time | BB47: =SUM(AY47/GamesPlayed(AX47)) -> 849 | BC47: =SUM(AZ47/GamesPlayed(AX47)) -> 1177.5 | BF47: =ATRecord("0-0-0",BF46) -> 1-1-0 | BG47: =BG46+0 -> 1140 | BH47: =BH46+0 -> 1696 | BI47: All Time | BJ47: =SUM(BG47/GamesPlayed(BF47)) -> 570 | BK47: =SUM(BH47/GamesPlayed(BF47)) -> 848
A49: Weak Knees Revenge | B49: =RecordUpdate("0-0-0",$V$4,$V$5,$AX$4,$AX$5,0,0,0,0,0,0,0,0,0,0,0,0,0,0,0,0,0,0,0,0,0,0,0,0) -> 2-0-0 | C49: =$V$4+$AX$4 -> 2062 | D49: =$V$5+$AX$5 -> 1123 | E49: This season | F49: =SUM(C49/GamesPlayed(B49)) -> 1031 | G49: =SUM(D49/GamesPlayed(B49)) -> 561.5 | I49: Weak Knees Revenge | J49: =RecordUpdate("0-0-0",$R$7,$R$8,$AT$7,$AT$8,0,0,0,0,0,0,0,0,0,0,0,0,0,0,0,0,0,0,0,0,0,0,0,0) -> 2-0-0 | K49: =$R$7+$AT$7 -> 1815 | L49: =$R$8+$AT$8 -> 1165 | M49: This season | N49: =SUM(K49/GamesPlayed(J49)) -> 907.5 | O49: =SUM(L49/GamesPlayed(J49)) -> 582.5 | Q49: Weak Knees Revenge | R49: =RecordUpdate("0-0-0",$Z$10,$Z$11,$BB$10,$BB$11,0,0,0,0,0,0,0,0,0,0,0,0,0,0,0,0,0,0,0,0,0,0,0,0) -> 1-1-0 | S49: =$Z$10+$BB$10 -> 1723 | T49: =$Z$11+$BB$11 -> 1369 | U49: This season | V49: =SUM(S49/GamesPlayed(R49)) -> 861.5 | W49: =SUM(T49/GamesPlayed(R49)) -> 684.5 | Y49: Weak Knees Revenge | Z49: =RecordUpdate("0-0-0",$N$14,$N$13,$AP$14,$AP$13,0,0,0,0,0,0,0,0,0,0,0,0,0,0,0,0,0,0,0,0,0,0,0,0) -> 2-0-0 | AA49: =$N$14+$AP$14 -> 2089 | AB49: =$N$13+$AP$13 -> 1419 | AC49: This season | AD49: =SUM(AA49/GamesPlayed(Z49)) -> 1044.5 | AE49: =SUM(AB49/GamesPlayed(Z49)) -> 709.5 | AG49: Weak Knees Revenge | AH49: =RecordUpdate("0-0-0",$B$10,$B$11,$AD$10,$AD$11,0,0,0,0,0,0,0,0,0,0,0,0,0,0,0,0,0,0,0,0,0,0,0,0) -> 2-0-0 | AI49: =$B$10+$AD$10 -> 1656 | AJ49: =$B$11+$AD$11 -> 1138 | AK49: This season | AL49: =SUM(AI49/GamesPlayed(AH49)) -> 828 | AM49: =SUM(AJ49/GamesPlayed(AH49)) -> 569 | AO49: Nilsson Monkeys | AP49: =RecordUpdate("0-0-0",$B$11,$B$10,$AD$11,$AD$10,0,0,0,0,0,0,0,0,0,0,0,0,0,0,0,0,0,0,0,0,0,0,0,0) -> 0-2-0 | AQ49: =$B$11+$AD$11 -> 1138 | AR49: =$B$10+$AD$10 -> 1656 | AS49: This season | AT49: =SUM(AQ49/GamesPlayed(AP49)) -> 569 | AU49: =SUM(AR49/GamesPlayed(AP49)) -> 828 | AW49: Nilsson Monkeys | AX49: =RecordUpdate("0-0-0",$Z$14,$Z$13,$BB$14,$BB$13,0,0,0,0,0,0,0,0,0,0,0,0,0,0,0,0,0,0,0,0,0,0,0,0) -> 1-1-0 | AY49: =$Z$14+$BB$14 -> 1875 | AZ49: =$Z$13+$BB$13 -> 1684 | BA49: This season | BB49: =SUM(AY49/GamesPlayed(AX49)) -> 937.5 | BC49: =SUM(AZ49/GamesPlayed(AX49)) -> 842 | BE49: Nilsson Monkeys | BF49: =RecordUpdate("0-0-0",$V$14,$V$13,$AX$14,$AX$13,0,0,0,0,0,0,0,0,0,0,0,0,0,0,0,0,0,0,0,0,0,0,0,0) -> 0-2-0 | BG49: =$V$14+$AX$14 -> 1631 | BH49: =$V$13+$AX$13 -> 1931 | BI49: This season | BJ49: =SUM(BG49/GamesPlayed(BF49)) -> 815.5 | BK49: =SUM(BH49/GamesPlayed(BF49)) -> 965.5
B50: =ATRecord("0-0-0",B49) -> 2-0-0 | C50: =C49+0 -> 2062 | D50: =D49+0 -> 1123 | E50: All Time | F50: =SUM(C50/GamesPlayed(B50)) -> 1031 | G50: =SUM(D50/GamesPlayed(B50)) -> 561.5 | J50: =ATRecord("0-0-0",J49) -> 2-0-0 | K50: =K49+0 -> 1815 | L50: =L49+0 -> 1165 | M50: All Time | N50: =SUM(K50/GamesPlayed(J50)) -> 907.5 | O50: =SUM(L50/GamesPlayed(J50)) -> 582.5 | R50: =ATRecord("0-0-0",R49) -> 1-1-0 | S50: =S49+0 -> 1723 | T50: =T49+0 -> 1369 | U50: All Time | V50: =SUM(S50/GamesPlayed(R50)) -> 861.5 | W50: =SUM(T50/GamesPlayed(R50)) -> 684.5 | Z50: =ATRecord("0-0-0",Z49) -> 2-0-0 | AA50: =AA49+0 -> 2089 | AB50: =AB49+0 -> 1419 | AC50: All Time | AD50: =SUM(AA50/GamesPlayed(Z50)) -> 1044.5 | AE50: =SUM(AB50/GamesPlayed(Z50)) -> 709.5 | AH50: =ATRecord("0-0-0",AH49) -> 2-0-0 | AI50: =AI49+0 -> 1656 | AJ50: =AJ49+0 -> 1138 | AK50: All Time | AL50: =SUM(AI50/GamesPlayed(AH50)) -> 828 | AM50: =SUM(AJ50/GamesPlayed(AH50)) -> 569 | AP50: =ATRecord("0-0-0",AP49) -> 0-2-0 | AQ50: =AQ49+0 -> 1138 | AR50: =AR49+0 -> 1656 | AS50: All Time | AT50: =SUM(AQ50/GamesPlayed(AP50)) -> 569 | AU50: =SUM(AR50/GamesPlayed(AP50)) -> 828 | AX50: =ATRecord("0-0-0",AX49) -> 1-1-0 | AY50: =AY49+0 -> 1875 | AZ50: =AZ49+0 -> 1684 | BA50: All Time | BB50: =SUM(AY50/GamesPlayed(AX50)) -> 937.5 | BC50: =SUM(AZ50/GamesPlayed(AX50)) -> 842 | BF50: =ATRecord("0-0-0",BF49) -> 0-2-0 | BG50: =BG49+0 -> 1631 | BH50: =BH49+0 -> 1931 | BI50: All Time | BJ50: =SUM(BG50/GamesPlayed(BF50)) -> 815.5 | BK50: =SUM(BH50/GamesPlayed(BF50)) -> 965.5
A52: Team-UhUh | B52: =RecordUpdate("0-0-0",$R$4,$R$5,$AT$4,$AT$5,0,0,0,0,0,0,0,0,0,0,0,0,0,0,0,0,0,0,0,0,0,0,0,0) -> 1-1-0 | C52: =$R$4+$AT$4 -> 2045 | D52: =$R$5+$AT$5 -> 1736 | E52: This season | F52: =SUM(C52/GamesPlayed(B52)) -> 1022.5 | G52: =SUM(D52/GamesPlayed(B52)) -> 868 | I52: Team-UhUh | J52: =RecordUpdate("0-0-0",$N$7,$N$8,$AP$7,$AP$8,0,0,0,0,0,0,0,0,0,0,0,0,0,0,0,0,0,0,0,0,0,0,0,0) -> 1-1-0 | K52: =$N$7+$AP$7 -> 1617 | L52: =$N$8+$AP$8 -> 1663 | M52: This season | N52: =SUM(K52/GamesPlayed(J52)) -> 808.5 | O52: =SUM(L52/GamesPlayed(J52)) -> 831.5 | Q52: Team-UhUh | R52: =RecordUpdate("0-0-0",$V$10,$V$11,$AX$10,$AX$11,0,0,0,0,0,0,0,0,0,0,0,0,0,0,0,0,0,0,0,0,0,0,0,0) -> 1-1-0 | S52: =$V$10+$AX$10 -> 1331 | T52: =$V$11+$AX$11 -> 1434 | U52: This season | V52: =SUM(S52/GamesPlayed(R52)) -> 665.5 | W52: =SUM(T52/GamesPlayed(R52)) -> 717 | Y52: Team-UhUh | Z52: =RecordUpdate("0-0-0",$J$11,$J$10,$AL$11,$AL$10,0,0,0,0,0,0,0,0,0,0,0,0,0,0,0,0,0,0,0,0,0,0,0,0) -> 2-0-0 | AA52: =$J$11+$AL$11 -> 2355 | AB52: =$J$10+$AL$10 -> 1698 | AC52: This season | AD52: =SUM(AA52/GamesPlayed(Z52)) -> 1177.5 | AE52: =SUM(AB52/GamesPlayed(Z52)) -> 849 | AG52: Team-UhUh | AH52: =RecordUpdate("0-0-0",$Z$13,$Z$14,$BB$13,$BB$14,0,0,0,0,0,0,0,0,0,0,0,0,0,0,0,0,0,0,0,0,0,0,0,0) -> 1-1-0 | AI52: =$Z$13+$BB$13 -> 1684 | AJ52: =$Z$14+$BB$14 -> 1875 | AK52: This season | AL52: =SUM(AI52/GamesPlayed(AH52)) -> 842 | AM52: =SUM(AJ52/GamesPlayed(AH52)) -> 937.5 | AO52: Team-UhUh | AP52: =RecordUpdate("0-0-0",$F$14,$F$13,$AH$14,$AH$13,0,0,0,0,0,0,0,0,0,0,0,0,0,0,0,0,0,0,0,0,0,0,0,0) -> 0-2-0 | AQ52: =$F$14+$AH$14 -> 1019 | AR52: =$F$13+$AH$13 -> 1636 | AS52: This season | AT52: =SUM(AQ52/GamesPlayed(AP52)) -> 509.5 | AU52: =SUM(AR52/GamesPlayed(AP52)) -> 818 | AW52: Weak Knees Revenge | AX52: =RecordUpdate("0-0-0",$F$13,$F$14,$AH$13,$AH$14,0,0,0,0,0,0,0,0,0,0,0,0,0,0,0,0,0,0,0,0,0,0,0,0) -> 2-0-0 | AY52: =$F$13+$AH$13 -> 1636 | AZ52: =$F$14+$AH$14 -> 1019 | BA52: This season | BB52: =SUM(AY52/GamesPlayed(AX52)) -> 818 | BC52: =SUM(AZ52/GamesPlayed(AX52)) -> 509.5 | BE52: Weak Knees Revenge | BF52: =RecordUpdate("0-0-0",$J$14,$J$13,$AL$14,$AL$13,0,0,0,0,0,0,0,0,0,0,0,0,0,0,0,0,0,0,0,0,0,0,0,0) -> 2-0-0 | BG52: =$J$14+$AL$14 -> 1416 | BH52: =$J$13+$AL$13 -> 1200 | BI52: This season | BJ52: =SUM(BG52/GamesPlayed(BF52)) -> 708 | BK52: =SUM(BH52/GamesPlayed(BF52)) -> 600
B53: =ATRecord("0-0-0",B52) -> 1-1-0 | C53: =C52+0 -> 2045 | D53: =D52+0 -> 1736 | E53: All Time | F53: =SUM(C53/GamesPlayed(B53)) -> 1022.5 | G53: =SUM(D53/GamesPlayed(B53)) -> 868 | J53: =ATRecord("0-0-0",J52) -> 1-1-0 | K53: =K52+0 -> 1617 | L53: =L52+0 -> 1663 | M53: All Time | N53: =SUM(K53/GamesPlayed(J53)) -> 808.5 | O53: =SUM(L53/GamesPlayed(J53)) -> 831.5 | R53: =ATRecord("0-0-0",R52) -> 1-1-0 | S53: =S52+0 -> 1331 | T53: =T52+0 -> 1434 | U53: All Time | V53: =SUM(S53/GamesPlayed(R53)) -> 665.5 | W53: =SUM(T53/GamesPlayed(R53)) -> 717 | Z53: =ATRecord("0-0-0",Z52) -> 2-0-0 | AA53: =AA52+0 -> 2355 | AB53: =AB52+0 -> 1698 | AC53: All Time | AD53: =SUM(AA53/GamesPlayed(Z53)) -> 1177.5 | AE53: =SUM(AB53/GamesPlayed(Z53)) -> 849 | AH53: =ATRecord("0-0-0",AH52) -> 1-1-0 | AI53: =AI52+0 -> 1684 | AJ53: =AJ52+0 -> 1875 | AK53: All Time | AL53: =SUM(AI53/GamesPlayed(AH53)) -> 842 | AM53: =SUM(AJ53/GamesPlayed(AH53)) -> 937.5 | AP53: =ATRecord("0-0-0",AP52) -> 0-2-0 | AQ53: =AQ52+0 -> 1019 | AR53: =AR52+0 -> 1636 | AS53: All Time | AT53: =SUM(AQ53/GamesPlayed(AP53)) -> 509.5 | AU53: =SUM(AR53/GamesPlayed(AP53)) -> 818 | AX53: =ATRecord("0-0-0",AX52) -> 2-0-0 | AY53: =AY52+0 -> 1636 | AZ53: =AZ52+0 -> 1019 | BA53: All Time | BB53: =SUM(AY53/GamesPlayed(AX53)) -> 818 | BC53: =SUM(AZ53/GamesPlayed(AX53)) -> 509.5 | BF53: =ATRecord("0-0-0",BF52) -> 2-0-0 | BG53: =BG52+0 -> 1416 | BH53: =BH52+0 -> 1200 | BI53: All Time | BJ53: =SUM(BG53/GamesPlayed(BF53)) -> 708 | BK53: =SUM(BH53/GamesPlayed(BF53)) -> 600
A55: Team Go'o | B55: =RecordUpdate("0-0-0",$F$4,$F$5,$AH$4,$AH$5,0,0,0,0,0,0,0,0,0,0,0,0,0,0,0,0,0,0,0,0,0,0,0,0) -> 2-0-0 | C55: =$F$4+$AH$4 -> 1763 | D55: =$F$5+$AH$5 -> 1100 | E55: This season | F55: =SUM(C55/GamesPlayed(B55)) -> 881.5 | G55: =SUM(D55/GamesPlayed(B55)) -> 550 | I55: Team Go'o | J55: =RecordUpdate("0-0-0",$Z$7,$Z$8,$BB$7,$BB$8,0,0,0,0,0,0,0,0,0,0,0,0,0,0,0,0,0,0,0,0,0,0,0,0) -> 1-1-0 | K55: =$Z$7+$BB$7 -> 1970 | L55: =$Z$8+$BB$8 -> 1541 | M55: This season | N55: =SUM(K55/GamesPlayed(J55)) -> 985 | O55: =SUM(L55/GamesPlayed(J55)) -> 770.5 | Q55: Team Go'o | R55: =RecordUpdate("0-0-0",$N$10,$N$11,$AP$10,$AP$11,0,0,0,0,0,0,0,0,0,0,0,0,0,0,0,0,0,0,0,0,0,0,0,0) -> 0-2-0 | S55: =$N$10+$AP$10 -> 1540 | T55: =$N$11+$AP$11 -> 2247 | U55: This season | V55: =SUM(S55/GamesPlayed(R55)) -> 770 | W55: =SUM(T55/GamesPlayed(R55)) -> 1123.5 | Y55: Team Go'o | Z55: =RecordUpdate("0-0-0",$R$13,$R$14,$AT$13,$AT$14,0,0,0,0,0,0,0,0,0,0,0,0,0,0,0,0,0,0,0,0,0,0,0,0) -> 1-1-0 | AA55: =$R$13+$AT$13 -> 1696 | AB55: =$R$14+$AT$14 -> 1140 | AC55: This season | AD55: =SUM(AA55/GamesPlayed(Z55)) -> 848 | AE55: =SUM(AB55/GamesPlayed(Z55)) -> 570 | AG55: Team Go'o | AH55: =RecordUpdate("0-0-0",$V$13,$V$14,$AX$13,$AX$14,0,0,0,0,0,0,0,0,0,0,0,0,0,0,0,0,0,0,0,0,0,0,0,0) -> 2-0-0 | AI55: =$V$13+$AX$13 -> 1931 | AJ55: =$V$14+$AX$14 -> 1631 | AK55: This season | AL55: =SUM(AI55/GamesPlayed(AH55)) -> 965.5 | AM55: =SUM(AJ55/GamesPlayed(AH55)) -> 815.5 | AO55: Team Go'o | AP55: =RecordUpdate("0-0-0",$J$13,$J$14,$AL$13,$AL$14,0,0,0,0,0,0,0,0,0,0,0,0,0,0,0,0,0,0,0,0,0,0,0,0) -> 0-2-0 | AQ55: =$J$13+$AL$13 -> 1200 | AR55: =$J$14+$AL$14 -> 1416 | AS55: This season | AT55: =SUM(AQ55/GamesPlayed(AP55)) -> 600 | AU55: =SUM(AR55/GamesPlayed(AP55)) -> 708 | AW55: Team Go'o | AX55: =RecordUpdate("0-0-0",$B$13,$B$14,$AD$13,$AD$14,0,0,0,0,0,0,0,0,0,0,0,0,0,0,0,0,0,0,0,0,0,0,0,0) -> 2-0-0 | AY55: =$B$13+$AD$13 -> 1479 | AZ55: =$B$14+$AD$14 -> 1314 | BA55: This season | BB55: =SUM(AY55/GamesPlayed(AX55)) -> 739.5 | BC55: =SUM(AZ55/GamesPlayed(AX55)) -> 657 | BE55: Team-UhUh | BF55: =RecordUpdate("0-0-0",$B$14,$B$13,$AD$14,$AD$13,0,0,0,0,0,0,0,0,0,0,0,0,0,0,0,0,0,0,0,0,0,0,0,0) -> 0-2-0 | BG55: =$B$14+$AD$14 -> 1314 | BH55: =$B$13+$AD$13 -> 1479 | BI55: This season | BJ55: =SUM(BG55/GamesPlayed(BF55)) -> 657 | BK55: =SUM(BH55/GamesPlayed(BF55)) -> 739.5
B56: =ATRecord("0-0-0",B55) -> 2-0-0 | C56: =C55+0 -> 1763 | D56: =D55+0 -> 1100 | E56: All Time | F56: =SUM(C56/GamesPlayed(B56)) -> 881.5 | G56: =SUM(D56/GamesPlayed(B56)) -> 550 | J56: =ATRecord("0-0-0",J55) -> 1-1-0 | K56: =K55+0 -> 1970 | L56: =L55+0 -> 1541 | M56: All Time | N56: =SUM(K56/GamesPlayed(J56)) -> 985 | O56: =SUM(L56/GamesPlayed(J56)) -> 770.5 | R56: =ATRecord("0-0-0",R55) -> 0-2-0 | S56: =S55+0 -> 1540 | T56: =T55+0 -> 2247 | U56: All Time | V56: =SUM(S56/GamesPlayed(R56)) -> 770 | W56: =SUM(T56/GamesPlayed(R56)) -> 1123.5 | Z56: =ATRecord("0-0-0",Z55) -> 1-1-0 | AA56: =AA55+0 -> 1696 | AB56: =AB55+0 -> 1140 | AC56: All Time | AD56: =SUM(AA56/GamesPlayed(Z56)) -> 848 | AE56: =SUM(AB56/GamesPlayed(Z56)) -> 570 | AH56: =ATRecord("0-0-0",AH55) -> 2-0-0 | AI56: =AI55+0 -> 1931 | AJ56: =AJ55+0 -> 1631 | AK56: All Time | AL56: =SUM(AI56/GamesPlayed(AH56)) -> 965.5 | AM56: =SUM(AJ56/GamesPlayed(AH56)) -> 815.5 | AP56: =ATRecord("0-0-0",AP55) -> 0-2-0 | AQ56: =AQ55+0 -> 1200 | AR56: =AR55+0 -> 1416 | AS56: All Time | AT56: =SUM(AQ56/GamesPlayed(AP56)) -> 600 | AU56: =SUM(AR56/GamesPlayed(AP56)) -> 708 | AX56: =ATRecord("0-0-0",AX55) -> 2-0-0 | AY56: =AY55+0 -> 1479 | AZ56: =AZ55+0 -> 1314 | BA56: All Time | BB56: =SUM(AY56/GamesPlayed(AX56)) -> 739.5 | BC56: =SUM(AZ56/GamesPlayed(AX56)) -> 657 | BF56: =ATRecord("0-0-0",BF55) -> 0-2-0 | BG56: =BG55+0 -> 1314 | BH56: =BH55+0 -> 1479 | BI56: All Time | BJ56: =SUM(BG56/GamesPlayed(BF56)) -> 657 | BK56: =SUM(BH56/GamesPlayed(BF56)) -> 739.5
A62: Week 1 | E62: Week 2 | I62: Week 3 | M62: Week 4 | Q62: Week 5 | U62: Week 6 | Y62: Week 7 | AC62: Week 8 | AG62: Week 9 | AK62: Week 10 | AO62: Week 11 | AS62: Week 12 | AW62: Week 13 | BA62: Week 14 | BE62: Week 15 | BI62: Week 16
A64: =A4 -> Team Ludoleif | E64: =E4 -> Team Ludoleif | I64: =I4 -> Team Ludoleif | M64: =M4 -> Team Ludoleif | Q64: =Q4 -> Team Ludoleif | U64: =U4 -> Team Ludoleif | Y64: =Y4 -> Team Ludoleif | AC64: =AC4 -> Team Ludoleif | AG64: =AG4 -> Team Ludoleif | AK64: =AK4 -> Team Ludoleif | AO64: =AO4 -> Team Ludoleif | AS64: =AS4 -> Team Ludoleif | AW64: =AW4 -> Team Ludoleif | BA64: =BA4 -> Team Ludoleif | BE64: =BE6 -> Djohn | BI64: =BI6 -> Pilgaards Mannschaft
B65: Points | F65: Points | J65: Points | N65: Points | R65: Points | V65: Points | Z65: Points | AD65: Points | AH65: Points | AL65: Points | AP65: Points | AT65: Points | AX65: Points | BB65: Points | BF65: Points | BJ65: Points
A66: Tom Brady | B66: 170 | E66: Tom Brady | F66: 92 | I66: Tom Brady | J66: 135 | M66: Tom Brady | N66: 103 | Q66: Brett Favre | R66: 177 | U66: Tom Brady | V66: 136 | Y66: Brett Favre | Z66: 186 | AC66: Brett Favre | AD66: 90 | AG66: Tom Brady | AH66: 189 | AK66: Tom Brady | AL66: 135 | AO66: Tom Brady | AP66: 143 | AS66: Tom Brady | AT66: 85 | AW66: Tom Brady | AX66: 120 | BA66: Tom Brady | BB66: 239 | BE66: Jake Plummer | BF66: 156 | BI66: Carson Palmer | BJ66: 152
A67: Hines Ward | B67: 26 | E67: Eddie Kennison | F67: 58 | I67: Rod Smith | J67: 148 | M67: Rod Smith | N67: 42 | Q67: Rod Smith | R67: 24 | U67: Rod Smith | V67: 172 | Y67: Rod Smith | Z67: 49 | AC67: Hines Ward | AD67: 90 | AG67: Hines Ward | AH67: 13 | AK67: Hines Ward | AL67: 182 | AO67: Joey Galloway | AP67: 0 | AS67: Joey Galloway | AT67: 127 | AW67: Joey Galloway | AX67: 135 | BA67: Joey Galloway | BB67: 46 | BE67: Larry Fitzgerald | BF67: 146 | BI67: Terry Glenn | BJ67: 138
A68: Darrell Jackson | B68: 133 | E68: Jimmy Smith | F68: 47 | I68: Hines Ward | J68: 213 | M68: Darrell Jackson | N68: 131 | Q68: Jimmy Smith | R68: 43 | U68: Eddie Kennison | V68: 0 | Y68: Eddie Kennison | Z68: 28 | AC68: Joey Galloway | AD68: 199 | AG68: Joey Galloway | AH68: 140 | AK68: Joey Galloway | AL68: 182 | AO68: Jimmy Smith | AP68: 84 | AS68: Hines Ward | AT68: 93 | AW68: Hines Ward | AX68: 238 | BA68: Hines Ward | BB68: 93 | BE68: Andre Johnson | BF68: 68 | BI68: Torry Holt | BJ68: 218
A69: Eddie Kennison | B69: 70 | E69: Rod Smith | F69: 95 | I69: Darrell Jackson | J69: 123 | M69: Jimmy Smith | N69: 157 | Q69: Hines Ward | R69: 85 | U69: Joey Galloway | V69: 169 | Y69: Hines Ward | Z69: 100 | AC69: Jimmy Smith | AD69: 28 | AG69: Eddie Kennison | AH69: 65 | AK69: Rod Smith | AL69: 98 | AO69: Rod Smith | AP69: 63 | AS69: Eddie Kennison | AT69: 56 | AW69: Eddie Kennison | AX69: 92 | BA69: Rod Smith | BB69: 67 | BE69: Jerry Porter | BF69: 50 | BI69: Chris Chambers | BJ69: 181
A70: LaDainian Tomlinson | B70: 96 | E70: LaDainian Tomlinson | F70: 146 | I70: LaDainian Tomlinson | J70: 342 | M70: LaDainian Tomlinson | N70: 224 | Q70: LaDainian Tomlinson | R70: 171 | U70: LaDainian Tomlinson | V70: 259 | Y70: LaDainian Tomlinson | Z70: 40 | AC70: LaDainian Tomlinson | AD70: 100 | AG70: LaDainian Tomlinson | AH70: 338 | AK70: Stephen Davis | AL70: 100 | AO70: LaDainian Tomlinson | AP70: 122 | AS70: LaDainian Tomlinson | AT70: 320 | AW70: LaDainian Tomlinson | AX70: 84 | BA70: LaDainian Tomlinson | BB70: 42 | BE70: Shaun Alexander | BF70: 146 | BI70: Larry Johnson | BJ70: 237
A71: Priest Holmes | B71: 110 | E71: Priest Holmes | F71: 122 | I71: Priest Holmes | J71: 66 | M71: Priest Holmes | N71: 143 | Q71: Stephen Davis | R71: 83 | U71: Priest Holmes | V71: 220 | Y71: Priest Holmes | Z71: 174 | AC71: Priest Holmes | AD71: 44 | AG71: Stephen Davis | AH71: 149 | AK71: Reuben Droughns | AL71: 152 | AO71: Reuben Droughns | AP71: 150 | AS71: Reuben Droughns | AT71: 91 | AW71: Reuben Droughns | AX71: 44 | BA71: DeShaun Foster | BB71: 34 | BE71: Jerome Bettis | BF71: 8 | BI71: Thomas Jones | BJ71: 117
A72: Alge Crumpler | B72: 56 | E72: Alge Crumpler | F72: 70 | I72: Randy McMichael | J72: 77 | M72: Alge Crumpler | N72: 85 | Q72: Alge Crumpler | R72: 156 | U72: Alge Crumpler | V72: 54 | Y72: Alge Crumpler | Z72: 64 | AC72: Randy McMichael | AD72: 28 | AG72: Randy McMichael | AH72: 29 | AK72: Alge Crumpler | AL72: 51 | AO72: Alge Crumpler | AP72: 117 | AS72: Alge Crumpler | AT72: 224 | AW72: Alge Crumpler | AX72: 49 | BA72: Alge Crumpler | BB72: 77 | BE72: Antonio Gates | BF72: 49 | BI72: Jason Witten | BJ72: 11
A73: Matt Stover | B73: 10 | E73: Matt Stover | F73: 30 | I73: John Kasay | J73: 70 | M73: John Kasay | N73: 10 | Q73: John Kasay | R73: 60 | U73: John Kasay | V73: 30 | Y73: John Kasay | Z73: 0 | AC73: John Kasay | AD73: 80 | AG73: John Kasay | AH73: 80 | AK73: John Kasay | AL73: 100 | AO73: John Kasay | AP73: 20 | AS73: John Kasay | AT73: 50 | AW73: John Kasay | AX73: 50 | BA73: John Kasay | BB73: 30 | BE73: Jeff Wilkins | BF73: 90 | BI73: Lawrence Tynes | BJ73: -30
A74: Buffalo | B74: 190 | E74: Buffalo | F74: 20 | I74: Buffalo | J74: 40 | M74: Buffalo | N74: 20 | Q74: Buffalo | R74: 130 | U74: Buffalo | V74: 120 | Y74: Washington | Z74: 100 | AC74: Washington | AD74: 0 | AG74: Washington | AH74: 80 | AK74: Buffalo | AL74: 210 | AO74: Washington | AP74: 100 | AS74: Buffalo | AT74: 70 | AW74: Buffalo | AX74: 90 | BA74: Washington | BB74: 200 | BE74: Pittsburgh | BF74: 190 | BI74: Philadelphia | BJ74: 40
B75: =SUM(B66:B74) -> 861 | F75: =SUM(F66:F74) -> 680 | J75: =SUM(J66:J74) -> 1214 | N75: =SUM(N66:N74) -> 915 | R75: =SUM(R66:R74) -> 929 | V75: =SUM(V66:V74) -> 1160 | Z75: =SUM(Z66:Z74) -> 741 | AD75: =SUM(AD66:AD74) -> 659 | AH75: =SUM(AH66:AH74) -> 1083 | AL75: =SUM(AL66:AL74) -> 1210 | AP75: =SUM(AP66:AP74) -> 799 | AT75: =SUM(AT66:AT74) -> 1116 | AX75: =SUM(AX66:AX74) -> 902 | BB75: =SUM(BB66:BB74) -> 828 | BF75: =SUM(BF66:BF74) -> 903 | BJ75: =SUM(BJ66:BJ74) -> 1064
A76: vs. | E76: vs. | I76: vs. | M76: vs. | Q76: vs. | U76: vs. | Y76: vs. | AC76: vs. | AG76: vs. | AK76: vs. | AO76: vs. | AS76: vs. | AW76: vs. | BA76: vs. | BE76: vs. | BI76: vs.
A78: =A5 -> Pilgaards Mannschaft | E78: =E5 -> Team Go'o | I78: =I5 -> Lam i roen | M78: =M5 -> Nilsson Monkeys | Q78: =Q5 -> Team-UhUh | U78: =U5 -> Weak Knees Revenge | Y78: =Y5 -> Djohn | AC78: =AC5 -> Pilgaards Mannschaft | AG78: =AG5 -> Team Go'o | AK78: =AK5 -> Lam i roen | AO78: =AO5 -> Nilsson Monkeys | AS78: =AS5 -> Team-UhUh | AW78: =AW5 -> Weak Knees Revenge | BA78: =BA5 -> Djohn | BE78: =BE7 -> Pilgaards Mannschaft | BI78: =BI7 -> Nilsson Monkeys
B79: Points | F79: Points | J79: Points | N79: Points | R79: Points | V79: Points | Z79: Points | AD79: Points | AH79: Points | AL79: Points | AP79: Points | AT79: Points | AX79: Points | BB79: Points | BF79: Points | BJ79: Points
A80: Marc Bulger | B80: 190 | E80: Donovan McNabb | F80: 255 | I80: Matt Hasselbeck | J80: 89 | M80: Peyton Manning | N80: 220 | Q80: Steve McNair | R80: 210 | U80: Ben Roethlisberger | V80: 0 | Y80: Jake Plummer | Z80: 108 | AC80: Carson Palmer | AD80: 171 | AG80: Donovan McNabb | AH80: 133 | AK80: Matt Hasselbeck | AL80: 93 | AO80: Peyton Manning | AP80: 202 | AS80: Jake Delhomme | AT80: 90 | AW80: Trent Green | AX80: 134 | BA80: Jake Plummer | BB80: 112 | BE80: Carson Palmer | BF80: 187 | BI80: Drew Brees | BJ80: 96
A81: Torry Holt | B81: 133 | E81: Marvin Harrison | F81: 39 | I81: Terrell Owens | J81: 158 | M81: Steve Smith | N81: 18 | Q81: Keyshawn Johnson | R81: 42 | U81: Keenan McCardell | V81: 23 | Y81: Chad Ochocinco | Z81: 82 | AC81: Chris Chambers | AD81: 96 | AG81: Donald Driver | AH81: 67 | AK81: Santana Moss | AL81: 72 | AO81: Derrick Mason | AP81: 48 | AS81: Plaxico Burress | AT81: 102 | AW81: Brandon Lloyd | AX81: 56 | BA81: Larry Fitzgerald | BB81: 35 | BE81: Terry Glenn | BF81: 26 | BI81: Derrick Mason | BJ81: 173
A82: Laveranues Coles | B82: 74 | E82: Reggie Wayne | F82: 27 | I82: Isaac Bruce | J82: 12 | M82: Anquan Boldin | N82: 177 | Q82: Deion Branch | R82: 111 | U82: Keary Colbert | V82: 30 | Y82: Larry Fitzgerald | Z82: 127 | AC82: Terry Glenn | AD82: 58 | AG82: Michael Clayton | AH82: 24 | AK82: Travis Taylor | AL82: 12 | AO82: Steve Smith | AP82: 182 | AS82: Deion Branch | AT82: 57 | AW82: Keenan McCardell | AX82: 60 | BA82: Chad Ochocinco | BB82: 24 | BE82: Torry Holt | BF82: 85 | BI82: Steve Smith | BJ82: 17
A83: Ashley Lelie | B83: 21 | E83: Michael Clayton | F83: 86 | I83: T.J. Houshmandzadeh | J83: 18 | M83: Terry Glenn | N83: 52 | Q83: Muhsin Muhammad | R83: 64 | U83: Brandon Lloyd | V83: 0 | Y83: Jerry Porter | Z83: 48 | AC83: Torry Holt | AD83: 0 | AG83: Kevin Curtis | AH83: 0 | AK83: Ernest Wilford | AL83: 11 | AO83: Anquan Boldin | AP83: 190 | AS83: Joe Horn | AT83: 51 | AW83: Keary Colbert | AX83: 31 | BA83: Randy Moss | BB83: 22 | BE83: Chris Chambers | BF83: 102 | BI83: Anquan Boldin | BJ83: 156
A84: Deuce McAllister | B84: 165 | E84: Willis McGahee | F84: 22 | I84: Corey Dillon | J84: 175 | M84: Carnell Williams | N84: 20 | Q84: Edgerrin James | R84: 140 | U84: Steven Jackson | V84: 135 | Y84: Shaun Alexander | Z84: 30 | AC84: Thomas Jones | AD84: 47 | AG84: Willis McGahee | AH84: 0 | AK84: Tiki Barber | AL84: 241 | AO84: Domanick Williams | AP84: 138 | AS84: Edgerrin James | AT84: 62 | AW84: Warrick Dunn | AX84: 49 | BA84: Shaun Alexander | BB84: 147 | BE84: Larry Johnson | BF84: 224 | BI84: Rudi Johnson | BJ84: 59
A85: Julius Jones | B85: 133 | E85: Jamal Lewis | F85: 25 | I85: Tiki Barber | J85: 38 | M85: Domanick Williams | N85: 80 | Q85: Curtis Martin | R85: 149 | U85: Warrick Dunn | V85: 130 | Y85: Brian Westbrook | Z85: 112 | AC85: Ronnie Brown | AD85: 71 | AG85: Jamal Lewis | AH85: 24 | AK85: Corey Dillon | AL85: 0 | AO85: Rudi Johnson | AP85: 174 | AS85: LaMont Jordan | AT85: 234 | AW85: Steven Jackson | AX85: 44 | BA85: Tatum Bell | BB85: 51 | BE85: Thomas Jones | BF85: 112 | BI85: Carnell Williams | BJ85: 146
A86: Jason Witten | B86: 13 | E86: Jeremy Shockey | F86: 67 | I86: Steve Heiden | J86: 18 | M86: Tony Gonzalez | N86: 13 | Q86: Daniel Graham | R86: 164 | U86: Marcus Pollard | V86: 85 | Y86: Antonio Gates | Z86: 148 | AC86: Jason Witten | AD86: 72 | AG86: Jeremy Shockey | AH86: 131 | AK86: Jeb Putzier | AL86: 57 | AO86: Tony Gonzalez | AP86: 110 | AS86: Jerramy Stevens | AT86: 0 | AW86: Marcus Pollard | AX86: 16 | BA86: Antonio Gates | BB86: 207 | BE86: Jason Witten | BF86: 107 | BI86: Tony Gonzalez | BJ86: 63
A87: Ryan Longwell | B87: 40 | E87: Sebastian Janikowski | F87: 40 | I87: Adam Vinatieri | J87: 100 | M87: Shayne Graham | N87: 80 | Q87: Mike Vanderjagt | R87: 40 | U87: Jason Elam | V87: 40 | Y87: Jeff Wilkins | Z87: 40 | AC87: Ryan Longwell | AD87: 20 | AG87: Sebastian Janikowski | AH87: 80 | AK87: Adam Vinatieri | AL87: 60 | AO87: Shayne Graham | AP87: 130 | AS87: Jay Feely | AT87: 60 | AW87: Jason Elam | AX87: 80 | BA87: Jeff Wilkins | BB87: 70 | BE87: Lawrence Tynes | BF87: 40 | BI87: Shayne Graham | BJ87: 70
A88: Philadelphia | B88: 110 | E88: Baltimore | F88: 40 | I88: New York Jets | J88: 140 | M88: Tampa Bay | N88: 80 | Q88: Cincinnati | R88: 20 | U88: Atlanta | V88: 190 | Y88: Pittsburgh | Z88: 100 | AC88: Philadelphia | AD88: -30 | AG88: Baltimore | AH88: 40 | AK88: New York Giants | AL88: 90 | AO88: Tampa Bay | AP88: 130 | AS88: Jacksonville | AT88: 140 | AW88: Atlanta | AX88: 20 | BA88: Pittsburgh | BB88: 70 | BE88: Philadelphia | BF88: 30 | BI88: Tampa Bay | BJ88: 80
B89: =SUM(B80:B88) -> 879 | F89: =SUM(F80:F88) -> 601 | J89: =SUM(J80:J88) -> 748 | N89: =SUM(N80:N88) -> 740 | R89: =SUM(R80:R88) -> 940 | V89: =SUM(V80:V88) -> 633 | Z89: =SUM(Z80:Z88) -> 795 | AD89: =SUM(AD80:AD88) -> 505 | AH89: =SUM(AH80:AH88) -> 499 | AL89: =SUM(AL80:AL88) -> 636 | AP89: =SUM(AP80:AP88) -> 1304 | AT89: =SUM(AT80:AT88) -> 796 | AX89: =SUM(AX80:AX88) -> 490 | BB89: =SUM(BB80:BB88) -> 738 | BF89: =SUM(BF80:BF88) -> 913 | BJ89: =SUM(BJ80:BJ88) -> 860
A94: =A7 -> Lam i roen | E94: =E7 -> Pilgaards Mannschaft | I94: =I7 -> Pilgaards Mannschaft | M94: =M7 -> Pilgaards Mannschaft | Q94: =Q7 -> Pilgaards Mannschaft | U94: =U7 -> Pilgaards Mannschaft | Y94: =Y7 -> Pilgaards Mannschaft | AC94: =AC7 -> Lam i roen | AG94: =AG7 -> Pilgaards Mannschaft | AK94: =AK7 -> Pilgaards Mannschaft | AO94: =AO7 -> Pilgaards Mannschaft | AS94: =AS7 -> Pilgaards Mannschaft | AW94: =AW7 -> Pilgaards Mannschaft | BA94: =BA7 -> Pilgaards Mannschaft | BE94: =BE9 -> Team Ludoleif | BI94: =BI11 -> Djohn
B95: Points | F95: Points | J95: Points | N95: Points | R95: Points | V95: Points | Z95: Points | AD95: Points | AH95: Points | AL95: Points | AP95: Points | AT95: Points | AX95: Points | BB95: Points | BF95: Points | BJ95: Points
A96: Matt Hasselbeck | B96: 96 | E96: Marc Bulger | F96: 99 | I96: Marc Bulger | J96: 149 | M96: Marc Bulger | N96: 207 | Q96: Marc Bulger | R96: 172 | U96: Carson Palmer | V96: 178 | Y96: Carson Palmer | Z96: 127 | AC96: Mark Brunell | AD96: 11 | AG96: Carson Palmer | AH96: 150 | AK96: Marc Bulger | AL96: 144 | AO96: Marc Bulger | AP96: 149 | AS96: Carson Palmer | AT96: 218 | AW96: Carson Palmer | AX96: 173 | BA96: Carson Palmer | BB96: 55 | BE96: Brett Favre | BF96: 29 | BI96: Jake Plummer | BJ96: 153
A97: Terrell Owens | B97: 109 | E97: Torry Holt | F97: 126 | I97: Torry Holt | J97: 213 | M97: Torry Holt | N97: 151 | Q97: Torry Holt | R97: 184 | U97: Torry Holt | V97: 76 | Y97: Chris Chambers | Z97: 128 | AC97: Santana Moss | AD97: 22 | AG97: Chris Chambers | AH97: 35 | AK97: Chris Chambers | AL97: 196 | AO97: Chris Chambers | AP97: 23 | AS97: Terry Glenn | AT97: 57 | AW97: Terry Glenn | AX97: 99 | BA97: Terry Glenn | BB97: 245 | BE97: Joey Galloway | BF97: 45 | BI97: Larry Fitzgerald | BJ97: 147
A98: Isaac Bruce | B98: 115 | E98: Laveranues Coles | F98: 130 | I98: Laveranues Coles | J98: 31 | M98: Laveranues Coles | N98: 15 | Q98: Andre Johnson | R98: 0 | U98: Chris Chambers | V98: 60 | Y98: Terry Glenn | Z98: 43 | AC98: Terrell Owens | AD98: 178 | AG98: Laveranues Coles | AH98: 132 | AK98: Terry Glenn | AL98: 85 | AO98: Terry Glenn | AP98: 38 | AS98: Torry Holt | AT98: 196 | AW98: Torry Holt | AX98: 80 | BA98: Torry Holt | BB98: 93 | BE98: Jimmy Smith | BF98: 76 | BI98: Randy Moss | BJ98: 73
A99: T.J. Houshmandzadeh | B99: 75 | E99: Ashley Lelie | F99: 71 | I99: Ashley Lelie | J99: 43 | M99: Ashley Lelie | N99: 13 | Q99: Chris Chambers | R99: 60 | U99: Terry Glenn | V99: 72 | Y99: Laveranues Coles | Z99: 109 | AC99: T.J. Houshmandzadeh | AD99: 135 | AG99: Antonio Bryant | AH99: 67 | AK99: Torry Holt | AL99: 110 | AO99: Torry Holt | AP99: 201 | AS99: Antonio Bryant | AT99: 20 | AW99: Laveranues Coles | AX99: 43 | BA99: Chris Chambers | BB99: 240 | BE99: Rod Smith | BF99: 186 | BI99: Andre Johnson | BJ99: 175
A100: Corey Dillon | B100: 181 | E100: Deuce McAllister | F100: 82 | I100: Deuce McAllister | J100: 123 | M100: Deuce McAllister | N100: 85 | Q100: Deuce McAllister | R100: 52 | U100: Thomas Jones | V100: 153 | Y100: Thomas Jones | Z100: 71 | AC100: Tiki Barber | AD100: 171 | AG100: Thomas Jones | AH100: 21 | AK100: Larry Johnson | AL100: 121 | AO100: Larry Johnson | AP100: 234 | AS100: Larry Johnson | AT100: 159 | AW100: Larry Johnson | AX100: 206 | BA100: Larry Johnson | BB100: 284 | BE100: LaDainian Tomlinson | BF100: 64 | BI100: Shaun Alexander | BJ100: 258
A101: Tiki Barber | B101: 141 | E101: Ahman Green | F101: 82 | I101: Julius Jones | J101: 180 | M101: Julius Jones | N101: 51 | Q101: Julius Jones | R101: 36 | U101: Larry Johnson | V101: 32 | Y101: Ahman Green | Z101: 46 | AC101: Corey Dillon | AD101: 156 | AG101: Larry Johnson | AH101: 220 | AK101: Ronnie Brown | AL101: 70 | AO101: Thomas Jones | AP101: 43 | AS101: Thomas Jones | AT101: 84 | AW101: Thomas Jones | AX101: 46 | BA101: Thomas Jones | BB101: 131 | BE101: Reuben Droughns | BF101: 71 | BI101: Edgerrin James | BJ101: 44
A102: Eric Johnson | B102: 0 | E102: Jason Witten | F102: 43 | I102: Jason Witten | J102: 146 | M102: Jason Witten | N102: 57 | Q102: Jason Witten | R102: 88 | U102: Jason Witten | V102: 122 | Y102: Jason Witten | Z102: 41 | AC102: Steve Heiden | AD102: 48 | AG102: Jermaine Wiggins | AH102: 12 | AK102: Jason Witten | AL102: 33 | AO102: Jason Witten | AP102: 20 | AS102: Jason Witten | AT102: 159 | AW102: Jason Witten | AX102: 8 | BA102: Jason Witten | BB102: 157 | BE102: Alge Crumpler | BF102: 19 | BI102: Antonio Gates | BJ102: 114
A103: Adam Vinatieri | B103: 0 | E103: Ryan Longwell | F103: 50 | I103: Ryan Longwell | J103: -20 | M103: Ryan Longwell | N103: 10 | Q103: Ryan Longwell | R103: 90 | U103: Ryan Longwell | V103: 0 | Y103: Ryan Longwell | Z103: 80 | AC103: Adam Vinatieri | AD103: 30 | AG103: Neil Rackers | AH103: 120 | AK103: Neil Rackers | AL103: 70 | AO103: Neil Rackers | AP103: 110 | AS103: Neil Rackers | AT103: 50 | AW103: Lawrence Tynes | AX103: 60 | BA103: Lawrence Tynes | BB103: 40 | BE103: John Kasay | BF103: 70 | BI103: Jeff Wilkins | BJ103: 100
A104: New England | B104: 50 | E104: Philadelphia | F104: 160 | I104: Philadelphia | J104: 20 | M104: Philadelphia | N104: 160 | Q104: Philadelphia | R104: 70 | U104: Minnesota | V104: 80 | Y104: Minnesota | Z104: 10 | AC104: New England | AD104: 70 | AG104: Philadelphia | AH104: 50 | AK104: Philadelphia | AL104: 50 | AO104: Philadelphia | AP104: 50 | AS104: Philadelphia | AT104: 120 | AW104: Philadelphia | AX104: 0 | BA104: Philadelphia | BB104: 70 | BE104: Washington | BF104: 190 | BI104: Pittsburgh | BJ104: 200
B105: =SUM(B96:B104) -> 767 | F105: =SUM(F96:F104) -> 843 | J105: =SUM(J96:J104) -> 885 | N105: =SUM(N96:N104) -> 749 | R105: =SUM(R96:R104) -> 752 | V105: =SUM(V96:V104) -> 773 | Z105: =SUM(Z96:Z104) -> 655 | AD105: =SUM(AD96:AD104) -> 821 | AH105: =SUM(AH96:AH104) -> 807 | AL105: =SUM(AL96:AL104) -> 879 | AP105: =SUM(AP96:AP104) -> 868 | AT105: =SUM(AT96:AT104) -> 1063 | AX105: =SUM(AX96:AX104) -> 715 | BB105: =SUM(BB96:BB104) -> 1315 | BF105: =SUM(BF96:BF104) -> 750 | BJ105: =SUM(BJ96:BJ104) -> 1264
A106: vs. | E106: vs. | I106: vs. | M106: vs. | Q106: vs. | U106: vs. | Y106: vs. | AC106: vs. | AG106: vs. | AK106: vs. | AO106: vs. | AS106: vs. | AW106: vs. | BA106: vs. | BE106: vs. | BI106: vs.
A108: =A8 -> Djohn | E108: =E8 -> Lam i roen | I108: =I8 -> Nilsson Monkeys | M108: =M8 -> Team-UhUh | Q108: =Q8 -> Weak Knees Revenge | U108: =U8 -> Djohn | Y108: =Y8 -> Team Go'o | AC108: =AC8 -> Djohn | AG108: =AG8 -> Lam i roen | AK108: =AK8 -> Nilsson Monkeys | AO108: =AO8 -> Team-UhUh | AS108: =AS8 -> Weak Knees Revenge | AW108: =AW8 -> Djohn | BA108: =BA8 -> Team Go'o | BE108: =BE10 -> Nilsson Monkeys | BI108: =BI12 -> Team Ludoleif
B109: Points | F109: Points | J109: Points | N109: Points | R109: Points | V109: Points | Z109: Points | AD109: Points | AH109: Points | AL109: Points | AP109: Points | AT109: Points | AX109: Points | BB109: Points | BF109: Points | BJ109: Points
A110: Aaron Brooks | B110: 74 | E110: Matt Hasselbeck | F110: 163 | I110: Peyton Manning | J110: 80 | M110: Daunte Culpepper | N110: 92 | Q110: Ben Roethlisberger | R110: 158 | U110: Jake Plummer | V110: 155 | Y110: Donovan McNabb | Z110: 132 | AC110: Aaron Brooks | AD110: 63 | AG110: Matt Hasselbeck | AH110: 149 | AK110: Peyton Manning | AL110: 209 | AO110: Drew Bledsoe | AP110: 41 | AS110: Trent Green | AT110: 140 | AW110: Aaron Brooks | AX110: 37 | BA110: Kerry Collins | BB110: 0 | BE110: Peyton Manning | BF110: 127 | BI110: Tom Brady | BJ110: 124
A111: Randy Moss | B111: 171 | E111: Terrell Owens | F111: 240 | I111: Steve Smith | J111: 327 | M111: Keyshawn Johnson | N111: 14 | Q111: Keenan McCardell | R111: 8 | U111: Chad Ochocinco | V111: 190 | Y111: Marvin Harrison | Z111: 138 | AC111: Chad Ochocinco | AD111: 70 | AG111: Santana Moss | AH111: 88 | AK111: Derrick Mason | AL111: 62 | AO111: Plaxico Burress | AP111: 165 | AS111: Brandon Lloyd | AT111: 35 | AW111: Larry Fitzgerald | AX111: 126 | BA111: Marvin Harrison | BB111: 241 | BE111: Derrick Mason | BF111: 89 | BI111: Jimmy Smith | BJ111: 72
A112: Chad Ochocinco | B112: 110 | E112: Isaac Bruce | F112: 67 | I112: Anquan Boldin | J112: 97 | M112: Plaxico Burress | N112: 306 | Q112: Keary Colbert | R112: 0 | U112: Drew Bennett | V112: 75 | Y112: Reggie Wayne | Z112: 104 | AC112: Larry Fitzgerald | AD112: 46 | AG112: T.J. Houshmandzadeh | AH112: 65 | AK112: Steve Smith | AL112: 37 | AO112: Deion Branch | AP112: 110 | AS112: Keenan McCardell | AT112: 55 | AW112: Jerry Porter | AX112: 63 | BA112: Joe Jurevicius | BB112: 122 | BE112: Steve Smith | BF112: 216 | BI112: Rod Smith | BJ112: 85
A113: Drew Bennett | B113: 67 | E113: T.J. Houshmandzadeh | F113: 193 | I113: Terry Glenn | J113: 116 | M113: Deion Branch | N113: 9 | Q113: Brandon Lloyd | R113: 0 | U113: Randy Moss | V113: 0 | Y113: Donald Driver | Z113: 176 | AC113: Randy Moss | AD113: 32 | AG113: Travis Taylor | AH113: 38 | AK113: Brian Finneran | AL113: 73 | AO113: Keyshawn Johnson | AP113: 49 | AS113: Keary Colbert | AT113: 44 | AW113: Chad Ochocinco | AX113: 61 | BA113: Reggie Wayne | BB113: 74 | BE113: Anquan Boldin | BF113: 189 | BI113: Hines Ward | BJ113: 165
A114: Shaun Alexander | B114: 36 | E114: Corey Dillon | F114: 18 | I114: Rudi Johnson | J114: 51 | M114: LaMont Jordan | N114: 157 | Q114: Steven Jackson | R114: 169 | U114: Shaun Alexander | V114: 315 | Y114: Willis McGahee | Z114: 64 | AC114: Brian Westbrook | AD114: 141 | AG114: Tiki Barber | AH114: 66 | AK114: Kevin Jones | AL114: 58 | AO114: Edgerrin James | AP114: 191 | AS114: Warrick Dunn | AT114: 63 | AW114: Brian Westbrook | AX114: 58 | BA114: Willis McGahee | BB114: 9 | BE114: Domanick Williams | BF114: 0 | BI114: LaDainian Tomlinson | BJ114: 50
A115: Brian Westbrook | B115: 160 | E115: Tiki Barber | F115: 170 | I115: Carnell Williams | J115: 84 | M115: Edgerrin James | N115: 123 | Q115: Warrick Dunn | R115: 66 | U115: Tatum Bell | V115: 145 | Y115: Jamal Lewis | Z115: 31 | AC115: Tatum Bell | AD115: 173 | AG115: Chris Brown | AH115: 117 | AK115: Domanick Williams | AL115: 0 | AO115: LaMont Jordan | AP115: 75 | AS115: Steven Jackson | AT115: 126 | AW115: Shaun Alexander | AX115: 144 | BA115: Mike Anderson | BB115: 10 | BE115: Rudi Johnson | BF115: 192 | BI115: DeShaun Foster | BJ115: 52
A116: Jim Kleinsasser | B116: 48 | E116: Jeb Putzier | F116: 15 | I116: Tony Gonzalez | J116: 44 | M116: Daniel Graham | N116: 0 | Q116: Marcus Pollard | R116: 0 | U116: Antonio Gates | V116: 21 | Y116: Dallas Clark | Z116: 109 | AC116: Antonio Gates | AD116: 326 | AG116: Steve Heiden | AH116: 20 | AK116: Tony Gonzalez | AL116: 94 | AO116: Bubba Franks | AP116: 11 | AS116: Marcus Pollard | AT116: 31 | AW116: Antonio Gates | AX116: 114 | BA116: Jeremy Shockey | BB116: 121 | BE116: Tony Gonzalez | BF116: 54 | BI116: Alge Crumpler | BJ116: 62
A117: Jeff Wilkins | B117: 110 | E117: Adam Vinatieri | F117: 50 | I117: David Akers | J117: 40 | M117: Mike Vanderjagt | N117: 60 | Q117: Jason Elam | R117: 30 | U117: Jeff Wilkins | V117: 70 | Y117: Sebastian Janikowski | Z117: 70 | AC117: Jeff Wilkins | AD117: 60 | AG117: Adam Vinatieri | AH117: 30 | AK117: Shayne Graham | AL117: 0 | AO117: Mike Vanderjagt | AP117: 80 | AS117: Jason Elam | AT117: 50 | AW117: Jeff Wilkins | AX117: 10 | BA117: Sebastian Janikowski | BB117: 40 | BE117: Shayne Graham | BF117: 90 | BI117: John Kasay | BJ117: 70
A118: Pittsburgh | B118: 150 | E118: New England | F118: 90 | I118: Carolina | J118: 20 | M118: Cincinnati | N118: 130 | Q118: Atlanta | R118: 20 | U118: Pittsburgh | V118: 120 | Y118: Baltimore | Z118: 60 | AC118: Pittsburgh | AD118: 90 | AG118: New York Jets | AH118: 40 | AK118: Indianapolis | AL118: 40 | AO118: Jacksonville | AP118: 50 | AS118: Atlanta | AT118: 170 | AW118: Arizona | AX118: 150 | BA118: San Diego | BB118: 40 | BE118: Indianapolis | BF118: 90 | BI118: Washington | BJ118: 60
B119: =SUM(B110:B118) -> 926 | F119: =SUM(F110:F118) -> 1006 | J119: =SUM(J110:J118) -> 859 | N119: =SUM(N110:N118) -> 891 | R119: =SUM(R110:R118) -> 451 | V119: =SUM(V110:V118) -> 1091 | Z119: =SUM(Z110:Z118) -> 884 | AD119: =SUM(AD110:AD118) -> 1001 | AH119: =SUM(AH110:AH118) -> 613 | AL119: =SUM(AL110:AL118) -> 573 | AP119: =SUM(AP110:AP118) -> 772 | AT119: =SUM(AT110:AT118) -> 714 | AX119: =SUM(AX110:AX118) -> 763 | BB119: =SUM(BB110:BB118) -> 657 | BF119: =SUM(BF110:BF118) -> 1047 | BJ119: =SUM(BJ110:BJ118) -> 740
A124: =A10 -> Nilsson Monkeys | E124: =E10 -> Nilsson Monkeys | I124: =I10 -> Team-UhUh | M124: =M10 -> Lam i roen | Q124: =Q10 -> Lam i roen | U124: =U10 -> Lam i roen | Y124: =Y10 -> Lam i roen | AC124: =AC10 -> Nilsson Monkeys | AG124: =AG10 -> Nilsson Monkeys | AK124: =AK10 -> Team-UhUh | AO124: =AO10 -> Lam i roen | AS124: =AS10 -> Lam i roen | AW124: =AW10 -> Lam i roen | BA124: =BA10 -> Lam i roen | BE124: =BE14 -> Team-UhUh | BI124: =BI16 -> Team-UhUh
B125: Points | F125: Points | J125: Points | N125: Points | R125: Points | V125: Points | Z125: Points | AD125: Points | AH125: Points | AL125: Points | AP125: Points | AT125: Points | AX125: Points | BB125: Points | BF125: Points | BJ125: Points
A126: Peyton Manning | B126: 149 | E126: Peyton Manning | F126: 31 | I126: Daunte Culpepper | J126: 216 | M126: Matt Hasselbeck | N126: 138 | Q126: Matt Hasselbeck | R126: 184 | U126: Matt Hasselbeck | V126: 104 | Y126: Matt Hasselbeck | Z126: 98 | AC126: Drew Brees | AD126: 193 | AG126: Peyton Manning | AH126: 219 | AK126: Jake Delhomme | AL126: 48 | AO126: Mark Brunell | AP126: 33 | AS126: Mark Brunell | AT126: 102 | AW126: Mark Brunell | AX126: 90 | BA126: Matt Hasselbeck | BB126: 208 | BE126: Jake Delhomme | BF126: 123 | BI126: Jake Delhomme | BJ126: 106
A127: Steve Smith | B127: 192 | E127: Steve Smith | F127: 42 | I127: Joe Horn | J127: 12 | M127: Terrell Owens | N127: 229 | Q127: Terrell Owens | R127: 58 | U127: T.J. Houshmandzadeh | V127: 0 | Y127: Santana Moss | Z127: 159 | AC127: Derrick Mason | AD127: 95 | AG127: Derrick Mason | AH127: 65 | AK127: Plaxico Burress | AL127: 48 | AO127: Santana Moss | AP127: 55 | AS127: Santana Moss | AT127: 129 | AW127: Santana Moss | AX127: 53 | BA127: Santana Moss | BB127: 72 | BE127: Plaxico Burress | BF127: 32 | BI127: Plaxico Burress | BJ127: 41
A128: Derrick Mason | B128: 106 | E128: Derrick Mason | F128: 140 | I128: Keyshawn Johnson | J128: 154 | M128: T.J. Houshmandzadeh | N128: 112 | Q128: T.J. Houshmandzadeh | R128: 0 | U128: Santana Moss | V128: 285 | Y128: Travis Taylor | Z128: 39 | AC128: Anquan Boldin | AD128: 120 | AG128: Steve Smith | AH128: 155 | AK128: Muhsin Muhammad | AL128: 7 | AO128: Ernest Wilford | AP128: 116 | AS128: Ernest Wilford | AT128: 28 | AW128: Ernest Wilford | AX128: 39 | BA128: T.J. Houshmandzadeh | BB128: 125 | BE128: Muhsin Muhammad | BF128: 41 | BI128: Muhsin Muhammad | BJ128: 123
A129: Roy Williams | B129: 18 | E129: Anquan Boldin | F129: 119 | I129: Muhsin Muhammad | J129: 58 | M129: Eric Moulds | N129: 19 | Q129: Santana Moss | R129: 117 | U129: Travis Taylor | V129: 34 | Y129: Terrell Owens | Z129: 130 | AC129: Steve Smith | AD129: 249 | AG129: Brian Finneran | AH129: 161 | AK129: Deion Branch | AL129: 79 | AO129: Isaac Bruce | AP129: 135 | AS129: Bobby Engram | AT129: 32 | AW129: Isaac Bruce | AX129: 42 | BA129: Bobby Engram | BB129: 193 | BE129: Chad Ochocinco | BF129: 185 | BI129: Chad Ochocinco | BJ129: 183
A130: Domanick Williams | B130: 20 | E130: Kevin Jones | F130: 19 | I130: LaMont Jordan | J130: 129 | M130: Corey Dillon | N130: 111 | Q130: Corey Dillon | R130: 71 | U130: Corey Dillon | V130: 0 | Y130: Tiki Barber | Z130: 129 | AC130: Domanick Williams | AD130: 71 | AG130: Kevin Jones | AH130: 17 | AK130: Edgerrin James | AL130: 153 | AO130: Tiki Barber | AP130: 80 | AS130: Tiki Barber | AT130: 118 | AW130: Tiki Barber | AX130: 68 | BA130: Tiki Barber | BB130: 194 | BE130: LaMont Jordan | BF130: 117 | BI130: LaMont Jordan | BJ130: 0
A131: Kevin Jones | B131: 59 | E131: Rudi Johnson | F131: 52 | I131: Edgerrin James | J131: 143 | M131: Tiki Barber | N131: 144 | Q131: Chris Brown | R131: 52 | U131: Tiki Barber | V131: 40 | Y131: Chris Brown | Z131: -2 | AC131: Rudi Johnson | AD131: 41 | AG131: Carnell Williams | AH131: 25 | AK131: LaMont Jordan | AL131: 99 | AO131: Chris Brown | AP131: 208 | AS131: Chris Brown | AT131: 160 | AW131: Corey Dillon | AX131: 124 | BA131: Chris Brown | BB131: 73 | BE131: Samkon Gado | BF131: 27 | BI131: Samkon Gado | BJ131: 0
A132: Tony Gonzalez | B132: 54 | E132: Tony Gonzalez | F132: 54 | I132: Daniel Graham | J132: 0 | M132: Jeb Putzier | N132: 20 | Q132: Steve Heiden | R132: 17 | U132: Steve Heiden | V132: 45 | Y132: Steve Heiden | Z132: 15 | AC132: Tony Gonzalez | AD132: 159 | AG132: Tony Gonzalez | AH132: 71 | AK132: Bubba Franks | AL132: 42 | AO132: Steve Heiden | AP132: 40 | AS132: Steve Heiden | AT132: 61 | AW132: Steve Heiden | AX132: 7 | BA132: Jeb Putzier | BB132: 10 | BE132: Jerramy Stevens | BF132: 115 | BI132: Jerramy Stevens | BJ132: 111
A133: David Akers | B133: 40 | E133: David Akers | F133: 50 | I133: Mike Vanderjagt | J133: 50 | M133: Adam Vinatieri | N133: 40 | Q133: Adam Vinatieri | R133: 60 | U133: Adam Vinatieri | V133: 60 | Y133: Adam Vinatieri | Z133: 0 | AC133: Shayne Graham | AD133: 30 | AG133: Shayne Graham | AH133: 30 | AK133: Mike Vanderjagt | AL133: 70 | AO133: Adam Vinatieri | AP133: 50 | AS133: Adam Vinatieri | AT133: 30 | AW133: Adam Vinatieri | AX133: 70 | BA133: Adam Vinatieri | BB133: 50 | BE133: Jay Feely | BF133: 80 | BI133: Jay Feely | BJ133: 70
A134: Carolina | B134: 50 | E134: Tampa Bay | F134: 110 | I134: Cincinnati | J134: 160 | M134: New England | N134: -40 | Q134: New York Jets | R134: 90 | U134: New York Jets | V134: 50 | Y134: New York Jets | Z134: 90 | AC134: Tampa Bay | AD134: 10 | AG134: Indianapolis | AH134: 60 | AK134: Jacksonville | AL134: 230 | AO134: New York Giants | AP134: 50 | AS134: New York Jets | AT134: 10 | AW134: New York Giants | AX134: 220 | BA134: Denver | BB134: 140 | BE134: Jacksonville | BF134: 80 | BI134: Jacksonville | BJ134: 70
B135: =SUM(B126:B134) -> 688 | F135: =SUM(F126:F134) -> 617 | J135: =SUM(J126:J134) -> 922 | N135: =SUM(N126:N134) -> 773 | R135: =SUM(R126:R134) -> 649 | V135: =SUM(V126:V134) -> 618 | Z135: =SUM(Z126:Z134) -> 658 | AD135: =SUM(AD126:AD134) -> 968 | AH135: =SUM(AH126:AH134) -> 803 | AL135: =SUM(AL126:AL134) -> 776 | AP135: =SUM(AP126:AP134) -> 767 | AT135: =SUM(AT126:AT134) -> 670 | AX135: =SUM(AX126:AX134) -> 713 | BB135: =SUM(BB126:BB134) -> 1065 | BF135: =SUM(BF126:BF134) -> 800 | BJ135: =SUM(BJ126:BJ134) -> 704
A136: vs. | E136: vs. | I136: vs. | M136: vs. | Q136: vs. | U136: vs. | Y136: vs. | AC136: vs. | AG136: vs. | AK136: vs. | AO136: vs. | AS136: vs. | AW136: vs. | BA136: vs. | BE136: vs. | BI136: vs.
A138: =A11 -> Weak Knees Revenge | E138: =E11 -> Djohn | I138: =I11 -> Djohn | M138: =M11 -> Team Go'o | Q138: =Q11 -> Nilsson Monkeys | U138: =U11 -> Team-UhUh | Y138: =Y11 -> Weak Knees Revenge | AC138: =AC11 -> Weak Knees Revenge | AG138: =AG11 -> Djohn | AK138: =AK11 -> Djohn | AO138: =AO11 -> Team Go'o | AS138: =AS11 -> Nilsson Monkeys | AW138: =AW11 -> Team-UhUh | BA138: =BA11 -> Weak Knees Revenge | BE138: =BE15 -> Weak Knees Revenge | BI138: =BI17 -> Lam i roen
B139: Points | F139: Points | J139: Points | N139: Points | R139: Points | V139: Points | Z139: Points | AD139: Points | AH139: Points | AL139: Points | AP139: Points | AT139: Points | AX139: Points | BB139: Points | BF139: Points | BJ139: Points
A140: Trent Green | B140: 59 | E140: Aaron Brooks | F140: 114 | I140: Aaron Brooks | J140: 77 | M140: Donovan McNabb | N140: 243 | Q140: Peyton Manning | R140: 111 | U140: Daunte Culpepper | V140: 76 | Y140: Ben Roethlisberger | Z140: 84 | AC140: Ben Roethlisberger | AD140: 120 | AG140: Aaron Brooks | AH140: 131 | AK140: Jake Plummer | AL140: 130 | AO140: Kerry Collins | AP140: 112 | AS140: Peyton Manning | AT140: 131 | AW140: Jake Delhomme | AX140: 115 | BA140: Trent Green | BB140: 123 | BE140: Trent Green | BF140: 61 | BI140: Matt Hasselbeck | BJ140: 132
A141: Javon Walker | B141: 38 | E141: Randy Moss | F141: 169 | I141: Randy Moss | J141: 82 | M141: Marvin Harrison | N141: 237 | Q141: Steve Smith | R141: 239 | U141: Deion Branch | V141: 93 | Y141: Keenan McCardell | Z141: 137 | AC141: Keenan McCardell | AD141: 73 | AG141: Chad Ochocinco | AH141: 85 | AK141: Larry Fitzgerald | AL141: 199 | AO141: Donald Driver | AP141: 201 | AS141: Derrick Mason | AT141: 113 | AW141: Plaxico Burress | AX141: 51 | BA141: Brandon Lloyd | BB141: 39 | BE141: Brandon Lloyd | BF141: 9 | BI141: Santana Moss | BJ141: 311
A142: Nate Burleson | B142: 45 | E142: Chad Ochocinco | F142: 187 | I142: Chad Ochocinco | J142: 186 | M142: Reggie Wayne | N142: 102 | Q142: Anquan Boldin | R142: 198 | U142: Plaxico Burress | V142: 41 | Y142: Keary Colbert | Z142: 0 | AC142: Brandon Lloyd | AD142: 22 | AG142: Larry Fitzgerald | AH142: 112 | AK142: Jerry Porter | AL142: 33 | AO142: Marvin Harrison | AP142: 53 | AS142: Steve Smith | AT142: 51 | AW142: Deion Branch | AX142: 54 | BA142: Keenan McCardell | BB142: 133 | BE142: Keenan McCardell | BF142: 133 | BI142: T.J. Houshmandzadeh | BJ142: 81
A143: Keary Colbert | B143: 17 | E143: Larry Fitzgerald | F143: 78 | I143: Larry Fitzgerald | J143: 42 | M143: Michael Clayton | N143: 17 | Q143: Derrick Mason | R143: 53 | U143: Muhsin Muhammad | V143: 57 | Y143: Brandon Lloyd | Z143: 38 | AC143: Nate Burleson | AD143: 8 | AG143: Jerry Porter | AH143: 140 | AK143: Randy Moss | AL143: 148 | AO143: Kevin Curtis | AP143: 170 | AS143: Anquan Boldin | AT143: 128 | AW143: Muhsin Muhammad | AX143: 0 | BA143: Keary Colbert | BB143: 23 | BE143: Keary Colbert | BF143: 0 | BI143: Isaac Bruce | BJ143: 78
A144: Clinton Portis | B144: 60 | E144: Shaun Alexander | F144: 149 | I144: Shaun Alexander | J144: 310 | M144: Willis McGahee | N144: 123 | Q144: Domanick Williams | R144: 133 | U144: Edgerrin James | V144: 276 | Y144: Steven Jackson | Z144: 190 | AC144: Steven Jackson | AD144: 173 | AG144: Brian Westbrook | AH144: 68 | AK144: Brian Westbrook | AL144: 149 | AO144: Willis McGahee | AP144: 25 | AS144: Domanick Williams | AT144: 141 | AW144: Edgerrin James | AX144: 134 | BA144: Warrick Dunn | BB144: 72 | BE144: Warrick Dunn | BF144: 51 | BI144: Tiki Barber | BJ144: 101
A145: Steven Jackson | B145: 53 | E145: Brian Westbrook | F145: 139 | I145: Brian Westbrook | J145: 277 | M145: Jamal Lewis | N145: 80 | Q145: Rudi Johnson | R145: 52 | U145: LaMont Jordan | V145: 206 | Y145: Warrick Dunn | Z145: 91 | AC145: Clinton Portis | AD145: 27 | AG145: Shaun Alexander | AH145: 206 | AK145: Shaun Alexander | AL145: 273 | AO145: Mike Anderson | AP145: 261 | AS145: Kevin Jones | AT145: 16 | AW145: LaMont Jordan | AX145: 23 | BA145: Steven Jackson | BB145: 33 | BE145: Steven Jackson | BF145: 41 | BI145: Corey Dillon | BJ145: 158
A146: Todd Heap | B146: 45 | E146: Antonio Gates | F146: 83 | I146: Antonio Gates | J146: 151 | M146: Jeremy Shockey | N146: 118 | Q146: L.J. Smith | R146: 24 | U146: Daniel Graham | V146: 8 | Y146: Marcus Pollard | Z146: 8 | AC146: Marcus Pollard | AD146: 38 | AG146: Antonio Gates | AH146: 128 | AK146: Heath Miller | AL146: 0 | AO146: Jeremy Shockey | AP146: 65 | AS146: Tony Gonzalez | AT146: 62 | AW146: Daniel Graham | AX146: 0 | BA146: Marcus Pollard | BB146: 18 | BE146: Marcus Pollard | BF146: 43 | BI146: Jeb Putzier | BJ146: 16
A147: Jason Elam | B147: 30 | E147: Jeff Wilkins | F147: 40 | I147: Jeff Wilkins | J147: 70 | M147: Sebastian Janikowski | N147: 110 | Q147: Shayne Graham | R147: 70 | U147: Mike Vanderjagt | V147: 80 | Y147: Jason Elam | Z147: 100 | AC147: Jason Elam | AD147: 70 | AG147: Jeff Wilkins | AH147: 0 | AK147: Jeff Wilkins | AL147: 68 | AO147: Sebastian Janikowski | AP147: 70 | AS147: Shayne Graham | AT147: 80 | AW147: Jay Feely | AX147: 40 | BA147: Jason Elam | BB147: 10 | BE147: Jason Elam | BF147: 40 | BI147: Adam Vinatieri | BJ147: 60
A148: Atlanta | B148: 120 | E148: Pittsburgh | F148: 140 | I148: Pittsburgh | J148: 90 | M148: Baltimore | N148: 120 | Q148: Tampa Bay | R148: 90 | U148: Cincinnati | V148: 120 | Y148: Atlanta | Z148: 190 | AC148: Chicago | AD148: 140 | AG148: Pittsburgh | AH148: 170 | AK148: Pittsburgh | AL148: 70 | AO148: San Diego | AP148: 140 | AS148: Tampa Bay | AT148: 80 | AW148: Jacksonville | AX148: 60 | BA148: Atlanta | BB148: 80 | BE148: Atlanta | BF148: 40 | BI148: Denver | BJ148: 120
B149: =SUM(B140:B148) -> 467 | F149: =SUM(F140:F148) -> 1099 | J149: =SUM(J140:J148) -> 1285 | N149: =SUM(N140:N148) -> 1150 | R149: =SUM(R140:R148) -> 970 | V149: =SUM(V140:V148) -> 957 | Z149: =SUM(Z140:Z148) -> 838 | AD149: =SUM(AD140:AD148) -> 671 | AH149: =SUM(AH140:AH148) -> 1040 | AL149: =SUM(AL140:AL148) -> 1070 | AP149: =SUM(AP140:AP148) -> 1097 | AT149: =SUM(AT140:AT148) -> 802 | AX149: =SUM(AX140:AX148) -> 477 | BB149: =SUM(BB140:BB148) -> 531 | BF149: =SUM(BF140:BF148) -> 418 | BJ149: =SUM(BJ140:BJ148) -> 1057
A154: =A13 -> Team-UhUh | E154: =E13 -> Team-UhUh | I154: =I13 -> Weak Knees Revenge | M154: =M13 -> Weak Knees Revenge | Q154: =Q13 -> Djohn | U154: =U13 -> Nilsson Monkeys | Y154: =Y13 -> Nilsson Monkeys | AC154: =AC13 -> Team-UhUh | AG154: =AG13 -> Team-UhUh | AK154: =AK13 -> Weak Knees Revenge | AO154: =AO13 -> Weak Knees Revenge | AS154: =AS13 -> Djohn | AW154: =AW13 -> Nilsson Monkeys | BA154: =BA13 -> Nilsson Monkeys | BE154: =BE17 -> Team Go'o | BI154: =BI21 -> Weak Knees Revenge
B155: Points | F155: Points | J155: Points | N155: Points | R155: Points | V155: Points | Z155: Points | AD155: Points | AH155: Points | AL155: Points | AP155: Points | AT155: Points | AX155: Points | BB155: Points | BF155: Points | BJ155: Points
A156: Daunte Culpepper | B156: 30 | E156: Daunte Culpepper | F156: 120 | I156: Trent Green | J156: 110 | M156: Trent Green | N156: 123 | Q156: Aaron Brooks | R156: 37 | U156: Peyton Manning | V156: 144 | Y156: Peyton Manning | Z156: 131 | AC156: Drew Bledsoe | AD156: 98 | AG156: Jake Delhomme | AH156: 99 | AK156: Trent Green | AL156: 36 | AO156: Trent Green | AP156: 168 | AS156: Jake Plummer | AT156: 88 | AW156: Peyton Manning | AX156: 138 | BA156: Peyton Manning | BB156: 180 | BE156: Kerry Collins | BF156: 65 | BI156: Trent Green | BJ156: 136
A157: Muhsin Muhammad | B157: 69 | E157: Joe Horn | F157: 180 | I157: Nate Burleson | J157: 0 | M157: Nate Burleson | N157: 0 | Q157: Chad Ochocinco | R157: 119 | U157: Steve Smith | V157: 172 | Y157: Derrick Mason | Z157: 35 | AC157: Plaxico Burress | AD157: 48 | AG157: Plaxico Burress | AH157: 77 | AK157: Brandon Lloyd | AL157: 23 | AO157: Brandon Lloyd | AP157: 174 | AS157: Larry Fitzgerald | AT157: 104 | AW157: Derrick Mason | AX157: 36 | BA157: Derrick Mason | BB157: 65 | BE157: Marvin Harrison | BF157: 130 | BI157: Brandon Lloyd | BJ157: 22
A158: Joe Horn | B158: 69 | E158: Keyshawn Johnson | F158: 27 | I158: Brandon Stokley | J158: 11 | M158: Brandon Stokley | N158: 0 | Q158: Larry Fitzgerald | R158: 195 | U158: Derrick Mason | V158: 96 | Y158: Brian Finneran | Z158: 0 | AC158: Keyshawn Johnson | AD158: 126 | AG158: Muhsin Muhammad | AH158: 71 | AK158: Brandon Stokley | AL158: 138 | AO158: Keenan McCardell | AP158: 151 | AS158: Jerry Porter | AT158: 53 | AW158: Steve Smith | AX158: 138 | BA158: Steve Smith | BB158: 93 | BE158: Joe Jurevicius | BF158: 95 | BI158: Keenan McCardell | BJ158: 68
A159: Plaxico Burress | B159: 135 | E159: Deion Branch | F159: 80 | I159: Keenan McCardell | J159: 193 | M159: Keenan McCardell | N159: 72 | Q159: Drew Bennett | R159: 151 | U159: Brian Finneran | V159: 0 | Y159: Anquan Boldin | Z159: 7 | AC159: Deion Branch | AD159: 136 | AG159: Joe Horn | AH159: 28 | AK159: Nate Burleson | AL159: 17 | AO159: Keary Colbert | AP159: 0 | AS159: Randy Moss | AT159: 33 | AW159: Anquan Boldin | AX159: 219 | BA159: Anquan Boldin | BB159: 124 | BE159: Reggie Wayne | BF159: 110 | BI159: Keary Colbert | BJ159: 0
A160: Curtis Martin | B160: 56 | E160: LaMont Jordan | F160: 140 | I160: Steven Jackson | J160: 33 | M160: Steven Jackson | N160: 161 | Q160: Shaun Alexander | R160: 204 | U160: Domanick Williams | V160: 108 | Y160: Domanick Williams | Z160: 118 | AC160: Edgerrin James | AD160: 0 | AG160: Edgerrin James | AH160: 133 | AK160: Warrick Dunn | AL160: 142 | AO160: Warrick Dunn | AP160: 64 | AS160: Brian Westbrook | AT160: 147 | AW160: Domanick Williams | AX160: 102 | BA160: Domanick Williams | BB160: 197 | BE160: Willis McGahee | BF160: 102 | BI160: Warrick Dunn | BJ160: 37
A161: LaMont Jordan | B161: 86 | E161: Edgerrin James | F161: 110 | I161: Warrick Dunn | J161: 56 | M161: Warrick Dunn | N161: 132 | Q161: Brian Westbrook | R161: 37 | U161: Rudi Johnson | V161: 107 | Y161: Rudi Johnson | Z161: 42 | AC161: LaMont Jordan | AD161: 164 | AG161: LaMont Jordan | AH161: 107 | AK161: Steven Jackson | AL161: 90 | AO161: Steven Jackson | AP161: 8 | AS161: Shaun Alexander | AT161: 122 | AW161: Carnell Williams | AX161: 62 | BA161: Rudi Johnson | BB161: 166 | BE161: Mike Anderson | BF161: 175 | BI161: Steven Jackson | BJ161: 103
A162: Daniel Graham | B162: 16 | E162: Bubba Franks | F162: 25 | I162: Marcus Pollard | J162: 0 | M162: Marcus Pollard | N162: -7 | Q162: Antonio Gates | R162: 125 | U162: Tony Gonzalez | V162: 18 | Y162: Tony Gonzalez | Z162: 79 | AC162: Bubba Franks | AD162: 136 | AG162: Bubba Franks | AH162: 29 | AK162: Marcus Pollard | AL162: 51 | AO162: Marcus Pollard | AP162: 13 | AS162: Antonio Gates | AT162: 41 | AW162: Tony Gonzalez | AX162: 81 | BA162: Tony Gonzalez | BB162: 87 | BE162: Jeremy Shockey | BF162: 37 | BI162: Marcus Pollard | BJ162: 59
A163: Mike Vanderjagt | B163: 50 | E163: Mike Vanderjagt | F163: 40 | I163: Jason Elam | J163: 110 | M163: Jason Elam | N163: 70 | Q163: Jeff Wilkins | R163: 70 | U163: Shayne Graham | V163: 60 | Y163: Shayne Graham | Z163: 50 | AC163: Mike Vanderjagt | AD163: 0 | AG163: Mike Vanderjagt | AH163: 80 | AK163: Jason Elam | AL163: 80 | AO163: Jason Elam | AP163: 80 | AS163: Jeff Wilkins | AT163: 80 | AW163: Shayne Graham | AX163: 70 | BA163: Shayne Graham | BB163: 80 | BE163: Sebastian Janikowski | BF163: 10 | BI163: Jason Elam | BJ163: 70
A164: Jacksonville | B164: 140 | E164: Cincinnati | F164: 200 | I164: Atlanta | J164: 90 | M164: Atlanta | N164: 190 | Q164: Pittsburgh | R164: 50 | U164: Tampa Bay | V164: 180 | Y164: Indianapolis | Z164: 160 | AC164: Cincinnati | AD164: 120 | AG164: Cincinnati | AH164: 90 | AK164: Atlanta | AL164: 20 | AO164: Atlanta | AP164: 20 | AS164: Pittsburgh | AT164: 40 | AW164: Indianapolis | AX164: 200 | BA164: Indianapolis | BB164: 70 | BE164: San Diego | BF164: 110 | BI164: Atlanta | BJ164: 80
B165: =SUM(B156:B164) -> 651 | F165: =SUM(F156:F164) -> 922 | J165: =SUM(J156:J164) -> 603 | N165: =SUM(N156:N164) -> 741 | R165: =SUM(R156:R164) -> 988 | V165: =SUM(V156:V164) -> 885 | Z165: =SUM(Z156:Z164) -> 622 | AD165: =SUM(AD156:AD164) -> 828 | AH165: =SUM(AH156:AH164) -> 714 | AL165: =SUM(AL156:AL164) -> 597 | AP165: =SUM(AP156:AP164) -> 678 | AT165: =SUM(AT156:AT164) -> 708 | AX165: =SUM(AX156:AX164) -> 1046 | BB165: =SUM(BB156:BB164) -> 1062 | BF165: =SUM(BF156:BF164) -> 834 | BJ165: =SUM(BJ156:BJ164) -> 575
A166: vs. | E166: vs. | I166: vs. | M166: vs. | Q166: vs. | U166: vs. | Y166: vs. | AC166: vs. | AG166: vs. | AK166: vs. | AO166: vs. | AS166: vs. | AW166: vs. | BA166: vs. | BE166: vs. | BI166: vs.
A168: =A14 -> Team Go'o | E168: =E14 -> Weak Knees Revenge | I168: =I14 -> Team Go'o | M168: =M14 -> Djohn | Q168: =Q14 -> Team Go'o | U168: =U14 -> Team Go'o | Y168: =Y14 -> Team-UhUh | AC168: =AC14 -> Team Go'o | AG168: =AG14 -> Weak Knees Revenge | AK168: =AK14 -> Team Go'o | AO168: =AO14 -> Djohn | AS168: =AS14 -> Team Go'o | AW168: =AW14 -> Team Go'o | BA168: =BA14 -> Team-UhUh | BE168: =BE18 -> Lam i roen | BI168: =BI22 -> Team Go'o
B169: Points | F169: Points | J169: Points | N169: Points | R169: Points | V169: Points | Z169: Points | AD169: Points | AH169: Points | AL169: Points | AP169: Points | AT169: Points | AX169: Points | BB169: Points | BF169: Points | BJ169: Points
A170: Donovan McNabb | B170: 71 | E170: Trent Green | F170: 86 | I170: Donovan McNabb | J170: 183 | M170: Aaron Brooks | N170: 138 | Q170: Donovan McNabb | R170: 46 | U170: Donovan McNabb | V170: 0 | Y170: Daunte Culpepper | Z170: 188 | AC170: Donovan McNabb | AD170: 148 | AG170: Ben Roethlisberger | AH170: 0 | AK170: Donovan McNabb | AL170: 126 | AO170: Jake Plummer | AP170: 74 | AS170: Kerry Collins | AT170: 113 | AW170: Kerry Collins | AX170: 105 | BA170: Drew Bledsoe | BB170: 205 | BE170: Matt Hasselbeck | BF170: 197 | BI170: Kerry Collins | BJ170: 44
A171: Marvin Harrison | B171: 136 | E171: Nate Burleson | F171: 47 | I171: Marvin Harrison | J171: 65 | M171: Randy Moss | N171: 102 | Q171: Marvin Harrison | R171: 21 | U171: Marvin Harrison | V171: 106 | Y171: Plaxico Burress | Z171: 146 | AC171: Donald Driver | AD171: 79 | AG171: Keenan McCardell | AH171: 26 | AK171: Donald Driver | AL171: 126 | AO171: Larry Fitzgerald | AP171: 178 | AS171: Donald Driver | AT171: 50 | AW171: Donald Driver | AX171: 82 | BA171: Plaxico Burress | BB171: 34 | BE171: Santana Moss | BF171: 59 | BI171: Marvin Harrison | BJ171: 0
A172: Reggie Wayne | B172: 53 | E172: Brandon Stokley | F172: 26 | I172: Reggie Wayne | J172: 94 | M172: Chad Ochocinco | N172: 79 | Q172: Reggie Wayne | R172: 80 | U172: Reggie Wayne | V172: 134 | Y172: Muhsin Muhammad | Z172: 41 | AC172: Michael Clayton | AD172: 40 | AG172: Brandon Lloyd | AH172: 13 | AK172: Marvin Harrison | AL172: 167 | AO172: Jerry Porter | AP172: 184 | AS172: Marvin Harrison | AT172: 165 | AW172: Marvin Harrison | AX172: 120 | BA172: Keyshawn Johnson | BB172: 38 | BE172: T.J. Houshmandzadeh | BF172: 130 | BI172: Joe Jurevicius | BJ172: 30
A173: Michael Clayton | B173: 58 | E173: Keenan McCardell | F173: 56 | I173: Michael Clayton | J173: 54 | M173: Larry Fitzgerald | N173: 163 | Q173: Michael Clayton | R173: 0 | U173: Michael Clayton | V173: 29 | Y173: Keyshawn Johnson | Z173: 98 | AC173: Kevin Curtis | AD173: 145 | AG173: Brandon Stokley | AH173: 42 | AK173: Reggie Wayne | AL173: 88 | AO173: Randy Moss | AP173: 41 | AS173: Kevin Curtis | AT173: 102 | AW173: Kevin Curtis | AX173: 14 | BA173: Joe Horn | BB173: 41 | BE173: Bobby Engram | BF173: 93 | BI173: Reggie Wayne | BJ173: 24
A174: Willis McGahee | B174: 83 | E174: Steven Jackson | F174: 126 | I174: Willis McGahee | J174: 130 | M174: Shaun Alexander | N174: 116 | Q174: Willis McGahee | R174: 116 | U174: Willis McGahee | V174: 162 | Y174: Edgerrin James | Z174: 199 | AC174: Willis McGahee | AD174: 92 | AG174: Clinton Portis | AH174: 113 | AK174: Willis McGahee | AL174: 13 | AO174: Brian Westbrook | AP174: 91 | AS174: Willis McGahee | AT174: 26 | AW174: Willis McGahee | AX174: 62 | BA174: Edgerrin James | BB174: 131 | BE174: Tiki Barber | BF174: 274 | BI174: Willis McGahee | BJ174: 48
A175: Jamal Lewis | B175: 31 | E175: Warrick Dunn | F175: 27 | I175: Jamal Lewis | J175: 0 | M175: Brian Westbrook | N175: 79 | Q175: Jamal Lewis | R175: 128 | U175: Jamal Lewis | V175: 46 | Y175: LaMont Jordan | Z175: 287 | AC175: Jamal Lewis | AD175: 15 | AG175: Warrick Dunn | AH175: 139 | AK175: Mike Anderson | AL175: 92 | AO175: Shaun Alexander | AP175: 186 | AS175: Mike Anderson | AT175: 9 | AW175: Mike Anderson | AX175: 187 | BA175: LaMont Jordan | BB175: 64 | BE175: Chris Brown | BF175: 28 | BI175: Mike Anderson | BJ175: 106
A176: Jeremy Shockey | B176: 89 | E176: Marcus Pollard | F176: 30 | I176: Jeremy Shockey | J176: 97 | M176: Antonio Gates | N176: 102 | Q176: Jeremy Shockey | R176: 0 | U176: Jeremy Shockey | V176: 171 | Y176: Bubba Franks | Z176: 40 | AC176: Jeremy Shockey | AD176: 94 | AG176: Marcus Pollard | AH176: 108 | AK176: Jeremy Shockey | AL176: 61 | AO176: Antonio Gates | AP176: 136 | AS176: Jeremy Shockey | AT176: 214 | AW176: Jeremy Shockey | AX176: 23 | BA176: Jerramy Stevens | BB176: 93 | BE176: Jeb Putzier | BF176: 52 | BI176: Jeremy Shockey | BJ176: 22
A177: Sebastian Janikowski | B177: 20 | E177: Jason Elam | F177: 80 | I177: Sebastian Janikowski | J177: 60 | M177: Jeff Wilkins | N177: 50 | Q177: Sebastian Janikowski | R177: 0 | U177: Sebastian Janikowski | V177: 20 | Y177: Mike Vanderjagt | Z177: 70 | AC177: Sebastian Janikowski | AD177: 80 | AG177: Jason Elam | AH177: 0 | AK177: Sebastian Janikowski | AL177: 50 | AO177: Jeff Wilkins | AP177: 70 | AS177: Sebastian Janikowski | AT177: 30 | AW177: Sebastian Janikowski | AX177: 30 | BA177: Jay Feely | BB177: 100 | BE177: Adam Vinatieri | BF177: 40 | BI177: Sebastian Janikowski | BJ177: 30
A178: Baltimore | B178: 10 | E178: Atlanta | F178: 40 | I178: Baltimore | J178: 0 | M178: Arizona | N178: 200 | Q178: Baltimore | R178: 10 | U178: Baltimore | V178: 170 | Y178: Cincinnati | Z178: 50 | AC178: Baltimore | AD178: 70 | AG178: Atlanta | AH178: 60 | AK178: Baltimore | AL178: 10 | AO178: Pittsburgh | AP178: 100 | AS178: San Diego | AT178: 30 | AW178: San Diego | AX178: 170 | BA178: Cincinnati | BB178: 50 | BE178: Denver | BF178: 20 | BI178: San Diego | BJ178: 30
B179: =SUM(B170:B178) -> 551 | F179: =SUM(F170:F178) -> 518 | J179: =SUM(J170:J178) -> 683 | N179: =SUM(N170:N178) -> 1029 | R179: =SUM(R170:R178) -> 401 | V179: =SUM(V170:V178) -> 838 | Z179: =SUM(Z170:Z178) -> 1119 | AD179: =SUM(AD170:AD178) -> 763 | AH179: =SUM(AH170:AH178) -> 501 | AL179: =SUM(AL170:AL178) -> 733 | AP179: =SUM(AP170:AP178) -> 1060 | AT179: =SUM(AT170:AT178) -> 739 | AX179: =SUM(AX170:AX178) -> 793 | BB179: =SUM(BB170:BB178) -> 756 | BF179: =SUM(BF170:BF178) -> 893 | BJ179: =SUM(BJ170:BJ178) -> 334
A185: Transactions Week 1 | E185: Transactions Week 2 | I185: Transactions Week 3 | M185: Transactions Week 4 | Q185: Transactions Week 5 | U185: Transactions Week 6 | Y185: Transactions Week 7 | AC185: Transactions Week 8 | AG185: Transactions Week 9 | AK185: Transactions Week 10 | AO185: Transactions Week 11 | AS185: Transactions Week 12 | AW185: Transactions Week 13 | BA185: Transactions Week 14 | BE185: Transactions Week 15 | BI185: Transactions Week 16
A187: Team-UhUh | E187: Weak Knees Revenge | I187: Nilsson Monkeys | M187: Nilsson Monkeys | Q187: Pilgaards Mannschaft | U187: Pilgaards Mannschaft | Y187: Team-UhUh | AC187: Team Go'o | AG187: Team-UhUh | AK187: Djohn | AS187: Team-UhUh | AW187: Team-UhUh | BA187: Pilgaards Mannschaft | BE187: Team-UhUh
A188: Tennessee | B188: Drop | E188: Javon Walker | F188: Drop | I188: Travis Henry | J188: Drop | M188: Santana Moss | N188: Drop | Q188: Ashley Lelie | R188: Drop | U188: Andre Johnson | V188: Drop | Y188: Steve McNair | Z188: Drop | AC188: Lee Evans | AD188: Drop | AG188: Daunte Culpepper | AH188: Drop | AK188: Jim Kleinsasser | AL188: Drop | AS188: Mike Vanderjagt | AT188: Drop | AW188: Bubba Franks | AX188: Drop | BA188: Neil Rackers | BB188: Drop | BE188: Edgerrin James | BF188: Trade | BG188: to Djohn
A189: Cincinnati | B189: Add | E189: Keenan McCardell | F189: Add | I189: Carnell Williams | J189: Add | M189: Shayne Graham | N189: Add | Q189: Andre Johnson | R189: Add | U189: Terry Glenn | V189: Add | Y189: Drew Bledsoe | Z189: Add | AC189: Joe Jurevicius | AD189: Add | AG189: Jake Delhomme | AH189: Add | AK189: Heath Miller | AL189: Add | AS189: Jay Feely | AT189: Add | AW189: Jerramy Stevens | AX189: Add | BA189: Lawrence Tynes | BB189: Add
BE190: Djohn
A191: Amani Toomer | B191: Drop | I191: Jake Delhomme | J191: Drop | M191: Lam i roen | Q191: Nilsson Monkeys | U191: Deuce McAllister | V191: Drop | Y191: Nilsson Monkeys | AC191: Jerome Bettis | AD191: Drop | AG191: Pilgaards Mannschaft | AK191: Lam i roen | AW191: Lam i roen | BA191: Lam i roen | BE191: Chad Ochocinco | BF191: Trade | BG191: to T-UhUh
A192: Plaxico Burress | B192: Add | I192: Terry Glenn | J192: Add | M192: Andre Johnson | N192: Drop | Q192: Terry Glenn | R192: Drop | U192: Thomas Jones | V192: Add | Y192: Carolina | Z192: Drop | AC192: Kevin Curtis | AD192: Add | AG192: Minnesota | AH192: Drop | AK192: New England | AL192: Drop | AW192: Travis Taylor | AX192: Drop | BA192: New York Jets | BB192: Drop
M193: Travis Taylor | N193: Add | Q193: L.J. Smith | R193: Add | Y193: Indianapolis | Z193: Add | AG193: Antonio Bryant | AH193: Add | AK193: New York Giants | AL193: Add | AW193: Bobby Engram | AX193: Add | BA193: Denver | BB193: Add
A194: Reche Caldwell | B194: Drop | I194: Team Ludoleif | U194: Nilsson Monkeys | AC194: Pilgaards Mannschaft
A195: Keyshawn Johnson | B195: Add | I195: Matt Stover | J195: Drop | Q195: Lam i roen | U195: Roy Williams | V195: Drop | AC195: Ahman Green | AD195: Drop | AG195: Ryan Longwell | AH195: Drop | AK195: Terrell Owens | AL195: Drop
I196: John Kasay | J196: Add | Q196: Eric Moulds | R196: Drop | U196: Brian Finneran | V196: Add | AC196: Ronnie Brown | AD196: Add | AG196: Neil Rackers | AH196: Add | AK196: Ernest Wilford | AL196: Add
A197: Nilsson Monkeys | Q197: Santana Moss | R197: Add
A198: Joey Harrington | B198: Drop | I198: DeShaun Foster | J198: Drop | U198: Team Ludoleif | AC198: Nilsson Monkeys | AK198: Team Go'o
A199: Jake Delhomme | B199: Add | I199: Stephen Davis | J199: Add | Q199: Weak Knees Revenge | U199: Darrell Jackson | V199: Drop | AC199: David Akers | AD199: Drop | AK199: Michael Clayton | AL199: Drop
Q200: Chad Pennington | R200: Drop | U200: Joey Galloway | V200: Add | AC200: Drew Brees | AD200: Add | AK200: Mike Anderson | AL200: Add
I201: Lam i roen | Q201: Ben Roethlisberger | R201: Add
I202: Eric Johnson | J202: Drop | AC202: Weak Knees Revenge | AK202: Team Ludoleif
I203: Steve Heiden | J203: Add | Q203: Tyrone Calico | R203: Drop | AC203: Dante Hall | AD203: Drop | AK203: Priest Holmes | AL203: Drop
Q204: Brandon Lloyd | R204: Add | AC204: Chicago | AD204: Add | AK204: Reuben Droughns | AL204: Add
AC206: Lam i roen
AC207: Michael Vick | AD207: Drop
AC208: Mark Brunell | AD208: Add
A214: Draft Results
A216: Pilgaards Mannschaft | B216: Pick | C216: TP 2005 | E216: Team Ludoleif | F216: Pick | G216: TP 2005 | I216: Lam i roen | J216: Pick | K216: TP 2005 | M216: Nilsson Monkeys | N216: Pick | O216: TP 2005 | Q216: Team-UhUh | R216: Pick | S216: TP 2005 | U216: Weak Knees Revenge | V216: Pick | W216: TP 2005 | Y216: Djohn | Z216: Pick | AA216: TP 2005 | AC216: Team Go'o | AD216: Pick | AE216: TP 2005
A217: Marc Bulger | B217: 1 | C217: 1 | E217: LaDainian Tomlinson | F217: 1 | G217: 2 | I217: Matt Hasselbeck | J217: 1 | K217: 3 | M217: Peyton Manning | N217: 1 | O217: 4 | Q217: Daunte Culpepper | R217: 1 | S217: 5 | U217: Trent Green | V217: 1 | W217: 6 | Y217: Randy Moss | Z217: 1 | AA217: 7 | AC217: Donovan McNabb | AD217: 1 | AE217: 8
A218: Torry Holt | B218: 2 | C218: 16 | E218: Priest Holmes | F218: 2 | G218: 15 | I218: Terrell Owens | J218: 2 | K218: 14 | M218: Tony Gonzalez | N218: 2 | O218: 13 | Q218: Edgerrin James | R218: 2 | S218: 12 | U218: Clinton Portis | V218: 2 | W218: 11 | Y218: Shaun Alexander | Z218: 2 | AA218: 10 | AC218: Marvin Harrison | AD218: 2 | AE218: 9
A219: Deuce McAllister | B219: 3 | C219: 17 | E219: Hines Ward | F219: 3 | G219: 18 | I219: Corey Dillon | J219: 3 | K219: 19 | M219: Domanick Williams | N219: 3 | O219: 20 | Q219: Muhsin Muhammad | R219: 3 | S219: 21 | U219: Javon Walker | V219: 3 | W219: 22 | Y219: Chad Ochocinco | Z219: 3 | AA219: 23 | AC219: Willis McGahee | AD219: 3 | AE219: 24
A220: Julius Jones | B220: 4 | C220: 32 | E220: Alge Crumpler | F220: 4 | G220: 31 | I220: Tiki Barber | J220: 4 | K220: 30 | M220: Steve Smith | N220: 4 | O220: 29 | Q220: Joe Horn | R220: 4 | S220: 28 | U220: Todd Heap | V220: 4 | W220: 27 | Y220: Antonio Gates | Z220: 4 | AA220: 26 | AC220: Reggie Wayne | AD220: 4 | AE220: 25
A221: Jason Witten | B221: 5 | C221: 33 | E221: Tom Brady | F221: 5 | G221: 34 | I221: Andre Johnson | J221: 5 | K221: 35 | M221: Anquan Boldin | N221: 5 | O221: 36 | Q221: Curtis Martin | R221: 5 | S221: 37 | U221: Nate Burleson | V221: 5 | W221: 38 | Y221: Brian Westbrook | Z221: 5 | AA221: 39 | AC221: Jamal Lewis | AD221: 5 | AE221: 40
A222: Laveranues Coles | B222: 6 | C222: 48 | E222: Darrell Jackson | F222: 6 | G222: 47 | I222: Isaac Bruce | J222: 6 | K222: 46 | M222: Rudi Johnson | N222: 6 | O222: 45 | Q222: Deion Branch | R222: 6 | S222: 44 | U222: Steven Jackson | V222: 6 | W222: 43 | Y222: Aaron Brooks | Z222: 6 | AA222: 42 | AC222: Michael Clayton | AD222: 6 | AE222: 41
A223: Ahman Green | B223: 7 | C223: 49 | E223: Buffalo | F223: 7 | G223: 50 | I223: New England | J223: 7 | K223: 51 | M223: Derrick Mason | N223: 7 | O223: 52 | Q223: Daniel Graham | R223: 7 | S223: 53 | U223: Keary Colbert | V223: 7 | W223: 54 | Y223: Pittsburgh | Z223: 7 | AA223: 55 | AC223: Baltimore | AD223: 7 | AE223: 56
A224: Chris Chambers | B224: 8 | C224: 64 | E224: Jimmy Smith | F224: 8 | G224: 63 | I224: Michael Vick | J224: 8 | K224: 62 | M224: Carolina | N224: 8 | O224: 61 | Q224: Tennessee | R224: 8 | S224: 60 | U224: Atlanta | V224: 8 | W224: 59 | Y224: Drew Bennett | Z224: 8 | AA224: 58 | AC224: Jeremy Shockey | AD224: 8 | AE224: 57
A225: Philadelphia | B225: 9 | C225: 65 | E225: Brett Favre | F225: 9 | G225: 66 | I225: Chris Brown | J225: 9 | K225: 67 | M225: Roy Williams | N225: 9 | O225: 68 | Q225: Steve McNair | R225: 9 | S225: 69 | U225: Chad Pennington | V225: 9 | W225: 70 | Y225: Jake Plummer | Z225: 9 | AA225: 71 | AC225: Kerry Collins | AD225: 9 | AE225: 72
A226: Carson Palmer | B226: 10 | C226: 80 | E226: Washington | F226: 10 | G226: 79 | I226: T.J. Houshmandzadeh | J226: 10 | K226: 78 | M226: Joey Harrington | N226: 10 | O226: 77 | Q226: Reche Caldwell | R226: 10 | S226: 76 | U226: Warrick Dunn | V226: 10 | W226: 75 | Y226: Larry Fitzgerald | Z226: 10 | AA226: 74 | AC226: Donald Driver | AD226: 10 | AE226: 73
A227: Larry Johnson | B227: 11 | C227: 81 | E227: Randy McMichael | F227: 11 | G227: 82 | I227: Eric Johnson | J227: 11 | K227: 83 | M227: Kevin Jones | N227: 11 | O227: 84 | Q227: LaMont Jordan | R227: 11 | S227: 85 | U227: Tyrone Calico | V227: 11 | W227: 86 | Y227: Tatum Bell | Z227: 11 | AA227: 87 | AC227: Jerome Bettis | AD227: 11 | AE227: 88
A228: Ashley Lelie | B228: 12 | C228: 96 | E228: DeShaun Foster | F228: 12 | G228: 95 | I228: Adam Vinatieri | J228: 12 | K228: 94 | M228: David Akers | N228: 12 | O228: 93 | Q228: Amani Toomer | R228: 12 | S228: 92 | U228: Jason Elam | V228: 12 | W228: 91 | Y228: Jerry Porter | Z228: 12 | AA228: 90 | AC228: Sebastian Janikowski | AD228: 12 | AE228: 89
A229: Jermaine Wiggins | B229: 13 | C229: 97 | E229: Matt Stover | F229: 13 | G229: 98 | I229: Eric Moulds | J229: 13 | K229: 99 | M229: Santana Moss | N229: 13 | O229: 100 | Q229: Mike Vanderjagt | R229: 13 | S229: 101 | U229: Brandon Stokley | V229: 13 | W229: 102 | Y229: Jeff Wilkins | Z229: 13 | AA229: 103 | AC229: Dallas Clark | AD229: 13 | AE229: 104
A230: Ryan Longwell | B230: 14 | C230: 112 | E230: Eddie Kennison | F230: 14 | G230: 111 | I230: New York Jets | J230: 14 | K230: 110 | M230: Tampa Bay | N230: 14 | O230: 109 | Q230: Jacksonville | R230: 14 | S230: 108 | U230: Marcus Pollard | V230: 14 | W230: 107 | Y230: Jim Kleinsasser | Z230: 14 | AA230: 106 | AC230: Lee Evans | AD230: 14 | AE230: 105
A231: Minnesota | B231: 15 | C231: 113 | E231: Rod Smith | F231: 15 | G231: 114 | I231: Jeb Putzier | J231: 15 | K231: 115 | M231: Travis Henry | N231: 15 | O231: 116 | Q231: Bubba Franks | R231: 15 | S231: 117 | U231: Dante Hall | V231: 15 | W231: 118 | Y231: Arizona | Z231: 15 | AA231: 119 | AC231: San Diego | AD231: 15 | AE231: 120
A290: Week 7
A291: ------------------------------

Sheet 2006
A2: Week 1 | E2: Week 2 | I2: Week 3 | M2: Week 4 | Q2: Week 5 | U2: Week 6 | Y2: Week 7 | AC2: Week 8 | AG2: Week 9 | AK2: Week 10 | AO2: Week 11 | AS2: Week 12 | AW2: Week 13 | BA2: Week 14 | BE2: Week 15 | BI2: Week 16 | BL2: Final Standings
B3: Score | F3: Score | J3: Score | N3: Score | R3: Score | V3: Score | Z3: Score | AD3: Score | AH3: Score | AL3: Score | AP3: Score | AT3: Score | AX3: Score | BB3: Score | BF3: Score | BJ3: Score
A4: Team Ludoleif | B4: =B75 -> 1115 | E4: Team Ludoleif | F4: =F75 -> 733 | I4: Team Ludoleif | J4: =J75 -> 894 | M4: Team Ludoleif | N4: =N75 -> 447 | Q4: Team Ludoleif | R4: =R75 -> 489 | U4: Team Ludoleif | V4: =V75 -> 931 | Y4: Team Ludoleif | Z4: =Z75 -> 882 | AC4: Team Ludoleif | AD4: =AD75 -> 688 | AG4: Team Ludoleif | AH4: =AH75 -> 978 | AK4: Team Ludoleif | AL4: =AL75 -> 876 | AO4: Team Ludoleif | AP4: =AP75 -> 529 | AS4: Team Ludoleif | AT4: =AT75 -> 853 | AW4: Team Ludoleif | AX4: =AX75 -> 885 | BA4: Team Ludoleif | BB4: =BB75 -> 685 | BE4: Championship | BI4: Final | BL4: =IF(AND($BJ$6=0,$BJ$7=0),"",IF($BJ$6>$BJ$7,BI6,BI7)) -> Pilgaards Mannschaft
A5: Pilgaards Mannschaft | B5: =B89 -> 643 | E5: Weak Knees Revenge | F5: =F89 -> 835 | I5: Team-UhUh | J5: =J89 -> 739 | M5: Djohn | N5: =N89 -> 1033 | Q5: Nilsson Monkeys | R5: =R89 -> 790 | U5: Lam i roen | V5: =V89 -> 968 | Y5: FalchStars | Z5: =Z89 -> 979 | AC5: Pilgaards Mannschaft | AD5: =AD89 -> 1141 | AG5: Weak Knees Revenge | AH5: =AH89 -> 744 | AK5: Team-UhUh | AL5: =AL89 -> 853 | AO5: Djohn | AP5: =AP89 -> 547 | AS5: Nilsson Monkeys | AT5: =AT89 -> 994 | AW5: Lam i roen | AX5: =AX89 -> 784 | BA5: FalchStars | BB5: =BB89 -> 1233 | BL5: =IF(AND($BJ$6=0,$BJ$7=0),"",IF($BJ$6>$BJ$7,BI7,BI6)) -> Djohn
BE6: =$BA$19 -> FalchStars | BF6: =BF75 -> 643 | BI6: =IF(AND($BF$6=0,$BF$7=0),"",IF($BF$6>$BF$7,$BE$6,$BE$7)) -> Pilgaards Mannschaft | BJ6: =BJ75 -> 1117 | BL6: =IF(AND($BJ$11=0,$BJ$12=0),"",IF($BJ$11>$BJ$12,BI11,BI12)) -> Weak Knees Revenge
A7: Team-UhUh | B7: =B105 -> 640 | E7: Pilgaards Mannschaft | F7: =F105 -> 811 | I7: Pilgaards Mannschaft | J7: =J105 -> 702 | M7: Pilgaards Mannschaft | N7: =N105 -> 856 | Q7: Pilgaards Mannschaft | R7: =R105 -> 838 | U7: Pilgaards Mannschaft | V7: =V105 -> 1155 | Y7: Pilgaards Mannschaft | Z7: =Z105 -> 781 | AC7: Team-UhUh | AD7: =AD105 -> 946 | AG7: Pilgaards Mannschaft | AH7: =AH105 -> 1136 | AK7: Pilgaards Mannschaft | AL7: =AL105 -> 858 | AO7: Pilgaards Mannschaft | AP7: =AP105 -> 735 | AS7: Pilgaards Mannschaft | AT7: =AT105 -> 699 | AW7: Pilgaards Mannschaft | AX7: =AX105 -> 514 | BA7: Pilgaards Mannschaft | BB7: =BB105 -> 736 | BE7: =$BA$22 -> Pilgaards Mannschaft | BF7: =BF89 -> 954 | BI7: =IF(AND($BF$9=0,$BF$10=0),"",IF($BF$9>$BF$10,$BE$9,$BE$10)) -> Djohn | BJ7: =BJ89 -> 1013 | BL7: =IF(AND($BJ$11=0,$BJ$12=0),"",IF($BJ$11>$BJ$12,BI12,BI11)) -> FalchStars
A8: FalchStars | B8: =B119 -> 808 | E8: Team-UhUh | F8: =F119 -> 842 | I8: Djohn | J8: =J119 -> 529 | M8: Nilsson Monkeys | N8: =N119 -> 730 | Q8: Lam i roen | R8: =R119 -> 706 | U8: FalchStars | V8: =V119 -> 924 | Y8: Weak Knees Revenge | Z8: =Z119 -> 956 | AC8: FalchStars | AD8: =AD119 -> 989 | AG8: Team-UhUh | AH8: =AH119 -> 843 | AK8: Djohn | AL8: =AL119 -> 891 | AO8: Nilsson Monkeys | AP8: =AP119 -> 798 | AS8: Lam i roen | AT8: =AT119 -> 603 | AW8: FalchStars | AX8: =AX119 -> 886 | BA8: Weak Knees Revenge | BB8: =BB119 -> 689 | BL8: =IF(AND($BJ$16=0,$BJ$17=0),"",IF($BJ$16>$BJ$17,BI16,BI17)) -> Lam i roen
BE9: =$BA$20 -> Djohn | BF9: =BF105 -> 757 | BI9: 3rd Place Game | BL9: =IF(AND($BJ$16=0,$BJ$17=0),"",IF($BJ$16>$BJ$17,BI17,BI16)) -> Team Ludoleif
A10: Djohn | B10: =B135 -> 691 | E10: Djohn | F10: =F135 -> 681 | I10: Nilsson Monkeys | J10: =J135 -> 1030 | M10: Team-UhUh | N10: =N135 -> 808 | Q10: Team-UhUh | R10: =R135 -> 674 | U10: Team-UhUh | V10: =V135 -> 888 | Y10: Team-UhUh | Z10: =Z135 -> 633 | AC10: Djohn | AD10: =AD135 -> 738 | AG10: Djohn | AH10: =AH135 -> 848 | AK10: Nilsson Monkeys | AL10: =AL135 -> 840 | AO10: Team-UhUh | AP10: =AP135 -> 564 | AS10: Team-UhUh | AT10: =AT135 -> 866 | AW10: Team-UhUh | AX10: =AX135 -> 775 | BA10: Team-UhUh | BB10: =BB135 -> 579 | BE10: =$BA$21 -> Weak Knees Revenge | BF10: =BF119 -> 596 | BL10: =IF(AND($BJ$21=0,$BJ$22=0),"",IF($BJ$21>$BJ$22,BI21,BI22)) -> Nilsson Monkeys
A11: Lam i roen | B11: =B149 -> 771 | E11: FalchStars | F11: =F149 -> 1092 | I11: FalchStars | J11: =J149 -> 954 | M11: Weak Knees Revenge | N11: =N149 -> 1060 | Q11: Djohn | R11: =R149 -> 837 | U11: Nilsson Monkeys | V11: =V149 -> 834 | Y11: Lam i roen | Z11: =Z149 -> 710 | AC11: Lam i roen | AD11: =AD149 -> 700 | AG11: FalchStars | AH11: =AH149 -> 1007 | AK11: FalchStars | AL11: =AL149 -> 1421 | AO11: Weak Knees Revenge | AP11: =AP149 -> 955 | AS11: Djohn | AT11: =AT149 -> 1067 | AW11: Nilsson Monkeys | AX11: =AX149 -> 504 | BA11: Lam i roen | BB11: =BB149 -> 1113 | BI11: =IF(AND($BF$6=0,$BF$7=0),"",IF($BF$6>$BF$7,$BE$7,$BE$6)) -> FalchStars | BJ11: =BJ105 -> 568 | BL11: =IF(AND($BJ$21=0,$BJ$22=0),"",IF($BJ$21>$BJ$22,BI22,BI21)) -> Team-UhUh
BE12: Consolation | BI12: =IF(AND($BF$9=0,$BF$10=0),"",IF($BF$9>$BF$10,$BE$10,$BE$9)) -> Weak Knees Revenge | BJ12: =BJ119 -> 749
A13: Nilsson Monkeys | B13: =B165 -> 659 | E13: Nilsson Monkeys | F13: =F165 -> 918 | I13: Lam i roen | J13: =J165 -> 1018 | M13: Lam i roen | N13: =N165 -> 953 | Q13: FalchStars | R13: =R165 -> 671 | U13: Djohn | V13: =V165 -> 970 | Y13: Djohn | Z13: =Z165 -> 744 | AC13: Nilsson Monkeys | AD13: =AD165 -> 841 | AG13: Nilsson Monkeys | AH13: =AH165 -> 731 | AK13: Lam i roen | AL13: =AL165 -> 699 | AO13: Lam i roen | AP13: =AP165 -> 663 | AS13: FalchStars | AT13: =AT165 -> 1105 | AW13: Djohn | AX13: =AX165 -> 1143 | BA13: Djohn | BB13: =BB165 -> 1206
A14: Weak Knees Revenge | B14: =B179 -> 906 | E14: Lam i roen | F14: =F179 -> 818 | I14: Weak Knees Revenge | J14: =J179 -> 733 | M14: FalchStars | N14: =N179 -> 744 | Q14: Weak Knees Revenge | R14: =R179 -> 891 | U14: Weak Knees Revenge | V14: =V179 -> 856 | Y14: Nilsson Monkeys | Z14: =Z179 -> 798 | AC14: Weak Knees Revenge | AD14: =AD179 -> 916 | AG14: Lam i roen | AH14: =AH179 -> 975 | AK14: Weak Knees Revenge | AL14: =AL179 -> 796 | AO14: FalchStars | AP14: =AP179 -> 1071 | AS14: Weak Knees Revenge | AT14: =AT179 -> 956 | AW14: Weak Knees Revenge | AX14: =AX179 -> 856 | BA14: Nilsson Monkeys | BB14: =BB179 -> 742 | BE14: =$BA$23 -> Lam i roen | BF14: =BF135 -> 1146 | BI14: 5th Place Game
BE15: =$BA$26 -> Team-UhUh | BF15: =BF149 -> 642
BI16: =IF(AND($BF$14=0,$BF$15=0),"",IF($BF$14>$BF$15,$BE$14,$BE$15)) -> Lam i roen | BJ16: =BJ135 -> 725
A17: Standings Week 1 | E17: Standings Week 2 | I17: Standings Week 3 | M17: Standings Week 4 | Q17: Standings Week 5 | U17: Standings Week 6 | Y17: Standings Week 7 | AC17: Standings Week 8 | AG17: Standings Week 9 | AK17: Standings Week 10 | AO17: Standings Week 11 | AS17: Standings Week 12 | AW17: Standings Week 13 | BA17: Standings Week 14 | BE17: =$BA$24 -> Nilsson Monkeys | BF17: =BF165 -> 729 | BI17: =IF(AND($BF$17=0,$BF$18=0),"",IF($BF$17>$BF$18,$BE$17,$BE$18)) -> Team Ludoleif | BJ17: =BJ149 -> 552
B18: Record | C18: TPS | F18: Record | G18: TPS | J18: Record | K18: TPS | N18: Record | O18: TPS | R18: Record | S18: TPS | V18: Record | W18: TPS | Z18: Record | AA18: TPS | AD18: Record | AE18: TPS | AH18: Record | AI18: TPS | AL18: Record | AM18: TPS | AP18: Record | AQ18: TPS | AT18: Record | AU18: TPS | AX18: Record | AY18: TPS | BB18: Record | BC18: TPS | BE18: =$BA$25 -> Team Ludoleif | BF18: =BF179 -> 947
A19: Team Ludoleif | B19: =RecordUpdate("0-0-0",$B$4,$B$5,0,0,0,0,0,0,0,0,0,0,0,0,0,0,0,0,0,0,0,0,0,0,0,0,0,0) -> 1-0-0 | C19: =$B$4 -> 1115 | E19: FalchStars | F19: =RecordUpdate("0-0-0",$B$8,$B$7,$F$11,$F$10,0,0,0,0,0,0,0,0,0,0,0,0,0,0,0,0,0,0,0,0,0,0,0,0) -> 2-0-0 | G19: =$B$8+$F$11 -> 1900 | I19: FalchStars | J19: =RecordUpdate("0-0-0",$B$8,$B$7,$F$11,$F$10,$J$11,$J$10,0,0,0,0,0,0,0,0,0,0,0,0,0,0,0,0,0,0,0,0,0,0) -> 2-1-0 | K19: =$B$8+$F$11+$J$11 -> 2854 | M19: Lam i roen | N19: =RecordUpdate("0-0-0",$B$11,$B$10,$F$14,$F$13,$J$13,$J$14,$N$13,$N$14,0,0,0,0,0,0,0,0,0,0,0,0,0,0,0,0,0,0,0,0) -> 3-1-0 | O19: =$B$11+$F$14+$J$13+$N$13 -> 3560 | Q19: Weak Knees Revenge | R19: =RecordUpdate("0-0-0",$B$14,$B$13,$F$5,$F$4,$J$14,$J$13,$N$11,$N$10,$R$14,$R$13,0,0,0,0,0,0,0,0,0,0,0,0,0,0,0,0,0,0) -> 4-1-0 | S19: =$B$14+$F$5+$J$14+$N$11+$R$14 -> 4425 | U19: Weak Knees Revenge | V19: =RecordUpdate("0-0-0",$B$14,$B$13,$F$5,$F$4,$J$14,$J$13,$N$11,$N$10,$R$14,$R$13,$V$14,$V$13,0,0,0,0,0,0,0,0,0,0,0,0,0,0,0,0) -> 4-2-0 | W19: =$B$14+$F$5+$J$14+$N$11+$R$14+$V$14 -> 5281 | Y19: Weak Knees Revenge | Z19: =RecordUpdate("0-0-0",$B$14,$B$13,$F$5,$F$4,$J$14,$J$13,$N$11,$N$10,$R$14,$R$13,$V$14,$V$13,$Z$8,$Z$7,0,0,0,0,0,0,0,0,0,0,0,0,0,0) -> 5-2-0 | AA19: =$B$14+$F$5+$J$14+$N$11+$R$14+$V$14+$Z$8 -> 6237 | AC19: Weak Knees Revenge | AD19: =RecordUpdate("0-0-0",$B$14,$B$13,$F$5,$F$4,$J$14,$J$13,$N$11,$N$10,$R$14,$R$13,$V$14,$V$13,$Z$8,$Z$7,$AD$14,$AD$13,0,0,0,0,0,0,0,0,0,0,0,0) -> 6-2-0 | AE19: =$B$14+$F$5+$J$14+$N$11+$R$14+$V$14+$Z$8+$AD$14 -> 7153 | AG19: Pilgaards Mannschaft | AH19: =RecordUpdate("0-0-0",$B$5,$B$4,$F$7,$F$8,$J$7,$J$8,$N$7,$N$8,$R$7,$R$8,$V$7,$V$8,$Z$7,$Z$8,$AD$5,$AD$4,$AH$7,$AH$8,0,0,0,0,0,0,0,0,0,0) -> 6-3-0 | AI19: =$B$5+$F$7+$J$7+$N$7+$R$7+$V$7+$Z$7+$AD$5+$AH$7 -> 8063 | AK19: Weak Knees Revenge | AL19: =RecordUpdate("0-0-0",$B$14,$B$13,$F$5,$F$4,$J$14,$J$13,$N$11,$N$10,$R$14,$R$13,$V$14,$V$13,$Z$8,$Z$7,$AD$14,$AD$13,$AH$5,$AH$4,$AL$14,$AL$13,0,0,0,0,0,0,0,0) -> 7-3-0 | AM19: =$B$14+$F$5+$J$14+$N$11+$R$14+$V$14+$Z$8+$AD$14+$AH$5+$AL$14 -> 8693 | AO19: Weak Knees Revenge | AP19: =RecordUpdate("0-0-0",$B$14,$B$13,$F$5,$F$4,$J$14,$J$13,$N$11,$N$10,$R$14,$R$13,$V$14,$V$13,$Z$8,$Z$7,$AD$14,$AD$13,$AH$5,$AH$4,$AL$14,$AL$13,$AP$11,$AP$10,0,0,0,0,0,0) -> 8-3-0 | AQ19: =$B$14+$F$5+$J$14+$N$11+$R$14+$V$14+$Z$8+$AD$14+$AH$5+$AL$14+$AP$11 -> 9648 | AS19: FalchStars | AT19: =RecordUpdate("0-0-0",$B$8,$B$7,$F$11,$F$10,$J$11,$J$10,$N$14,$N$13,$R$13,$R$14,$V$8,$V$7,$Z$5,$Z$4,$AD$8,$AD$7,$AH$11,$AH$10,$AL$11,$AL$10,$AP$14,$AP$13,$AT$13,$AT$14,0,0,0,0) -> 8-4-0 | AU19: =$B$8+$F$11+$J$11+$N$14+$R$13+$V$8+$Z$5+$AD$8+$AH$11+$AL$11+$AP$14+$AT$13 -> 11765 | AW19: FalchStars | AX19: =RecordUpdate("0-0-0",$B$8,$B$7,$F$11,$F$10,$J$11,$J$10,$N$14,$N$13,$R$13,$R$14,$V$8,$V$7,$Z$5,$Z$4,$AD$8,$AD$7,$AH$11,$AH$10,$AL$11,$AL$10,$AP$14,$AP$13,$AT$13,$AT$14,$AX$8,$AX$7,0,0) -> 9-4-0 | AY19: =$B$8+$F$11+$J$11+$N$14+$R$13+$V$8+$Z$5+$AD$8+$AH$11+$AL$11+$AP$14+$AT$13+$AX$8 -> 12651 | BA19: FalchStars | BB19: =RecordUpdate("0-0-0",$B$8,$B$7,$F$11,$F$10,$J$11,$J$10,$N$14,$N$13,$R$13,$R$14,$V$8,$V$7,$Z$5,$Z$4,$AD$8,$AD$7,$AH$11,$AH$10,$AL$11,$AL$10,$AP$14,$AP$13,$AT$13,$AT$14,$AX$8,$AX$7,$BB$5,$BB$4) -> 10-4-0 | BC19: =$B$8+$F$11+$J$11+$N$14+$R$13+$V$8+$Z$5+$AD$8+$AH$11+$AL$11+$AP$14+$AT$13+$AX$8+$BB$5 -> 13884 | BI19: 7th Place Game
A20: Weak Knees Revenge | B20: =RecordUpdate("0-0-0",$B$14,$B$13,0,0,0,0,0,0,0,0,0,0,0,0,0,0,0,0,0,0,0,0,0,0,0,0,0,0) -> 1-0-0 | C20: =$B$14 -> 906 | E20: Weak Knees Revenge | F20: =RecordUpdate("0-0-0",$B$14,$B$13,$F$5,$F$4,0,0,0,0,0,0,0,0,0,0,0,0,0,0,0,0,0,0,0,0,0,0,0,0) -> 2-0-0 | G20: =$B$14+$F$5 -> 1741 | I20: Team Ludoleif | J20: =RecordUpdate("0-0-0",$B$4,$B$5,$F$4,$F$5,$J$4,$J$5,0,0,0,0,0,0,0,0,0,0,0,0,0,0,0,0,0,0,0,0,0,0) -> 2-1-0 | K20: =$B$4+$F$4+$J$4 -> 2742 | M20: Weak Knees Revenge | N20: =RecordUpdate("0-0-0",$B$14,$B$13,$F$5,$F$4,$J$14,$J$13,$N$11,$N$10,0,0,0,0,0,0,0,0,0,0,0,0,0,0,0,0,0,0,0,0) -> 3-1-0 | O20: =$B$14+$F$5+$J$14+$N$11 -> 3534 | Q20: Lam i roen | R20: =RecordUpdate("0-0-0",$B$11,$B$10,$F$14,$F$13,$J$13,$J$14,$N$13,$N$14,$R$8,$R$7,0,0,0,0,0,0,0,0,0,0,0,0,0,0,0,0,0,0) -> 3-2-0 | S20: =$B$11+$F$14+$J$13+$N$13+$R$8 -> 4266 | U20: Lam i roen | V20: =RecordUpdate("0-0-0",$B$11,$B$10,$F$14,$F$13,$J$13,$J$14,$N$13,$N$14,$R$8,$R$7,$V$5,$V$4,0,0,0,0,0,0,0,0,0,0,0,0,0,0,0,0) -> 4-2-0 | W20: =$B$11+$F$14+$J$13+$N$13+$R$8+$V$5 -> 5234 | Y20: Lam i roen | Z20: =RecordUpdate("0-0-0",$B$11,$B$10,$F$14,$F$13,$J$13,$J$14,$N$13,$N$14,$R$8,$R$7,$V$5,$V$4,$Z$11,$Z$10,0,0,0,0,0,0,0,0,0,0,0,0,0,0) -> 5-2-0 | AA20: =$B$11+$F$14+$J$13+$N$13+$R$8+$V$5+$Z$11 -> 5944 | AC20: Pilgaards Mannschaft | AD20: =RecordUpdate("0-0-0",$B$5,$B$4,$F$7,$F$8,$J$7,$J$8,$N$7,$N$8,$R$7,$R$8,$V$7,$V$8,$Z$7,$Z$8,$AD$5,$AD$4,0,0,0,0,0,0,0,0,0,0,0,0) -> 5-3-0 | AE20: =$B$5+$F$7+$J$7+$N$7+$R$7+$V$7+$Z$7+$AD$5 -> 6927 | AG20: Weak Knees Revenge | AH20: =RecordUpdate("0-0-0",$B$14,$B$13,$F$5,$F$4,$J$14,$J$13,$N$11,$N$10,$R$14,$R$13,$V$14,$V$13,$Z$8,$Z$7,$AD$14,$AD$13,$AH$5,$AH$4,0,0,0,0,0,0,0,0,0,0) -> 6-3-0 | AI20: =$B$14+$F$5+$J$14+$N$11+$R$14+$V$14+$Z$8+$AD$14+$AH$5 -> 7897 | AK20: FalchStars | AL20: =RecordUpdate("0-0-0",$B$8,$B$7,$F$11,$F$10,$J$11,$J$10,$N$14,$N$13,$R$13,$R$14,$V$8,$V$7,$Z$5,$Z$4,$AD$8,$AD$7,$AH$11,$AH$10,$AL$11,$AL$10,0,0,0,0,0,0,0,0) -> 6-4-0 | AM20: =$B$8+$F$11+$J$11+$N$14+$R$13+$V$8+$Z$5+$AD$8+$AH$11+$AL$11 -> 9589 | AO20: FalchStars | AP20: =RecordUpdate("0-0-0",$B$8,$B$7,$F$11,$F$10,$J$11,$J$10,$N$14,$N$13,$R$13,$R$14,$V$8,$V$7,$Z$5,$Z$4,$AD$8,$AD$7,$AH$11,$AH$10,$AL$11,$AL$10,$AP$14,$AP$13,0,0,0,0,0,0) -> 7-4-0 | AQ20: =$B$8+$F$11+$J$11+$N$14+$R$13+$V$8+$Z$5+$AD$8+$AH$11+$AL$11+$AP$14 -> 10660 | AS20: Weak Knees Revenge | AT20: =RecordUpdate("0-0-0",$B$14,$B$13,$F$5,$F$4,$J$14,$J$13,$N$11,$N$10,$R$14,$R$13,$V$14,$V$13,$Z$8,$Z$7,$AD$14,$AD$13,$AH$5,$AH$4,$AL$14,$AL$13,$AP$11,$AP$10,$AT$14,$AT$13,0,0,0,0) -> 8-4-0 | AU20: =$B$14+$F$5+$J$14+$N$11+$R$14+$V$14+$Z$8+$AD$14+$AH$5+$AL$14+$AP$11+$AT$14 -> 10604 | AW20: Weak Knees Revenge | AX20: =RecordUpdate("0-0-0",$B$14,$B$13,$F$5,$F$4,$J$14,$J$13,$N$11,$N$10,$R$14,$R$13,$V$14,$V$13,$Z$8,$Z$7,$AD$14,$AD$13,$AH$5,$AH$4,$AL$14,$AL$13,$AP$11,$AP$10,$AT$14,$AT$13,$AX$14,$AX$13,0,0) -> 8-5-0 | AY20: =$B$14+$F$5+$J$14+$N$11+$R$14+$V$14+$Z$8+$AD$14+$AH$5+$AL$14+$AP$11+$AT$14+$AX$14 -> 11460 | BA20: Djohn | BB20: =RecordUpdate("0-0-0",$B$10,$B$11,$F$10,$F$11,$J$8,$J$7,$N$5,$N$4,$R$11,$R$10,$V$13,$V$14,$Z$13,$Z$14,$AD$10,$AD$11,$AH$10,$AH$11,$AL$8,$AL$7,$AP$5,$AP$4,$AT$11,$AT$10,$AX$13,$AX$14,$BB$13,$BB$14) -> 9-5-0 | BC20: =$B$10+$F$10+$J$8+$N$5+$R$11+$V$13+$Z$13+$AD$10+$AH$10+$AL$8+$AP$5+$AT$11+$AX$13+$BB$13 -> 11925
A21: FalchStars | B21: =RecordUpdate("0-0-0",$B$8,$B$7,0,0,0,0,0,0,0,0,0,0,0,0,0,0,0,0,0,0,0,0,0,0,0,0,0,0) -> 1-0-0 | C21: =$B$8 -> 808 | E21: Team Ludoleif | F21: =RecordUpdate("0-0-0",$B$4,$B$5,$F$4,$F$5,0,0,0,0,0,0,0,0,0,0,0,0,0,0,0,0,0,0,0,0,0,0,0,0) -> 1-1-0 | G21: =$B$4+$F$4 -> 1848 | I21: Lam i roen | J21: =RecordUpdate("0-0-0",$B$11,$B$10,$F$14,$F$13,$J$13,$J$14,0,0,0,0,0,0,0,0,0,0,0,0,0,0,0,0,0,0,0,0,0,0) -> 2-1-0 | K21: =$B$11+$F$14+$J$13 -> 2607 | M21: FalchStars | N21: =RecordUpdate("0-0-0",$B$8,$B$7,$F$11,$F$10,$J$11,$J$10,$N$14,$N$13,0,0,0,0,0,0,0,0,0,0,0,0,0,0,0,0,0,0,0,0) -> 2-2-0 | O21: =$B$8+$F$11+$J$11+$N$14 -> 3598 | Q21: Nilsson Monkeys | R21: =RecordUpdate("0-0-0",$B$13,$B$14,$F$13,$F$14,$J$10,$J$11,$N$8,$N$7,$R$5,$R$4,0,0,0,0,0,0,0,0,0,0,0,0,0,0,0,0,0,0) -> 3-2-0 | S21: =$B$13+$F$13+$J$10+$N$8+$R$5 -> 4127 | U21: Pilgaards Mannschaft | V21: =RecordUpdate("0-0-0",$B$5,$B$4,$F$7,$F$8,$J$7,$J$8,$N$7,$N$8,$R$7,$R$8,$V$7,$V$8,0,0,0,0,0,0,0,0,0,0,0,0,0,0,0,0) -> 4-2-0 | W21: =$B$5+$F$7+$J$7+$N$7+$R$7+$V$7 -> 5005 | Y21: Pilgaards Mannschaft | Z21: =RecordUpdate("0-0-0",$B$5,$B$4,$F$7,$F$8,$J$7,$J$8,$N$7,$N$8,$R$7,$R$8,$V$7,$V$8,$Z$7,$Z$8,0,0,0,0,0,0,0,0,0,0,0,0,0,0) -> 4-3-0 | AA21: =$B$5+$F$7+$J$7+$N$7+$R$7+$V$7+$Z$7 -> 5786 | AC21: Lam i roen | AD21: =RecordUpdate("0-0-0",$B$11,$B$10,$F$14,$F$13,$J$13,$J$14,$N$13,$N$14,$R$8,$R$7,$V$5,$V$4,$Z$11,$Z$10,$AD$11,$AD$10,0,0,0,0,0,0,0,0,0,0,0,0) -> 5-3-0 | AE21: =$B$11+$F$14+$J$13+$N$13+$R$8+$V$5+$Z$11+$AD$11 -> 6644 | AG21: Lam i roen | AH21: =RecordUpdate("0-0-0",$B$11,$B$10,$F$14,$F$13,$J$13,$J$14,$N$13,$N$14,$R$8,$R$7,$V$5,$V$4,$Z$11,$Z$10,$AD$11,$AD$10,$AH$14,$AH$13,0,0,0,0,0,0,0,0,0,0) -> 6-3-0 | AI21: =$B$11+$F$14+$J$13+$N$13+$R$8+$V$5+$Z$11+$AD$11+$AH$14 -> 7619 | AK21: Pilgaards Mannschaft | AL21: =RecordUpdate("0-0-0",$B$5,$B$4,$F$7,$F$8,$J$7,$J$8,$N$7,$N$8,$R$7,$R$8,$V$7,$V$8,$Z$7,$Z$8,$AD$5,$AD$4,$AH$7,$AH$8,$AL$7,$AL$8,0,0,0,0,0,0,0,0) -> 6-4-0 | AM21: =$B$5+$F$7+$J$7+$N$7+$R$7+$V$7+$Z$7+$AD$5+$AH$7+$AL$7 -> 8921 | AO21: Pilgaards Mannschaft | AP21: =RecordUpdate("0-0-0",$B$5,$B$4,$F$7,$F$8,$J$7,$J$8,$N$7,$N$8,$R$7,$R$8,$V$7,$V$8,$Z$7,$Z$8,$AD$5,$AD$4,$AH$7,$AH$8,$AL$7,$AL$8,$AP$7,$AP$8,0,0,0,0,0,0) -> 6-5-0 | AQ21: =$B$5+$F$7+$J$7+$N$7+$R$7+$V$7+$Z$7+$AD$5+$AH$7+$AL$7+$AP$7 -> 9656 | AS21: Pilgaards Mannschaft | AT21: =RecordUpdate("0-0-0",$B$5,$B$4,$F$7,$F$8,$J$7,$J$8,$N$7,$N$8,$R$7,$R$8,$V$7,$V$8,$Z$7,$Z$8,$AD$5,$AD$4,$AH$7,$AH$8,$AL$7,$AL$8,$AP$7,$AP$8,$AT$7,$AT$8,0,0,0,0) -> 7-5-0 | AU21: =$B$5+$F$7+$J$7+$N$7+$R$7+$V$7+$Z$7+$AD$5+$AH$7+$AL$7+$AP$7+$AT$7 -> 10355 | AW21: Djohn | AX21: =RecordUpdate("0-0-0",$B$10,$B$11,$F$10,$F$11,$J$8,$J$7,$N$5,$N$4,$R$11,$R$10,$V$13,$V$14,$Z$13,$Z$14,$AD$10,$AD$11,$AH$10,$AH$11,$AL$8,$AL$7,$AP$5,$AP$4,$AT$11,$AT$10,$AX$13,$AX$14,0,0) -> 8-5-0 | AY21: =$B$10+$F$10+$J$8+$N$5+$R$11+$V$13+$Z$13+$AD$10+$AH$10+$AL$8+$AP$5+$AT$11+$AX$13 -> 10719 | BA21: Weak Knees Revenge | BB21: =RecordUpdate("0-0-0",$B$14,$B$13,$F$5,$F$4,$J$14,$J$13,$N$11,$N$10,$R$14,$R$13,$V$14,$V$13,$Z$8,$Z$7,$AD$14,$AD$13,$AH$5,$AH$4,$AL$14,$AL$13,$AP$11,$AP$10,$AT$14,$AT$13,$AX$14,$AX$13,$BB$8,$BB$7) -> 8-6-0 | BC21: =$B$14+$F$5+$J$14+$N$11+$R$14+$V$14+$Z$8+$AD$14+$AH$5+$AL$14+$AP$11+$AT$14+$AX$14+$BB$8 -> 12149 | BI21: =IF(AND($BF$14=0,$BF$15=0),"",IF($BF$14>$BF$15,$BE$15,$BE$14)) -> Team-UhUh | BJ21: =BJ165 -> 616
A22: Lam i roen | B22: =RecordUpdate("0-0-0",$B$11,$B$10,0,0,0,0,0,0,0,0,0,0,0,0,0,0,0,0,0,0,0,0,0,0,0,0,0,0) -> 1-0-0 | C22: =$B$11 -> 771 | E22: Lam i roen | F22: =RecordUpdate("0-0-0",$B$11,$B$10,$F$14,$F$13,0,0,0,0,0,0,0,0,0,0,0,0,0,0,0,0,0,0,0,0,0,0,0,0) -> 1-1-0 | G22: =$B$11+$F$14 -> 1589 | I22: Nilsson Monkeys | J22: =RecordUpdate("0-0-0",$B$13,$B$14,$F$13,$F$14,$J$10,$J$11,0,0,0,0,0,0,0,0,0,0,0,0,0,0,0,0,0,0,0,0,0,0) -> 2-1-0 | K22: =$B$13+$F$13+$J$10 -> 2607 | M22: Nilsson Monkeys | N22: =RecordUpdate("0-0-0",$B$13,$B$14,$F$13,$F$14,$J$10,$J$11,$N$8,$N$7,0,0,0,0,0,0,0,0,0,0,0,0,0,0,0,0,0,0,0,0) -> 2-2-0 | O22: =$B$13+$F$13+$J$10+$N$8 -> 3337 | Q22: Pilgaards Mannschaft | R22: =RecordUpdate("0-0-0",$B$5,$B$4,$F$7,$F$8,$J$7,$J$8,$N$7,$N$8,$R$7,$R$8,0,0,0,0,0,0,0,0,0,0,0,0,0,0,0,0,0,0) -> 3-2-0 | S22: =$B$5+$F$7+$J$7+$N$7+$R$7 -> 3850 | U22: Nilsson Monkeys | V22: =RecordUpdate("0-0-0",$B$13,$B$14,$F$13,$F$14,$J$10,$J$11,$N$8,$N$7,$R$5,$R$4,$V$11,$V$10,0,0,0,0,0,0,0,0,0,0,0,0,0,0,0,0) -> 3-3-0 | W22: =$B$13+$F$13+$J$10+$N$8+$R$5+$V$11 -> 4961 | Y22: Nilsson Monkeys | Z22: =RecordUpdate("0-0-0",$B$13,$B$14,$F$13,$F$14,$J$10,$J$11,$N$8,$N$7,$R$5,$R$4,$V$11,$V$10,$Z$14,$Z$13,0,0,0,0,0,0,0,0,0,0,0,0,0,0) -> 4-3-0 | AA22: =$B$13+$F$13+$J$10+$N$8+$R$5+$V$11+$Z$14 -> 5759 | AC22: FalchStars | AD22: =RecordUpdate("0-0-0",$B$8,$B$7,$F$11,$F$10,$J$11,$J$10,$N$14,$N$13,$R$13,$R$14,$V$8,$V$7,$Z$5,$Z$4,$AD$8,$AD$7,0,0,0,0,0,0,0,0,0,0,0,0) -> 4-4-0 | AE22: =$B$8+$F$11+$J$11+$N$14+$R$13+$V$8+$Z$5+$AD$8 -> 7161 | AG22: FalchStars | AH22: =RecordUpdate("0-0-0",$B$8,$B$7,$F$11,$F$10,$J$11,$J$10,$N$14,$N$13,$R$13,$R$14,$V$8,$V$7,$Z$5,$Z$4,$AD$8,$AD$7,$AH$11,$AH$10,0,0,0,0,0,0,0,0,0,0) -> 5-4-0 | AI22: =$B$8+$F$11+$J$11+$N$14+$R$13+$V$8+$Z$5+$AD$8+$AH$11 -> 8168 | AK22: Lam i roen | AL22: =RecordUpdate("0-0-0",$B$11,$B$10,$F$14,$F$13,$J$13,$J$14,$N$13,$N$14,$R$8,$R$7,$V$5,$V$4,$Z$11,$Z$10,$AD$11,$AD$10,$AH$14,$AH$13,$AL$13,$AL$14,0,0,0,0,0,0,0,0) -> 6-4-0 | AM22: =$B$11+$F$14+$J$13+$N$13+$R$8+$V$5+$Z$11+$AD$11+$AH$14+$AL$13 -> 8318 | AO22: Lam i roen | AP22: =RecordUpdate("0-0-0",$B$11,$B$10,$F$14,$F$13,$J$13,$J$14,$N$13,$N$14,$R$8,$R$7,$V$5,$V$4,$Z$11,$Z$10,$AD$11,$AD$10,$AH$14,$AH$13,$AL$13,$AL$14,$AP$13,$AP$14,0,0,0,0,0,0) -> 6-5-0 | AQ22: =$B$11+$F$14+$J$13+$N$13+$R$8+$V$5+$Z$11+$AD$11+$AH$14+$AL$13+$AP$13 -> 8981 | AS22: Djohn | AT22: =RecordUpdate("0-0-0",$B$10,$B$11,$F$10,$F$11,$J$8,$J$7,$N$5,$N$4,$R$11,$R$10,$V$13,$V$14,$Z$13,$Z$14,$AD$10,$AD$11,$AH$10,$AH$11,$AL$8,$AL$7,$AP$5,$AP$4,$AT$11,$AT$10,0,0,0,0) -> 7-5-0 | AU22: =$B$10+$F$10+$J$8+$N$5+$R$11+$V$13+$Z$13+$AD$10+$AH$10+$AL$8+$AP$5+$AT$11 -> 9576 | AW22: Pilgaards Mannschaft | AX22: =RecordUpdate("0-0-0",$B$5,$B$4,$F$7,$F$8,$J$7,$J$8,$N$7,$N$8,$R$7,$R$8,$V$7,$V$8,$Z$7,$Z$8,$AD$5,$AD$4,$AH$7,$AH$8,$AL$7,$AL$8,$AP$7,$AP$8,$AT$7,$AT$8,$AX$7,$AX$8,0,0) -> 7-6-0 | AY22: =$B$5+$F$7+$J$7+$N$7+$R$7+$V$7+$Z$7+$AD$5+$AH$7+$AL$7+$AP$7+$AT$7+$AX$7 -> 10869 | BA22: Pilgaards Mannschaft | BB22: =RecordUpdate("0-0-0",$B$5,$B$4,$F$7,$F$8,$J$7,$J$8,$N$7,$N$8,$R$7,$R$8,$V$7,$V$8,$Z$7,$Z$8,$AD$5,$AD$4,$AH$7,$AH$8,$AL$7,$AL$8,$AP$7,$AP$8,$AT$7,$AT$8,$AX$7,$AX$8,$BB$7,$BB$8) -> 8-6-0 | BC22: =$B$5+$F$7+$J$7+$N$7+$R$7+$V$7+$Z$7+$AD$5+$AH$7+$AL$7+$AP$7+$AT$7+$AX$7+$BB$7 -> 11605 | BI22: =IF(AND($BF$17=0,$BF$18=0),"",IF($BF$17>$BF$18,$BE$18,$BE$17)) -> Nilsson Monkeys | BJ22: =BJ179 -> 727
A23: Djohn | B23: =RecordUpdate("0-0-0",$B$10,$B$11,0,0,0,0,0,0,0,0,0,0,0,0,0,0,0,0,0,0,0,0,0,0,0,0,0,0) -> 0-1-0 | C23: =$B$10 -> 691 | E23: Nilsson Monkeys | F23: =RecordUpdate("0-0-0",$B$13,$B$14,$F$13,$F$14,0,0,0,0,0,0,0,0,0,0,0,0,0,0,0,0,0,0,0,0,0,0,0,0) -> 1-1-0 | G23: =$B$13+$F$13 -> 1577 | I23: Weak Knees Revenge | J23: =RecordUpdate("0-0-0",$B$14,$B$13,$F$5,$F$4,$J$14,$J$13,0,0,0,0,0,0,0,0,0,0,0,0,0,0,0,0,0,0,0,0,0,0) -> 2-1-0 | K23: =$B$14+$F$5+$J$14 -> 2474 | M23: Team Ludoleif | N23: =RecordUpdate("0-0-0",$B$4,$B$5,$F$4,$F$5,$J$4,$J$5,$N$4,$N$5,0,0,0,0,0,0,0,0,0,0,0,0,0,0,0,0,0,0,0,0) -> 2-2-0 | O23: =$B$4+$F$4+$J$4+$N$4 -> 3189 | Q23: FalchStars | R23: =RecordUpdate("0-0-0",$B$8,$B$7,$F$11,$F$10,$J$11,$J$10,$N$14,$N$13,$R$13,$R$14,0,0,0,0,0,0,0,0,0,0,0,0,0,0,0,0,0,0) -> 2-3-0 | S23: =$B$8+$F$11+$J$11+$N$14+$R$13 -> 4269 | U23: Djohn | V23: =RecordUpdate("0-0-0",$B$10,$B$11,$F$10,$F$11,$J$8,$J$7,$N$5,$N$4,$R$11,$R$10,$V$13,$V$14,0,0,0,0,0,0,0,0,0,0,0,0,0,0,0,0) -> 3-3-0 | W23: =$B$10+$F$10+$J$8+$N$5+$R$11+$V$13 -> 4741 | Y23: FalchStars | Z23: =RecordUpdate("0-0-0",$B$8,$B$7,$F$11,$F$10,$J$11,$J$10,$N$14,$N$13,$R$13,$R$14,$V$8,$V$7,$Z$5,$Z$4,0,0,0,0,0,0,0,0,0,0,0,0,0,0) -> 3-4-0 | AA23: =$B$8+$F$11+$J$11+$N$14+$R$13+$V$8+$Z$5 -> 6172 | AC23: Nilsson Monkeys | AD23: =RecordUpdate("0-0-0",$B$13,$B$14,$F$13,$F$14,$J$10,$J$11,$N$8,$N$7,$R$5,$R$4,$V$11,$V$10,$Z$14,$Z$13,$AD$13,$AD$14,0,0,0,0,0,0,0,0,0,0,0,0) -> 4-4-0 | AE23: =$B$13+$F$13+$J$10+$N$8+$R$5+$V$11+$Z$14+$AD$13 -> 6600 | AG23: Nilsson Monkeys | AH23: =RecordUpdate("0-0-0",$B$13,$B$14,$F$13,$F$14,$J$10,$J$11,$N$8,$N$7,$R$5,$R$4,$V$11,$V$10,$Z$14,$Z$13,$AD$13,$AD$14,$AH$13,$AH$14,0,0,0,0,0,0,0,0,0,0) -> 4-5-0 | AI23: =$B$13+$F$13+$J$10+$N$8+$R$5+$V$11+$Z$14+$AD$13+$AH$13 -> 7331 | AK23: Djohn | AL23: =RecordUpdate("0-0-0",$B$10,$B$11,$F$10,$F$11,$J$8,$J$7,$N$5,$N$4,$R$11,$R$10,$V$13,$V$14,$Z$13,$Z$14,$AD$10,$AD$11,$AH$10,$AH$11,$AL$8,$AL$7,0,0,0,0,0,0,0,0) -> 5-5-0 | AM23: =$B$10+$F$10+$J$8+$N$5+$R$11+$V$13+$Z$13+$AD$10+$AH$10+$AL$8 -> 7962 | AO23: Djohn | AP23: =RecordUpdate("0-0-0",$B$10,$B$11,$F$10,$F$11,$J$8,$J$7,$N$5,$N$4,$R$11,$R$10,$V$13,$V$14,$Z$13,$Z$14,$AD$10,$AD$11,$AH$10,$AH$11,$AL$8,$AL$7,$AP$5,$AP$4,0,0,0,0,0,0) -> 6-5-0 | AQ23: =$B$10+$F$10+$J$8+$N$5+$R$11+$V$13+$Z$13+$AD$10+$AH$10+$AL$8+$AP$5 -> 8509 | AS23: Nilsson Monkeys | AT23: =RecordUpdate("0-0-0",$B$13,$B$14,$F$13,$F$14,$J$10,$J$11,$N$8,$N$7,$R$5,$R$4,$V$11,$V$10,$Z$14,$Z$13,$AD$13,$AD$14,$AH$13,$AH$14,$AL$10,$AL$11,$AP$8,$AP$7,$AT$5,$AT$4,0,0,0,0) -> 6-6-0 | AU23: =$B$13+$F$13+$J$10+$N$8+$R$5+$V$11+$Z$14+$AD$13+$AH$13+$AL$10+$AP$8+$AT$5 -> 9963 | AW23: Nilsson Monkeys | AX23: =RecordUpdate("0-0-0",$B$13,$B$14,$F$13,$F$14,$J$10,$J$11,$N$8,$N$7,$R$5,$R$4,$V$11,$V$10,$Z$14,$Z$13,$AD$13,$AD$14,$AH$13,$AH$14,$AL$10,$AL$11,$AP$8,$AP$7,$AT$5,$AT$4,$AX$11,$AX$10,0,0) -> 6-7-0 | AY23: =$B$13+$F$13+$J$10+$N$8+$R$5+$V$11+$Z$14+$AD$13+$AH$13+$AL$10+$AP$8+$AT$5+$AX$11 -> 10467 | BA23: Lam i roen | BB23: =RecordUpdate("0-0-0",$B$11,$B$10,$F$14,$F$13,$J$13,$J$14,$N$13,$N$14,$R$8,$R$7,$V$5,$V$4,$Z$11,$Z$10,$AD$11,$AD$10,$AH$14,$AH$13,$AL$13,$AL$14,$AP$13,$AP$14,$AT$8,$AT$7,$AX$5,$AX$4,$BB$11,$BB$10) -> 7-7-0 | BC23: =$B$11+$F$14+$J$13+$N$13+$R$8+$V$5+$Z$11+$AD$11+$AH$14+$AL$13+$AP$13+$AT$8+$AX$5+$BB$11 -> 11481
A24: Nilsson Monkeys | B24: =RecordUpdate("0-0-0",$B$13,$B$14,0,0,0,0,0,0,0,0,0,0,0,0,0,0,0,0,0,0,0,0,0,0,0,0,0,0) -> 0-1-0 | C24: =$B$13 -> 659 | E24: Team-UhUh | F24: =RecordUpdate("0-0-0",$B$7,$B$8,$F$8,$F$7,0,0,0,0,0,0,0,0,0,0,0,0,0,0,0,0,0,0,0,0,0,0,0,0) -> 1-1-0 | G24: =$B$7+$F$8 -> 1482 | I24: Team-UhUh | J24: =RecordUpdate("0-0-0",$B$7,$B$8,$F$8,$F$7,$J$5,$J$4,0,0,0,0,0,0,0,0,0,0,0,0,0,0,0,0,0,0,0,0,0,0) -> 1-2-0 | K24: =$B$7+$F$8+$J$5 -> 2221 | M24: Pilgaards Mannschaft | N24: =RecordUpdate("0-0-0",$B$5,$B$4,$F$7,$F$8,$J$7,$J$8,$N$7,$N$8,0,0,0,0,0,0,0,0,0,0,0,0,0,0,0,0,0,0,0,0) -> 2-2-0 | O24: =$B$5+$F$7+$J$7+$N$7 -> 3012 | Q24: Djohn | R24: =RecordUpdate("0-0-0",$B$10,$B$11,$F$10,$F$11,$J$8,$J$7,$N$5,$N$4,$R$11,$R$10,0,0,0,0,0,0,0,0,0,0,0,0,0,0,0,0,0,0) -> 2-3-0 | S24: =$B$10+$F$10+$J$8+$N$5+$R$11 -> 3771 | U24: FalchStars | V24: =RecordUpdate("0-0-0",$B$8,$B$7,$F$11,$F$10,$J$11,$J$10,$N$14,$N$13,$R$13,$R$14,$V$8,$V$7,0,0,0,0,0,0,0,0,0,0,0,0,0,0,0,0) -> 2-4-0 | W24: =$B$8+$F$11+$J$11+$N$14+$R$13+$V$8 -> 5193 | Y24: Djohn | Z24: =RecordUpdate("0-0-0",$B$10,$B$11,$F$10,$F$11,$J$8,$J$7,$N$5,$N$4,$R$11,$R$10,$V$13,$V$14,$Z$13,$Z$14,0,0,0,0,0,0,0,0,0,0,0,0,0,0) -> 3-4-0 | AA24: =$B$10+$F$10+$J$8+$N$5+$R$11+$V$13+$Z$13 -> 5485 | AC24: Djohn | AD24: =RecordUpdate("0-0-0",$B$10,$B$11,$F$10,$F$11,$J$8,$J$7,$N$5,$N$4,$R$11,$R$10,$V$13,$V$14,$Z$13,$Z$14,$AD$10,$AD$11,0,0,0,0,0,0,0,0,0,0,0,0) -> 4-4-0 | AE24: =$B$10+$F$10+$J$8+$N$5+$R$11+$V$13+$Z$13+$AD$10 -> 6223 | AG24: Djohn | AH24: =RecordUpdate("0-0-0",$B$10,$B$11,$F$10,$F$11,$J$8,$J$7,$N$5,$N$4,$R$11,$R$10,$V$13,$V$14,$Z$13,$Z$14,$AD$10,$AD$11,$AH$10,$AH$11,0,0,0,0,0,0,0,0,0,0) -> 4-5-0 | AI24: =$B$10+$F$10+$J$8+$N$5+$R$11+$V$13+$Z$13+$AD$10+$AH$10 -> 7071 | AK24: Nilsson Monkeys | AL24: =RecordUpdate("0-0-0",$B$13,$B$14,$F$13,$F$14,$J$10,$J$11,$N$8,$N$7,$R$5,$R$4,$V$11,$V$10,$Z$14,$Z$13,$AD$13,$AD$14,$AH$13,$AH$14,$AL$10,$AL$11,0,0,0,0,0,0,0,0) -> 4-6-0 | AM24: =$B$13+$F$13+$J$10+$N$8+$R$5+$V$11+$Z$14+$AD$13+$AH$13+$AL$10 -> 8171 | AO24: Nilsson Monkeys | AP24: =RecordUpdate("0-0-0",$B$13,$B$14,$F$13,$F$14,$J$10,$J$11,$N$8,$N$7,$R$5,$R$4,$V$11,$V$10,$Z$14,$Z$13,$AD$13,$AD$14,$AH$13,$AH$14,$AL$10,$AL$11,$AP$8,$AP$7,0,0,0,0,0,0) -> 5-6-0 | AQ24: =$B$13+$F$13+$J$10+$N$8+$R$5+$V$11+$Z$14+$AD$13+$AH$13+$AL$10+$AP$8 -> 8969 | AS24: Lam i roen | AT24: =RecordUpdate("0-0-0",$B$11,$B$10,$F$14,$F$13,$J$13,$J$14,$N$13,$N$14,$R$8,$R$7,$V$5,$V$4,$Z$11,$Z$10,$AD$11,$AD$10,$AH$14,$AH$13,$AL$13,$AL$14,$AP$13,$AP$14,$AT$8,$AT$7,0,0,0,0) -> 6-6-0 | AU24: =$B$11+$F$14+$J$13+$N$13+$R$8+$V$5+$Z$11+$AD$11+$AH$14+$AL$13+$AP$13+$AT$8 -> 9584 | AW24: Lam i roen | AX24: =RecordUpdate("0-0-0",$B$11,$B$10,$F$14,$F$13,$J$13,$J$14,$N$13,$N$14,$R$8,$R$7,$V$5,$V$4,$Z$11,$Z$10,$AD$11,$AD$10,$AH$14,$AH$13,$AL$13,$AL$14,$AP$13,$AP$14,$AT$8,$AT$7,$AX$5,$AX$4,0,0) -> 6-7-0 | AY24: =$B$11+$F$14+$J$13+$N$13+$R$8+$V$5+$Z$11+$AD$11+$AH$14+$AL$13+$AP$13+$AT$8+$AX$5 -> 10368 | BA24: Nilsson Monkeys | BB24: =RecordUpdate("0-0-0",$B$13,$B$14,$F$13,$F$14,$J$10,$J$11,$N$8,$N$7,$R$5,$R$4,$V$11,$V$10,$Z$14,$Z$13,$AD$13,$AD$14,$AH$13,$AH$14,$AL$10,$AL$11,$AP$8,$AP$7,$AT$5,$AT$4,$AX$11,$AX$10,$BB$14,$BB$13) -> 6-8-0 | BC24: =$B$13+$F$13+$J$10+$N$8+$R$5+$V$11+$Z$14+$AD$13+$AH$13+$AL$10+$AP$8+$AT$5+$AX$11+$BB$14 -> 11209
A25: Pilgaards Mannschaft | B25: =RecordUpdate("0-0-0",$B$5,$B$4,0,0,0,0,0,0,0,0,0,0,0,0,0,0,0,0,0,0,0,0,0,0,0,0,0,0) -> 0-1-0 | C25: =$B$5 -> 643 | E25: Pilgaards Mannschaft | F25: =RecordUpdate("0-0-0",$B$5,$B$4,$F$7,$F$8,0,0,0,0,0,0,0,0,0,0,0,0,0,0,0,0,0,0,0,0,0,0,0,0) -> 0-2-0 | G25: =$B$5+$F$7 -> 1454 | I25: Pilgaards Mannschaft | J25: =RecordUpdate("0-0-0",$B$5,$B$4,$F$7,$F$8,$J$7,$J$8,0,0,0,0,0,0,0,0,0,0,0,0,0,0,0,0,0,0,0,0,0,0) -> 1-2-0 | K25: =$B$5+$F$7+$J$7 -> 2156 | M25: Team-UhUh | N25: =RecordUpdate("0-0-0",$B$7,$B$8,$F$8,$F$7,$J$5,$J$4,$N$10,$N$11,0,0,0,0,0,0,0,0,0,0,0,0,0,0,0,0,0,0,0,0) -> 1-3-0 | O25: =$B$7+$F$8+$J$5+$N$10 -> 3029 | Q25: Team Ludoleif | R25: =RecordUpdate("0-0-0",$B$4,$B$5,$F$4,$F$5,$J$4,$J$5,$N$4,$N$5,$R$4,$R$5,0,0,0,0,0,0,0,0,0,0,0,0,0,0,0,0,0,0) -> 2-3-0 | S25: =$B$4+$F$4+$J$4+$N$4+$R$4 -> 3678 | U25: Team Ludoleif | V25: =RecordUpdate("0-0-0",$B$4,$B$5,$F$4,$F$5,$J$4,$J$5,$N$4,$N$5,$R$4,$R$5,$V$4,$V$5,0,0,0,0,0,0,0,0,0,0,0,0,0,0,0,0) -> 2-4-0 | W25: =$B$4+$F$4+$J$4+$N$4+$R$4+$V$4 -> 4609 | Y25: Team Ludoleif | Z25: =RecordUpdate("0-0-0",$B$4,$B$5,$F$4,$F$5,$J$4,$J$5,$N$4,$N$5,$R$4,$R$5,$V$4,$V$5,$Z$4,$Z$5,0,0,0,0,0,0,0,0,0,0,0,0,0,0) -> 2-5-0 | AA25: =$B$4+$F$4+$J$4+$N$4+$R$4+$V$4+$Z$4 -> 5491 | AC25: Team Ludoleif | AD25: =RecordUpdate("0-0-0",$B$4,$B$5,$F$4,$F$5,$J$4,$J$5,$N$4,$N$5,$R$4,$R$5,$V$4,$V$5,$Z$4,$Z$5,$AD$4,$AD$5,0,0,0,0,0,0,0,0,0,0,0,0) -> 2-6-0 | AE25: =$B$4+$F$4+$J$4+$N$4+$R$4+$V$4+$Z$4+$AD$4 -> 6179 | AG25: Team Ludoleif | AH25: =RecordUpdate("0-0-0",$B$4,$B$5,$F$4,$F$5,$J$4,$J$5,$N$4,$N$5,$R$4,$R$5,$V$4,$V$5,$Z$4,$Z$5,$AD$4,$AD$5,$AH$4,$AH$5,0,0,0,0,0,0,0,0,0,0) -> 3-6-0 | AI25: =$B$4+$F$4+$J$4+$N$4+$R$4+$V$4+$Z$4+$AD$4+$AH$4 -> 7157 | AK25: Team Ludoleif | AL25: =RecordUpdate("0-0-0",$B$4,$B$5,$F$4,$F$5,$J$4,$J$5,$N$4,$N$5,$R$4,$R$5,$V$4,$V$5,$Z$4,$Z$5,$AD$4,$AD$5,$AH$4,$AH$5,$AL$4,$AL$5,0,0,0,0,0,0,0,0) -> 4-6-0 | AM25: =$B$4+$F$4+$J$4+$N$4+$R$4+$V$4+$Z$4+$AD$4+$AH$4+$AL$4 -> 8033 | AO25: Team Ludoleif | AP25: =RecordUpdate("0-0-0",$B$4,$B$5,$F$4,$F$5,$J$4,$J$5,$N$4,$N$5,$R$4,$R$5,$V$4,$V$5,$Z$4,$Z$5,$AD$4,$AD$5,$AH$4,$AH$5,$AL$4,$AL$5,$AP$4,$AP$5,0,0,0,0,0,0) -> 4-7-0 | AQ25: =$B$4+$F$4+$J$4+$N$4+$R$4+$V$4+$Z$4+$AD$4+$AH$4+$AL$4+$AP$4 -> 8562 | AS25: Team Ludoleif | AT25: =RecordUpdate("0-0-0",$B$4,$B$5,$F$4,$F$5,$J$4,$J$5,$N$4,$N$5,$R$4,$R$5,$V$4,$V$5,$Z$4,$Z$5,$AD$4,$AD$5,$AH$4,$AH$5,$AL$4,$AL$5,$AP$4,$AP$5,$AT$4,$AT$5,0,0,0,0) -> 4-8-0 | AU25: =$B$4+$F$4+$J$4+$N$4+$R$4+$V$4+$Z$4+$AD$4+$AH$4+$AL$4+$AP$4+$AT$4 -> 9415 | AW25: Team Ludoleif | AX25: =RecordUpdate("0-0-0",$B$4,$B$5,$F$4,$F$5,$J$4,$J$5,$N$4,$N$5,$R$4,$R$5,$V$4,$V$5,$Z$4,$Z$5,$AD$4,$AD$5,$AH$4,$AH$5,$AL$4,$AL$5,$AP$4,$AP$5,$AT$4,$AT$5,$AX$4,$AX$5,0,0) -> 5-8-0 | AY25: =$B$4+$F$4+$J$4+$N$4+$R$4+$V$4+$Z$4+$AD$4+$AH$4+$AL$4+$AP$4+$AT$4+$AX$4 -> 10300 | BA25: Team Ludoleif | BB25: =RecordUpdate("0-0-0",$B$4,$B$5,$F$4,$F$5,$J$4,$J$5,$N$4,$N$5,$R$4,$R$5,$V$4,$V$5,$Z$4,$Z$5,$AD$4,$AD$5,$AH$4,$AH$5,$AL$4,$AL$5,$AP$4,$AP$5,$AT$4,$AT$5,$AX$4,$AX$5,$BB$4,$BB$5) -> 5-9-0 | BC25: =$B$4+$F$4+$J$4+$N$4+$R$4+$V$4+$Z$4+$AD$4+$AH$4+$AL$4+$AP$4+$AT$4+$AX$4+$BB$4 -> 10985
A26: Team-UhUh | B26: =RecordUpdate("0-0-0",$B$7,$B$8,0,0,0,0,0,0,0,0,0,0,0,0,0,0,0,0,0,0,0,0,0,0,0,0,0,0) -> 0-1-0 | C26: =$B$7 -> 640 | E26: Djohn | F26: =RecordUpdate("0-0-0",$B$10,$B$11,$F$10,$F$11,0,0,0,0,0,0,0,0,0,0,0,0,0,0,0,0,0,0,0,0,0,0,0,0) -> 0-2-0 | G26: =$B$10+$F$10 -> 1372 | I26: Djohn | J26: =RecordUpdate("0-0-0",$B$10,$B$11,$F$10,$F$11,$J$8,$J$7,0,0,0,0,0,0,0,0,0,0,0,0,0,0,0,0,0,0,0,0,0,0) -> 0-3-0 | K26: =$B$10+$F$10+$J$8 -> 1901 | M26: Djohn | N26: =RecordUpdate("0-0-0",$B$10,$B$11,$F$10,$F$11,$J$8,$J$7,$N$5,$N$4,0,0,0,0,0,0,0,0,0,0,0,0,0,0,0,0,0,0,0,0) -> 1-3-0 | O26: =$B$10+$F$10+$J$8+$N$5 -> 2934 | Q26: Team-UhUh | R26: =RecordUpdate("0-0-0",$B$7,$B$8,$F$8,$F$7,$J$5,$J$4,$N$10,$N$11,$R$10,$R$11,0,0,0,0,0,0,0,0,0,0,0,0,0,0,0,0,0,0) -> 1-4-0 | S26: =$B$7+$F$8+$J$5+$N$10+$R$10 -> 3703 | U26: Team-UhUh | V26: =RecordUpdate("0-0-0",$B$7,$B$8,$F$8,$F$7,$J$5,$J$4,$N$10,$N$11,$R$10,$R$11,$V$10,$V$11,0,0,0,0,0,0,0,0,0,0,0,0,0,0,0,0) -> 2-4-0 | W26: =$B$7+$F$8+$J$5+$N$10+$R$10+$V$10 -> 4591 | Y26: Team-UhUh | Z26: =RecordUpdate("0-0-0",$B$7,$B$8,$F$8,$F$7,$J$5,$J$4,$N$10,$N$11,$R$10,$R$11,$V$10,$V$11,$Z$10,$Z$11,0,0,0,0,0,0,0,0,0,0,0,0,0,0) -> 2-5-0 | AA26: =$B$7+$F$8+$J$5+$N$10+$R$10+$V$10+$Z$10 -> 5224 | AC26: Team-UhUh | AD26: =RecordUpdate("0-0-0",$B$7,$B$8,$F$8,$F$7,$J$5,$J$4,$N$10,$N$11,$R$10,$R$11,$V$10,$V$11,$Z$10,$Z$11,$AD$7,$AD$8,0,0,0,0,0,0,0,0,0,0,0,0) -> 2-6-0 | AE26: =$B$7+$F$8+$J$5+$N$10+$R$10+$V$10+$Z$10+$AD$7 -> 6170 | AG26: Team-UhUh | AH26: =RecordUpdate("0-0-0",$B$7,$B$8,$F$8,$F$7,$J$5,$J$4,$N$10,$N$11,$R$10,$R$11,$V$10,$V$11,$Z$10,$Z$11,$AD$7,$AD$8,$AH$8,$AH$7,0,0,0,0,0,0,0,0,0,0) -> 2-7-0 | AI26: =$B$7+$F$8+$J$5+$N$10+$R$10+$V$10+$Z$10+$AD$7+$AH$8 -> 7013 | AK26: Team-UhUh | AL26: =RecordUpdate("0-0-0",$B$7,$B$8,$F$8,$F$7,$J$5,$J$4,$N$10,$N$11,$R$10,$R$11,$V$10,$V$11,$Z$10,$Z$11,$AD$7,$AD$8,$AH$8,$AH$7,$AL$5,$AL$4,0,0,0,0,0,0,0,0) -> 2-8-0 | AM26: =$B$7+$F$8+$J$5+$N$10+$R$10+$V$10+$Z$10+$AD$7+$AH$8+$AL$5 -> 7866 | AO26: Team-UhUh | AP26: =RecordUpdate("0-0-0",$B$7,$B$8,$F$8,$F$7,$J$5,$J$4,$N$10,$N$11,$R$10,$R$11,$V$10,$V$11,$Z$10,$Z$11,$AD$7,$AD$8,$AH$8,$AH$7,$AL$5,$AL$4,$AP$10,$AP$11,0,0,0,0,0,0) -> 2-9-0 | AQ26: =$B$7+$F$8+$J$5+$N$10+$R$10+$V$10+$Z$10+$AD$7+$AH$8+$AL$5+$AP$10 -> 8430 | AS26: Team-UhUh | AT26: =RecordUpdate("0-0-0",$B$7,$B$8,$F$8,$F$7,$J$5,$J$4,$N$10,$N$11,$R$10,$R$11,$V$10,$V$11,$Z$10,$Z$11,$AD$7,$AD$8,$AH$8,$AH$7,$AL$5,$AL$4,$AP$10,$AP$11,$AT$10,$AT$11,0,0,0,0) -> 2-10-0 | AU26: =$B$7+$F$8+$J$5+$N$10+$R$10+$V$10+$Z$10+$AD$7+$AH$8+$AL$5+$AP$10+$AT$10 -> 9296 | AW26: Team-UhUh | AX26: =RecordUpdate("0-0-0",$B$7,$B$8,$F$8,$F$7,$J$5,$J$4,$N$10,$N$11,$R$10,$R$11,$V$10,$V$11,$Z$10,$Z$11,$AD$7,$AD$8,$AH$8,$AH$7,$AL$5,$AL$4,$AP$10,$AP$11,$AT$10,$AT$11,$AX$10,$AX$11,0,0) -> 3-10-0 | AY26: =$B$7+$F$8+$J$5+$N$10+$R$10+$V$10+$Z$10+$AD$7+$AH$8+$AL$5+$AP$10+$AT$10+$AX$10 -> 10071 | BA26: Team-UhUh | BB26: =RecordUpdate("0-0-0",$B$7,$B$8,$F$8,$F$7,$J$5,$J$4,$N$10,$N$11,$R$10,$R$11,$V$10,$V$11,$Z$10,$Z$11,$AD$7,$AD$8,$AH$8,$AH$7,$AL$5,$AL$4,$AP$10,$AP$11,$AT$10,$AT$11,$AX$10,$AX$11,$BB$10,$BB$11) -> 3-11-0 | BC26: =$B$7+$F$8+$J$5+$N$10+$R$10+$V$10+$Z$10+$AD$7+$AH$8+$AL$5+$AP$10+$AT$10+$AX$10+$BB$10 -> 10650
B32: Record | C32: TPS | D32: TPC | F32: TPS/PG | G32: TPC/PG | J32: Record | K32: TPS | L32: TPC | N32: TPS/PG | O32: TPC/PG | R32: Record | S32: TPS | T32: TPC | V32: TPS/PG | W32: TPC/PG | Z32: Record | AA32: TPS | AB32: TPC | AD32: TPS/PG | AE32: TPC/PG | AH32: Record | AI32: TPS | AJ32: TPC | AL32: TPS/PG | AM32: TPC/PG | AP32: Record | AQ32: TPS | AR32: TPC | AT32: TPS/PG | AU32: TPC/PG | AX32: Record | AY32: TPS | AZ32: TPC | BB32: TPS/PG | BC32: TPC/PG | BF32: Record | BG32: TPS | BH32: TPC | BJ32: TPS/PG | BK32: TPC/PG
A33: Team Ludoleif | B33: =RecordUpdate("0-0-0",$B$4,$B$5,$F$4,$F$5,$J$4,$J$5,$N$4,$N$5,$R$4,$R$5,$V$4,$V$5,$Z$4,$Z$5,$AD$4,$AD$5,$AH$4,$AH$5,$AL$4,$AL$5,$AP$4,$AP$5,$AT$4,$AT$5,$AX$4,$AX$5,$BB$4,$BB$5) -> 5-9-0 | C33: =$B$4+$F$4+$J$4+$N$4+$R$4+$V$4+$Z$4+$AD$4+$AH$4+$AL$4+$AP$4+$AT$4+$AX$4+$BB$4 -> 10985 | D33: =$B$5+$F$5+$J$5+$N$5+$R$5+$V$5+$Z$5+$AD$5+$AH$5+$AL$5+$AP$5+$AT$5+$AX$5+$BB$5 -> 12283 | E33: This season | F33: =SUM(C33/GamesPlayed(B33)) -> 784.6428571 | G33: =SUM(D33/GamesPlayed(B33)) -> 877.3571429 | I33: Pilgaards Mannschaft | J33: =RecordUpdate("0-0-0",$B$5,$B$4,$F$7,$F$8,$J$7,$J$8,$N$7,$N$8,$R$7,$R$8,$V$7,$V$8,$Z$7,$Z$8,$AD$5,$AD$4,$AH$7,$AH$8,$AL$7,$AL$8,$AP$7,$AP$8,$AT$7,$AT$8,$AX$7,$AX$8,$BB$7,$BB$8) -> 8-6-0 | K33: =$B$5+$F$7+$J$7+$N$7+$R$7+$V$7+$Z$7+$AD$5+$AH$7+$AL$7+$AP$7+$AT$7+$AX$7+$BB$7 -> 11605 | L33: =$B$4+$F$8+$J$8+$N$8+$R$8+$V$8+$Z$8+$AD$4+$AH$8+$AL$8+$AP$8+$AT$8+$AX$8+$BB$8 -> 11200 | M33: This season | N33: =SUM(K33/GamesPlayed(J33)) -> 828.9285714 | O33: =SUM(L33/GamesPlayed(J33)) -> 800 | Q33: Lam i roen | R33: =RecordUpdate("0-0-0",$B$11,$B$10,$F$14,$F$13,$J$13,$J$14,$N$13,$N$14,$R$8,$R$7,$V$5,$V$4,$Z$11,$Z$10,$AD$11,$AD$10,$AH$14,$AH$13,$AL$13,$AL$14,$AP$13,$AP$14,$AT$8,$AT$7,$AX$5,$AX$4,$BB$11,$BB$10) -> 7-7-0 | S33: =$B$11+$F$14+$J$13+$N$13+$R$8+$V$5+$Z$11+$AD$11+$AH$14+$AL$13+$AP$13+$AT$8+$AX$5+$BB$11 -> 11481 | T33: =$B$10+$F$13+$J$14+$N$14+$R$7+$V$4+$Z$10+$AD$10+$AH$13+$AL$14+$AP$14+$AT$7+$AX$4+$BB$10 -> 10987 | U33: This season | V33: =SUM(S33/GamesPlayed(R33)) -> 820.0714286 | W33: =SUM(T33/GamesPlayed(R33)) -> 784.7857143 | Y33: Djohn | Z33: =RecordUpdate("0-0-0",$B$10,$B$11,$F$10,$F$11,$J$8,$J$7,$N$5,$N$4,$R$11,$R$10,$V$13,$V$14,$Z$13,$Z$14,$AD$10,$AD$11,$AH$10,$AH$11,$AL$8,$AL$7,$AP$5,$AP$4,$AT$11,$AT$10,$AX$13,$AX$14,$BB$13,$BB$14) -> 9-5-0 | AA33: =$B$10+$F$10+$J$8+$N$5+$R$11+$V$13+$Z$13+$AD$10+$AH$10+$AL$8+$AP$5+$AT$11+$AX$13+$BB$13 -> 11925 | AB33: =$B$11+$F$11+$J$7+$N$4+$R$10+$V$14+$Z$14+$AD$11+$AH$11+$AL$7+$AP$4+$AT$10+$AX$14+$BB$14 -> 10898 | AC33: This season | AD33: =SUM(AA33/GamesPlayed(Z33)) -> 851.7857143 | AE33: =SUM(AB33/GamesPlayed(Z33)) -> 778.4285714 | AG33: Nilsson Monkeys | AH33: =RecordUpdate("0-0-0",$B$13,$B$14,$F$13,$F$14,$J$10,$J$11,$N$8,$N$7,$R$5,$R$4,$V$11,$V$10,$Z$14,$Z$13,$AD$13,$AD$14,$AH$13,$AH$14,$AL$10,$AL$11,$AP$8,$AP$7,$AT$5,$AT$4,$AX$11,$AX$10,$BB$14,$BB$13) -> 6-8-0 | AI33: =$B$13+$F$13+$J$10+$N$8+$R$5+$V$11+$Z$14+$AD$13+$AH$13+$AL$10+$AP$8+$AT$5+$AX$11+$BB$14 -> 11209 | AJ33: =$B$14+$F$14+$J$11+$N$7+$R$4+$V$10+$Z$13+$AD$14+$AH$14+$AL$11+$AP$7+$AT$4+$AX$10+$BB$13 -> 12536 | AK33: This season | AL33: =SUM(AI33/GamesPlayed(AH33)) -> 800.6428571 | AM33: =SUM(AJ33/GamesPlayed(AH33)) -> 895.4285714 | AO33: Weak Knees Revenge | AP33: =RecordUpdate("0-0-0",$B$14,$B$13,$F$5,$F$4,$J$14,$J$13,$N$11,$N$10,$R$14,$R$13,$V$14,$V$13,$Z$8,$Z$7,$AD$14,$AD$13,$AH$5,$AH$4,$AL$14,$AL$13,$AP$11,$AP$10,$AT$14,$AT$13,$AX$14,$AX$13,$BB$8,$BB$7) -> 8-6-0 | AQ33: =$B$14+$F$5+$J$14+$N$11+$R$14+$V$14+$Z$8+$AD$14+$AH$5+$AL$14+$AP$11+$AT$14+$AX$14+$BB$8 -> 12149 | AR33: =$B$13+$F$4+$J$13+$N$10+$R$13+$V$13+$Z$7+$AD$13+$AH$4+$AL$13+$AP$10+$AT$13+$AX$13+$BB$7 -> 11706 | AS33: This season | AT33: =SUM(AQ33/GamesPlayed(AP33)) -> 867.7857143 | AU33: =SUM(AR33/GamesPlayed(AP33)) -> 836.1428571 | AW33: Team-UhUh | AX33: =RecordUpdate("0-0-0",$B$7,$B$8,$F$8,$F$7,$J$5,$J$4,$N$10,$N$11,$R$10,$R$11,$V$10,$V$11,$Z$10,$Z$11,$AD$7,$AD$8,$AH$8,$AH$7,$AL$5,$AL$4,$AP$10,$AP$11,$AT$10,$AT$11,$AX$10,$AX$11,$BB$10,$BB$11) -> 3-11-0 | AY33: =$B$7+$F$8+$J$5+$N$10+$R$10+$V$10+$Z$10+$AD$7+$AH$8+$AL$5+$AP$10+$AT$10+$AX$10+$BB$10 -> 10650 | AZ33: =$B$8+$F$7+$J$4+$N$11+$R$11+$V$11+$Z$11+$AD$8+$AH$7+$AL$4+$AP$11+$AT$11+$AX$11+$BB$11 -> 12594 | BA33: This season | BB33: =SUM(AY33/GamesPlayed(AX33)) -> 760.7142857 | BC33: =SUM(AZ33/GamesPlayed(AX33)) -> 899.5714286 | BE33: FalchStars | BF33: =RecordUpdate("0-0-0",$B$8,$B$7,$F$11,$F$10,$J$11,$J$10,$N$14,$N$13,$R$13,$R$14,$V$8,$V$7,$Z$5,$Z$4,$AD$8,$AD$7,$AH$11,$AH$10,$AL$11,$AL$10,$AP$14,$AP$13,$AT$13,$AT$14,$AX$8,$AX$7,$BB$5,$BB$4) -> 10-4-0 | BG33: =$B$8+$F$11+$J$11+$N$14+$R$13+$V$8+$Z$5+$AD$8+$AH$11+$AL$11+$AP$14+$AT$13+$AX$8+$BB$5 -> 13884 | BH33: =$B$7+$F$10+$J$10+$N$13+$R$14+$V$7+$Z$4+$AD$7+$AH$10+$AL$10+$AP$13+$AT$14+$AX$7+$BB$4 -> 11684 | BI33: This season | BJ33: =SUM(BG33/GamesPlayed(BF33)) -> 991.7142857 | BK33: =SUM(BH33/GamesPlayed(BF33)) -> 834.5714286
B34: =ATRecord('2005'!B34,B33) -> 15-13-0 | C34: =C33+'2005'!C34 -> 24082 | D34: =D33+'2005'!D34 -> 22587 | E34: All Time | F34: =SUM(C34/GamesPlayed(B34)) -> 860.0714286 | G34: =SUM(D34/GamesPlayed(B34)) -> 806.6785714 | J34: =ATRecord('2005'!J34,J33) -> 16-12-0 | K34: =K33+'2005'!K34 -> 23293 | L34: =L33+'2005'!L34 -> 21994 | M34: All Time | N34: =SUM(K34/GamesPlayed(J34)) -> 831.8928571 | O34: =SUM(L34/GamesPlayed(J34)) -> 785.5 | R34: =ATRecord('2005'!R34,R33) -> 10-18-0 | S34: =S33+'2005'!S34 -> 21985 | T34: =T33+'2005'!T34 -> 23810 | U34: All Time | V34: =SUM(S34/GamesPlayed(R34)) -> 785.1785714 | W34: =SUM(T34/GamesPlayed(R34)) -> 850.3571429 | Z34: =ATRecord('2005'!Z34,Z33) -> 21-7-0 | AA34: =AA33+'2005'!AA34 -> 25518 | AB34: =AB33+'2005'!AB34 -> 21220 | AC34: All Time | AD34: =SUM(AA34/GamesPlayed(Z34)) -> 911.3571429 | AE34: =SUM(AB34/GamesPlayed(Z34)) -> 757.8571429 | AH34: =ATRecord('2005'!AH34,AH33) -> 14-14-0 | AI34: =AI33+'2005'!AI34 -> 23148 | AJ34: =AJ33+'2005'!AJ34 -> 24116 | AK34: All Time | AL34: =SUM(AI34/GamesPlayed(AH34)) -> 826.7142857 | AM34: =SUM(AJ34/GamesPlayed(AH34)) -> 861.2857143 | AP34: =ATRecord('2005'!AP34,AP33) -> 9-19-0 | AQ34: =AQ33+'2005'!AQ34 -> 20582 | AR34: =AR33+'2005'!AR34 -> 24103 | AS34: All Time | AT34: =SUM(AQ34/GamesPlayed(AP34)) -> 735.0714286 | AU34: =SUM(AR34/GamesPlayed(AP34)) -> 860.8214286 | AX34: =ATRecord('2005'!AX34,AX33) -> 11-17-0 | AY34: =AY33+'2005'!AY34 -> 22171 | AZ34: =AZ33+'2005'!AZ34 -> 23959 | BA34: All Time | BB34: =SUM(AY34/GamesPlayed(AX34)) -> 791.8214286 | BC34: =SUM(AZ34/GamesPlayed(AX34)) -> 855.6785714 | BF34: =ATRecord("0-0-0",BF33) -> 10-4-0 | BG34: =BG33 -> 13884 | BH34: =BH33 -> 11684 | BI34: All Time | BJ34: =SUM(BG34/GamesPlayed(BF34)) -> 991.7142857 | BK34: =SUM(BH34/GamesPlayed(BF34)) -> 834.5714286
A36: vs. | B36: Record | C36: TPS | D36: TPC | F36: TPS/PG | G36: TPC/PG | I36: vs. | J36: Record | K36: TPS | L36: TPC | N36: TPS/PG | O36: TPC/PG | Q36: vs. | R36: Record | S36: TPS | T36: TPC | V36: TPS/PG | W36: TPC/PG | Y36: vs. | Z36: Record | AA36: TPS | AB36: TPC | AD36: TPS/PG | AE36: TPC/PG | AG36: vs. | AH36: Record | AI36: TPS | AJ36: TPC | AL36: TPS/PG | AM36: TPC/PG | AO36: vs. | AP36: Record | AQ36: TPS | AR36: TPC | AT36: TPS/PG | AU36: TPC/PG | AW36: vs. | AX36: Record | AY36: TPS | AZ36: TPC | BB36: TPS/PG | BC36: TPC/PG | BE36: vs. | BF36: Record | BG36: TPS | BH36: TPC | BJ36: TPS/PG | BK36: TPC/PG
A37: Pilgaards Mannschaft | B37: =RecordUpdate("0-0-0",$B$4,$B$5,$AD$4,$AD$5,0,0,0,0,0,0,0,0,0,0,0,0,0,0,0,0,0,0,0,0,0,0,0,0) -> 1-1-0 | C37: =$B$4+$AD$4 -> 1803 | D37: =$B$5+$AD$5 -> 1784 | E37: This season | F37: =SUM(C37/GamesPlayed(B37)) -> 901.5 | G37: =SUM(D37/GamesPlayed(B37)) -> 892 | I37: Team Ludoleif | J37: =RecordUpdate("0-0-0",$B$5,$B$4,$AD$5,$AD$4,0,0,0,0,0,0,0,0,0,0,0,0,0,0,0,0,0,0,0,0,0,0,0,0) -> 1-1-0 | K37: =$B$5+$AD$5 -> 1784 | L37: =$B$4+$AD$4 -> 1803 | M37: This season | N37: =SUM(K37/GamesPlayed(J37)) -> 892 | O37: =SUM(L37/GamesPlayed(J37)) -> 901.5 | Q37: Team Ludoleif | R37: =RecordUpdate("0-0-0",$V$5,$V$4,$AX$5,$AX$4,0,0,0,0,0,0,0,0,0,0,0,0,0,0,0,0,0,0,0,0,0,0,0,0) -> 1-1-0 | S37: =$V$5+$AX$5 -> 1752 | T37: =$V$4+$AX$4 -> 1816 | U37: This season | V37: =SUM(S37/GamesPlayed(R37)) -> 876 | W37: =SUM(T37/GamesPlayed(R37)) -> 908 | Y37: Team Ludoleif | Z37: =RecordUpdate("0-0-0",$N$5,$N$4,$AP$5,$AP$4,0,0,0,0,0,0,0,0,0,0,0,0,0,0,0,0,0,0,0,0,0,0,0,0) -> 2-0-0 | AA37: =$N$5+$AP$5 -> 1580 | AB37: =$N$4+$AP$4 -> 976 | AC37: This season | AD37: =SUM(AA37/GamesPlayed(Z37)) -> 790 | AE37: =SUM(AB37/GamesPlayed(Z37)) -> 488 | AG37: Team Ludoleif | AH37: =RecordUpdate("0-0-0",$R$5,$R$4,$AT$5,$AT$4,0,0,0,0,0,0,0,0,0,0,0,0,0,0,0,0,0,0,0,0,0,0,0,0) -> 2-0-0 | AI37: =$R$5+$AT$5 -> 1784 | AJ37: =$R$4+$AT$4 -> 1342 | AK37: This season | AL37: =SUM(AI37/GamesPlayed(AH37)) -> 892 | AM37: =SUM(AJ37/GamesPlayed(AH37)) -> 671 | AO37: Team Ludoleif | AP37: =RecordUpdate("0-0-0",$F$5,$F$4,$AH$5,$AH$4,0,0,0,0,0,0,0,0,0,0,0,0,0,0,0,0,0,0,0,0,0,0,0,0) -> 1-1-0 | AQ37: =$F$5+$AH$5 -> 1579 | AR37: =$F$4+$AH$4 -> 1711 | AS37: This season | AT37: =SUM(AQ37/GamesPlayed(AP37)) -> 789.5 | AU37: =SUM(AR37/GamesPlayed(AP37)) -> 855.5 | AW37: Team Ludoleif | AX37: =RecordUpdate("0-0-0",$J$5,$J$4,$AL$5,$AL$4,0,0,0,0,0,0,0,0,0,0,0,0,0,0,0,0,0,0,0,0,0,0,0,0) -> 0-2-0 | AY37: =$J$5+$AL$5 -> 1592 | AZ37: =$J$4+$AL$4 -> 1770 | BA37: This season | BB37: =SUM(AY37/GamesPlayed(AX37)) -> 796 | BC37: =SUM(AZ37/GamesPlayed(AX37)) -> 885 | BE37: Team Ludoleif | BF37: =RecordUpdate("0-0-0",$Z$5,$Z$4,$BB$5,$BB$4,0,0,0,0,0,0,0,0,0,0,0,0,0,0,0,0,0,0,0,0,0,0,0,0) -> 2-0-0 | BG37: =$Z$5+$BB$5 -> 2212 | BH37: =$Z$4+$BB$4 -> 1567 | BI37: This season | BJ37: =SUM(BG37/GamesPlayed(BF37)) -> 1106 | BK37: =SUM(BH37/GamesPlayed(BF37)) -> 783.5
B38: =ATRecord('2005'!B38,B37) -> 2-2-0 | C38: =C37+'2005'!C38 -> 3323 | D38: =D37+'2005'!D38 -> 3168 | E38: All Time | F38: =SUM(C38/GamesPlayed(B38)) -> 830.75 | G38: =SUM(D38/GamesPlayed(B38)) -> 792 | J38: =ATRecord('2005'!J38,J37) -> 2-2-0 | K38: =K37+'2005'!K38 -> 3168 | L38: =L37+'2005'!L38 -> 3323 | M38: All Time | N38: =SUM(K38/GamesPlayed(J38)) -> 792 | O38: =SUM(L38/GamesPlayed(J38)) -> 830.75 | R38: =ATRecord('2005'!R38,R37) -> 1-3-0 | S38: =S37+'2005'!S38 -> 3136 | T38: =T37+'2005'!T38 -> 4240 | U38: All Time | V38: =SUM(S38/GamesPlayed(R38)) -> 784 | W38: =SUM(T38/GamesPlayed(R38)) -> 1060 | Z38: =ATRecord('2005'!Z38,Z37) -> 3-1-0 | AA38: =AA37+'2005'!AA38 -> 3113 | AB38: =AB37+'2005'!AB38 -> 2545 | AC38: All Time | AD38: =SUM(AA38/GamesPlayed(Z38)) -> 778.25 | AE38: =SUM(AB38/GamesPlayed(Z38)) -> 636.25 | AH38: =ATRecord('2005'!AH38,AH37) -> 3-1-0 | AI38: =AI37+'2005'!AI38 -> 3828 | AJ38: =AJ37+'2005'!AJ38 -> 3056 | AK38: All Time | AL38: =SUM(AI38/GamesPlayed(AH38)) -> 957 | AM38: =SUM(AJ38/GamesPlayed(AH38)) -> 764 | AP38: =ATRecord('2005'!AP38,AP37) -> 1-3-0 | AQ38: =AQ37+'2005'!AQ38 -> 2702 | AR38: =AR37+'2005'!AR38 -> 3773 | AS38: All Time | AT38: =SUM(AQ38/GamesPlayed(AP38)) -> 675.5 | AU38: =SUM(AR38/GamesPlayed(AP38)) -> 943.25 | AX38: =ATRecord('2005'!AX38,AX37) -> 1-3-0 | AY38: =AY37+'2005'!AY38 -> 3328 | AZ38: =AZ37+'2005'!AZ38 -> 3815 | BA38: All Time | BB38: =SUM(AY38/GamesPlayed(AX38)) -> 832 | BC38: =SUM(AZ38/GamesPlayed(AX38)) -> 953.75 | BF38: =ATRecord("0-0-0",BF37) -> 2-0-0 | BG38: =BG37 -> 2212 | BH38: =BH37 -> 1567 | BI38: All Time | BJ38: =SUM(BG38/GamesPlayed(BF38)) -> 1106 | BK38: =SUM(BH38/GamesPlayed(BF38)) -> 783.5
A40: Lam i roen | B40: =RecordUpdate("0-0-0",$V$4,$V$5,$AX$4,$AX$5,0,0,0,0,0,0,0,0,0,0,0,0,0,0,0,0,0,0,0,0,0,0,0,0) -> 1-1-0 | C40: =$V$4+$AX$4 -> 1816 | D40: =$V$5+$AX$5 -> 1752 | E40: This season | F40: =SUM(C40/GamesPlayed(B40)) -> 908 | G40: =SUM(D40/GamesPlayed(B40)) -> 876 | I40: Lam i roen | J40: =RecordUpdate("0-0-0",$R$7,$R$8,$AT$7,$AT$8,0,0,0,0,0,0,0,0,0,0,0,0,0,0,0,0,0,0,0,0,0,0,0,0) -> 2-0-0 | K40: =$R$7+$AT$7 -> 1537 | L40: =$R$8+$AT$8 -> 1309 | M40: This season | N40: =SUM(K40/GamesPlayed(J40)) -> 768.5 | O40: =SUM(L40/GamesPlayed(J40)) -> 654.5 | Q40: Pilgaards Mannschaft | R40: =RecordUpdate("0-0-0",$R$8,$R$7,$AT$8,$AT$7,0,0,0,0,0,0,0,0,0,0,0,0,0,0,0,0,0,0,0,0,0,0,0,0) -> 0-2-0 | S40: =$R$8+$AT$8 -> 1309 | T40: =$R$7+$AT$7 -> 1537 | U40: This season | V40: =SUM(S40/GamesPlayed(R40)) -> 654.5 | W40: =SUM(T40/GamesPlayed(R40)) -> 768.5 | Y40: Pilgaards Mannschaft | Z40: =RecordUpdate("0-0-0",$J$8,$J$7,$AL$8,$AL$7,0,0,0,0,0,0,0,0,0,0,0,0,0,0,0,0,0,0,0,0,0,0,0,0) -> 1-1-0 | AA40: =$J$8+$AL$8 -> 1420 | AB40: =$J$7+$AL$7 -> 1560 | AC40: This season | AD40: =SUM(AA40/GamesPlayed(Z40)) -> 710 | AE40: =SUM(AB40/GamesPlayed(Z40)) -> 780 | AG40: Pilgaards Mannschaft | AH40: =RecordUpdate("0-0-0",$N$8,$N$7,$AP$8,$AP$7,0,0,0,0,0,0,0,0,0,0,0,0,0,0,0,0,0,0,0,0,0,0,0,0) -> 1-1-0 | AI40: =$N$8+$AP$8 -> 1528 | AJ40: =$N$7+$AP$7 -> 1591 | AK40: This season | AL40: =SUM(AI40/GamesPlayed(AH40)) -> 764 | AM40: =SUM(AJ40/GamesPlayed(AH40)) -> 795.5 | AO40: Pilgaards Mannschaft | AP40: =RecordUpdate("0-0-0",$Z$8,$Z$7,$BB$8,$BB$7,0,0,0,0,0,0,0,0,0,0,0,0,0,0,0,0,0,0,0,0,0,0,0,0) -> 1-1-0 | AQ40: =$Z$8+$BB$8 -> 1645 | AR40: =$Z$7+$BB$7 -> 1517 | AS40: This season | AT40: =SUM(AQ40/GamesPlayed(AP40)) -> 822.5 | AU40: =SUM(AR40/GamesPlayed(AP40)) -> 758.5 | AW40: Pilgaards Mannschaft | AX40: =RecordUpdate("0-0-0",$F$8,$F$7,$AH$8,$AH$7,0,0,0,0,0,0,0,0,0,0,0,0,0,0,0,0,0,0,0,0,0,0,0,0) -> 1-1-0 | AY40: =$F$8+$AH$8 -> 1685 | AZ40: =$F$7+$AH$7 -> 1947 | BA40: This season | BB40: =SUM(AY40/GamesPlayed(AX40)) -> 842.5 | BC40: =SUM(AZ40/GamesPlayed(AX40)) -> 973.5 | BE40: Pilgaards Mannschaft | BF40: =RecordUpdate("0-0-0",$V$8,$V$7,$AX$8,$AX$7,0,0,0,0,0,0,0,0,0,0,0,0,0,0,0,0,0,0,0,0,0,0,0,0) -> 1-1-0 | BG40: =$V$8+$AX$8 -> 1810 | BH40: =$V$7+$AX$7 -> 1669 | BI40: This season | BJ40: =SUM(BG40/GamesPlayed(BF40)) -> 905 | BK40: =SUM(BH40/GamesPlayed(BF40)) -> 834.5
B41: =ATRecord('2005'!B41,B40) -> 3-1-0 | C41: =C40+'2005'!C41 -> 4240 | D41: =D40+'2005'!D41 -> 3136 | E41: All Time | F41: =SUM(C41/GamesPlayed(B41)) -> 1060 | G41: =SUM(D41/GamesPlayed(B41)) -> 784 | J41: =ATRecord('2005'!J41,J40) -> 3-1-0 | K41: =K40+'2005'!K41 -> 3187 | L41: =L40+'2005'!L41 -> 2928 | M41: All Time | N41: =SUM(K41/GamesPlayed(J41)) -> 796.75 | O41: =SUM(L41/GamesPlayed(J41)) -> 732 | R41: =ATRecord('2005'!R41,R40) -> 1-3-0 | S41: =S40+'2005'!S41 -> 2928 | T41: =T40+'2005'!T41 -> 3187 | U41: All Time | V41: =SUM(S41/GamesPlayed(R41)) -> 732 | W41: =SUM(T41/GamesPlayed(R41)) -> 796.75 | Z41: =ATRecord('2005'!Z41,Z40) -> 3-1-0 | AA41: =AA40+'2005'!AA41 -> 3274 | AB41: =AB40+'2005'!AB41 -> 3048 | AC41: All Time | AD41: =SUM(AA41/GamesPlayed(Z41)) -> 818.5 | AE41: =SUM(AB41/GamesPlayed(Z41)) -> 762 | AH41: =ATRecord('2005'!AH41,AH40) -> 1-3-0 | AI41: =AI40+'2005'!AI41 -> 2960 | AJ41: =AJ40+'2005'!AJ41 -> 3355 | AK41: All Time | AL41: =SUM(AI41/GamesPlayed(AH41)) -> 740 | AM41: =SUM(AJ41/GamesPlayed(AH41)) -> 838.75 | AP41: =ATRecord('2005'!AP41,AP40) -> 1-3-0 | AQ41: =AQ40+'2005'!AQ41 -> 2810 | AR41: =AR40+'2005'!AR41 -> 3332 | AS41: All Time | AT41: =SUM(AQ41/GamesPlayed(AP41)) -> 702.5 | AU41: =SUM(AR41/GamesPlayed(AP41)) -> 833 | AX41: =ATRecord('2005'!AX41,AX40) -> 2-2-0 | AY41: =AY40+'2005'!AY41 -> 3348 | AZ41: =AZ40+'2005'!AZ41 -> 3564 | BA41: All Time | BB41: =SUM(AY41/GamesPlayed(AX41)) -> 837 | BC41: =SUM(AZ41/GamesPlayed(AX41)) -> 891 | BF41: =ATRecord("0-0-0",BF40) -> 1-1-0 | BG41: =BG40 -> 1810 | BH41: =BH40 -> 1669 | BI41: All Time | BJ41: =SUM(BG41/GamesPlayed(BF41)) -> 905 | BK41: =SUM(BH41/GamesPlayed(BF41)) -> 834.5
A43: Djohn | B43: =RecordUpdate("0-0-0",$N$4,$N$5,$AP$4,$AP$5,0,0,0,0,0,0,0,0,0,0,0,0,0,0,0,0,0,0,0,0,0,0,0,0) -> 0-2-0 | C43: =$N$4+$AP$4 -> 976 | D43: =$N$5+$AP$5 -> 1580 | E43: This season | F43: =SUM(C43/GamesPlayed(B43)) -> 488 | G43: =SUM(D43/GamesPlayed(B43)) -> 790 | I43: Djohn | J43: =RecordUpdate("0-0-0",$J$7,$J$8,$AL$7,$AL$8,0,0,0,0,0,0,0,0,0,0,0,0,0,0,0,0,0,0,0,0,0,0,0,0) -> 1-1-0 | K43: =$J$7+$AL$7 -> 1560 | L43: =$J$8+$AL$8 -> 1420 | M43: This season | N43: =SUM(K43/GamesPlayed(J43)) -> 780 | O43: =SUM(L43/GamesPlayed(J43)) -> 710 | Q43: Djohn | R43: =RecordUpdate("0-0-0",$B$11,$B$10,$AD$11,$AD$10,0,0,0,0,0,0,0,0,0,0,0,0,0,0,0,0,0,0,0,0,0,0,0,0) -> 1-1-0 | S43: =$B$11+$AD$11 -> 1471 | T43: =$B$10+$AD$10 -> 1429 | U43: This season | V43: =SUM(S43/GamesPlayed(R43)) -> 735.5 | W43: =SUM(T43/GamesPlayed(R43)) -> 714.5 | Y43: Lam i roen | Z43: =RecordUpdate("0-0-0",$B$10,$B$11,$AD$10,$AD$11,0,0,0,0,0,0,0,0,0,0,0,0,0,0,0,0,0,0,0,0,0,0,0,0) -> 1-1-0 | AA43: =$B$10+$AD$10 -> 1429 | AB43: =$B$11+$AD$11 -> 1471 | AC43: This season | AD43: =SUM(AA43/GamesPlayed(Z43)) -> 714.5 | AE43: =SUM(AB43/GamesPlayed(Z43)) -> 735.5 | AG43: Lam i roen | AH43: =RecordUpdate("0-0-0",$F$13,$F$14,$AH$13,$AH$14,0,0,0,0,0,0,0,0,0,0,0,0,0,0,0,0,0,0,0,0,0,0,0,0) -> 1-1-0 | AI43: =$F$13+$AH$13 -> 1649 | AJ43: =$F$14+$AH$14 -> 1793 | AK43: This season | AL43: =SUM(AI43/GamesPlayed(AH43)) -> 824.5 | AM43: =SUM(AJ43/GamesPlayed(AH43)) -> 896.5 | AO43: Lam i roen | AP43: =RecordUpdate("0-0-0",$J$14,$J$13,$AL$14,$AL$13,0,0,0,0,0,0,0,0,0,0,0,0,0,0,0,0,0,0,0,0,0,0,0,0) -> 1-1-0 | AQ43: =$J$14+$AL$14 -> 1529 | AR43: =$J$13+$AL$13 -> 1717 | AS43: This season | AT43: =SUM(AQ43/GamesPlayed(AP43)) -> 764.5 | AU43: =SUM(AR43/GamesPlayed(AP43)) -> 858.5 | AW43: Lam i roen | AX43: =RecordUpdate("0-0-0",$Z$10,$Z$11,$BB$10,$BB$11,0,0,0,0,0,0,0,0,0,0,0,0,0,0,0,0,0,0,0,0,0,0,0,0) -> 0-2-0 | AY43: =$Z$10+$BB$10 -> 1212 | AZ43: =$Z$11+$BB$11 -> 1823 | BA43: This season | BB43: =SUM(AY43/GamesPlayed(AX43)) -> 606 | BC43: =SUM(AZ43/GamesPlayed(AX43)) -> 911.5 | BE43: Lam i roen | BF43: =RecordUpdate("0-0-0",$N$14,$N$13,$AP$14,$AP$13,0,0,0,0,0,0,0,0,0,0,0,0,0,0,0,0,0,0,0,0,0,0,0,0) -> 1-1-0 | BG43: =$N$14+$AP$14 -> 1815 | BH43: =$N$13+$AP$13 -> 1616 | BI43: This season | BJ43: =SUM(BG43/GamesPlayed(BF43)) -> 907.5 | BK43: =SUM(BH43/GamesPlayed(BF43)) -> 808
B44: =ATRecord('2005'!B44,B43) -> 1-3-0 | C44: =C43+'2005'!C44 -> 2545 | D44: =D43+'2005'!D44 -> 3113 | E44: All Time | F44: =SUM(C44/GamesPlayed(B44)) -> 636.25 | G44: =SUM(D44/GamesPlayed(B44)) -> 778.25 | J44: =ATRecord('2005'!J44,J43) -> 1-3-0 | K44: =K43+'2005'!K44 -> 3048 | L44: =L43+'2005'!L44 -> 3274 | M44: All Time | N44: =SUM(K44/GamesPlayed(J44)) -> 762 | O44: =SUM(L44/GamesPlayed(J44)) -> 818.5 | R44: =ATRecord('2005'!R44,R43) -> 1-3-0 | S44: =S43+'2005'!S44 -> 3059 | T44: =T43+'2005'!T44 -> 3356 | U44: All Time | V44: =SUM(S44/GamesPlayed(R44)) -> 764.75 | W44: =SUM(T44/GamesPlayed(R44)) -> 839 | Z44: =ATRecord('2005'!Z44,Z43) -> 3-1-0 | AA44: =AA43+'2005'!AA44 -> 3356 | AB44: =AB43+'2005'!AB44 -> 3059 | AC44: All Time | AD44: =SUM(AA44/GamesPlayed(Z44)) -> 839 | AE44: =SUM(AB44/GamesPlayed(Z44)) -> 764.75 | AH44: =ATRecord('2005'!AH44,AH43) -> 3-1-0 | AI44: =AI43+'2005'!AI44 -> 3421 | AJ44: =AJ43+'2005'!AJ44 -> 3112 | AK44: All Time | AL44: =SUM(AI44/GamesPlayed(AH44)) -> 855.25 | AM44: =SUM(AJ44/GamesPlayed(AH44)) -> 778 | AP44: =ATRecord('2005'!AP44,AP43) -> 2-2-0 | AQ44: =AQ43+'2005'!AQ44 -> 2898 | AR44: =AR43+'2005'!AR44 -> 3440 | AS44: All Time | AT44: =SUM(AQ44/GamesPlayed(AP44)) -> 724.5 | AU44: =SUM(AR44/GamesPlayed(AP44)) -> 860 | AX44: =ATRecord('2005'!AX44,AX43) -> 1-3-0 | AY44: =AY43+'2005'!AY44 -> 2646 | AZ44: =AZ43+'2005'!AZ44 -> 3154 | BA44: All Time | BB44: =SUM(AY44/GamesPlayed(AX44)) -> 661.5 | BC44: =SUM(AZ44/GamesPlayed(AX44)) -> 788.5 | BF44: =ATRecord("0-0-0",BF43) -> 1-1-0 | BG44: =BG43 -> 1815 | BH44: =BH43 -> 1616 | BI44: All Time | BJ44: =SUM(BG44/GamesPlayed(BF44)) -> 907.5 | BK44: =SUM(BH44/GamesPlayed(BF44)) -> 808
A46: Nilsson Monkeys | B46: =RecordUpdate("0-0-0",$R$4,$R$5,$AT$4,$AT$5,0,0,0,0,0,0,0,0,0,0,0,0,0,0,0,0,0,0,0,0,0,0,0,0) -> 0-2-0 | C46: =$R$4+$AT$4 -> 1342 | D46: =$R$5+$AT$5 -> 1784 | E46: This season | F46: =SUM(C46/GamesPlayed(B46)) -> 671 | G46: =SUM(D46/GamesPlayed(B46)) -> 892 | I46: Nilsson Monkeys | J46: =RecordUpdate("0-0-0",$N$7,$N$8,$AP$7,$AP$8,0,0,0,0,0,0,0,0,0,0,0,0,0,0,0,0,0,0,0,0,0,0,0,0) -> 1-1-0 | K46: =$N$7+$AP$7 -> 1591 | L46: =$N$8+$AP$8 -> 1528 | M46: This season | N46: =SUM(K46/GamesPlayed(J46)) -> 795.5 | O46: =SUM(L46/GamesPlayed(J46)) -> 764 | Q46: Nilsson Monkeys | R46: =RecordUpdate("0-0-0",$F$14,$F$13,$AH$14,$AH$13,0,0,0,0,0,0,0,0,0,0,0,0,0,0,0,0,0,0,0,0,0,0,0,0) -> 1-1-0 | S46: =$F$14+$AH$14 -> 1793 | T46: =$F$13+$AH$13 -> 1649 | U46: This season | V46: =SUM(S46/GamesPlayed(R46)) -> 896.5 | W46: =SUM(T46/GamesPlayed(R46)) -> 824.5 | Y46: Nilsson Monkeys | Z46: =RecordUpdate("0-0-0",$Z$13,$Z$14,$BB$13,$BB$14,0,0,0,0,0,0,0,0,0,0,0,0,0,0,0,0,0,0,0,0,0,0,0,0) -> 1-1-0 | AA46: =$Z$13+$BB$13 -> 1950 | AB46: =$Z$14+$BB$14 -> 1540 | AC46: This season | AD46: =SUM(AA46/GamesPlayed(Z46)) -> 975 | AE46: =SUM(AB46/GamesPlayed(Z46)) -> 770 | AG46: Djohn | AH46: =RecordUpdate("0-0-0",$Z$14,$Z$13,$BB$14,$BB$13,0,0,0,0,0,0,0,0,0,0,0,0,0,0,0,0,0,0,0,0,0,0,0,0) -> 1-1-0 | AI46: =$Z$14+$BB$14 -> 1540 | AJ46: =$Z$13+$BB$13 -> 1950 | AK46: This season | AL46: =SUM(AI46/GamesPlayed(AH46)) -> 770 | AM46: =SUM(AJ46/GamesPlayed(AH46)) -> 975 | AO46: Djohn | AP46: =RecordUpdate("0-0-0",$V$14,$V$13,$AX$14,$AX$13,0,0,0,0,0,0,0,0,0,0,0,0,0,0,0,0,0,0,0,0,0,0,0,0) -> 0-2-0 | AQ46: =$V$14+$AX$14 -> 1712 | AR46: =$V$13+$AX$13 -> 2113 | AS46: This season | AT46: =SUM(AQ46/GamesPlayed(AP46)) -> 856 | AU46: =SUM(AR46/GamesPlayed(AP46)) -> 1056.5 | AW46: Djohn | AX46: =RecordUpdate("0-0-0",$R$10,$R$11,$AT$10,$AT$11,0,0,0,0,0,0,0,0,0,0,0,0,0,0,0,0,0,0,0,0,0,0,0,0) -> 0-2-0 | AY46: =$R$10+$AT$10 -> 1540 | AZ46: =$R$11+$AT$11 -> 1904 | BA46: This season | BB46: =SUM(AY46/GamesPlayed(AX46)) -> 770 | BC46: =SUM(AZ46/GamesPlayed(AX46)) -> 952 | BE46: Djohn | BF46: =RecordUpdate("0-0-0",$F$11,$F$10,$AH$11,$AH$10,0,0,0,0,0,0,0,0,0,0,0,0,0,0,0,0,0,0,0,0,0,0,0,0) -> 2-0-0 | BG46: =$F$11+$AH$11 -> 2099 | BH46: =$F$10+$AH$10 -> 1529 | BI46: This season | BJ46: =SUM(BG46/GamesPlayed(BF46)) -> 1049.5 | BK46: =SUM(BH46/GamesPlayed(BF46)) -> 764.5
B47: =ATRecord('2005'!B47,B46) -> 1-3-0 | C47: =C46+'2005'!C47 -> 3056 | D47: =D46+'2005'!D47 -> 3828 | E47: All Time | F47: =SUM(C47/GamesPlayed(B47)) -> 764 | G47: =SUM(D47/GamesPlayed(B47)) -> 957 | J47: =ATRecord('2005'!J47,J46) -> 3-1-0 | K47: =K46+'2005'!K47 -> 3355 | L47: =L46+'2005'!L47 -> 2960 | M47: All Time | N47: =SUM(K47/GamesPlayed(J47)) -> 838.75 | O47: =SUM(L47/GamesPlayed(J47)) -> 740 | R47: =ATRecord('2005'!R47,R46) -> 1-3-0 | S47: =S46+'2005'!S47 -> 3112 | T47: =T46+'2005'!T47 -> 3421 | U47: All Time | V47: =SUM(S47/GamesPlayed(R47)) -> 778 | W47: =SUM(T47/GamesPlayed(R47)) -> 855.25 | Z47: =ATRecord('2005'!Z47,Z46) -> 3-1-0 | AA47: =AA46+'2005'!AA47 -> 4089 | AB47: =AB46+'2005'!AB47 -> 2960 | AC47: All Time | AD47: =SUM(AA47/GamesPlayed(Z47)) -> 1022.25 | AE47: =SUM(AB47/GamesPlayed(Z47)) -> 740 | AH47: =ATRecord('2005'!AH47,AH46) -> 1-3-0 | AI47: =AI46+'2005'!AI47 -> 2960 | AJ47: =AJ46+'2005'!AJ47 -> 4089 | AK47: All Time | AL47: =SUM(AI47/GamesPlayed(AH47)) -> 740 | AM47: =SUM(AJ47/GamesPlayed(AH47)) -> 1022.25 | AP47: =ATRecord('2005'!AP47,AP46) -> 0-4-0 | AQ47: =AQ46+'2005'!AQ47 -> 3131 | AR47: =AR46+'2005'!AR47 -> 4202 | AS47: All Time | AT47: =SUM(AQ47/GamesPlayed(AP47)) -> 782.75 | AU47: =SUM(AR47/GamesPlayed(AP47)) -> 1050.5 | AX47: =ATRecord('2005'!AX47,AX46) -> 0-4-0 | AY47: =AY46+'2005'!AY47 -> 3238 | AZ47: =AZ46+'2005'!AZ47 -> 4259 | BA47: All Time | BB47: =SUM(AY47/GamesPlayed(AX47)) -> 809.5 | BC47: =SUM(AZ47/GamesPlayed(AX47)) -> 1064.75 | BF47: =ATRecord("0-0-0",BF46) -> 2-0-0 | BG47: =BG46 -> 2099 | BH47: =BH46 -> 1529 | BI47: All Time | BJ47: =SUM(BG47/GamesPlayed(BF47)) -> 1049.5 | BK47: =SUM(BH47/GamesPlayed(BF47)) -> 764.5
A49: Weak Knees Revenge | B49: =RecordUpdate("0-0-0",$F$4,$F$5,$AH$4,$AH$5,0,0,0,0,0,0,0,0,0,0,0,0,0,0,0,0,0,0,0,0,0,0,0,0) -> 1-1-0 | C49: =$F$4+$AH$4 -> 1711 | D49: =$F$5+$AH$5 -> 1579 | E49: This season | F49: =SUM(C49/GamesPlayed(B49)) -> 855.5 | G49: =SUM(D49/GamesPlayed(B49)) -> 789.5 | I49: Weak Knees Revenge | J49: =RecordUpdate("0-0-0",$Z$7,$Z$8,$BB$7,$BB$8,0,0,0,0,0,0,0,0,0,0,0,0,0,0,0,0,0,0,0,0,0,0,0,0) -> 1-1-0 | K49: =$Z$7+$BB$7 -> 1517 | L49: =$Z$8+$BB$8 -> 1645 | M49: This season | N49: =SUM(K49/GamesPlayed(J49)) -> 758.5 | O49: =SUM(L49/GamesPlayed(J49)) -> 822.5 | Q49: Weak Knees Revenge | R49: =RecordUpdate("0-0-0",$J$13,$J$14,$AL$13,$AL$14,0,0,0,0,0,0,0,0,0,0,0,0,0,0,0,0,0,0,0,0,0,0,0,0) -> 1-1-0 | S49: =$J$13+$AL$13 -> 1717 | T49: =$J$14+$AL$14 -> 1529 | U49: This season | V49: =SUM(S49/GamesPlayed(R49)) -> 858.5 | W49: =SUM(T49/GamesPlayed(R49)) -> 764.5 | Y49: Weak Knees Revenge | Z49: =RecordUpdate("0-0-0",$V$13,$V$14,$AX$13,$AX$14,0,0,0,0,0,0,0,0,0,0,0,0,0,0,0,0,0,0,0,0,0,0,0,0) -> 2-0-0 | AA49: =$V$13+$AX$13 -> 2113 | AB49: =$V$14+$AX$14 -> 1712 | AC49: This season | AD49: =SUM(AA49/GamesPlayed(Z49)) -> 1056.5 | AE49: =SUM(AB49/GamesPlayed(Z49)) -> 856 | AG49: Weak Knees Revenge | AH49: =RecordUpdate("0-0-0",$B$13,$B$14,$AD$13,$AD$14,0,0,0,0,0,0,0,0,0,0,0,0,0,0,0,0,0,0,0,0,0,0,0,0) -> 0-2-0 | AI49: =$B$13+$AD$13 -> 1500 | AJ49: =$B$14+$AD$14 -> 1822 | AK49: This season | AL49: =SUM(AI49/GamesPlayed(AH49)) -> 750 | AM49: =SUM(AJ49/GamesPlayed(AH49)) -> 911 | AO49: Nilsson Monkeys | AP49: =RecordUpdate("0-0-0",$B$14,$B$13,$AD$14,$AD$13,0,0,0,0,0,0,0,0,0,0,0,0,0,0,0,0,0,0,0,0,0,0,0,0) -> 2-0-0 | AQ49: =$B$14+$AD$14 -> 1822 | AR49: =$B$13+$AD$13 -> 1500 | AS49: This season | AT49: =SUM(AQ49/GamesPlayed(AP49)) -> 911 | AU49: =SUM(AR49/GamesPlayed(AP49)) -> 750 | AW49: Nilsson Monkeys | AX49: =RecordUpdate("0-0-0",$V$10,$V$11,$AX$10,$AX$11,0,0,0,0,0,0,0,0,0,0,0,0,0,0,0,0,0,0,0,0,0,0,0,0) -> 2-0-0 | AY49: =$V$10+$AX$10 -> 1663 | AZ49: =$V$11+$AX$11 -> 1338 | BA49: This season | BB49: =SUM(AY49/GamesPlayed(AX49)) -> 831.5 | BC49: =SUM(AZ49/GamesPlayed(AX49)) -> 669 | BE49: Nilsson Monkeys | BF49: =RecordUpdate("0-0-0",$J$11,$J$10,$AL$11,$AL$10,0,0,0,0,0,0,0,0,0,0,0,0,0,0,0,0,0,0,0,0,0,0,0,0) -> 1-1-0 | BG49: =$J$11+$AL$11 -> 2375 | BH49: =$J$10+$AL$10 -> 1870 | BI49: This season | BJ49: =SUM(BG49/GamesPlayed(BF49)) -> 1187.5 | BK49: =SUM(BH49/GamesPlayed(BF49)) -> 935
B50: =ATRecord('2005'!B50,B49) -> 3-1-0 | C50: =C49+'2005'!C50 -> 3773 | D50: =D49+'2005'!D50 -> 2702 | E50: All Time | F50: =SUM(C50/GamesPlayed(B50)) -> 943.25 | G50: =SUM(D50/GamesPlayed(B50)) -> 675.5 | J50: =ATRecord('2005'!J50,J49) -> 3-1-0 | K50: =K49+'2005'!K50 -> 3332 | L50: =L49+'2005'!L50 -> 2810 | M50: All Time | N50: =SUM(K50/GamesPlayed(J50)) -> 833 | O50: =SUM(L50/GamesPlayed(J50)) -> 702.5 | R50: =ATRecord('2005'!R50,R49) -> 2-2-0 | S50: =S49+'2005'!S50 -> 3440 | T50: =T49+'2005'!T50 -> 2898 | U50: All Time | V50: =SUM(S50/GamesPlayed(R50)) -> 860 | W50: =SUM(T50/GamesPlayed(R50)) -> 724.5 | Z50: =ATRecord('2005'!Z50,Z49) -> 4-0-0 | AA50: =AA49+'2005'!AA50 -> 4202 | AB50: =AB49+'2005'!AB50 -> 3131 | AC50: All Time | AD50: =SUM(AA50/GamesPlayed(Z50)) -> 1050.5 | AE50: =SUM(AB50/GamesPlayed(Z50)) -> 782.75 | AH50: =ATRecord('2005'!AH50,AH49) -> 2-2-0 | AI50: =AI49+'2005'!AI50 -> 3156 | AJ50: =AJ49+'2005'!AJ50 -> 2960 | AK50: All Time | AL50: =SUM(AI50/GamesPlayed(AH50)) -> 789 | AM50: =SUM(AJ50/GamesPlayed(AH50)) -> 740 | AP50: =ATRecord('2005'!AP50,AP49) -> 2-2-0 | AQ50: =AQ49+'2005'!AQ50 -> 2960 | AR50: =AR49+'2005'!AR50 -> 3156 | AS50: All Time | AT50: =SUM(AQ50/GamesPlayed(AP50)) -> 740 | AU50: =SUM(AR50/GamesPlayed(AP50)) -> 789 | AX50: =ATRecord('2005'!AX50,AX49) -> 3-1-0 | AY50: =AY49+'2005'!AY50 -> 3538 | AZ50: =AZ49+'2005'!AZ50 -> 3022 | BA50: All Time | BB50: =SUM(AY50/GamesPlayed(AX50)) -> 884.5 | BC50: =SUM(AZ50/GamesPlayed(AX50)) -> 755.5 | BF50: =ATRecord("0-0-0",BF49) -> 1-1-0 | BG50: =BG49 -> 2375 | BH50: =BH49 -> 1870 | BI50: All Time | BJ50: =SUM(BG50/GamesPlayed(BF50)) -> 1187.5 | BK50: =SUM(BH50/GamesPlayed(BF50)) -> 935
A52: Team-UhUh | B52: =RecordUpdate("0-0-0",$J$4,$J$5,$AL$4,$AL$5,0,0,0,0,0,0,0,0,0,0,0,0,0,0,0,0,0,0,0,0,0,0,0,0) -> 2-0-0 | C52: =$J$4+$AL$4 -> 1770 | D52: =$J$5+$AL$5 -> 1592 | E52: This season | F52: =SUM(C52/GamesPlayed(B52)) -> 885 | G52: =SUM(D52/GamesPlayed(B52)) -> 796 | I52: Team-UhUh | J52: =RecordUpdate("0-0-0",$F$7,$F$8,$AH$7,$AH$8,0,0,0,0,0,0,0,0,0,0,0,0,0,0,0,0,0,0,0,0,0,0,0,0) -> 1-1-0 | K52: =$F$7+$AH$7 -> 1947 | L52: =$F$8+$AH$8 -> 1685 | M52: This season | N52: =SUM(K52/GamesPlayed(J52)) -> 973.5 | O52: =SUM(L52/GamesPlayed(J52)) -> 842.5 | Q52: Team-UhUh | R52: =RecordUpdate("0-0-0",$Z$11,$Z$10,$BB$11,$BB$10,0,0,0,0,0,0,0,0,0,0,0,0,0,0,0,0,0,0,0,0,0,0,0,0) -> 2-0-0 | S52: =$Z$11+$BB$11 -> 1823 | T52: =$Z$10+$BB$10 -> 1212 | U52: This season | V52: =SUM(S52/GamesPlayed(R52)) -> 911.5 | W52: =SUM(T52/GamesPlayed(R52)) -> 606 | Y52: Team-UhUh | Z52: =RecordUpdate("0-0-0",$R$11,$R$10,$AT$11,$AT$10,0,0,0,0,0,0,0,0,0,0,0,0,0,0,0,0,0,0,0,0,0,0,0,0) -> 2-0-0 | AA52: =$R$11+$AT$11 -> 1904 | AB52: =$R$10+$AT$10 -> 1540 | AC52: This season | AD52: =SUM(AA52/GamesPlayed(Z52)) -> 952 | AE52: =SUM(AB52/GamesPlayed(Z52)) -> 770 | AG52: Team-UhUh | AH52: =RecordUpdate("0-0-0",$V$11,$V$10,$AX$11,$AX$10,0,0,0,0,0,0,0,0,0,0,0,0,0,0,0,0,0,0,0,0,0,0,0,0) -> 0-2-0 | AI52: =$V$11+$AX$11 -> 1338 | AJ52: =$V$10+$AX$10 -> 1663 | AK52: This season | AL52: =SUM(AI52/GamesPlayed(AH52)) -> 669 | AM52: =SUM(AJ52/GamesPlayed(AH52)) -> 831.5 | AO52: Team-UhUh | AP52: =RecordUpdate("0-0-0",$N$11,$N$10,$AP$11,$AP$10,0,0,0,0,0,0,0,0,0,0,0,0,0,0,0,0,0,0,0,0,0,0,0,0) -> 2-0-0 | AQ52: =$N$11+$AP$11 -> 2015 | AR52: =$N$10+$AP$10 -> 1372 | AS52: This season | AT52: =SUM(AQ52/GamesPlayed(AP52)) -> 1007.5 | AU52: =SUM(AR52/GamesPlayed(AP52)) -> 686 | AW52: Weak Knees Revenge | AX52: =RecordUpdate("0-0-0",$N$10,$N$11,$AP$10,$AP$11,0,0,0,0,0,0,0,0,0,0,0,0,0,0,0,0,0,0,0,0,0,0,0,0) -> 0-2-0 | AY52: =$N$10+$AP$10 -> 1372 | AZ52: =$N$11+$AP$11 -> 2015 | BA52: This season | BB52: =SUM(AY52/GamesPlayed(AX52)) -> 686 | BC52: =SUM(AZ52/GamesPlayed(AX52)) -> 1007.5 | BE52: Weak Knees Revenge | BF52: =RecordUpdate("0-0-0",$R$13,$R$14,$AT$13,$AT$14,0,0,0,0,0,0,0,0,0,0,0,0,0,0,0,0,0,0,0,0,0,0,0,0) -> 1-1-0 | BG52: =$R$13+$AT$13 -> 1776 | BH52: =$R$14+$AT$14 -> 1847 | BI52: This season | BJ52: =SUM(BG52/GamesPlayed(BF52)) -> 888 | BK52: =SUM(BH52/GamesPlayed(BF52)) -> 923.5
B53: =ATRecord('2005'!B53,B52) -> 3-1-0 | C53: =C52+'2005'!C53 -> 3815 | D53: =D52+'2005'!D53 -> 3328 | E53: All Time | F53: =SUM(C53/GamesPlayed(B53)) -> 953.75 | G53: =SUM(D53/GamesPlayed(B53)) -> 832 | J53: =ATRecord('2005'!J53,J52) -> 2-2-0 | K53: =K52+'2005'!K53 -> 3564 | L53: =L52+'2005'!L53 -> 3348 | M53: All Time | N53: =SUM(K53/GamesPlayed(J53)) -> 891 | O53: =SUM(L53/GamesPlayed(J53)) -> 837 | R53: =ATRecord('2005'!R53,R52) -> 3-1-0 | S53: =S52+'2005'!S53 -> 3154 | T53: =T52+'2005'!T53 -> 2646 | U53: All Time | V53: =SUM(S53/GamesPlayed(R53)) -> 788.5 | W53: =SUM(T53/GamesPlayed(R53)) -> 661.5 | Z53: =ATRecord('2005'!Z53,Z52) -> 4-0-0 | AA53: =AA52+'2005'!AA53 -> 4259 | AB53: =AB52+'2005'!AB53 -> 3238 | AC53: All Time | AD53: =SUM(AA53/GamesPlayed(Z53)) -> 1064.75 | AE53: =SUM(AB53/GamesPlayed(Z53)) -> 809.5 | AH53: =ATRecord('2005'!AH53,AH52) -> 1-3-0 | AI53: =AI52+'2005'!AI53 -> 3022 | AJ53: =AJ52+'2005'!AJ53 -> 3538 | AK53: All Time | AL53: =SUM(AI53/GamesPlayed(AH53)) -> 755.5 | AM53: =SUM(AJ53/GamesPlayed(AH53)) -> 884.5 | AP53: =ATRecord('2005'!AP53,AP52) -> 2-2-0 | AQ53: =AQ52+'2005'!AQ53 -> 3034 | AR53: =AR52+'2005'!AR53 -> 3008 | AS53: All Time | AT53: =SUM(AQ53/GamesPlayed(AP53)) -> 758.5 | AU53: =SUM(AR53/GamesPlayed(AP53)) -> 752 | AX53: =ATRecord('2005'!AX53,AX52) -> 2-2-0 | AY53: =AY52+'2005'!AY53 -> 3008 | AZ53: =AZ52+'2005'!AZ53 -> 3034 | BA53: All Time | BB53: =SUM(AY53/GamesPlayed(AX53)) -> 752 | BC53: =SUM(AZ53/GamesPlayed(AX53)) -> 758.5 | BF53: =ATRecord("0-0-0",BF52) -> 1-1-0 | BG53: =BG52 -> 1776 | BH53: =BH52 -> 1847 | BI53: All Time | BJ53: =SUM(BG53/GamesPlayed(BF53)) -> 888 | BK53: =SUM(BH53/GamesPlayed(BF53)) -> 923.5
A55: FalchStars | B55: =RecordUpdate("0-0-0",$Z$4,$Z$5,$BB$4,$BB$5,0,0,0,0,0,0,0,0,0,0,0,0,0,0,0,0,0,0,0,0,0,0,0,0) -> 0-2-0 | C55: =$Z$4+$BB$4 -> 1567 | D55: =$Z$5+$BB$5 -> 2212 | E55: This season | F55: =SUM(C55/GamesPlayed(B55)) -> 783.5 | G55: =SUM(D55/GamesPlayed(B55)) -> 1106 | I55: FalchStars | J55: =RecordUpdate("0-0-0",$V$7,$V$8,$AX$7,$AX$8,0,0,0,0,0,0,0,0,0,0,0,0,0,0,0,0,0,0,0,0,0,0,0,0) -> 1-1-0 | K55: =$V$7+$AX$7 -> 1669 | L55: =$V$8+$AX$8 -> 1810 | M55: This season | N55: =SUM(K55/GamesPlayed(J55)) -> 834.5 | O55: =SUM(L55/GamesPlayed(J55)) -> 905 | Q55: FalchStars | R55: =RecordUpdate("0-0-0",$N$13,$N$14,$AP$13,$AP$14,0,0,0,0,0,0,0,0,0,0,0,0,0,0,0,0,0,0,0,0,0,0,0,0) -> 1-1-0 | S55: =$N$13+$AP$13 -> 1616 | T55: =$N$14+$AP$14 -> 1815 | U55: This season | V55: =SUM(S55/GamesPlayed(R55)) -> 808 | W55: =SUM(T55/GamesPlayed(R55)) -> 907.5 | Y55: FalchStars | Z55: =RecordUpdate("0-0-0",$F$10,$F$11,$AH$10,$AH$11,0,0,0,0,0,0,0,0,0,0,0,0,0,0,0,0,0,0,0,0,0,0,0,0) -> 0-2-0 | AA55: =$F$10+$AH$10 -> 1529 | AB55: =$F$11+$AH$11 -> 2099 | AC55: This season | AD55: =SUM(AA55/GamesPlayed(Z55)) -> 764.5 | AE55: =SUM(AB55/GamesPlayed(Z55)) -> 1049.5 | AG55: FalchStars | AH55: =RecordUpdate("0-0-0",$J$10,$J$11,$AL$10,$AL$11,0,0,0,0,0,0,0,0,0,0,0,0,0,0,0,0,0,0,0,0,0,0,0,0) -> 1-1-0 | AI55: =$J$10+$AL$10 -> 1870 | AJ55: =$J$11+$AL$11 -> 2375 | AK55: This season | AL55: =SUM(AI55/GamesPlayed(AH55)) -> 935 | AM55: =SUM(AJ55/GamesPlayed(AH55)) -> 1187.5 | AO55: FalchStars | AP55: =RecordUpdate("0-0-0",$R$14,$R$13,$AT$14,$AT$13,0,0,0,0,0,0,0,0,0,0,0,0,0,0,0,0,0,0,0,0,0,0,0,0) -> 1-1-0 | AQ55: =$R$14+$AT$14 -> 1847 | AR55: =$R$13+$AT$13 -> 1776 | AS55: This season | AT55: =SUM(AQ55/GamesPlayed(AP55)) -> 923.5 | AU55: =SUM(AR55/GamesPlayed(AP55)) -> 888 | AW55: FalchStars | AX55: =RecordUpdate("0-0-0",$B$7,$B$8,$AD$7,$AD$8,0,0,0,0,0,0,0,0,0,0,0,0,0,0,0,0,0,0,0,0,0,0,0,0) -> 0-2-0 | AY55: =$B$7+$AD$7 -> 1586 | AZ55: =$B$8+$AD$8 -> 1797 | BA55: This season | BB55: =SUM(AY55/GamesPlayed(AX55)) -> 793 | BC55: =SUM(AZ55/GamesPlayed(AX55)) -> 898.5 | BE55: Team-UhUh | BF55: =RecordUpdate("0-0-0",$B$8,$B$7,$AD$8,$AD$7,0,0,0,0,0,0,0,0,0,0,0,0,0,0,0,0,0,0,0,0,0,0,0,0) -> 2-0-0 | BG55: =$B$8+$AD$8 -> 1797 | BH55: =$B$7+$AD$7 -> 1586 | BI55: This season | BJ55: =SUM(BG55/GamesPlayed(BF55)) -> 898.5 | BK55: =SUM(BH55/GamesPlayed(BF55)) -> 793
B56: =ATRecord("0-0-0",B55) -> 0-2-0 | C56: =C55 -> 1567 | D56: =D55 -> 2212 | E56: All Time | F56: =SUM(C56/GamesPlayed(B56)) -> 783.5 | G56: =SUM(D56/GamesPlayed(B56)) -> 1106 | J56: =ATRecord("0-0-0",J55) -> 1-1-0 | K56: =K55 -> 1669 | L56: =L55 -> 1810 | M56: All Time | N56: =SUM(K56/GamesPlayed(J56)) -> 834.5 | O56: =SUM(L56/GamesPlayed(J56)) -> 905 | R56: =ATRecord("0-0-0",R55) -> 1-1-0 | S56: =S55 -> 1616 | T56: =T55 -> 1815 | U56: All Time | V56: =SUM(S56/GamesPlayed(R56)) -> 808 | W56: =SUM(T56/GamesPlayed(R56)) -> 907.5 | Z56: =ATRecord("0-0-0",Z55) -> 0-2-0 | AA56: =AA55 -> 1529 | AB56: =AB55 -> 2099 | AC56: All Time | AD56: =SUM(AA56/GamesPlayed(Z56)) -> 764.5 | AE56: =SUM(AB56/GamesPlayed(Z56)) -> 1049.5 | AH56: =ATRecord("0-0-0",AH55) -> 1-1-0 | AI56: =AI55 -> 1870 | AJ56: =AJ55 -> 2375 | AK56: All Time | AL56: =SUM(AI56/GamesPlayed(AH56)) -> 935 | AM56: =SUM(AJ56/GamesPlayed(AH56)) -> 1187.5 | AP56: =ATRecord("0-0-0",AP55) -> 1-1-0 | AQ56: =AQ55 -> 1847 | AR56: =AR55 -> 1776 | AS56: All Time | AT56: =SUM(AQ56/GamesPlayed(AP56)) -> 923.5 | AU56: =SUM(AR56/GamesPlayed(AP56)) -> 888 | AX56: =ATRecord("0-0-0",AX55) -> 0-2-0 | AY56: =AY55 -> 1586 | AZ56: =AZ55 -> 1797 | BA56: All Time | BB56: =SUM(AY56/GamesPlayed(AX56)) -> 793 | BC56: =SUM(AZ56/GamesPlayed(AX56)) -> 898.5 | BF56: =ATRecord("0-0-0",BF55) -> 2-0-0 | BG56: =BG55 -> 1797 | BH56: =BH55 -> 1586 | BI56: All Time | BJ56: =SUM(BG56/GamesPlayed(BF56)) -> 898.5 | BK56: =SUM(BH56/GamesPlayed(BF56)) -> 793
A62: Week 1 | E62: Week 2 | I62: Week 3 | M62: Week 4 | Q62: Week 5 | U62: Week 6 | Y62: Week 7 | AC62: Week 8 | AG62: Week 9 | AK62: Week 10 | AO62: Week 11 | AS62: Week 12 | AW62: Week 13 | BA62: Week 14 | BE62: Week 15 | BI62: Week 16
A64: =A4 -> Team Ludoleif | E64: =E4 -> Team Ludoleif | I64: =I4 -> Team Ludoleif | M64: =M4 -> Team Ludoleif | Q64: =Q4 -> Team Ludoleif | U64: =U4 -> Team Ludoleif | Y64: =Y4 -> Team Ludoleif | AC64: =AC4 -> Team Ludoleif | AG64: =AG4 -> Team Ludoleif | AK64: =AK4 -> Team Ludoleif | AO64: =AO4 -> Team Ludoleif | AS64: =AS4 -> Team Ludoleif | AW64: =AW4 -> Team Ludoleif | BA64: =BA4 -> Team Ludoleif | BE64: =BE6 -> FalchStars | BI64: =BI6 -> Pilgaards Mannschaft
B65: Points | F65: Points | J65: Points | N65: Points | R65: Points | V65: Points | Z65: Points | AD65: Points | AH65: Points | AL65: Points | AP65: Points | AT65: Points | AX65: Points | BB65: Points | BF65: Points | BJ65: Points | BN65: Points
A66: Matt Hasselbeck | B66: 107 | E66: Matt Hasselbeck | F66: 73 | I66: Matt Hasselbeck | J66: 215 | M66: Matt Hasselbeck | N66: 54 | Q66: Alex Smith | R66: 153 | U66: Matt Hasselbeck | V66: 194 | Y66: Matt Hasselbeck | Z66: 65 | AC66: David Carr | AD66: 6 | AG66: David Carr | AH66: 138 | AK66: David Carr | AL66: 89 | AO66: David Carr | AP66: 110 | AS66: Matt Hasselbeck | AT66: 122 | AW66: Matt Hasselbeck | AX66: 52 | BA66: Matt Hasselbeck | BB66: 183 | BE66: Drew Brees | BF66: 68 | BI66: Marc Bulger | BJ66: 272 | BN66: 272
A67: Terrell Owens | B67: 143 | E67: Terrell Owens | F67: 27 | I67: Plaxico Burress | J67: 0 | M67: Muhsin Muhammad | N67: 115 | Q67: Terrell Owens | R67: 45 | U67: Terrell Owens | V67: 235 | Y67: Terrell Owens | Z67: 155 | AC67: Terrell Owens | AD67: 136 | AG67: Terrell Owens | AH67: 145 | AK67: Terrell Owens | AL67: 149 | AO67: Terrell Owens | AP67: 66 | AS67: Terrell Owens | AT67: 171 | AW67: Terrell Owens | AX67: 96 | BA67: Terrell Owens | BB67: 112 | BE67: Chad Ochocinco | BF67: 39 | BI67: Reggie Wayne | BJ67: 33 | BN67: 33
A68: Plaxico Burress | B68: 133 | E68: Plaxico Burress | F68: 166 | I68: Muhsin Muhammad | J68: 123 | M68: Eric Moulds | N68: 70 | Q68: Antonio Bryant | R68: 33 | U68: Muhsin Muhammad | V68: 6 | Y68: Eric Moulds | Z68: 25 | AC68: Reggie Brown | AD68: 13 | AG68: Muhsin Muhammad | AH68: 98 | AK68: Marques Colston | AL68: 162 | AO68: Reggie Brown | AP68: 30 | AS68: Reggie Brown | AT68: 76 | AW68: Muhsin Muhammad | AX68: 8 | BA68: Antonio Bryant | BB68: 31 | BE68: Donald Driver | BF68: 85 | BI68: Javon Walker | BJ68: 111 | BN68: 111
A69: Muhsin Muhammad | B69: 98 | E69: Muhsin Muhammad | F69: 59 | I69: Antonio Bryant | J69: 44 | M69: Terrell Owens | N69: 83 | Q69: Muhsin Muhammad | R69: 16 | U69: Eric Moulds | V69: 49 | Y69: Reggie Brown | Z69: 131 | AC69: Muhsin Muhammad | AD69: 128 | AG69: Antonio Bryant | AH69: 26 | AK69: Reggie Brown | AL69: 17 | AO69: Muhsin Muhammad | AP69: 29 | AS69: Muhsin Muhammad | AT69: 39 | AW69: Eric Moulds | AX69: 7 | BA69: Reggie Brown | BB69: 63 | BE69: Bernard Berrian | BF69: 52 | BI69: D.J. Hackett | BJ69: 39 | BN69: 39
A70: Tiki Barber | B70: 138 | E70: Tiki Barber | F70: 107 | I70: Tiki Barber | J70: 71 | M70: Brian Westbrook | N70: 0 | Q70: Tiki Barber | R70: 107 | U70: Tiki Barber | V70: 166 | Y70: Tiki Barber | Z70: 97 | AC70: Tiki Barber | AD70: 73 | AG70: Tiki Barber | AH70: 162 | AK70: Tiki Barber | AL70: 119 | AO70: Tiki Barber | AP70: 31 | AS70: Tiki Barber | AT70: 99 | AW70: Tiki Barber | AX70: 120 | BA70: Tiki Barber | BB70: 83 | BE70: LaDainian Tomlinson | BF70: 230 | BI70: Frank Gore | BJ70: 177 | BN70: 177
A71: Brian Westbrook | B71: 167 | E71: Brian Westbrook | F71: 142 | I71: Brian Westbrook | J71: 279 | M71: Jamal Lewis | N71: 22 | Q71: Laurence Maroney | R71: 25 | U71: Brian Westbrook | V71: 65 | Y71: Brian Westbrook | Z71: 237 | AC71: Brian Westbrook | AD71: 110 | AG71: Laurence Maroney | AH71: 47 | AK71: Brian Westbrook | AL71: 114 | AO71: Brian Westbrook | AP71: 158 | AS71: Brian Westbrook | AT71: 192 | AW71: Brian Westbrook | AX71: 172 | BA71: Brian Westbrook | BB71: 98 | BE71: Carnell Williams | BF71: 35 | BI71: Ladell Betts | BJ71: 189 | BN71: 189
A72: Tony Gonzalez | B72: 164 | E72: Tony Gonzalez | F72: 14 | I72: Heath Miller | J72: 37 | M72: Tony Gonzalez | N72: 64 | Q72: Marques Colston | R72: 40 | U72: Marques Colston | V72: 106 | Y72: Tony Gonzalez | Z72: 122 | AC72: Tony Gonzalez | AD72: 127 | AG72: Marques Colston | AH72: 197 | AK72: Tony Gonzalez | AL72: 86 | AO72: Marques Colston | AP72: 0 | AS72: Owen Daniels | AT72: 49 | AW72: Tony Gonzalez | AX72: 235 | BA72: Tony Gonzalez | BB72: 35 | BE72: Alge Crumpler | BF72: 64 | BI72: Chris Cooley | BJ72: 146 | BN72: 146
A73: David Akers | B73: 60 | E73: David Akers | F73: 50 | I73: David Akers | J73: 70 | M73: David Akers | N73: 74 | Q73: David Akers | R73: 70 | U73: David Akers | V73: 60 | Y73: David Akers | Z73: 30 | AC73: David Akers | AD73: 40 | AG73: Jay Feely | AH73: 20 | AK73: David Akers | AL73: 70 | AO73: David Akers | AP73: 60 | AS73: Jay Feely | AT73: 30 | AW73: Jay Feely | AX73: 60 | BA73: Jay Feely | BB73: 70 | BE73: Ryan Longwell | BF73: 10 | BI73: Nate Kaeding | BJ73: 80 | BN73: 80
A74: Seattle | B74: 105 | E74: Seattle | F74: 95 | I74: Seattle | J74: 55 | M74: Seattle | N74: -35 | Q74: Seattle | R74: 0 | U74: Seattle | V74: 50 | Y74: Seattle | Z74: 20 | AC74: Seattle | AD74: 55 | AG74: Seattle | AH74: 145 | AK74: Seattle | AL74: 70 | AO74: Seattle | AP74: 45 | AS74: Seattle | AT74: 75 | AW74: Seattle | AX74: 135 | BA74: Seattle | BB74: 10 | BE74: Baltimore | BF74: 60 | BI74: Denver | BJ74: 70 | BN74: 70
B75: =SUM(B66:B74) -> 1115 | F75: =SUM(F66:F74) -> 733 | J75: =SUM(J66:J74) -> 894 | N75: =SUM(N66:N74) -> 447 | R75: =SUM(R66:R74) -> 489 | V75: =SUM(V66:V74) -> 931 | Z75: =SUM(Z66:Z74) -> 882 | AD75: =SUM(AD66:AD74) -> 688 | AH75: =SUM(AH66:AH74) -> 978 | AL75: =SUM(AL66:AL74) -> 876 | AP75: =SUM(AP66:AP74) -> 529 | AT75: =SUM(AT66:AT74) -> 853 | AX75: =SUM(AX66:AX74) -> 885 | BB75: =SUM(BB66:BB74) -> 685 | BF75: =SUM(BF66:BF74) -> 643 | BJ75: =SUM(BJ66:BJ74) -> 1117 | BN75: =SUM(BJ66:BJ74) -> 1117
A76: vs. | E76: vs. | I76: vs. | M76: vs. | Q76: vs. | U76: vs. | Y76: vs. | AC76: vs. | AG76: vs. | AK76: vs. | AO76: vs. | AS76: vs. | AW76: vs. | BA76: vs. | BE76: vs. | BI76: vs.
A78: =A5 -> Pilgaards Mannschaft | E78: =E5 -> Weak Knees Revenge | I78: =I5 -> Team-UhUh | M78: =M5 -> Djohn | Q78: =Q5 -> Nilsson Monkeys | U78: =U5 -> Lam i roen | Y78: =Y5 -> FalchStars | AC78: =AC5 -> Pilgaards Mannschaft | AG78: =AG5 -> Weak Knees Revenge | AK78: =AK5 -> Team-UhUh | AO78: =AO5 -> Djohn | AS78: =AS5 -> Nilsson Monkeys | AW78: =AW5 -> Lam i roen | BA78: =BA5 -> FalchStars | BE78: =BE7 -> Pilgaards Mannschaft | BI78: =BI7 -> Djohn
B79: Points | F79: Points | J79: Points | N79: Points | R79: Points | V79: Points | Z79: Points | AD79: Points | AH79: Points | AL79: Points | AP79: Points | AT79: Points | AX79: Points | BB79: Points | BF79: Points | BJ79: Points | BN79: Points
A80: Kurt Warner | B80: 177 | E80: Donovan McNabb | F80: 203 | I80: Michael Vick | J80: 77 | M80: Tom Brady | N80: 130 | Q80: Philip Rivers | R80: 161 | U80: Rex Grossman | V80: -43 | Y80: Eli Manning | Z80: 107 | AC80: Marc Bulger | AD80: 182 | AG80: Brad Johnson | AH80: 18 | AK80: Peyton Manning | AL80: 130 | AO80: Ben Roethlisberger | AP80: 142 | AS80: Carson Palmer | AT80: 191 | AW80: Rex Grossman | AX80: -29 | BA80: Drew Brees | BB80: 282 | BE80: Tony Romo | BF80: 156 | BI80: Tom Brady | BJ80: 157 | BN80: 157
A81: Chris Chambers | B81: 64 | E81: Drew Bennett | F81: 105 | I81: Larry Fitzgerald | J81: 133 | M81: Santana Moss | N81: 292 | Q81: Anquan Boldin | R81: 127 | U81: Torry Holt | V81: 322 | Y81: Amani Toomer | Z81: 32 | AC81: Reggie Wayne | AD81: 342 | AG81: Deion Branch | AH81: 120 | AK81: Joey Galloway | AL81: 83 | AO81: T.J. Houshmandzadeh | AP81: 20 | AS81: Andre Johnson | AT81: 175 | AW81: Marvin Harrison | AX81: 209 | BA81: Chad Ochocinco | BB81: 92 | BE81: Reggie Wayne | BF81: 151 | BI81: T.J. Houshmandzadeh | BJ81: 167 | BN81: 167
A82: Reggie Wayne | B82: 64 | E82: Donte' Stallworth | F82: 139 | I82: Joey Galloway | J82: 70 | M82: T.J. Houshmandzadeh | N82: 83 | Q82: Doug Gabriel | R82: 14 | U82: Laveranues Coles | V82: 215 | Y82: Chad Ochocinco | Z82: 78 | AC82: Javon Walker | AD82: 106 | AG82: Isaac Bruce | AH82: 55 | AK82: Roy Williams | AL82: 59 | AO82: Hines Ward | AP82: 89 | AS82: Darrell Jackson | AT82: 83 | AW82: Torry Holt | AX82: 171 | BA82: Donald Driver | BB82: 207 | BE82: Javon Walker | BF82: 141 | BI82: Terry Glenn | BJ82: 16 | BN82: 16
A83: Javon Walker | B83: 42 | E83: Isaac Bruce | F83: 76 | I83: Roy Williams | J83: 187 | M83: Terry Glenn | N83: 195 | Q83: Lee Evans | R83: 167 | U83: Randy Moss | V83: 82 | Y83: Donald Driver | Z83: 176 | AC83: Joe Horn | AD83: 169 | AG83: Drew Bennett | AH83: 109 | AK83: Braylon Edwards | AL83: 95 | AO83: Kevin Curtis | AP83: 11 | AS83: Anquan Boldin | AT83: 198 | AW83: Laveranues Coles | AX83: 33 | BA83: Bernard Berrian | BB83: 116 | BE83: Greg Jennings | BF83: 8 | BI83: Santana Moss | BJ83: 34 | BN83: 34
A84: Ronnie Brown | B84: 146 | E84: Larry Johnson | F84: 116 | I84: Reggie Bush | J84: 67 | M84: Steven Jackson | N84: 172 | Q84: Edgerrin James | R84: 106 | U84: Willie Parker | V84: 140 | Y84: LaDainian Tomlinson | Z84: 194 | AC84: Chester Taylor | AD84: 47 | AG84: Clinton Portis | AH84: 112 | AK84: Warrick Dunn | AL84: 91 | AO84: Steven Jackson | AP84: 73 | AS84: Rudi Johnson | AT84: 92 | AW84: Shaun Alexander | AX84: 111 | BA84: LaDainian Tomlinson | BB84: 214 | BE84: Frank Gore | BF84: 198 | BI84: Steven Jackson | BJ84: 283 | BN84: 283
A85: Willis McGahee | B85: 72 | E85: Tatum Bell | F85: 60 | I85: Warrick Dunn | J85: 40 | M85: DeShaun Foster | N85: 124 | Q85: Thomas Jones | R85: 101 | U85: Julius Jones | V85: 70 | Y85: Kevin Jones | Z85: 185 | AC85: Frank Gore | AD85: 90 | AG85: Larry Johnson | AH85: 159 | AK85: Joseph Addai | AL85: 162 | AO85: Deuce McAllister | AP85: 60 | AS85: Fred Taylor | AT85: 67 | AW85: Willie Parker | AX85: 61 | BA85: Kevin Jones | BB85: 132 | BE85: Ladell Betts | BF85: 122 | BI85: Maurice Jones-Drew | BJ85: 234 | BN85: 234
A86: Chris Cooley | B86: 8 | E86: Benjamin Watson | F86: 41 | I86: Randy McMichael | J86: 20 | M86: Antonio Gates | N86: 47 | Q86: Todd Heap | R86: 29 | U86: L.J. Smith | V86: 112 | Y86: Dallas Clark | Z86: 97 | AC86: Kellen Winslow | AD86: 145 | AG86: Benjamin Watson | AH86: 56 | AK86: Jason Witten | AL86: 63 | AO86: Antonio Gates | AP86: 57 | AS86: Todd Heap | AT86: 133 | AW86: Jeremy Shockey | AX86: 133 | BA86: Alge Crumpler | BB86: 35 | BE86: Chris Cooley | BF86: 73 | BI86: Antonio Gates | BJ86: 52 | BN86: 52
A87: Jason Elam | B87: 40 | E87: Neil Rackers | F87: 40 | I87: Jay Feely | J87: 60 | M87: Joe Nedney | N87: 0 | Q87: Shayne Graham | R87: 0 | U87: Jeff Wilkins | V87: 40 | Y87: Ryan Longwell | Z87: 60 | AC87: Nate Kaeding | AD87: 70 | AG87: Adam Vinatieri | AH87: 70 | AK87: Robbie Gould | AL87: 80 | AO87: Josh Brown | AP87: 20 | AS87: Shayne Graham | AT87: 0 | AW87: Jeff Wilkins | AX87: 60 | BA87: Ryan Longwell | BB87: 50 | BE87: Nate Kaeding | BF87: 60 | BI87: Josh Brown | BJ87: 40 | BN87: 40
A88: Indianapolis | B88: 30 | E88: Carolina | F88: 55 | I88: Chicago | J88: 85 | M88: Jacksonville | N88: -10 | Q88: San Diego | R88: 85 | U88: Atlanta | V88: 30 | Y88: Philadelphia | Z88: 50 | AC88: Denver | AD88: -10 | AG88: New England | AH88: 45 | AK88: Chicago | AL88: 90 | AO88: Pittsburgh | AP88: 75 | AS88: San Diego | AT88: 55 | AW88: Atlanta | AX88: 35 | BA88: Baltimore | BB88: 105 | BE88: Denver | BF88: 45 | BI88: Pittsburgh | BJ88: 30 | BN88: 30
B89: =SUM(B80:B88) -> 643 | F89: =SUM(F80:F88) -> 835 | J89: =SUM(J80:J88) -> 739 | N89: =SUM(N80:N88) -> 1033 | R89: =SUM(R80:R88) -> 790 | V89: =SUM(V80:V88) -> 968 | Z89: =SUM(Z80:Z88) -> 979 | AD89: =SUM(AD80:AD88) -> 1141 | AH89: =SUM(AH80:AH88) -> 744 | AL89: =SUM(AL80:AL88) -> 853 | AP89: =SUM(AP80:AP88) -> 547 | AT89: =SUM(AT80:AT88) -> 994 | AX89: =SUM(AX80:AX88) -> 784 | BB89: =SUM(BB80:BB88) -> 1233 | BF89: =SUM(BF80:BF88) -> 954 | BJ89: =SUM(BJ80:BJ88) -> 1013 | BN89: =SUM(BJ80:BJ88) -> 1013
A94: =A7 -> Team-UhUh | E94: =E7 -> Pilgaards Mannschaft | I94: =I7 -> Pilgaards Mannschaft | M94: =M7 -> Pilgaards Mannschaft | Q94: =Q7 -> Pilgaards Mannschaft | U94: =U7 -> Pilgaards Mannschaft | Y94: =Y7 -> Pilgaards Mannschaft | AC94: =AC7 -> Team-UhUh | AG94: =AG7 -> Pilgaards Mannschaft | AK94: =AK7 -> Pilgaards Mannschaft | AO94: =AO7 -> Pilgaards Mannschaft | AS94: =AS7 -> Pilgaards Mannschaft | AW94: =AW7 -> Pilgaards Mannschaft | BA94: =BA7 -> Pilgaards Mannschaft | BE94: =BE9 -> Djohn | BI94: =BI11 -> FalchStars
B95: Points | F95: Points | J95: Points | N95: Points | R95: Points | V95: Points | Z95: Points | AD95: Points | AH95: Points | AL95: Points | AP95: Points | AT95: Points | AX95: Points | BB95: Points | BF95: Points | BJ95: Points | BN95: Points
A96: Peyton Manning | B96: 123 | E96: Marc Bulger | F96: 79 | I96: Kurt Warner | J96: 79 | M96: Marc Bulger | N96: 228 | Q96: Marc Bulger | R96: 147 | U96: Marc Bulger | V96: 209 | Y96: Byron Leftwich | Z96: 45 | AC96: Peyton Manning | AD96: 253 | AG96: Marc Bulger | AH96: 156 | AK96: Marc Bulger | AL96: 86 | AO96: Marc Bulger | AP96: 48 | AS96: Marc Bulger | AT96: 101 | AW96: Tony Romo | AX96: 76 | BA96: Tony Romo | BB96: 87 | BE96: Tom Brady | BF96: 113 | BI96: Brett Favre | BJ96: 79 | BN96: 79
A97: Larry Fitzgerald | B97: 133 | E97: Chris Chambers | F97: 118 | I97: Chris Chambers | J97: 72 | M97: Chris Chambers | N97: 102 | Q97: Chris Chambers | R97: 56 | U97: Chris Chambers | V97: 125 | Y97: Reggie Wayne | Z97: 176 | AC97: Joey Galloway | AD97: 41 | AG97: Reggie Wayne | AH97: 90 | AK97: Reggie Wayne | AL97: 108 | AO97: Reggie Wayne | AP97: 169 | AS97: Reggie Wayne | AT97: 131 | AW97: Reggie Wayne | AX97: 53 | BA97: Reggie Wayne | BB97: 113 | BE97: T.J. Houshmandzadeh | BF97: 52 | BI97: Chad Ochocinco | BJ97: 16 | BN97: 16
A98: Joey Galloway | B98: 0 | E98: Reggie Wayne | F98: 120 | I98: Reggie Wayne | J98: 74 | M98: Reggie Wayne | N98: 69 | Q98: Reggie Wayne | R98: 91 | U98: Javon Walker | V98: 89 | Y98: Greg Jennings | Z98: 14 | AC98: Reggie Williams | AD98: 9 | AG98: Javon Walker | AH98: 332 | AK98: Javon Walker | AL98: 111 | AO98: Javon Walker | AP98: 65 | AS98: Javon Walker | AT98: 66 | AW98: Javon Walker | AX98: 21 | BA98: Javon Walker | BB98: 54 | BE98: Terry Glenn | BF98: 89 | BI98: Donald Driver | BJ98: 111 | BN98: 111
A99: Eddie Kennison | B99: 20 | E99: Javon Walker | F99: 91 | I99: Greg Jennings | J99: 142 | M99: Greg Jennings | N99: 82 | Q99: Greg Jennings | R99: 155 | U99: Joe Horn | V99: 222 | Y99: Chris Chambers | Z99: 29 | AC99: Braylon Edwards | AD99: 24 | AG99: Greg Jennings | AH99: 71 | AK99: Chris Chambers | AL99: 60 | AO99: Joe Horn | AP99: 137 | AS99: Joe Horn | AT99: 55 | AW99: Joe Horn | AX99: 17 | BA99: Greg Jennings | BB99: 58 | BE99: Hines Ward | BF99: 59 | BI99: Bernard Berrian | BJ99: 113 | BN99: 113
A100: LaMont Jordan | B100: 13 | E100: Ronnie Brown | F100: 110 | I100: Ronnie Brown | J100: 76 | M100: Ronnie Brown | N100: 113 | Q100: Ronnie Brown | R100: 54 | U100: Ronnie Brown | V100: 129 | Y100: Ronnie Brown | Z100: 106 | AC100: Warrick Dunn | AD100: 58 | AG100: Chester Taylor | AH100: 134 | AK100: Chester Taylor | AL100: 73 | AO100: Frank Gore | AP100: 158 | AS100: Frank Gore | AT100: 174 | AW100: Frank Gore | AX100: 69 | BA100: Frank Gore | BB100: 151 | BE100: Steven Jackson | BF100: 174 | BI100: LaDainian Tomlinson | BJ100: 93 | BN100: 93
A101: Warrick Dunn | B101: 99 | E101: Frank Gore | F101: 125 | I101: Frank Gore | J101: 58 | M101: Frank Gore | N101: 42 | Q101: Frank Gore | R101: 129 | U101: Willis McGahee | V101: 63 | Y101: Chester Taylor | Z101: 189 | AC101: Ahman Green | AD101: 188 | AG101: Frank Gore | AH101: 76 | AK101: Frank Gore | AL101: 170 | AO101: Ladell Betts | AP101: 49 | AS101: Ronnie Brown | AT101: 53 | AW101: Ladell Betts | AX101: 175 | BA101: Ladell Betts | BB101: 133 | BE101: Maurice Jones-Drew | BF101: 156 | BI101: Carnell Williams | BJ101: 0 | BN101: 0
A102: Jason Witten | B102: 37 | E102: Kellen Winslow | F102: 48 | I102: Kellen Winslow | J102: 96 | M102: Kellen Winslow | N102: 95 | Q102: Kellen Winslow | R102: 76 | U102: Chris Cooley | V102: 88 | Y102: Kellen Winslow | Z102: 37 | AC102: Jason Witten | AD102: 143 | AG102: Kellen Winslow | AH102: 107 | AK102: Kellen Winslow | AL102: 85 | AO102: Kellen Winslow | AP102: 44 | AS102: Kellen Winslow | AT102: 64 | AW102: Chris Cooley | AX102: 18 | BA102: Chris Cooley | BB102: 50 | BE102: Antonio Gates | BF102: 9 | BI102: Alge Crumpler | BJ102: 41 | BN102: 41
A103: Jay Feely | B103: 30 | E103: Jason Elam | F103: 60 | I103: Jason Elam | J103: 40 | M103: Nate Kaeding | N103: 70 | Q103: Nate Kaeding | R103: 80 | U103: Nate Kaeding | V103: 110 | Y103: Nate Kaeding | Z103: 70 | AC103: Robbie Gould | AD103: 100 | AG103: Nate Kaeding | AH103: 50 | AK103: Nate Kaeding | AL103: 70 | AO103: Nate Kaeding | AP103: 50 | AS103: Nate Kaeding | AT103: 30 | AW103: Nate Kaeding | AX103: 60 | BA103: Nate Kaeding | BB103: 100 | BE103: Josh Brown | BF103: 20 | BI103: Ryan Longwell | BJ103: 10 | BN103: 10
A104: Chicago | B104: 185 | E104: Indianapolis | F104: 60 | I104: Indianapolis | J104: 65 | M104: Indianapolis | N104: 55 | Q104: Indianapolis | R104: 50 | U104: Denver | V104: 120 | Y104: Denver | Z104: 115 | AC104: Chicago | AD104: 130 | AG104: Denver | AH104: 120 | AK104: Denver | AL104: 95 | AO104: Denver | AP104: 15 | AS104: Denver | AT104: 25 | AW104: Denver | AX104: 25 | BA104: Denver | BB104: -10 | BE104: Jacksonville | BF104: 85 | BI104: Baltimore | BJ104: 105 | BN104: 105
B105: =SUM(B96:B104) -> 640 | F105: =SUM(F96:F104) -> 811 | J105: =SUM(J96:J104) -> 702 | N105: =SUM(N96:N104) -> 856 | R105: =SUM(R96:R104) -> 838 | V105: =SUM(V96:V104) -> 1155 | Z105: =SUM(Z96:Z104) -> 781 | AD105: =SUM(AD96:AD104) -> 946 | AH105: =SUM(AH96:AH104) -> 1136 | AL105: =SUM(AL96:AL104) -> 858 | AP105: =SUM(AP96:AP104) -> 735 | AT105: =SUM(AT96:AT104) -> 699 | AX105: =SUM(AX96:AX104) -> 514 | BB105: =SUM(BB96:BB104) -> 736 | BF105: =SUM(BF96:BF104) -> 757 | BJ105: =SUM(BJ96:BJ104) -> 568 | BN105: =SUM(BJ96:BJ104) -> 568
A106: vs. | E106: vs. | I106: vs. | M106: vs. | Q106: vs. | U106: vs. | Y106: vs. | AC106: vs. | AG106: vs. | AK106: vs. | AO106: vs. | AS106: vs. | AW106: vs. | BA106: vs. | BE106: vs. | BI106: vs.
A108: =A8 -> FalchStars | E108: =E8 -> Team-UhUh | I108: =I8 -> Djohn | M108: =M8 -> Nilsson Monkeys | Q108: =Q8 -> Lam i roen | U108: =U8 -> FalchStars | Y108: =Y8 -> Weak Knees Revenge | AC108: =AC8 -> FalchStars | AG108: =AG8 -> Team-UhUh | AK108: =AK8 -> Djohn | AO108: =AO8 -> Nilsson Monkeys | AS108: =AS8 -> Lam i roen | AW108: =AW8 -> FalchStars | BA108: =BA8 -> Weak Knees Revenge | BE108: =BE10 -> Weak Knees Revenge | BI108: =BI12 -> Weak Knees Revenge
B109: Points | F109: Points | J109: Points | N109: Points | R109: Points | V109: Points | Z109: Points | AD109: Points | AH109: Points | AL109: Points | AP109: Points | AT109: Points | AX109: Points | BB109: Points | BF109: Points | BJ109: Points | BN109: Points
A110: Drew Bledsoe | B110: 78 | E110: Peyton Manning | F110: 231 | I110: Tom Brady | J110: 152 | M110: Carson Palmer | N110: 46 | Q110: Jake Delhomme | R110: 103 | U110: Drew Bledsoe | V110: 125 | Y110: Donovan McNabb | Z110: 216 | AC110: Eli Manning | AD110: 85 | AG110: Michael Vick | AH110: 102 | AK110: Ben Roethlisberger | AL110: 179 | AO110: Carson Palmer | AP110: 168 | AS110: Jake Delhomme | AT110: 83 | AW110: Drew Brees | AX110: 108 | BA110: Matt Leinart | BB110: 135 | BE110: Matt Leinart | BF110: 73 | BI110: Matt Leinart | BJ110: 84 | BN110: 84
A111: Chad Ochocinco | B111: 66 | E111: Larry Fitzgerald | F111: 54 | I111: Santana Moss | J111: 64 | M111: Anquan Boldin | N111: 48 | Q111: Marvin Harrison | R111: 94 | U111: Amani Toomer | V111: 22 | Y111: Steve Smith | Z111: 124 | AC111: Chad Ochocinco | AD111: 142 | AG111: Joey Galloway | AH111: 204 | AK111: T.J. Houshmandzadeh | AL111: 93 | AO111: Andre Johnson | AP111: 92 | AS111: Marvin Harrison | AT111: 10 | AW111: Chad Ochocinco | AX111: 100 | BA111: Steve Smith | BB111: 69 | BE111: Donte' Stallworth | BF111: 8 | BI111: Steve Smith | BJ111: -3 | BN111: -3
A112: Donald Driver | B112: 99 | E112: Rod Smith | F112: 17 | I112: Hines Ward | J112: 21 | M112: Andre Johnson | N112: 172 | Q112: Torry Holt | R112: 101 | U112: Chad Ochocinco | V112: 96 | Y112: Plaxico Burress | Z112: 132 | AC112: Donald Driver | AD112: 57 | AG112: Reggie Williams | AH112: 19 | AK112: Hines Ward | AL112: 142 | AO112: Darrell Jackson | AP112: 131 | AS112: Torry Holt | AT112: 40 | AW112: Donald Driver | AX112: 102 | BA112: Donte' Stallworth | BB112: 95 | BE112: Steve Smith | BF112: 62 | BI112: Plaxico Burress | BJ112: 101 | BN112: 101
A113: Derrick Mason | B113: 53 | E113: Joey Galloway | F113: 152 | I113: Jerricho Cotchery | J113: 37 | M113: Doug Gabriel | N113: 118 | Q113: Laveranues Coles | R113: 27 | U113: Bernard Berrian | V113: 30 | Y113: Deion Branch | Z113: 60 | AC113: Bernard Berrian | AD113: 52 | AG113: Roy Williams | AH113: 182 | AK113: Kevin Curtis | AL113: 29 | AO113: Anquan Boldin | AP113: 83 | AS113: Laveranues Coles | AT113: 179 | AW113: Bernard Berrian | AX113: 34 | BA113: Plaxico Burress | BB113: 131 | BE113: Plaxico Burress | BF113: 110 | BI113: Isaac Bruce | BJ113: 203 | BN113: 203
A114: LaDainian Tomlinson | B114: 159 | E114: Reggie Bush | F114: 88 | I114: Steven Jackson | J114: 95 | M114: Rudi Johnson | N114: 120 | Q114: Dominic Rhodes | R114: 78 | U114: LaDainian Tomlinson | V114: 304 | Y114: Clinton Portis | Z114: 62 | AC114: LaDainian Tomlinson | AD114: 325 | AG114: Warrick Dunn | AH114: 107 | AK114: Steven Jackson | AL114: 163 | AO114: Rudi Johnson | AP114: 83 | AS114: Shaun Alexander | AT114: 134 | AW114: LaDainian Tomlinson | AX114: 232 | BA114: Larry Johnson | BB114: 87 | BE114: Larry Johnson | BF114: 77 | BI114: Larry Johnson | BJ114: 135 | BN114: 135
A115: Carnell Williams | B115: 55 | E115: Ahman Green | F115: 70 | I115: Corey Dillon | J115: 10 | M115: Edgerrin James | N115: 72 | Q115: Willie Parker | R115: 115 | U115: Kevin Jones | V115: 183 | Y115: Larry Johnson | Z115: 207 | AC115: Carnell Williams | AD115: 60 | AG115: Ahman Green | AH115: 91 | AK115: Maurice Jones-Drew | AL115: 109 | AO115: Thomas Jones | AP115: 90 | AS115: Julius Jones | AT115: 26 | AW115: Kevin Jones | AX115: 99 | BA115: Ahman Green | BB115: 109 | BE115: Reggie Bush | BF115: 46 | BI115: Reggie Bush | BJ115: 154 | BN115: 154
A116: Alge Crumpler | B116: 93 | E116: Jason Witten | F116: 50 | I116: Desmond Clark | J116: 30 | M116: Eric Johnson | N116: 24 | Q116: Jeremy Shockey | R116: 13 | U116: Alge Crumpler | V116: 69 | Y116: Benjamin Watson | Z116: 65 | AC116: Alge Crumpler | AD116: 128 | AG116: Jason Witten | AH116: 58 | AK116: Antonio Gates | AL116: 71 | AO116: Todd Heap | AP116: 71 | AS116: Jeremy Shockey | AT116: 51 | AW116: Alge Crumpler | AX116: 111 | BA116: Benjamin Watson | BB116: 8 | BE116: Benjamin Watson | BF116: 0 | BI116: Benjamin Watson | BJ116: 0 | BN116: 0
A117: Lawrence Tynes | B117: 30 | E117: Jay Feely | F117: 50 | I117: Joe Nedney | J117: 60 | M117: Shayne Graham | N117: 70 | Q117: Jeff Wilkins | R117: 80 | U117: Robbie Gould | V117: 50 | Y117: Neil Rackers | Z117: 70 | AC117: Ryan Longwell | AD117: 10 | AG117: Robbie Gould | AH117: 50 | AK117: Josh Brown | AL117: 50 | AO117: Shayne Graham | AP117: 60 | AS117: Jeff Wilkins | AT117: 80 | AW117: Ryan Longwell | AX117: 50 | BA117: Adam Vinatieri | BB117: 50 | BE117: Adam Vinatieri | BF117: 90 | BI117: Adam Vinatieri | BJ117: 50 | BN117: 50
A118: Baltimore | B118: 175 | E118: Chicago | F118: 130 | I118: Pittsburgh | J118: 60 | M118: San Diego | N118: 60 | Q118: New England | R118: 95 | U118: Baltimore | V118: 45 | Y118: Carolina | Z118: 20 | AC118: Baltimore | AD118: 130 | AG118: Chicago | AH118: 30 | AK118: Jacksonville | AL118: 55 | AO118: San Diego | AP118: 20 | AS118: Atlanta | AT118: 0 | AW118: Baltimore | AX118: 50 | BA118: New England | BB118: 5 | BE118: New England | BF118: 130 | BI118: New England | BJ118: 25 | BN118: 25
B119: =SUM(B110:B118) -> 808 | F119: =SUM(F110:F118) -> 842 | J119: =SUM(J110:J118) -> 529 | N119: =SUM(N110:N118) -> 730 | R119: =SUM(R110:R118) -> 706 | V119: =SUM(V110:V118) -> 924 | Z119: =SUM(Z110:Z118) -> 956 | AD119: =SUM(AD110:AD118) -> 989 | AH119: =SUM(AH110:AH118) -> 843 | AL119: =SUM(AL110:AL118) -> 891 | AP119: =SUM(AP110:AP118) -> 798 | AT119: =SUM(AT110:AT118) -> 603 | AX119: =SUM(AX110:AX118) -> 886 | BB119: =SUM(BB110:BB118) -> 689 | BF119: =SUM(BF110:BF118) -> 596 | BJ119: =SUM(BJ110:BJ118) -> 749 | BN119: =SUM(BJ110:BJ118) -> 749
A124: =A10 -> Djohn | E124: =E10 -> Djohn | I124: =I10 -> Nilsson Monkeys | M124: =M10 -> Team-UhUh | Q124: =Q10 -> Team-UhUh | U124: =U10 -> Team-UhUh | Y124: =Y10 -> Team-UhUh | AC124: =AC10 -> Djohn | AG124: =AG10 -> Djohn | AK124: =AK10 -> Nilsson Monkeys | AO124: =AO10 -> Team-UhUh | AS124: =AS10 -> Team-UhUh | AW124: =AW10 -> Team-UhUh | BA124: =BA10 -> Team-UhUh | BE124: =BE14 -> Lam i roen | BI124: =BI16 -> Lam i roen
B125: Points | F125: Points | J125: Points | N125: Points | R125: Points | V125: Points | Z125: Points | AD125: Points | AH125: Points | AL125: Points | AP125: Points | AT125: Points | AX125: Points | BB125: Points | BF125: Points | BJ125: Points | BN125: Points
A126: Tom Brady | B126: 82 | E126: Tom Brady | F126: 71 | I126: Carson Palmer | J126: 159 | M126: Peyton Manning | N126: 162 | Q126: Peyton Manning | R126: 125 | U126: Michael Vick | V126: 113 | Y126: Peyton Manning | Z126: 245 | AC126: Ben Roethlisberger | AD126: 106 | AG126: Tom Brady | AH126: 43 | AK126: Carson Palmer | AL126: 233 | AO126: Peyton Manning | AP126: 109 | AS126: Peyton Manning | AT126: 86 | AW126: Peyton Manning | AX126: 135 | BA126: Michael Vick | BB126: 50 | BE126: Rex Grossman | BF126: 187 | BI126: Rex Grossman | BJ126: 103 | BN126: 103
A127: Santana Moss | B127: 79 | E127: Santana Moss | F127: 78 | I127: Anquan Boldin | J127: 136 | M127: Larry Fitzgerald | N127: 67 | Q127: Larry Fitzgerald | R127: 80 | U127: Roy Williams | V127: 217 | Y127: Roy Williams | Z127: 89 | AC127: T.J. Houshmandzadeh | AD127: 80 | AG127: T.J. Houshmandzadeh | AH127: 119 | AK127: Andre Johnson | AL127: 52 | AO127: Joey Galloway | AP127: 122 | AS127: Roy Williams | AT127: 114 | AW127: Roy Williams | AX127: 48 | BA127: Roy Williams | BB127: 58 | BE127: Marvin Harrison | BF127: 277 | BI127: Marvin Harrison | BJ127: 234 | BN127: 234
A128: Terry Glenn | B128: 74 | E128: Hines Ward | F128: 29 | I128: Andre Johnson | J128: 156 | M128: Roy Williams | N128: 137 | Q128: Roy Williams | R128: 9 | U128: Joey Galloway | V128: 80 | Y128: Joey Galloway | Z128: 0 | AC128: Hines Ward | AD128: 94 | AG128: Hines Ward | AH128: 99 | AK128: Darrell Jackson | AL128: 141 | AO128: Roy Williams | AP128: 70 | AS128: Braylon Edwards | AT128: 29 | AW128: Deion Branch | AX128: 32 | BA128: Deion Branch | BB128: 51 | BE128: Torry Holt | BF128: 59 | BI128: Torry Holt | BJ128: 56 | BN128: 56
A129: T.J. Houshmandzadeh | B129: 0 | E129: Terry Glenn | F129: 152 | I129: Darrell Jackson | J129: 193 | M129: Braylon Edwards | N129: 80 | Q129: Joey Galloway | R129: 153 | U129: Keyshawn Johnson | V129: 55 | Y129: Reggie Williams | Z129: 5 | AC129: Jerricho Cotchery | AD129: 58 | AG129: Terry Glenn | AH129: 87 | AK129: Anquan Boldin | AL129: 45 | AO129: Larry Fitzgerald | AP129: 30 | AS129: Deion Branch | AT129: 45 | AW129: Larry Fitzgerald | AX129: 115 | BA129: Larry Fitzgerald | BB129: 147 | BE129: Laveranues Coles | BF129: 216 | BI129: Laveranues Coles | BJ129: 16 | BN129: 16
A130: Steven Jackson | B130: 112 | E130: Steven Jackson | F130: 92 | I130: Rudi Johnson | J130: 47 | M130: Warrick Dunn | N130: 47 | Q130: LaMont Jordan | R130: 68 | U130: LaMont Jordan | V130: 40 | Y130: LaMont Jordan | Z130: 0 | AC130: Steven Jackson | AD130: 152 | AG130: Steven Jackson | AH130: 235 | AK130: Fred Taylor | AL130: 114 | AO130: Warrick Dunn | AP130: 42 | AS130: Warrick Dunn | AT130: 79 | AW130: Joseph Addai | AX130: 49 | BA130: Joseph Addai | BB130: 28 | BE130: Shaun Alexander | BF130: 93 | BI130: Shaun Alexander | BJ130: 194 | BN130: 194
A131: Corey Dillon | B131: 72 | E131: DeShaun Foster | F131: 38 | I131: Edgerrin James | J131: 115 | M131: LaMont Jordan | N131: 148 | Q131: Ahman Green | R131: 0 | U131: Warrick Dunn | V131: 142 | Y131: Warrick Dunn | Z131: 91 | AC131: Maurice Jones-Drew | AD131: 59 | AG131: Maurice Jones-Drew | AH131: 66 | AK131: Rudi Johnson | AL131: 108 | AO131: Tatum Bell | AP131: 0 | AS131: Joseph Addai | AT131: 328 | AW131: Tatum Bell | AX131: 98 | BA131: Warrick Dunn | BB131: 58 | BE131: Willie Parker | BF131: 133 | BI131: Willie Parker | BJ131: -1 | BN131: -1
A132: Antonio Gates | B132: 87 | E132: Antonio Gates | F132: 56 | I132: Todd Heap | J132: 109 | M132: Jason Witten | N132: 22 | Q132: Jason Witten | R132: 54 | U132: Jason Witten | V132: 26 | Y132: Jason Witten | Z132: 68 | AC132: Antonio Gates | AD132: 69 | AG132: Antonio Gates | AH132: 24 | AK132: Todd Heap | AL132: 52 | AO132: Jason Witten | AP132: 31 | AS132: Jason Witten | AT132: 35 | AW132: Jason Witten | AX132: 63 | BA132: Jason Witten | BB132: 42 | BE132: Jeremy Shockey | BF132: 86 | BI132: Jeremy Shockey | BJ132: 8 | BN132: 8
A133: Adam Vinatieri | B133: 110 | E133: Adam Vinatieri | F133: 110 | I133: Shayne Graham | J133: 40 | M133: John Kasay | N133: 30 | Q133: John Kasay | R133: 60 | U133: John Kasay | V133: 80 | Y133: John Kasay | Z133: 20 | AC133: Josh Brown | AD133: 40 | AG133: Josh Brown | AH133: 70 | AK133: Shayne Graham | AL133: 100 | AO133: Robbie Gould | AP133: 30 | AS133: Robbie Gould | AT133: 60 | AW133: Robbie Gould | AX133: 30 | BA133: Robbie Gould | BB133: 60 | BE133: Jeff Wilkins | BF133: 60 | BI133: Jeff Wilkins | BJ133: 60 | BN133: 60
A134: Pittsburgh | B134: 75 | E134: Pittsburgh | F134: 55 | I134: Tampa Bay | J134: 75 | M134: Chicago | N134: 115 | Q134: Chicago | R134: 125 | U134: Chicago | V134: 135 | Y134: Arizona | Z134: 115 | AC134: Pittsburgh | AD134: 80 | AG134: Jacksonville | AH134: 105 | AK134: San Diego | AL134: -5 | AO134: Chicago | AP134: 130 | AS134: Chicago | AT134: 90 | AW134: Chicago | AX134: 205 | BA134: Chicago | BB134: 85 | BE134: Atlanta | BF134: 35 | BI134: Atlanta | BJ134: 55 | BN134: 55
B135: =SUM(B126:B134) -> 691 | F135: =SUM(F126:F134) -> 681 | J135: =SUM(J126:J134) -> 1030 | N135: =SUM(N126:N134) -> 808 | R135: =SUM(R126:R134) -> 674 | V135: =SUM(V126:V134) -> 888 | Z135: =SUM(Z126:Z134) -> 633 | AD135: =SUM(AD126:AD134) -> 738 | AH135: =SUM(AH126:AH134) -> 848 | AL135: =SUM(AL126:AL134) -> 840 | AP135: =SUM(AP126:AP134) -> 564 | AT135: =SUM(AT126:AT134) -> 866 | AX135: =SUM(AX126:AX134) -> 775 | BB135: =SUM(BB126:BB134) -> 579 | BF135: =SUM(BF126:BF134) -> 1146 | BJ135: =SUM(BJ126:BJ134) -> 725 | BN135: =SUM(BJ126:BJ134) -> 725
A136: vs. | E136: vs. | I136: vs. | M136: vs. | Q136: vs. | U136: vs. | Y136: vs. | AC136: vs. | AG136: vs. | AK136: vs. | AO136: vs. | AS136: vs. | AW136: vs. | BA136: vs. | BE136: vs. | BI136: vs.
A138: =A11 -> Lam i roen | E138: =E11 -> FalchStars | I138: =I11 -> FalchStars | M138: =M11 -> Weak Knees Revenge | Q138: =Q11 -> Djohn | U138: =U11 -> Nilsson Monkeys | Y138: =Y11 -> Lam i roen | AC138: =AC11 -> Lam i roen | AG138: =AG11 -> FalchStars | AK138: =AK11 -> FalchStars | AO138: =AO11 -> Weak Knees Revenge | AS138: =AS11 -> Djohn | AW138: =AW11 -> Nilsson Monkeys | BA138: =BA11 -> Lam i roen | BE138: =BE15 -> Team-UhUh | BI138: =BI17 -> Team Ludoleif
B139: Points | F139: Points | J139: Points | N139: Points | R139: Points | V139: Points | Z139: Points | AD139: Points | AH139: Points | AL139: Points | AP139: Points | AT139: Points | AX139: Points | BB139: Points | BF139: Points | BJ139: Points | BN139: Points
A140: Jake Delhomme | B140: 40 | E140: Eli Manning | F140: 222 | I140: Brett Favre | J140: 211 | M140: Donovan McNabb | N140: 251 | Q140: Tom Brady | R140: 112 | U140: Carson Palmer | V140: 130 | Y140: Jake Delhomme | Z140: 135 | AC140: Rex Grossman | AD140: 193 | AG140: Eli Manning | AH140: 85 | AK140: Drew Brees | AL140: 184 | AO140: Donovan McNabb | AP140: 14 | AS140: Ben Roethlisberger | AT140: 35 | AW140: Carson Palmer | AX140: 117 | BA140: Chad Pennington | BB140: 78 | BE140: Peyton Manning | BF140: 247 | BI140: Matt Hasselbeck | BJ140: 47 | BN140: 47
A141: Marvin Harrison | B141: 120 | E141: Chad Ochocinco | F141: 142 | I141: Chad Ochocinco | J141: 12 | M141: Steve Smith | N141: 168 | Q141: Santana Moss | R141: 41 | U141: Anquan Boldin | V141: 210 | Y141: Laveranues Coles | Z141: 49 | AC141: Laveranues Coles | AD141: 46 | AG141: Chad Ochocinco | AH141: 41 | AK141: Chad Ochocinco | AL141: 348 | AO141: Steve Smith | AP141: 140 | AS141: T.J. Houshmandzadeh | AT141: 147 | AW141: Andre Johnson | AX141: 9 | BA141: Marvin Harrison | BB141: 97 | BE141: Roy Williams | BF141: 12 | BI141: Terrell Owens | BJ141: 85 | BN141: 85
A142: Torry Holt | B142: 88 | E142: Donald Driver | F142: 152 | I142: Donald Driver | J142: 88 | M142: Drew Bennett | N142: 16 | Q142: Terry Glenn | R142: 65 | U142: Andre Johnson | V142: 95 | Y142: Randy Moss | Z142: 181 | AC142: Marvin Harrison | AD142: 50 | AG142: Donald Driver | AH142: 169 | AK142: Donald Driver | AL142: 217 | AO142: Donte' Stallworth | AP142: 70 | AS142: Hines Ward | AT142: 42 | AW142: Anquan Boldin | AX142: 31 | BA142: Torry Holt | BB142: 200 | BE142: Deion Branch | BF142: 56 | BI142: Marques Colston | BJ142: 104 | BN142: 104
A143: Randy Moss | B143: 51 | E143: Derrick Mason | F143: 55 | I143: Derrick Mason | J143: 123 | M143: Isaac Bruce | N143: 181 | Q143: Jerricho Cotchery | R143: 52 | U143: Lee Evans | V143: 94 | Y143: Marvin Harrison | Z143: 203 | AC143: Torry Holt | AD143: 57 | AG143: Bernard Berrian | AH143: 11 | AK143: Derrick Mason | AL143: 142 | AO143: Plaxico Burress | AP143: 128 | AS143: Terry Glenn | AT143: 199 | AW143: Lee Evans | AX143: 55 | BA143: Laveranues Coles | BB143: 124 | BE143: Larry Fitzgerald | BF143: 76 | BI143: Muhsin Muhammad | BJ143: 57 | BN143: 57
A144: Shaun Alexander | B144: 24 | E144: LaDainian Tomlinson | F144: 205 | I144: Carnell Williams | J144: 97 | M144: Clinton Portis | N144: 147 | Q144: Steven Jackson | R144: 93 | U144: Rudi Johnson | V144: 34 | Y144: Willie Parker | Z144: 11 | AC144: Willie Parker | AD144: 143 | AG144: LaDainian Tomlinson | AH144: 277 | AK144: LaDainian Tomlinson | AL144: 315 | AO144: Larry Johnson | AP144: 192 | AS144: Steven Jackson | AT144: 217 | AW144: Rudi Johnson | AX144: 52 | BA144: Shaun Alexander | BB144: 44 | BE144: Tatum Bell | BF144: 17 | BI144: Tiki Barber | BJ144: 70 | BN144: 70
A145: Willie Parker | B145: 99 | E145: Carnell Williams | F145: 24 | I145: Kevin Jones | J145: 153 | M145: Larry Johnson | N145: 204 | Q145: DeShaun Foster | R145: 93 | U145: Edgerrin James | V145: 25 | Y145: Julius Jones | Z145: 41 | AC145: Julius Jones | AD145: 106 | AG145: Kevin Jones | AH145: 203 | AK145: Kevin Jones | AL145: 101 | AO145: Reggie Bush | AP145: 112 | AS145: Maurice Jones-Drew | AT145: 153 | AW145: Edgerrin James | AX145: 76 | BA145: Willie Parker | BB145: 173 | BE145: Joseph Addai | BF145: 62 | BI145: Brian Westbrook | BJ145: 95 | BN145: 95
A146: Jeremy Shockey | B146: 124 | E146: Dallas Clark | F146: 32 | I146: Dallas Clark | J146: 85 | M146: Benjamin Watson | N146: 28 | Q146: Antonio Gates | R146: 111 | U146: Todd Heap | V146: 121 | Y146: L.J. Smith | Z146: 45 | AC146: Jeremy Shockey | AD146: 25 | AG146: Alge Crumpler | AH146: 111 | AK146: Alge Crumpler | AL146: 44 | AO146: Benjamin Watson | AP146: 134 | AS146: Antonio Gates | AT146: 144 | AW146: Todd Heap | AX146: 39 | BA146: Jeremy Shockey | BB146: 122 | BE146: Jason Witten | BF146: 62 | BI146: Tony Gonzalez | BJ146: 69 | BN146: 69
A147: Jeff Wilkins | B147: 150 | E147: Lawrence Tynes | F147: 50 | I147: Robbie Gould | J147: 110 | M147: Neil Rackers | N147: 30 | Q147: Joe Nedney | R147: 80 | U147: Shayne Graham | V147: 60 | Y147: Josh Scobee | Z147: 10 | AC147: Jeff Wilkins | AD147: 50 | AG147: Ryan Longwell | AH147: 20 | AK147: Ryan Longwell | AL147: 40 | AO147: Adam Vinatieri | AP147: 20 | AS147: Josh Brown | AT147: 120 | AW147: Shayne Graham | AX147: 50 | BA147: Josh Scobee | BB147: 130 | BE147: Robbie Gould | BF147: 80 | BI147: Jay Feely | BJ147: 10 | BN147: 10
A148: New England | B148: 75 | E148: Baltimore | F148: 210 | I148: Baltimore | J148: 75 | M148: Carolina | N148: 35 | Q148: Jacksonville | R148: 190 | U148: San Diego | V148: 65 | Y148: Atlanta | Z148: 35 | AC148: Atlanta | AD148: 30 | AG148: Baltimore | AH148: 90 | AK148: Baltimore | AL148: 30 | AO148: New England | AP148: 145 | AS148: Jacksonville | AT148: 10 | AW148: San Diego | AX148: 75 | BA148: Atlanta | BB148: 145 | BE148: Chicago | BF148: 30 | BI148: Seattle | BJ148: 15 | BN148: 15
B149: =SUM(B140:B148) -> 771 | F149: =SUM(F140:F148) -> 1092 | J149: =SUM(J140:J148) -> 954 | N149: =SUM(N140:N148) -> 1060 | R149: =SUM(R140:R148) -> 837 | V149: =SUM(V140:V148) -> 834 | Z149: =SUM(Z140:Z148) -> 710 | AD149: =SUM(AD140:AD148) -> 700 | AH149: =SUM(AH140:AH148) -> 1007 | AL149: =SUM(AL140:AL148) -> 1421 | AP149: =SUM(AP140:AP148) -> 955 | AT149: =SUM(AT140:AT148) -> 1067 | AX149: =SUM(AX140:AX148) -> 504 | BB149: =SUM(BB140:BB148) -> 1113 | BF149: =SUM(BF140:BF148) -> 642 | BJ149: =SUM(BJ140:BJ148) -> 552 | BN149: =SUM(BJ140:BJ148) -> 552
A154: =A13 -> Nilsson Monkeys | E154: =E13 -> Nilsson Monkeys | I154: =I13 -> Lam i roen | M154: =M13 -> Lam i roen | Q154: =Q13 -> FalchStars | U154: =U13 -> Djohn | Y154: =Y13 -> Djohn | AC154: =AC13 -> Nilsson Monkeys | AG154: =AG13 -> Nilsson Monkeys | AK154: =AK13 -> Lam i roen | AO154: =AO13 -> Lam i roen | AS154: =AS13 -> FalchStars | AW154: =AW13 -> Djohn | BA154: =BA13 -> Djohn | BE154: =BE17 -> Nilsson Monkeys | BI154: =BI21 -> Team-UhUh
B155: Points | F155: Points | J155: Points | N155: Points | R155: Points | V155: Points | Z155: Points | AD155: Points | AH155: Points | AL155: Points | AP155: Points | AT155: Points | AX155: Points | BB155: Points | BF155: Points | BJ155: Points | BN155: Points
A156: Carson Palmer | B156: 31 | E156: Carson Palmer | F156: 160 | I156: Jon Kitna | J156: 182 | M156: Jake Delhomme | N156: 128 | Q156: Brett Favre | R156: 92 | U156: Mark Brunell | V156: 105 | Y156: Tom Brady | Z156: 136 | AC156: Carson Palmer | AD156: 146 | AG156: Philip Rivers | AH156: 99 | AK156: Jake Delhomme | AL156: 143 | AO156: Jake Delhomme | AP156: 79 | AS156: Drew Brees | AT156: 180 | AW156: Tom Brady | AX156: 135 | BA156: Tom Brady | BB156: 10 | BE156: Carson Palmer | BF156: 45 | BI156: Peyton Manning | BJ156: 177 | BN156: 177
A157: Anquan Boldin | B157: 121 | E157: Anquan Boldin | F157: 71 | I157: Marvin Harrison | J157: 92 | M157: Marvin Harrison | N157: 87 | Q157: Donald Driver | R157: 31 | U157: Santana Moss | V157: 100 | Y157: Santana Moss | Z157: 28 | AC157: Anquan Boldin | AD157: 51 | AG157: Andre Johnson | AH157: 100 | AK157: Marvin Harrison | AL157: 24 | AO157: Marvin Harrison | AP157: 72 | AS157: Chad Ochocinco | AT157: 121 | AW157: T.J. Houshmandzadeh | AX157: 180 | BA157: T.J. Houshmandzadeh | BB157: 178 | BE157: Andre Johnson | BF157: 43 | BI157: Larry Fitzgerald | BJ157: 142 | BN157: 142
A158: Andre Johnson | B158: 97 | E158: Andre Johnson | F158: 117 | I158: Torry Holt | J158: 180 | M158: Torry Holt | N158: 158 | Q158: Derrick Mason | R158: 45 | U158: Terry Glenn | V158: 56 | Y158: T.J. Houshmandzadeh | Z158: 135 | AC158: Andre Johnson | AD158: 157 | AG158: Darrell Jackson | AH158: 49 | AK158: Torry Holt | AL158: 83 | AO158: Torry Holt | AP158: 60 | AS158: Donald Driver | AT158: 134 | AW158: Terry Glenn | AX158: 54 | BA158: Terry Glenn | BB158: 140 | BE158: Lee Evans | BF158: 119 | BI158: Braylon Edwards | BJ158: 14 | BN158: 14
A159: Lee Evans | B159: 26 | E159: Lee Evans | F159: 22 | I159: Laveranues Coles | J159: 102 | M159: Laveranues Coles | N159: 84 | Q159: Amani Toomer | R159: 74 | U159: T.J. Houshmandzadeh | V159: 178 | Y159: Terry Glenn | Z159: 47 | AC159: Darrell Jackson | AD159: 117 | AG159: Lee Evans | AH159: 108 | AK159: Laveranues Coles | AL159: 44 | AO159: Laveranues Coles | AP159: 93 | AS159: Bernard Berrian | AT159: 94 | AW159: Santana Moss | AX159: 177 | BA159: Santana Moss | BB159: 32 | BE159: Anquan Boldin | BF159: 68 | BI159: Joey Galloway | BJ159: 32 | BN159: 32
A160: Rudi Johnson | B160: 118 | E160: Rudi Johnson | F160: 198 | I160: Shaun Alexander | J160: 94 | M160: Dominic Rhodes | N160: 95 | Q160: LaDainian Tomlinson | R160: 86 | U160: Steven Jackson | V160: 143 | Y160: DeShaun Foster | Z160: 62 | AC160: Travis Henry | AD160: 19 | AG160: Fred Taylor | AH160: 52 | AK160: Willie Parker | AL160: 250 | AO160: Willie Parker | AP160: 166 | AS160: LaDainian Tomlinson | AT160: 206 | AW160: Steven Jackson | AX160: 155 | BA160: Steven Jackson | BB160: 247 | BE160: Rudi Johnson | BF160: 118 | BI160: Tatum Bell | BJ160: 13 | BN160: 13
A161: Edgerrin James | B161: 116 | E161: Edgerrin James | F161: 99 | I161: Willie Parker | J161: 191 | M161: Julius Jones | N161: 126 | Q161: Carnell Williams | R161: 98 | U161: Deuce McAllister | V161: 96 | Y161: Maurice Jones-Drew | Z161: 124 | AC161: Rudi Johnson | AD161: 90 | AG161: Thomas Jones | AH161: 82 | AK161: Julius Jones | AL161: 30 | AO161: Shaun Alexander | AP161: 30 | AS161: Carnell Williams | AT161: 52 | AW161: Deuce McAllister | AX161: 97 | BA161: Maurice Jones-Drew | BB161: 275 | BE161: Edgerrin James | BF161: 103 | BI161: Warrick Dunn | BJ161: 30 | BN161: 30
A162: Todd Heap | B162: 55 | E162: Todd Heap | F162: 96 | I162: L.J. Smith | J162: 87 | M162: L.J. Smith | N162: 35 | Q162: Dallas Clark | R162: 20 | U162: Antonio Gates | V162: 137 | Y162: Antonio Gates | Z162: 147 | AC162: Todd Heap | AD162: 106 | AG162: Todd Heap | AH162: 76 | AK162: L.J. Smith | AL162: 10 | AO162: L.J. Smith | AP162: 133 | AS162: Alge Crumpler | AT162: 33 | AW162: Antonio Gates | AX162: 155 | BA162: Antonio Gates | BB162: 224 | BE162: Todd Heap | BF162: 63 | BI162: Jason Witten | BJ162: 63 | BN162: 63
A163: Shayne Graham | B163: 90 | E163: Shayne Graham | F163: 80 | I163: Jeff Wilkins | J163: 80 | M163: Jeff Wilkins | N163: 140 | Q163: Robbie Gould | R163: 150 | U163: Joe Nedney | V163: 50 | Y163: Josh Brown | Z163: 60 | AC163: Shayne Graham | AD163: 90 | AG163: Shayne Graham | AH163: 80 | AK163: Josh Scobee | AL163: 40 | AO163: Jeff Wilkins | AP163: 0 | AS163: Ryan Longwell | AT163: 70 | AW163: Josh Brown | AX163: 110 | BA163: Josh Brown | BB163: 30 | BE163: Shayne Graham | BF163: 70 | BI163: Robbie Gould | BJ163: 110 | BN163: 110
A164: Tampa Bay | B164: 5 | E164: Tampa Bay | F164: 75 | I164: New England | J164: 10 | M164: New England | N164: 100 | Q164: Baltimore | R164: 75 | U164: Pittsburgh | V164: 105 | Y164: Jacksonville | Z164: 5 | AC164: San Diego | AD164: 65 | AG164: San Diego | AH164: 85 | AK164: Atlanta | AL164: 75 | AO164: Atlanta | AP164: 30 | AS164: Baltimore | AT164: 215 | AW164: Jacksonville | AX164: 80 | BA164: Pittsburgh | BB164: 70 | BE164: San Diego | BF164: 100 | BI164: Chicago | BJ164: 35 | BN164: 35
B165: =SUM(B156:B164) -> 659 | F165: =SUM(F156:F164) -> 918 | J165: =SUM(J156:J164) -> 1018 | N165: =SUM(N156:N164) -> 953 | R165: =SUM(R156:R164) -> 671 | V165: =SUM(V156:V164) -> 970 | Z165: =SUM(Z156:Z164) -> 744 | AD165: =SUM(AD156:AD164) -> 841 | AH165: =SUM(AH156:AH164) -> 731 | AL165: =SUM(AL156:AL164) -> 699 | AP165: =SUM(AP156:AP164) -> 663 | AT165: =SUM(AT156:AT164) -> 1105 | AX165: =SUM(AX156:AX164) -> 1143 | BB165: =SUM(BB156:BB164) -> 1206 | BF165: =SUM(BF156:BF164) -> 729 | BJ165: =SUM(BJ156:BJ164) -> 616 | BN165: =SUM(BJ156:BJ164) -> 616
A166: vs. | E166: vs. | I166: vs. | M166: vs. | Q166: vs. | U166: vs. | Y166: vs. | AC166: vs. | AG166: vs. | AK166: vs. | AO166: vs. | AS166: vs. | AW166: vs. | BA166: vs. | BE166: vs. | BI166: vs.
A168: =A14 -> Weak Knees Revenge | E168: =E14 -> Lam i roen | I168: =I14 -> Weak Knees Revenge | M168: =M14 -> FalchStars | Q168: =Q14 -> Weak Knees Revenge | U168: =U14 -> Weak Knees Revenge | Y168: =Y14 -> Nilsson Monkeys | AC168: =AC14 -> Weak Knees Revenge | AG168: =AG14 -> Lam i roen | AK168: =AK14 -> Weak Knees Revenge | AO168: =AO14 -> FalchStars | AS168: =AS14 -> Weak Knees Revenge | AW168: =AW14 -> Weak Knees Revenge | BA168: =BA14 -> Nilsson Monkeys | BE168: =BE18 -> Team Ludoleif | BI168: =BI22 -> Nilsson Monkeys
B169: Points | F169: Points | J169: Points | N169: Points | R169: Points | V169: Points | Z169: Points | AD169: Points | AH169: Points | AL169: Points | AP169: Points | AT169: Points | AX169: Points | BB169: Points | BF169: Points | BJ169: Points | BN169: Points
A170: Donovan McNabb | B170: 199 | E170: Jake Delhomme | F170: 63 | I170: Donovan McNabb | J170: 155 | M170: Drew Bledsoe | N170: 113 | Q170: Donovan McNabb | R170: 194 | U170: Donovan McNabb | V170: 136 | Y170: Carson Palmer | Z170: 154 | AC170: Donovan McNabb | AD170: 84 | AG170: Rex Grossman | AH170: 44 | AK170: Donovan McNabb | AL170: 142 | AO170: Drew Brees | AP170: 216 | AS170: Matt Leinart | AT170: 153 | AW170: Matt Leinart | AX170: 97 | BA170: Carson Palmer | BB170: 136 | BE170: Matt Hasselbeck | BF170: 90 | BI170: Carson Palmer | BJ170: 119 | BN170: 119
A171: Drew Bennett | B171: 130 | E171: Marvin Harrison | F171: 119 | I171: Donte' Stallworth | J171: 0 | M171: Chad Ochocinco | N171: 72 | Q171: Steve Smith | R171: 75 | U171: Steve Smith | V171: 226 | Y171: Anquan Boldin | Z171: 61 | AC171: Steve Smith | AD171: 127 | AG171: Marvin Harrison | AH171: 256 | AK171: Plaxico Burress | AL171: 52 | AO171: Chad Ochocinco | AP171: 338 | AS171: Steve Smith | AT171: 109 | AW171: Steve Smith | AX171: 126 | BA171: Andre Johnson | BB171: 80 | BE171: Terrell Owens | BF171: 191 | BI171: Andre Johnson | BJ171: 52 | BN171: 52
A172: Donte' Stallworth | B172: 184 | E172: Torry Holt | F172: 105 | I172: Steve Smith | J172: 109 | M172: Donald Driver | N172: 58 | Q172: Isaac Bruce | R172: 25 | U172: Plaxico Burress | V172: 49 | Y172: Andre Johnson | Z172: 170 | AC172: Plaxico Burress | AD172: 152 | AG172: Torry Holt | AH172: 48 | AK172: Steve Smith | AL172: 196 | AO172: Donald Driver | AP172: 38 | AS172: Plaxico Burress | AT172: 109 | AW172: Plaxico Burress | AX172: 118 | BA172: Anquan Boldin | BB172: 51 | BE172: Marques Colston | BF172: 91 | BI172: Lee Evans | BJ172: 126 | BN172: 126
A173: Nate Burleson | B173: 29 | E173: Laveranues Coles | F173: 156 | I173: Isaac Bruce | J173: 67 | M173: Derrick Mason | N173: 44 | Q173: Plaxico Burress | R173: 141 | U173: Isaac Bruce | V173: 55 | Y173: Darrell Jackson | Z173: 185 | AC173: Donte' Stallworth | AD173: 52 | AG173: Randy Moss | AH173: 80 | AK173: Donte' Stallworth | AL173: 182 | AO173: Bernard Berrian | AP173: 0 | AS173: Drew Bennett | AT173: 38 | AW173: Isaac Bruce | AX173: 135 | BA173: Darrell Jackson | BB173: 125 | BE173: Muhsin Muhammad | BF173: 86 | BI173: Anquan Boldin | BJ173: 62 | BN173: 62
A174: Larry Johnson | B174: 123 | E174: Shaun Alexander | F174: 115 | I174: Laurence Maroney | J174: 77 | M174: Kevin Jones | N174: 179 | Q174: Clinton Portis | R174: 50 | U174: Clinton Portis | V174: 164 | Y174: Edgerrin James | Z174: 29 | AC174: Larry Johnson | AD174: 325 | AG174: Julius Jones | AH174: 48 | AK174: Larry Johnson | AL174: 114 | AO174: LaDainian Tomlinson | AP174: 329 | AS174: Larry Johnson | AT174: 158 | AW174: Larry Johnson | AX174: 100 | BA174: Thomas Jones | BB174: 122 | BE174: Tiki Barber | BF174: 139 | BI174: Rudi Johnson | BJ174: 128 | BN174: 128
A175: Clinton Portis | B175: 88 | E175: Willie Parker | F175: 32 | I175: Clinton Portis | J175: 209 | M175: LaDainian Tomlinson | N175: 74 | Q175: Larry Johnson | R175: 164 | U175: Larry Johnson | V175: 81 | Y175: Fred Taylor | Z175: 53 | AC175: Tatum Bell | AD175: 18 | AG175: Willie Parker | AH175: 230 | AK175: Clinton Portis | AL175: 25 | AO175: Kevin Jones | AP175: 5 | AS175: Reggie Bush | AT175: 45 | AW175: Ahman Green | AX175: 113 | BA175: Rudi Johnson | BB175: 156 | BE175: Brian Westbrook | BF175: 205 | BI175: Edgerrin James | BJ175: 77 | BN175: 77
A176: Benjamin Watson | B176: 48 | E176: Marques Colston | F176: 118 | I176: Benjamin Watson | J176: 61 | M176: Dallas Clark | N176: 19 | Q176: Benjamin Watson | R176: 42 | U176: Ben Troupe | V176: 0 | Y176: Randy McMichael | Z176: 86 | AC176: Benjamin Watson | AD176: 158 | AG176: Jeremy Shockey | AH176: 144 | AK176: Benjamin Watson | AL176: 20 | AO176: Alge Crumpler | AP176: 20 | AS176: Benjamin Watson | AT176: 149 | AW176: Benjamin Watson | AX176: 22 | BA176: Todd Heap | BB176: 42 | BE176: Tony Gonzalez | BF176: 65 | BI176: Todd Heap | BJ176: 53 | BN176: 53
A177: Neil Rackers | B177: 80 | E177: Jeff Wilkins | F177: 70 | I177: Neil Rackers | J177: 20 | M177: Robbie Gould | N177: 110 | Q177: Neil Rackers | R177: 80 | U177: Neil Rackers | V177: 90 | Y177: Shayne Graham | Z177: 40 | AC177: Neil Rackers | AD177: 20 | AG177: Josh Scobee | AH177: 110 | AK177: Adam Vinatieri | AL177: 40 | AO177: Ryan Longwell | AP177: 60 | AS177: Adam Vinatieri | AT177: 90 | AW177: Adam Vinatieri | AX177: 40 | BA177: Shayne Graham | BB177: -20 | BE177: Jay Feely | BF177: 80 | BI177: Shayne Graham | BJ177: 50 | BN177: 50
A178: Carolina | B178: 25 | E178: New England | F178: 40 | I178: Carolina | J178: 35 | M178: Baltimore | N178: 75 | Q178: Carolina | R178: 120 | U178: Carolina | V178: 55 | Y178: San Diego | Z178: 20 | AC178: Carolina | AD178: -20 | AG178: Atlanta | AH178: 15 | AK178: New England | AL178: 25 | AO178: Baltimore | AP178: 65 | AS178: New England | AT178: 105 | AW178: New England | AX178: 105 | BA178: San Diego | BB178: 50 | BE178: Seattle | BF178: 0 | BI178: San Diego | BJ178: 60 | BN178: 60
B179: =SUM(B170:B178) -> 906 | F179: =SUM(F170:F178) -> 818 | J179: =SUM(J170:J178) -> 733 | N179: =SUM(N170:N178) -> 744 | R179: =SUM(R170:R178) -> 891 | V179: =SUM(V170:V178) -> 856 | Z179: =SUM(Z170:Z178) -> 798 | AD179: =SUM(AD170:AD178) -> 916 | AH179: =SUM(AH170:AH178) -> 975 | AL179: =SUM(AL170:AL178) -> 796 | AP179: =SUM(AP170:AP178) -> 1071 | AT179: =SUM(AT170:AT178) -> 956 | AX179: =SUM(AX170:AX178) -> 856 | BB179: =SUM(BB170:BB178) -> 742 | BF179: =SUM(BF170:BF178) -> 947 | BJ179: =SUM(BJ170:BJ178) -> 727 | BN179: =SUM(BJ170:BJ178) -> 727
A185: Transactions Week 1 | E185: Transactions Week 2 | I185: Transactions Week 3 | M185: Transactions Week 4 | Q185: Transactions Week 5 | U185: Transactions Week 6 | Y185: Transactions Week 7 | AC185: Transactions Week 8 | AG185: Transactions Week 9 | AK185: Transactions Week 10 | AO185: Transactions Week 11 | AS185: Transactions Week 12 | AW185: Transactions Week 13 | BA185: Transactions Week 14 | BE185: Transactions Week 15 | BI185: Transactions Week 16
A187: Team-UhUh | E187: Team Ludoleif | I187: FalchStars | M187: Lam i roen | Q187: FalchStars | U187: Djohn | Y187: Weak Knees Revenge | AC187: FalchStars | AG187: Weak Knees Revenge | AK187: Team-UhUh | AO187: Pilgaards Mannschaft | AS187: Team Ludoleif | AW187: Pilgaards Mannschaft
A188: Jason Elam | B188: Drop | E188: Daniel Graham | F188: Drop | I188: Reggie Brown | J188: Drop | M188: Chris Brown | N188: Drop | Q188: Reuben Droughns | R188: Drop | U188: Ben Roethlisberger | V188: Drop | Y188: Jamal Lewis | Z188: Drop | AC188: Philadelphia | AD188: Drop | AG188: Neil Rackers | AH188: Drop | AK188: Arizona | AL188: Drop | AO188: Willis McGahee | AP188: Drop | AS188: David Akers | AT188: Drop | AW188: Jon Kitna | AX188: Drop
A189: Jay Feely | B189: Add | E189: Heath Miller | F189: Add | I189: Kevin Jones | J189: Add | M189: Jake Delhomme | N189: Add | Q189: Amani Toomer | R189: Add | U189: Mark Brunell | V189: Add | Y189: Matt Leinart | Z189: Add | AC189: Drew Brees | AD189: Add | AG189: Adam Vinatieri | AH189: Add | AK189: Joseph Addai | AL189: Add | AO189: Ladell Betts | AP189: Add | AS189: Owen Daniels | AT189: Add | AW189: Tony Romo | AX189: Add
A191: Weak Knees Revenge | E191: Pilgaards Mannschaft | I191: Lawrence Tynes | J191: Drop | M191: New York Giants | N191: Drop | Q191: Pilgaards Mannschaft | U191: Corey Dillon | V191: Drop | Y191: Ben Troupe | Z191: Drop | AC191: Team-UhUh | AG191: Carolina | AH191: Drop | AK191: Djohn | AO191: Weak Knees Revenge
A192: Santonio Holmes | B192: Drop | E192: Mike Vanderjagt | F192: Drop | I192: Robbie Gould | J192: Add | M192: Dominic Rhodes | N192: Add | Q192: Kurt Warner | R192: Drop | U192: Deuce McAllister | V192: Add | Y192: Deion Branch | Z192: Add | AC192: John Kasay | AD192: Drop | AG192: New England | AH192: Add | AK192: Jerricho Cotchery | AL192: Drop | AO192: Tatum Bell | AP192: Trade | AQ192: to T-UhUh
A193: Tatum Bell | B193: Add | E193: Jason Elam | F193: Add | Q193: Byron Leftwich | R193: Add | AC193: Robbie Gould | AD193: Add | AK193: Kevin Curtis | AL193: Add | AO193: Deion Branch | AP193: Trade | AQ193: to T-UhUh
I194: Djohn | M194: Marques Colston | N194: to T-Ludo | U194: FalchStars | Y194: FalchStars | AG194: Nilsson Monkeys
A195: Isaac Bruce | B195: Drop | E195: Lam i roen | I195: Bobby Engram | J195: Drop | Q195: Weak Knees Revenge | U195: Deion Branch | V195: Drop | Y195: Robbie Gould | Z195: Drop | AC195: Pilgaards Mannschaft | AG195: Travis Henry | AH195: Drop | AO195: Team-UhUh
A196: Nate Burleson | B196: Add | E196: Kevin Jones | F196: Drop | I196: Jerricho Cotchery | J196: Add | M196: Nilsson Monkeys | Q196: Daunte Culpepper | R196: Drop | U196: Bernard Berrian | V196: Add | Y196: Ryan Longwell | Z196: Add | AC196: Byron Leftwich | AD196: Drop | AG196: Thomas Jones | AH196: Add | AO196: Ahman Green | AP196: Trade | AQ196: to WKR
E197: Marques Colston | F197: Add | M197: Amani Toomer | N197: Drop | Q197: Brad Johnson | R197: Add | AC197: Jon Kitna | AD197: Add | AO197: Reggie Bush | AP197: Trade | AQ197: to WKR
A198: FalchStars | I198: Jerramy Stevens | J198: Drop | M198: Doug Gabriel | N198: Add | U198: Team-UhUh | Y198: Drew Bledsoe | Z198: Drop | AG198: Team Ludoleif
A199: Ahman Green | B199: Drop | E199: Team-UhUh | I199: Desmond Clark | J199: Add | Q199: Nate Burleson | R199: Trade | S199: to T-Ludo | U199: Rod Smith | V199: Drop | Y199: Philadelphia | Z199: Add | AC199: Team Ludoleif | AG199: Heath Miller | AH199: Drop
A200: Drew Bledsoe | B200: Add | E200: Deuce McAllister | F200: Drop | M200: Tampa Bay | N200: Drop | Q200: Laurence Maroney | R200: Trade | S200: to T-Ludo | U200: Reggie Williams | V200: Add | AC200: Alex Smith | AD200: Drop | AG200: Jay Feely | AH200: Add
E201: Ahman Green | F201: Add | I201: Adam Vinatieri | J201: Drop | M201: San Diego | N201: Add | Y201: Nilsson Monkeys | AC201: David Carr | AD201: Add
A202: Nilsson Monkeys | I202: Joe Nedney | J202: Add | Q202: Team Ludoleif | U202: Pilgaards Mannschaft | Y202: Thomas Jones | Z202: Drop
A203: Roddy White | B203: Drop | E203: Weak Knees Revenge | M203: Vernon Davis | N203: Drop | Q203: Jamal Lewis | R203: Trade | S203: to WKR | U203: Indianapolis | V203: Drop | Y203: Travis Henry | Z203: Add | AC203: Djohn
A204: Lee Evans | B204: Add | E204: Joseph Addai | F204: Drop | I204: Lam i roen | M204: Eric Johnson | N204: Add | Q204: Plaxico Burress | R204: Trade | S204: to WKR | U204: Denver | V204: Add | AC204: DeShaun Foster | AD204: Drop
E205: Isaac Bruce | F205: Add | I205: Jake Delhomme | J205: Drop | Y205: Eric Johnson | Z205: Drop | AC205: Ben Roethlisberger | AD205: Add
I206: Rex Grossman | J206: Add | M206: Pilgaards Mannschaft | U206: Lam i roen | Y206: Randy McMichael | Z206: Add
M207: Jason Elam | N207: Drop | U207: New England | V207: Drop
I208: Nilsson Monkeys | M208: Nate Kaeding | N208: Add | U208: Atlanta | V208: Add | Y208: Djohn
I209: Mark Clayton | J209: Drop | Y209: Desmond Clark | Z209: Drop
I210: Amani Toomer | J210: Add | M210: Team Ludoleif | Y210: Maurice Jones-Drew | Z210: Add
M211: Brandon Stokley | N211: Drop
I212: Team Ludoleif | M212: Eric Moulds | N212: Add | Y212: Joe Nedney | Z212: Drop
I213: Keyshawn Johnson | J213: Drop | Y213: Josh Brown | Z213: Add
I214: Antonio Bryant | J214: Add | M214: Aaron Brooks | N214: Drop
M215: Alex Smith | N215: Add | Y215: Team-UhUh
Y216: Keyshawn Johnson | Z216: Drop
M217: Julius Jones | N217: to Lam | Y217: Arizona | Z217: Add
M219: Team-UhUh | Y219: Team Ludoleif
M220: Jay Feely | N220: Drop | Y220: Nate Burleson | Z220: Drop
M221: John Kasay | N221: Add | Y221: Reggie Brown | Z221: Add
M223: Eddie Kennison | N223: Drop | Y223: Lam i roen
M224: Keyshawn Johnson | N224: Add | Y224: Jon Kitna | Z224: Drop
Y225: Josh Scobee | Z225: Add
M226: Randy McMichael | N226: Drop
M227: Braylon Edwards | N227: Add
A233: Draft Results
A235: Weak Knees Revenge | B235: Pick | C235: TP 2006 | E235: FalchStars | F235: Pick | G235: TP 2006 | I235: Lam i roen | J235: Pick | K235: TP 2006 | M235: Team Ludoleif | N235: Pick | O235: TP 2006 | Q235: Djohn | R235: Pick | S235: TP 2006 | U235: Pilgaards Mannschaft | V235: Pick | W235: TP 2006 | Y235: Nilsson Monkeys | Z235: Pick | AA235: TP 2006 | AC235: Team-UhUh | AD235: Pick | AE235: TP 2006
A236: Larry Johnson | B236: 1 | C236: 1 | E236: LaDainian Tomlinson | F236: 1 | G236: 2 | I236: Shaun Alexander | J236: 1 | K236: 3 | M236: Tiki Barber | N236: 1 | O236: 4 | Q236: Steven Jackson | R236: 1 | S236: 5 | U236: Ronnie Brown | V236: 1 | W236: 6 | Y236: Rudi Johnson | Z236: 1 | AA236: 7 | AC236: Peyton Manning | AD236: 1 | AE236: 8
A237: Clinton Portis | B237: 2 | C237: 16 | E237: Carnell Williams | F237: 2 | G237: 15 | I237: Marvin Harrison | J237: 2 | K237: 14 | M237: Matt Hasselbeck | N237: 2 | O237: 13 | Q237: Tom Brady | R237: 2 | S237: 12 | U237: Willis McGahee | V237: 2 | W237: 11 | Y237: Carson Palmer | Z237: 2 | AA237: 10 | AC237: LaMont Jordan | AD237: 2 | AE237: 9
A238: Steve Smith | B238: 3 | C238: 17 | E238: Chad Ochocinco | F238: 3 | G238: 18 | I238: Torry Holt | J238: 3 | K238: 19 | M238: Terrell Owens | N238: 3 | O238: 20 | Q238: Antonio Gates | R238: 3 | S238: 21 | U238: Chris Chambers | V238: 3 | W238: 22 | Y238: Anquan Boldin | Z238: 3 | AA238: 23 | AC238: Larry Fitzgerald | AD238: 3 | AE238: 24
A239: Donovan McNabb | B239: 4 | C239: 32 | E239: Eli Manning | F239: 4 | G239: 31 | I239: Randy Moss | J239: 4 | K239: 30 | M239: Brian Westbrook | N239: 4 | O239: 29 | Q239: Santana Moss | R239: 4 | S239: 28 | U239: Reggie Wayne | V239: 4 | W239: 27 | Y239: Edgerrin James | Z239: 4 | AA239: 26 | AC239: Warrick Dunn | AD239: 4 | AE239: 25
A240: Donte' Stallworth | B240: 5 | C240: 33 | E240: Donald Driver | F240: 5 | G240: 34 | I240: Willie Parker | J240: 5 | K240: 35 | M240: Tony Gonzalez | N240: 5 | O240: 36 | Q240: Hines Ward | R240: 5 | S240: 37 | U240: Frank Gore | V240: 5 | W240: 38 | Y240: Todd Heap | Z240: 5 | AA240: 39 | AC240: Roy Williams | AD240: 5 | AE240: 40
A241: Daunte Culpepper | B241: 6 | C241: 48 | E241: Alge Crumpler | F241: 6 | G241: 47 | I241: Jeremy Shockey | J241: 6 | K241: 46 | M241: Julius Jones | N241: 6 | O241: 45 | Q241: DeShaun Foster | R241: 6 | S241: 44 | U241: Chester Taylor | V241: 6 | W241: 43 | Y241: Darrell Jackson | Z241: 6 | AA241: 42 | AC241: Chicago | AD241: 6 | AE241: 41
A242: Carolina | B242: 7 | C242: 49 | E242: Baltimore | F242: 7 | G242: 50 | I242: Jake Delhomme | J242: 7 | K242: 51 | M242: Plaxico Burress | N242: 7 | O242: 52 | Q242: Pittsburgh | R242: 7 | S242: 53 | U242: Marc Bulger | V242: 7 | W242: 54 | Y242: Fred Taylor | Z242: 7 | AA242: 55 | AC242: Jason Witten | AD242: 7 | AE242: 56
A243: Neil Rackers | B243: 8 | C243: 64 | E243: Reuben Droughns | F243: 8 | G243: 63 | I243: Laveranues Coles | J243: 8 | K243: 62 | M243: Seattle | N243: 8 | O243: 61 | Q243: T.J. Houshmandzadeh | R243: 8 | S243: 60 | U243: Kurt Warner | V243: 8 | W243: 59 | Y243: Tampa Bay | Z243: 8 | AA243: 58 | AC243: Reggie Bush | AD243: 8 | AE243: 57
A244: Drew Bennett | B244: 9 | C244: 65 | E244: Derrick Mason | F244: 9 | G244: 66 | I244: New England | J244: 9 | K244: 67 | M244: Muhsin Muhammad | N244: 9 | O244: 68 | Q244: Terry Glenn | R244: 9 | S244: 69 | U244: Javon Walker | V244: 9 | W244: 70 | Y244: Andre Johnson | Z244: 9 | AA244: 71 | AC244: Jason Elam | AD244: 9 | AE244: 72
A245: Isaac Bruce | B245: 10 | C245: 80 | E245: Deion Branch | F245: 10 | G245: 79 | I245: Chris Brown | J245: 10 | K245: 78 | M245: Keyshawn Johnson | N245: 10 | O245: 77 | Q245: Adam Vinatieri | R245: 10 | S245: 76 | U245: Chris Cooley | V245: 10 | W245: 75 | Y245: Shayne Graham | Z245: 10 | AA245: 74 | AC245: Joey Galloway | AD245: 10 | AE245: 73
A246: Benjamin Watson | B246: 11 | C246: 81 | E246: Brett Favre | F246: 11 | G246: 82 | I246: Jon Kitna | J246: 11 | K246: 83 | M246: Brandon Stokley | N246: 11 | O246: 84 | Q246: Corey Dillon | R246: 11 | S246: 85 | U246: Joe Horn | V246: 11 | W246: 86 | Y246: Philip Rivers | Z246: 11 | AA246: 87 | AC246: Eddie Kennison | AD246: 11 | AE246: 88
A247: Laurence Maroney | B247: 12 | C247: 96 | E247: Reggie Brown | F247: 12 | G247: 95 | I247: L.J. Smith | J247: 12 | K247: 94 | M247: Aaron Brooks | N247: 12 | O247: 93 | Q247: Jerramy Stevens | R247: 12 | S247: 92 | U247: Greg Jennings | V247: 12 | W247: 91 | Y247: Mark Clayton | Z247: 12 | AA247: 90 | AC247: Randy McMichael | AD247: 12 | AE247: 89
A248: Ben Troupe | B248: 13 | C248: 97 | E248: Lawrence Tynes | F248: 13 | G248: 98 | I248: Jeff Wilkins | J248: 13 | K248: 99 | M248: Daniel Graham | N248: 13 | O248: 100 | Q248: Ben Roethlisberger | R248: 13 | S248: 101 | U248: Kellen Winslow | V248: 13 | W248: 102 | Y248: Vernon Davis | Z248: 13 | AA248: 103 | AC248: Deuce McAllister | AD248: 13 | AE248: 104
A249: Santonio Holmes | B249: 14 | C249: 112 | E249: Ahman Green | F249: 14 | G249: 111 | I249: New York Giants | J249: 14 | K249: 110 | M249: David Akers | N249: 14 | O249: 109 | Q249: Jacksonville | R249: 14 | S249: 108 | U249: Indianapolis | V249: 14 | W249: 107 | Y249: Roddy White | Z249: 14 | AA249: 106 | AC249: Rod Smith | AD249: 14 | AE249: 105
A250: Joseph Addai | B250: 15 | C250: 113 | E250: Dallas Clark | F250: 15 | G250: 114 | I250: Kevin Jones | J250: 15 | K250: 115 | M250: Jamal Lewis | N250: 15 | O250: 116 | Q250: Bobby Engram | R250: 15 | S250: 117 | U250: Mike Vanderjagt | V250: 15 | W250: 118 | Y250: Thomas Jones | Z250: 15 | AA250: 119 | AC250: Michael Vick | AD250: 15 | AE250: 120

Sheet 2007
A2: Week 1 | E2: Week 2 | I2: Week 3 | M2: Week 4 | Q2: Week 5 | U2: Week 6 | Y2: Week 7 | AC2: Week 8 | AG2: Week 9 | AK2: Week 10 | AO2: Week 11 | AS2: Week 12 | AW2: Week 13 | BA2: Week 14 | BE2: Week 15 | BI2: Week 16 | BL2: Final Standings
B3: Score | F3: Score | J3: Score | N3: Score | R3: Score | V3: Score | Z3: Score | AD3: Score | AH3: Score | AL3: Score | AP3: Score | AT3: Score | AX3: Score | BB3: Score | BF3: Score | BJ3: Score
A4: Team Ludoleif | B4: =B75 -> 1032 | E4: Team Ludoleif | F4: =F75 -> 1060 | I4: Team Ludoleif | J4: =J75 -> 955 | M4: Team Ludoleif | N4: =N75 -> 632 | Q4: Team Ludoleif | R4: =R75 -> 703 | U4: Team Ludoleif | V4: =V75 -> 590 | Y4: Team Ludoleif | Z4: =Z75 -> 1122 | AC4: Team Ludoleif | AD4: =AD75 -> 842 | AG4: Team Ludoleif | AH4: =AH75 -> 942 | AK4: Team Ludoleif | AL4: =AL75 -> 1187 | AO4: Team Ludoleif | AP4: =AP75 -> 824 | AS4: Team Ludoleif | AT4: =AT75 -> 937 | AW4: Team Ludoleif | AX4: =AX75 -> 709 | BA4: Team Ludoleif | BB4: =BB75 -> 1139 | BE4: Championship | BI4: Final | BL4: =IF(AND($BJ$6=0,$BJ$7=0),"",IF($BJ$6>$BJ$7,BI6,BI7)) -> Nilsson Monkeys
A5: Team-UhUh | B5: =B89 -> 889 | E5: Djohn | F5: =F89 -> 1250 | I5: Pilgaards Mannschaft | J5: =J89 -> 872 | M5: Nilsson Monkeys | N5: =N89 -> 717 | Q5: Lam i roen | R5: =R89 -> 774 | U5: FalchStars | V5: =V89 -> 738 | Y5: Weak Knees Revenge | Z5: =Z89 -> 915 | AC5: Team-UhUh | AD5: =AD89 -> 898 | AG5: Djohn | AH5: =AH89 -> 1073 | AK5: Pilgaards Mannschaft | AL5: =AL89 -> 1061 | AO5: Nilsson Monkeys | AP5: =AP89 -> 935 | AS5: Lam i roen | AT5: =AT89 -> 913 | AW5: FalchStars | AX5: =AX89 -> 566 | BA5: Weak Knees Revenge | BB5: =BB89 -> 816 | BL5: =IF(AND($BJ$6=0,$BJ$7=0),"",IF($BJ$6>$BJ$7,BI7,BI6)) -> Djohn
BE6: =$BA$19 -> Nilsson Monkeys | BF6: =BF75 -> 705 | BI6: =IF(AND($BF$6=0,$BF$7=0),"",IF($BF$6>$BF$7,$BE$6,$BE$7)) -> Nilsson Monkeys | BJ6: =BJ75 -> 1053 | BL6: =IF(AND($BJ$11=0,$BJ$12=0),"",IF($BJ$11>$BJ$12,BI11,BI12)) -> Team-UhUh
A7: Pilgaards Mannschaft | B7: =B105 -> 604 | E7: Pilgaards Mannschaft | F7: =F105 -> 868 | I7: Nilsson Monkeys | J7: =J105 -> 864 | M7: Pilgaards Mannschaft | N7: =N105 -> 850 | Q7: Pilgaards Mannschaft | R7: =R105 -> 753 | U7: Pilgaards Mannschaft | V7: =V105 -> 927 | Y7: Pilgaards Mannschaft | Z7: =Z105 -> 892 | AC7: Pilgaards Mannschaft | AD7: =AD105 -> 830 | AG7: Pilgaards Mannschaft | AH7: =AH105 -> 1201 | AK7: Nilsson Monkeys | AL7: =AL105 -> 970 | AO7: Pilgaards Mannschaft | AP7: =AP105 -> 930 | AS7: Pilgaards Mannschaft | AT7: =AT105 -> 988 | AW7: Pilgaards Mannschaft | AX7: =AX105 -> 918 | BA7: Pilgaards Mannschaft | BB7: =BB105 -> 842 | BE7: =$BA$22 -> Team Ludoleif | BF7: =BF89 -> 550 | BI7: =IF(AND($BF$9=0,$BF$10=0),"",IF($BF$9>$BF$10,$BE$9,$BE$10)) -> Djohn | BJ7: =BJ89 -> 908 | BL7: =IF(AND($BJ$11=0,$BJ$12=0),"",IF($BJ$11>$BJ$12,BI12,BI11)) -> Team Ludoleif
A8: Nilsson Monkeys | B8: =B119 -> 698 | E8: Lam i roen | F8: =F119 -> 1068 | I8: Lam i roen | J8: =J119 -> 988 | M8: Weak Knees Revenge | N8: =N119 -> 590 | Q8: Team-UhUh | R8: =R119 -> 874 | U8: Djohn | V8: =V119 -> 1143 | Y8: FalchStars | Z8: =Z119 -> 911 | AC8: Nilsson Monkeys | AD8: =AD119 -> 1315 | AG8: Lam i roen | AH8: =AH119 -> 683 | AK8: Lam i roen | AL8: =AL119 -> 502 | AO8: Weak Knees Revenge | AP8: =AP119 -> 1122 | AS8: Team-UhUh | AT8: =AT119 -> 950 | AW8: Djohn | AX8: =AX119 -> 1058 | BA8: FalchStars | BB8: =BB119 -> 887 | BL8: =IF(AND($BJ$16=0,$BJ$17=0),"",IF($BJ$16>$BJ$17,BI16,BI17)) -> Pilgaards Mannschaft
BE9: =$BA$20 -> Djohn | BF9: =BF105 -> 901 | BI9: 3rd Place Game | BL9: =IF(AND($BJ$16=0,$BJ$17=0),"",IF($BJ$16>$BJ$17,BI17,BI16)) -> Lam i roen
A10: Lam i roen | B10: =B135 -> 798 | E10: Nilsson Monkeys | F10: =F135 -> 1121 | I10: Weak Knees Revenge | J10: =J135 -> 852 | M10: Lam i roen | N10: =N135 -> 833 | Q10: Nilsson Monkeys | R10: =R135 -> 988 | U10: Nilsson Monkeys | V10: =V135 -> 879 | Y10: Nilsson Monkeys | Z10: =Z135 -> 757 | AC10: Lam i roen | AD10: =AD135 -> 519 | AG10: Nilsson Monkeys | AH10: =AH135 -> 616 | AK10: Weak Knees Revenge | AL10: =AL135 -> 778 | AO10: Lam i roen | AP10: =AP135 -> 993 | AS10: Nilsson Monkeys | AT10: =AT135 -> 885 | AW10: Nilsson Monkeys | AX10: =AX135 -> 1064 | BA10: Nilsson Monkeys | BB10: =BB135 -> 1093 | BE10: =$BA$21 -> Team-UhUh | BF10: =BF119 -> 695 | BL10: =IF(AND($BJ$21=0,$BJ$22=0),"",IF($BJ$21>$BJ$22,BI21,BI22)) -> FalchStars
A11: Djohn | B11: =B149 -> 835 | E11: FalchStars | F11: =F149 -> 755 | I11: Djohn | J11: =J149 -> 744 | M11: FalchStars | N11: =N149 -> 834 | Q11: Weak Knees Revenge | R11: =R149 -> 571 | U11: Team-UhUh | V11: =V149 -> 1229 | Y11: Djohn | Z11: =Z149 -> 880 | AC11: Djohn | AD11: =AD149 -> 991 | AG11: FalchStars | AH11: =AH149 -> 881 | AK11: Djohn | AL11: =AL149 -> 643 | AO11: FalchStars | AP11: =AP149 -> 730 | AS11: Weak Knees Revenge | AT11: =AT149 -> 929 | AW11: Team-UhUh | AX11: =AX149 -> 866 | BA11: Djohn | BB11: =BB149 -> 779 | BI11: =IF(AND($BF$6=0,$BF$7=0),"",IF($BF$6>$BF$7,$BE$7,$BE$6)) -> Team Ludoleif | BJ11: =BJ105 -> 576 | BL11: =IF(AND($BJ$21=0,$BJ$22=0),"",IF($BJ$21>$BJ$22,BI22,BI21)) -> Weak Knees Revenge
BE12: Consolation | BI12: =IF(AND($BF$9=0,$BF$10=0),"",IF($BF$9>$BF$10,$BE$10,$BE$9)) -> Team-UhUh | BJ12: =BJ119 -> 742
A13: Weak Knees Revenge | B13: =B165 -> 847 | E13: Weak Knees Revenge | F13: =F165 -> 970 | I13: Team-UhUh | J13: =J165 -> 980 | M13: Team-UhUh | N13: =N165 -> 791 | Q13: Djohn | R13: =R165 -> 776 | U13: Lam i roen | V13: =V165 -> 893 | Y13: Lam i roen | Z13: =Z165 -> 835 | AC13: Weak Knees Revenge | AD13: =AD165 -> 755 | AG13: Weak Knees Revenge | AH13: =AH165 -> 932 | AK13: Team-UhUh | AL13: =AL165 -> 646 | AO13: Team-UhUh | AP13: =AP165 -> 800 | AS13: Djohn | AT13: =AT165 -> 941 | AW13: Lam i roen | AX13: =AX165 -> 781 | BA13: Lam i roen | BB13: =BB165 -> 1120
A14: FalchStars | B14: =B179 -> 905 | E14: Team-UhUh | F14: =F179 -> 825 | I14: FalchStars | J14: =J179 -> 887 | M14: Djohn | N14: =N179 -> 753 | Q14: FalchStars | R14: =R179 -> 711 | U14: Weak Knees Revenge | V14: =V179 -> 806 | Y14: Team-UhUh | Z14: =Z179 -> 875 | AC14: FalchStars | AD14: =AD179 -> 667 | AG14: Team-UhUh | AH14: =AH179 -> 972 | AK14: FalchStars | AL14: =AL179 -> 953 | AO14: Djohn | AP14: =AP179 -> 591 | AS14: FalchStars | AT14: =AT179 -> 857 | AW14: Weak Knees Revenge | AX14: =AX179 -> 943 | BA14: Team-UhUh | BB14: =BB179 -> 1014 | BE14: =$BA$23 -> Weak Knees Revenge | BF14: =BF135 -> 706 | BI14: 5th Place Game
BE15: =$BA$26 -> Pilgaards Mannschaft | BF15: =BF149 -> 780
BI16: =IF(AND($BF$14=0,$BF$15=0),"",IF($BF$14>$BF$15,$BE$14,$BE$15)) -> Pilgaards Mannschaft | BJ16: =BJ135 -> 761
A17: Standings Week 1 | E17: Standings Week 2 | I17: Standings Week 3 | M17: Standings Week 4 | Q17: Standings Week 5 | U17: Standings Week 6 | Y17: Standings Week 7 | AC17: Standings Week 8 | AG17: Standings Week 9 | AK17: Standings Week 10 | AO17: Standings Week 11 | AS17: Standings Week 12 | AW17: Standings Week 13 | BA17: Standings Week 14 | BE17: =$BA$24 -> FalchStars | BF17: =BF165 -> 599 | BI17: =IF(AND($BF$17=0,$BF$18=0),"",IF($BF$17>$BF$18,$BE$17,$BE$18)) -> Lam i roen | BJ17: =BJ149 -> 537
B18: Record | C18: TPS | F18: Record | G18: TPS | J18: Record | K18: TPS | N18: Record | O18: TPS | R18: Record | S18: TPS | V18: Record | W18: TPS | Z18: Record | AA18: TPS | AD18: Record | AE18: TPS | AH18: Record | AI18: TPS | AL18: Record | AM18: TPS | AP18: Record | AQ18: TPS | AT18: Record | AU18: TPS | AX18: Record | AY18: TPS | BB18: Record | BC18: TPS | BE18: =$BA$25 -> Lam i roen | BF18: =BF179 -> 651
A19: Team Ludoleif | B19: =RecordUpdate("0-0-0",$B$4,$B$5,0,0,0,0,0,0,0,0,0,0,0,0,0,0,0,0,0,0,0,0,0,0,0,0,0,0) -> 1-0-0 | C19: =$B$4 -> 1032 | E19: Djohn | F19: =RecordUpdate("0-0-0",$B$11,$B$10,$F$5,$F$4,0,0,0,0,0,0,0,0,0,0,0,0,0,0,0,0,0,0,0,0,0,0,0,0) -> 2-0-0 | G19: =$B$11+$F$5 -> 2085 | I19: Team Ludoleif | J19: =RecordUpdate("0-0-0",$B$4,$B$5,$F$4,$F$5,$J$4,$J$5,0,0,0,0,0,0,0,0,0,0,0,0,0,0,0,0,0,0,0,0,0,0) -> 2-1-0 | K19: =$B$4+$F$4+$J$4 -> 3047 | M19: Nilsson Monkeys | N19: =RecordUpdate("0-0-0",$B$8,$B$7,$F$10,$F$11,$J$7,$J$8,$N$5,$N$4,0,0,0,0,0,0,0,0,0,0,0,0,0,0,0,0,0,0,0,0) -> 3-1-0 | O19: =$B$8+$F$10+$J$7+$N$5 -> 3400 | Q19: Nilsson Monkeys | R19: =RecordUpdate("0-0-0",$B$8,$B$7,$F$10,$F$11,$J$7,$J$8,$N$5,$N$4,$R$10,$R$11,0,0,0,0,0,0,0,0,0,0,0,0,0,0,0,0,0,0) -> 4-1-0 | S19: =$B$8+$F$10+$J$7+$N$5+$R$10 -> 4388 | U19: Team-UhUh | V19: =RecordUpdate("0-0-0",$B$5,$B$4,$F$14,$F$13,$J$13,$J$14,$N$13,$N$14,$R$8,$R$7,$V$11,$V$10,0,0,0,0,0,0,0,0,0,0,0,0,0,0,0,0) -> 4-2-0 | W19: =$B$5+$F$14+$J$13+$N$13+$R$8+$V$11 -> 5588 | Y19: Team-UhUh | Z19: =RecordUpdate("0-0-0",$B$5,$B$4,$F$14,$F$13,$J$13,$J$14,$N$13,$N$14,$R$8,$R$7,$V$11,$V$10,$Z$14,$Z$13,0,0,0,0,0,0,0,0,0,0,0,0,0,0) -> 5-2-0 | AA19: =$B$5+$F$14+$J$13+$N$13+$R$8+$V$11+$Z$14 -> 6463 | AC19: Djohn | AD19: =RecordUpdate("0-0-0",$B$11,$B$10,$F$5,$F$4,$J$11,$J$10,$N$14,$N$13,$R$13,$R$14,$V$8,$V$7,$Z$11,$Z$10,$AD$11,$AD$10,0,0,0,0,0,0,0,0,0,0,0,0) -> 6-2-0 | AE19: =$B$11+$F$5+$J$11+$N$14+$R$13+$V$8+$Z$11+$AD$11 -> 7372 | AG19: Djohn | AH19: =RecordUpdate("0-0-0",$B$11,$B$10,$F$5,$F$4,$J$11,$J$10,$N$14,$N$13,$R$13,$R$14,$V$8,$V$7,$Z$11,$Z$10,$AD$11,$AD$10,$AH$5,$AH$4,0,0,0,0,0,0,0,0,0,0) -> 7-2-0 | AI19: =$B$11+$F$5+$J$11+$N$14+$R$13+$V$8+$Z$11+$AD$11+$AH$5 -> 8445 | AK19: Djohn | AL19: =RecordUpdate("0-0-0",$B$11,$B$10,$F$5,$F$4,$J$11,$J$10,$N$14,$N$13,$R$13,$R$14,$V$8,$V$7,$Z$11,$Z$10,$AD$11,$AD$10,$AH$5,$AH$4,$AL$11,$AL$10,0,0,0,0,0,0,0,0) -> 7-3-0 | AM19: =$B$11+$F$5+$J$11+$N$14+$R$13+$V$8+$Z$11+$AD$11+$AH$5+$AL$11 -> 9088 | AO19: Team-UhUh | AP19: =RecordUpdate("0-0-0",$B$5,$B$4,$F$14,$F$13,$J$13,$J$14,$N$13,$N$14,$R$8,$R$7,$V$11,$V$10,$Z$14,$Z$13,$AD$5,$AD$4,$AH$14,$AH$13,$AL$13,$AL$14,$AP$13,$AP$14,0,0,0,0,0,0) -> 8-3-0 | AQ19: =$B$5+$F$14+$J$13+$N$13+$R$8+$V$11+$Z$14+$AD$5+$AH$14+$AL$13+$AP$13 -> 9779 | AS19: Team-UhUh | AT19: =RecordUpdate("0-0-0",$B$5,$B$4,$F$14,$F$13,$J$13,$J$14,$N$13,$N$14,$R$8,$R$7,$V$11,$V$10,$Z$14,$Z$13,$AD$5,$AD$4,$AH$14,$AH$13,$AL$13,$AL$14,$AP$13,$AP$14,$AT$8,$AT$7,0,0,0,0) -> 8-4-0 | AU19: =$B$5+$F$14+$J$13+$N$13+$R$8+$V$11+$Z$14+$AD$5+$AH$14+$AL$13+$AP$13+$AT$8 -> 10729 | AW19: Djohn | AX19: =RecordUpdate("0-0-0",$B$11,$B$10,$F$5,$F$4,$J$11,$J$10,$N$14,$N$13,$R$13,$R$14,$V$8,$V$7,$Z$11,$Z$10,$AD$11,$AD$10,$AH$5,$AH$4,$AL$11,$AL$10,$AP$14,$AP$13,$AT$13,$AT$14,$AX$8,$AX$7,0,0) -> 9-4-0 | AY19: =$B$11+$F$5+$J$11+$N$14+$R$13+$V$8+$Z$11+$AD$11+$AH$5+$AL$11+$AP$14+$AT$13+$AX$8 -> 11678 | BA19: Nilsson Monkeys | BB19: =RecordUpdate("0-0-0",$B$8,$B$7,$F$10,$F$11,$J$7,$J$8,$N$5,$N$4,$R$10,$R$11,$V$10,$V$11,$Z$10,$Z$11,$AD$8,$AD$7,$AH$10,$AH$11,$AL$7,$AL$8,$AP$5,$AP$4,$AT$10,$AT$11,$AX$10,$AX$11,$BB$10,$BB$11) -> 9-5-0 | BC19: =$B$8+$F$10+$J$7+$N$5+$R$10+$V$10+$Z$10+$AD$8+$AH$10+$AL$7+$AP$5+$AT$10+$AX$10+$BB$10 -> 12902 | BI19: 7th Place Game
A20: FalchStars | B20: =RecordUpdate("0-0-0",$B$14,$B$13,0,0,0,0,0,0,0,0,0,0,0,0,0,0,0,0,0,0,0,0,0,0,0,0,0,0) -> 1-0-0 | C20: =$B$14 -> 905 | E20: Nilsson Monkeys | F20: =RecordUpdate("0-0-0",$B$8,$B$7,$F$10,$F$11,0,0,0,0,0,0,0,0,0,0,0,0,0,0,0,0,0,0,0,0,0,0,0,0) -> 2-0-0 | G20: =$B$8+$F$10 -> 1819 | I20: Lam i roen | J20: =RecordUpdate("0-0-0",$B$10,$B$11,$F$8,$F$7,$J$8,$J$7,0,0,0,0,0,0,0,0,0,0,0,0,0,0,0,0,0,0,0,0,0,0) -> 2-1-0 | K20: =$B$10+$F$8+$J$8 -> 2854 | M20: Lam i roen | N20: =RecordUpdate("0-0-0",$B$10,$B$11,$F$8,$F$7,$J$8,$J$7,$N$10,$N$11,0,0,0,0,0,0,0,0,0,0,0,0,0,0,0,0,0,0,0,0) -> 2-2-0 | O20: =$B$10+$F$8+$J$8+$N$10 -> 3687 | Q20: Lam i roen | R20: =RecordUpdate("0-0-0",$B$10,$B$11,$F$8,$F$7,$J$8,$J$7,$N$10,$N$11,$R$5,$R$4,0,0,0,0,0,0,0,0,0,0,0,0,0,0,0,0,0,0) -> 3-2-0 | S20: =$B$10+$F$8+$J$8+$N$10+$R$5 -> 4461 | U20: Djohn | V20: =RecordUpdate("0-0-0",$B$11,$B$10,$F$5,$F$4,$J$11,$J$10,$N$14,$N$13,$R$13,$R$14,$V$8,$V$7,0,0,0,0,0,0,0,0,0,0,0,0,0,0,0,0) -> 4-2-0 | W20: =$B$11+$F$5+$J$11+$N$14+$R$13+$V$8 -> 5501 | Y20: Djohn | Z20: =RecordUpdate("0-0-0",$B$11,$B$10,$F$5,$F$4,$J$11,$J$10,$N$14,$N$13,$R$13,$R$14,$V$8,$V$7,$Z$11,$Z$10,0,0,0,0,0,0,0,0,0,0,0,0,0,0) -> 5-2-0 | AA20: =$B$11+$F$5+$J$11+$N$14+$R$13+$V$8+$Z$11 -> 6381 | AC20: Team-UhUh | AD20: =RecordUpdate("0-0-0",$B$5,$B$4,$F$14,$F$13,$J$13,$J$14,$N$13,$N$14,$R$8,$R$7,$V$11,$V$10,$Z$14,$Z$13,$AD$5,$AD$4,0,0,0,0,0,0,0,0,0,0,0,0) -> 6-2-0 | AE20: =$B$5+$F$14+$J$13+$N$13+$R$8+$V$11+$Z$14+$AD$5 -> 7361 | AG20: Team-UhUh | AH20: =RecordUpdate("0-0-0",$B$5,$B$4,$F$14,$F$13,$J$13,$J$14,$N$13,$N$14,$R$8,$R$7,$V$11,$V$10,$Z$14,$Z$13,$AD$5,$AD$4,$AH$14,$AH$13,0,0,0,0,0,0,0,0,0,0) -> 7-2-0 | AI20: =$B$5+$F$14+$J$13+$N$13+$R$8+$V$11+$Z$14+$AD$5+$AH$14 -> 8333 | AK20: Team-UhUh | AL20: =RecordUpdate("0-0-0",$B$5,$B$4,$F$14,$F$13,$J$13,$J$14,$N$13,$N$14,$R$8,$R$7,$V$11,$V$10,$Z$14,$Z$13,$AD$5,$AD$4,$AH$14,$AH$13,$AL$13,$AL$14,0,0,0,0,0,0,0,0) -> 7-3-0 | AM20: =$B$5+$F$14+$J$13+$N$13+$R$8+$V$11+$Z$14+$AD$5+$AH$14+$AL$13 -> 8979 | AO20: Nilsson Monkeys | AP20: =RecordUpdate("0-0-0",$B$8,$B$7,$F$10,$F$11,$J$7,$J$8,$N$5,$N$4,$R$10,$R$11,$V$10,$V$11,$Z$10,$Z$11,$AD$8,$AD$7,$AH$10,$AH$11,$AL$7,$AL$8,$AP$5,$AP$4,0,0,0,0,0,0) -> 7-4-0 | AQ20: =$B$8+$F$10+$J$7+$N$5+$R$10+$V$10+$Z$10+$AD$8+$AH$10+$AL$7+$AP$5 -> 9860 | AS20: Djohn | AT20: =RecordUpdate("0-0-0",$B$11,$B$10,$F$5,$F$4,$J$11,$J$10,$N$14,$N$13,$R$13,$R$14,$V$8,$V$7,$Z$11,$Z$10,$AD$11,$AD$10,$AH$5,$AH$4,$AL$11,$AL$10,$AP$14,$AP$13,$AT$13,$AT$14,0,0,0,0) -> 8-4-0 | AU20: =$B$11+$F$5+$J$11+$N$14+$R$13+$V$8+$Z$11+$AD$11+$AH$5+$AL$11+$AP$14+$AT$13 -> 10620 | AW20: Nilsson Monkeys | AX20: =RecordUpdate("0-0-0",$B$8,$B$7,$F$10,$F$11,$J$7,$J$8,$N$5,$N$4,$R$10,$R$11,$V$10,$V$11,$Z$10,$Z$11,$AD$8,$AD$7,$AH$10,$AH$11,$AL$7,$AL$8,$AP$5,$AP$4,$AT$10,$AT$11,$AX$10,$AX$11,0,0) -> 8-5-0 | AY20: =$B$8+$F$10+$J$7+$N$5+$R$10+$V$10+$Z$10+$AD$8+$AH$10+$AL$7+$AP$5+$AT$10+$AX$10 -> 11809 | BA20: Djohn | BB20: =RecordUpdate("0-0-0",$B$11,$B$10,$F$5,$F$4,$J$11,$J$10,$N$14,$N$13,$R$13,$R$14,$V$8,$V$7,$Z$11,$Z$10,$AD$11,$AD$10,$AH$5,$AH$4,$AL$11,$AL$10,$AP$14,$AP$13,$AT$13,$AT$14,$AX$8,$AX$7,$BB$11,$BB$10) -> 9-5-0 | BC20: =$B$11+$F$5+$J$11+$N$14+$R$13+$V$8+$Z$11+$AD$11+$AH$5+$AL$11+$AP$14+$AT$13+$AX$8+$BB$11 -> 12457
A21: Djohn | B21: =RecordUpdate("0-0-0",$B$11,$B$10,0,0,0,0,0,0,0,0,0,0,0,0,0,0,0,0,0,0,0,0,0,0,0,0,0,0) -> 1-0-0 | C21: =$B$11 -> 835 | E21: Team Ludoleif | F21: =RecordUpdate("0-0-0",$B$4,$B$5,$F$4,$F$5,0,0,0,0,0,0,0,0,0,0,0,0,0,0,0,0,0,0,0,0,0,0,0,0) -> 1-1-0 | G21: =$B$4+$F$4 -> 2092 | I21: Djohn | J21: =RecordUpdate("0-0-0",$B$11,$B$10,$F$5,$F$4,$J$11,$J$10,0,0,0,0,0,0,0,0,0,0,0,0,0,0,0,0,0,0,0,0,0,0) -> 2-1-0 | K21: =$B$11+$F$5+$J$11 -> 2829 | M21: Team Ludoleif | N21: =RecordUpdate("0-0-0",$B$4,$B$5,$F$4,$F$5,$J$4,$J$5,$N$4,$N$5,0,0,0,0,0,0,0,0,0,0,0,0,0,0,0,0,0,0,0,0) -> 2-2-0 | O21: =$B$4+$F$4+$J$4+$N$4 -> 3679 | Q21: Team-UhUh | R21: =RecordUpdate("0-0-0",$B$5,$B$4,$F$14,$F$13,$J$13,$J$14,$N$13,$N$14,$R$8,$R$7,0,0,0,0,0,0,0,0,0,0,0,0,0,0,0,0,0,0) -> 3-2-0 | S21: =$B$5+$F$14+$J$13+$N$13+$R$8 -> 4359 | U21: Lam i roen | V21: =RecordUpdate("0-0-0",$B$10,$B$11,$F$8,$F$7,$J$8,$J$7,$N$10,$N$11,$R$5,$R$4,$V$13,$V$14,0,0,0,0,0,0,0,0,0,0,0,0,0,0,0,0) -> 4-2-0 | W21: =$B$10+$F$8+$J$8+$N$10+$R$5+$V$13 -> 5354 | Y21: Lam i roen | Z21: =RecordUpdate("0-0-0",$B$10,$B$11,$F$8,$F$7,$J$8,$J$7,$N$10,$N$11,$R$5,$R$4,$V$13,$V$14,$Z$13,$Z$14,0,0,0,0,0,0,0,0,0,0,0,0,0,0) -> 4-3-0 | AA21: =$B$10+$F$8+$J$8+$N$10+$R$5+$V$13+$Z$13 -> 6189 | AC21: Nilsson Monkeys | AD21: =RecordUpdate("0-0-0",$B$8,$B$7,$F$10,$F$11,$J$7,$J$8,$N$5,$N$4,$R$10,$R$11,$V$10,$V$11,$Z$10,$Z$11,$AD$8,$AD$7,0,0,0,0,0,0,0,0,0,0,0,0) -> 5-3-0 | AE21: =$B$8+$F$10+$J$7+$N$5+$R$10+$V$10+$Z$10+$AD$8 -> 7339 | AG21: Nilsson Monkeys | AH21: =RecordUpdate("0-0-0",$B$8,$B$7,$F$10,$F$11,$J$7,$J$8,$N$5,$N$4,$R$10,$R$11,$V$10,$V$11,$Z$10,$Z$11,$AD$8,$AD$7,$AH$10,$AH$11,0,0,0,0,0,0,0,0,0,0) -> 5-4-0 | AI21: =$B$8+$F$10+$J$7+$N$5+$R$10+$V$10+$Z$10+$AD$8+$AH$10 -> 7955 | AK21: Nilsson Monkeys | AL21: =RecordUpdate("0-0-0",$B$8,$B$7,$F$10,$F$11,$J$7,$J$8,$N$5,$N$4,$R$10,$R$11,$V$10,$V$11,$Z$10,$Z$11,$AD$8,$AD$7,$AH$10,$AH$11,$AL$7,$AL$8,0,0,0,0,0,0,0,0) -> 6-4-0 | AM21: =$B$8+$F$10+$J$7+$N$5+$R$10+$V$10+$Z$10+$AD$8+$AH$10+$AL$7 -> 8925 | AO21: Djohn | AP21: =RecordUpdate("0-0-0",$B$11,$B$10,$F$5,$F$4,$J$11,$J$10,$N$14,$N$13,$R$13,$R$14,$V$8,$V$7,$Z$11,$Z$10,$AD$11,$AD$10,$AH$5,$AH$4,$AL$11,$AL$10,$AP$14,$AP$13,0,0,0,0,0,0) -> 7-4-0 | AQ21: =$B$11+$F$5+$J$11+$N$14+$R$13+$V$8+$Z$11+$AD$11+$AH$5+$AL$11+$AP$14 -> 9679 | AS21: Nilsson Monkeys | AT21: =RecordUpdate("0-0-0",$B$8,$B$7,$F$10,$F$11,$J$7,$J$8,$N$5,$N$4,$R$10,$R$11,$V$10,$V$11,$Z$10,$Z$11,$AD$8,$AD$7,$AH$10,$AH$11,$AL$7,$AL$8,$AP$5,$AP$4,$AT$10,$AT$11,0,0,0,0) -> 7-5-0 | AU21: =$B$8+$F$10+$J$7+$N$5+$R$10+$V$10+$Z$10+$AD$8+$AH$10+$AL$7+$AP$5+$AT$10 -> 10745 | AW21: Team-UhUh | AX21: =RecordUpdate("0-0-0",$B$5,$B$4,$F$14,$F$13,$J$13,$J$14,$N$13,$N$14,$R$8,$R$7,$V$11,$V$10,$Z$14,$Z$13,$AD$5,$AD$4,$AH$14,$AH$13,$AL$13,$AL$14,$AP$13,$AP$14,$AT$8,$AT$7,$AX$11,$AX$10,0,0) -> 8-5-0 | AY21: =$B$5+$F$14+$J$13+$N$13+$R$8+$V$11+$Z$14+$AD$5+$AH$14+$AL$13+$AP$13+$AT$8+$AX$11 -> 11595 | BA21: Team-UhUh | BB21: =RecordUpdate("0-0-0",$B$5,$B$4,$F$14,$F$13,$J$13,$J$14,$N$13,$N$14,$R$8,$R$7,$V$11,$V$10,$Z$14,$Z$13,$AD$5,$AD$4,$AH$14,$AH$13,$AL$13,$AL$14,$AP$13,$AP$14,$AT$8,$AT$7,$AX$11,$AX$10,$BB$14,$BB$13) -> 8-6-0 | BC21: =$B$5+$F$14+$J$13+$N$13+$R$8+$V$11+$Z$14+$AD$5+$AH$14+$AL$13+$AP$13+$AT$8+$AX$11+$BB$14 -> 12609 | BI21: =IF(AND($BF$14=0,$BF$15=0),"",IF($BF$14>$BF$15,$BE$15,$BE$14)) -> Weak Knees Revenge | BJ21: =BJ165 -> 670
A22: Nilsson Monkeys | B22: =RecordUpdate("0-0-0",$B$8,$B$7,0,0,0,0,0,0,0,0,0,0,0,0,0,0,0,0,0,0,0,0,0,0,0,0,0,0) -> 1-0-0 | C22: =$B$8 -> 698 | E22: Lam i roen | F22: =RecordUpdate("0-0-0",$B$10,$B$11,$F$8,$F$7,0,0,0,0,0,0,0,0,0,0,0,0,0,0,0,0,0,0,0,0,0,0,0,0) -> 1-1-0 | G22: =$B$10+$F$8 -> 1866 | I22: Nilsson Monkeys | J22: =RecordUpdate("0-0-0",$B$8,$B$7,$F$10,$F$11,$J$7,$J$8,0,0,0,0,0,0,0,0,0,0,0,0,0,0,0,0,0,0,0,0,0,0) -> 2-1-0 | K22: =$B$8+$F$10+$J$7 -> 2683 | M22: Djohn | N22: =RecordUpdate("0-0-0",$B$11,$B$10,$F$5,$F$4,$J$11,$J$10,$N$14,$N$13,0,0,0,0,0,0,0,0,0,0,0,0,0,0,0,0,0,0,0,0) -> 2-2-0 | O22: =$B$11+$F$5+$J$11+$N$14 -> 3582 | Q22: Djohn | R22: =RecordUpdate("0-0-0",$B$11,$B$10,$F$5,$F$4,$J$11,$J$10,$N$14,$N$13,$R$13,$R$14,0,0,0,0,0,0,0,0,0,0,0,0,0,0,0,0,0,0) -> 3-2-0 | S22: =$B$11+$F$5+$J$11+$N$14+$R$13 -> 4358 | U22: Nilsson Monkeys | V22: =RecordUpdate("0-0-0",$B$8,$B$7,$F$10,$F$11,$J$7,$J$8,$N$5,$N$4,$R$10,$R$11,$V$10,$V$11,0,0,0,0,0,0,0,0,0,0,0,0,0,0,0,0) -> 4-2-0 | W22: =$B$8+$F$10+$J$7+$N$5+$R$10+$V$10 -> 5267 | Y22: Nilsson Monkeys | Z22: =RecordUpdate("0-0-0",$B$8,$B$7,$F$10,$F$11,$J$7,$J$8,$N$5,$N$4,$R$10,$R$11,$V$10,$V$11,$Z$10,$Z$11,0,0,0,0,0,0,0,0,0,0,0,0,0,0) -> 4-3-0 | AA22: =$B$8+$F$10+$J$7+$N$5+$R$10+$V$10+$Z$10 -> 6024 | AC22: Lam i roen | AD22: =RecordUpdate("0-0-0",$B$10,$B$11,$F$8,$F$7,$J$8,$J$7,$N$10,$N$11,$R$5,$R$4,$V$13,$V$14,$Z$13,$Z$14,$AD$10,$AD$11,0,0,0,0,0,0,0,0,0,0,0,0) -> 4-4-0 | AE22: =$B$10+$F$8+$J$8+$N$10+$R$5+$V$13+$Z$13+$AD$10 -> 6708 | AG22: FalchStars | AH22: =RecordUpdate("0-0-0",$B$14,$B$13,$F$11,$F$10,$J$14,$J$13,$N$11,$N$10,$R$14,$R$13,$V$5,$V$4,$Z$8,$Z$7,$AD$14,$AD$13,$AH$11,$AH$10,0,0,0,0,0,0,0,0,0,0) -> 5-4-0 | AI22: =$B$14+$F$11+$J$14+$N$11+$R$14+$V$5+$Z$8+$AD$14+$AH$11 -> 7289 | AK22: FalchStars | AL22: =RecordUpdate("0-0-0",$B$14,$B$13,$F$11,$F$10,$J$14,$J$13,$N$11,$N$10,$R$14,$R$13,$V$5,$V$4,$Z$8,$Z$7,$AD$14,$AD$13,$AH$11,$AH$10,$AL$14,$AL$13,0,0,0,0,0,0,0,0) -> 6-4-0 | AM22: =$B$14+$F$11+$J$14+$N$11+$R$14+$V$5+$Z$8+$AD$14+$AH$11+$AL$14 -> 8242 | AO22: FalchStars | AP22: =RecordUpdate("0-0-0",$B$14,$B$13,$F$11,$F$10,$J$14,$J$13,$N$11,$N$10,$R$14,$R$13,$V$5,$V$4,$Z$8,$Z$7,$AD$14,$AD$13,$AH$11,$AH$10,$AL$14,$AL$13,$AP$11,$AP$10,0,0,0,0,0,0) -> 6-5-0 | AQ22: =$B$14+$F$11+$J$14+$N$11+$R$14+$V$5+$Z$8+$AD$14+$AH$11+$AL$14+$AP$11 -> 8972 | AS22: Weak Knees Revenge | AT22: =RecordUpdate("0-0-0",$B$13,$B$14,$F$13,$F$14,$J$10,$J$11,$N$8,$N$7,$R$11,$R$10,$V$14,$V$13,$Z$5,$Z$4,$AD$13,$AD$14,$AH$13,$AH$14,$AL$10,$AL$11,$AP$8,$AP$7,$AT$11,$AT$10,0,0,0,0) -> 6-6-0 | AU22: =$B$13+$F$13+$J$10+$N$8+$R$11+$V$14+$Z$5+$AD$13+$AH$13+$AL$10+$AP$8+$AT$11 -> 10067 | AW22: Weak Knees Revenge | AX22: =RecordUpdate("0-0-0",$B$13,$B$14,$F$13,$F$14,$J$10,$J$11,$N$8,$N$7,$R$11,$R$10,$V$14,$V$13,$Z$5,$Z$4,$AD$13,$AD$14,$AH$13,$AH$14,$AL$10,$AL$11,$AP$8,$AP$7,$AT$11,$AT$10,$AX$14,$AX$13,0,0) -> 7-6-0 | AY22: =$B$13+$F$13+$J$10+$N$8+$R$11+$V$14+$Z$5+$AD$13+$AH$13+$AL$10+$AP$8+$AT$11+$AX$14 -> 11010 | BA22: Team Ludoleif | BB22: =RecordUpdate("0-0-0",$B$4,$B$5,$F$4,$F$5,$J$4,$J$5,$N$4,$N$5,$R$4,$R$5,$V$4,$V$5,$Z$4,$Z$5,$AD$4,$AD$5,$AH$4,$AH$5,$AL$4,$AL$5,$AP$4,$AP$5,$AT$4,$AT$5,$AX$4,$AX$5,$BB$4,$BB$5) -> 7-7-0 | BC22: =$B$4+$F$4+$J$4+$N$4+$R$4+$V$4+$Z$4+$AD$4+$AH$4+$AL$4+$AP$4+$AT$4+$AX$4+$BB$4 -> 12674 | BI22: =IF(AND($BF$17=0,$BF$18=0),"",IF($BF$17>$BF$18,$BE$18,$BE$17)) -> FalchStars | BJ22: =BJ179 -> 773
A23: Team-UhUh | B23: =RecordUpdate("0-0-0",$B$5,$B$4,0,0,0,0,0,0,0,0,0,0,0,0,0,0,0,0,0,0,0,0,0,0,0,0,0,0) -> 0-1-0 | C23: =$B$5 -> 889 | E23: Weak Knees Revenge | F23: =RecordUpdate("0-0-0",$B$13,$B$14,$F$13,$F$14,0,0,0,0,0,0,0,0,0,0,0,0,0,0,0,0,0,0,0,0,0,0,0,0) -> 1-1-0 | G23: =$B$13+$F$13 -> 1817 | I23: Weak Knees Revenge | J23: =RecordUpdate("0-0-0",$B$13,$B$14,$F$13,$F$14,$J$10,$J$11,0,0,0,0,0,0,0,0,0,0,0,0,0,0,0,0,0,0,0,0,0,0) -> 2-1-0 | K23: =$B$13+$F$13+$J$10 -> 2669 | M23: Team-UhUh | N23: =RecordUpdate("0-0-0",$B$5,$B$4,$F$14,$F$13,$J$13,$J$14,$N$13,$N$14,0,0,0,0,0,0,0,0,0,0,0,0,0,0,0,0,0,0,0,0) -> 2-2-0 | O23: =$B$5+$F$14+$J$13+$N$13 -> 3485 | Q23: Team Ludoleif | R23: =RecordUpdate("0-0-0",$B$4,$B$5,$F$4,$F$5,$J$4,$J$5,$N$4,$N$5,$R$4,$R$5,0,0,0,0,0,0,0,0,0,0,0,0,0,0,0,0,0,0) -> 2-3-0 | S23: =$B$4+$F$4+$J$4+$N$4+$R$4 -> 4382 | U23: FalchStars | V23: =RecordUpdate("0-0-0",$B$14,$B$13,$F$11,$F$10,$J$14,$J$13,$N$11,$N$10,$R$14,$R$13,$V$5,$V$4,0,0,0,0,0,0,0,0,0,0,0,0,0,0,0,0) -> 3-3-0 | W23: =$B$14+$F$11+$J$14+$N$11+$R$14+$V$5 -> 4830 | Y23: FalchStars | Z23: =RecordUpdate("0-0-0",$B$14,$B$13,$F$11,$F$10,$J$14,$J$13,$N$11,$N$10,$R$14,$R$13,$V$5,$V$4,$Z$8,$Z$7,0,0,0,0,0,0,0,0,0,0,0,0,0,0) -> 4-3-0 | AA23: =$B$14+$F$11+$J$14+$N$11+$R$14+$V$5+$Z$8 -> 5741 | AC23: FalchStars | AD23: =RecordUpdate("0-0-0",$B$14,$B$13,$F$11,$F$10,$J$14,$J$13,$N$11,$N$10,$R$14,$R$13,$V$5,$V$4,$Z$8,$Z$7,$AD$14,$AD$13,0,0,0,0,0,0,0,0,0,0,0,0) -> 4-4-0 | AE23: =$B$14+$F$11+$J$14+$N$11+$R$14+$V$5+$Z$8+$AD$14 -> 6408 | AG23: Lam i roen | AH23: =RecordUpdate("0-0-0",$B$10,$B$11,$F$8,$F$7,$J$8,$J$7,$N$10,$N$11,$R$5,$R$4,$V$13,$V$14,$Z$13,$Z$14,$AD$10,$AD$11,$AH$8,$AH$7,0,0,0,0,0,0,0,0,0,0) -> 4-5-0 | AI23: =$B$10+$F$8+$J$8+$N$10+$R$5+$V$13+$Z$13+$AD$10+$AH$8 -> 7391 | AK23: Team Ludoleif | AL23: =RecordUpdate("0-0-0",$B$4,$B$5,$F$4,$F$5,$J$4,$J$5,$N$4,$N$5,$R$4,$R$5,$V$4,$V$5,$Z$4,$Z$5,$AD$4,$AD$5,$AH$4,$AH$5,$AL$4,$AL$5,0,0,0,0,0,0,0,0) -> 4-6-0 | AM23: =$B$4+$F$4+$J$4+$N$4+$R$4+$V$4+$Z$4+$AD$4+$AH$4+$AL$4 -> 9065 | AO23: Weak Knees Revenge | AP23: =RecordUpdate("0-0-0",$B$13,$B$14,$F$13,$F$14,$J$10,$J$11,$N$8,$N$7,$R$11,$R$10,$V$14,$V$13,$Z$5,$Z$4,$AD$13,$AD$14,$AH$13,$AH$14,$AL$10,$AL$11,$AP$8,$AP$7,0,0,0,0,0,0) -> 5-6-0 | AQ23: =$B$13+$F$13+$J$10+$N$8+$R$11+$V$14+$Z$5+$AD$13+$AH$13+$AL$10+$AP$8 -> 9138 | AS23: FalchStars | AT23: =RecordUpdate("0-0-0",$B$14,$B$13,$F$11,$F$10,$J$14,$J$13,$N$11,$N$10,$R$14,$R$13,$V$5,$V$4,$Z$8,$Z$7,$AD$14,$AD$13,$AH$11,$AH$10,$AL$14,$AL$13,$AP$11,$AP$10,$AT$14,$AT$13,0,0,0,0) -> 6-6-0 | AU23: =$B$14+$F$11+$J$14+$N$11+$R$14+$V$5+$Z$8+$AD$14+$AH$11+$AL$14+$AP$11+$AT$14 -> 9829 | AW23: Team Ludoleif | AX23: =RecordUpdate("0-0-0",$B$4,$B$5,$F$4,$F$5,$J$4,$J$5,$N$4,$N$5,$R$4,$R$5,$V$4,$V$5,$Z$4,$Z$5,$AD$4,$AD$5,$AH$4,$AH$5,$AL$4,$AL$5,$AP$4,$AP$5,$AT$4,$AT$5,$AX$4,$AX$5,0,0) -> 6-7-0 | AY23: =$B$4+$F$4+$J$4+$N$4+$R$4+$V$4+$Z$4+$AD$4+$AH$4+$AL$4+$AP$4+$AT$4+$AX$4 -> 11535 | BA23: Weak Knees Revenge | BB23: =RecordUpdate("0-0-0",$B$13,$B$14,$F$13,$F$14,$J$10,$J$11,$N$8,$N$7,$R$11,$R$10,$V$14,$V$13,$Z$5,$Z$4,$AD$13,$AD$14,$AH$13,$AH$14,$AL$10,$AL$11,$AP$8,$AP$7,$AT$11,$AT$10,$AX$14,$AX$13,$BB$5,$BB$4) -> 7-7-0 | BC23: =$B$13+$F$13+$J$10+$N$8+$R$11+$V$14+$Z$5+$AD$13+$AH$13+$AL$10+$AP$8+$AT$11+$AX$14+$BB$5 -> 11826
A24: Weak Knees Revenge | B24: =RecordUpdate("0-0-0",$B$13,$B$14,0,0,0,0,0,0,0,0,0,0,0,0,0,0,0,0,0,0,0,0,0,0,0,0,0,0) -> 0-1-0 | C24: =$B$13 -> 847 | E24: FalchStars | F24: =RecordUpdate("0-0-0",$B$14,$B$13,$F$11,$F$10,0,0,0,0,0,0,0,0,0,0,0,0,0,0,0,0,0,0,0,0,0,0,0,0) -> 1-1-0 | G24: =$B$14+$F$11 -> 1660 | I24: Team-UhUh | J24: =RecordUpdate("0-0-0",$B$5,$B$4,$F$14,$F$13,$J$13,$J$14,0,0,0,0,0,0,0,0,0,0,0,0,0,0,0,0,0,0,0,0,0,0) -> 1-2-0 | K24: =$B$5+$F$14+$J$13 -> 2694 | M24: FalchStars | N24: =RecordUpdate("0-0-0",$B$14,$B$13,$F$11,$F$10,$J$14,$J$13,$N$11,$N$10,0,0,0,0,0,0,0,0,0,0,0,0,0,0,0,0,0,0,0,0) -> 2-2-0 | O24: =$B$14+$F$11+$J$14+$N$11 -> 3381 | Q24: FalchStars | R24: =RecordUpdate("0-0-0",$B$14,$B$13,$F$11,$F$10,$J$14,$J$13,$N$11,$N$10,$R$14,$R$13,0,0,0,0,0,0,0,0,0,0,0,0,0,0,0,0,0,0) -> 2-3-0 | S24: =$B$14+$F$11+$J$14+$N$11+$R$14 -> 4092 | U24: Team Ludoleif | V24: =RecordUpdate("0-0-0",$B$4,$B$5,$F$4,$F$5,$J$4,$J$5,$N$4,$N$5,$R$4,$R$5,$V$4,$V$5,0,0,0,0,0,0,0,0,0,0,0,0,0,0,0,0) -> 2-4-0 | W24: =$B$4+$F$4+$J$4+$N$4+$R$4+$V$4 -> 4972 | Y24: Team Ludoleif | Z24: =RecordUpdate("0-0-0",$B$4,$B$5,$F$4,$F$5,$J$4,$J$5,$N$4,$N$5,$R$4,$R$5,$V$4,$V$5,$Z$4,$Z$5,0,0,0,0,0,0,0,0,0,0,0,0,0,0) -> 3-4-0 | AA24: =$B$4+$F$4+$J$4+$N$4+$R$4+$V$4+$Z$4 -> 6094 | AC24: Team Ludoleif | AD24: =RecordUpdate("0-0-0",$B$4,$B$5,$F$4,$F$5,$J$4,$J$5,$N$4,$N$5,$R$4,$R$5,$V$4,$V$5,$Z$4,$Z$5,$AD$4,$AD$5,0,0,0,0,0,0,0,0,0,0,0,0) -> 3-5-0 | AE24: =$B$4+$F$4+$J$4+$N$4+$R$4+$V$4+$Z$4+$AD$4 -> 6936 | AG24: Team Ludoleif | AH24: =RecordUpdate("0-0-0",$B$4,$B$5,$F$4,$F$5,$J$4,$J$5,$N$4,$N$5,$R$4,$R$5,$V$4,$V$5,$Z$4,$Z$5,$AD$4,$AD$5,$AH$4,$AH$5,0,0,0,0,0,0,0,0,0,0) -> 3-6-0 | AI24: =$B$4+$F$4+$J$4+$N$4+$R$4+$V$4+$Z$4+$AD$4+$AH$4 -> 7878 | AK24: Weak Knees Revenge | AL24: =RecordUpdate("0-0-0",$B$13,$B$14,$F$13,$F$14,$J$10,$J$11,$N$8,$N$7,$R$11,$R$10,$V$14,$V$13,$Z$5,$Z$4,$AD$13,$AD$14,$AH$13,$AH$14,$AL$10,$AL$11,0,0,0,0,0,0,0,0) -> 4-6-0 | AM24: =$B$13+$F$13+$J$10+$N$8+$R$11+$V$14+$Z$5+$AD$13+$AH$13+$AL$10 -> 8016 | AO24: Lam i roen | AP24: =RecordUpdate("0-0-0",$B$10,$B$11,$F$8,$F$7,$J$8,$J$7,$N$10,$N$11,$R$5,$R$4,$V$13,$V$14,$Z$13,$Z$14,$AD$10,$AD$11,$AH$8,$AH$7,$AL$8,$AL$7,$AP$10,$AP$11,0,0,0,0,0,0) -> 5-6-0 | AQ24: =$B$10+$F$8+$J$8+$N$10+$R$5+$V$13+$Z$13+$AD$10+$AH$8+$AL$8+$AP$10 -> 8886 | AS24: Team Ludoleif | AT24: =RecordUpdate("0-0-0",$B$4,$B$5,$F$4,$F$5,$J$4,$J$5,$N$4,$N$5,$R$4,$R$5,$V$4,$V$5,$Z$4,$Z$5,$AD$4,$AD$5,$AH$4,$AH$5,$AL$4,$AL$5,$AP$4,$AP$5,$AT$4,$AT$5,0,0,0,0) -> 5-7-0 | AU24: =$B$4+$F$4+$J$4+$N$4+$R$4+$V$4+$Z$4+$AD$4+$AH$4+$AL$4+$AP$4+$AT$4 -> 10826 | AW24: FalchStars | AX24: =RecordUpdate("0-0-0",$B$14,$B$13,$F$11,$F$10,$J$14,$J$13,$N$11,$N$10,$R$14,$R$13,$V$5,$V$4,$Z$8,$Z$7,$AD$14,$AD$13,$AH$11,$AH$10,$AL$14,$AL$13,$AP$11,$AP$10,$AT$14,$AT$13,$AX$5,$AX$4,0,0) -> 6-7-0 | AY24: =$B$14+$F$11+$J$14+$N$11+$R$14+$V$5+$Z$8+$AD$14+$AH$11+$AL$14+$AP$11+$AT$14+$AX$5 -> 10395 | BA24: FalchStars | BB24: =RecordUpdate("0-0-0",$B$14,$B$13,$F$11,$F$10,$J$14,$J$13,$N$11,$N$10,$R$14,$R$13,$V$5,$V$4,$Z$8,$Z$7,$AD$14,$AD$13,$AH$11,$AH$10,$AL$14,$AL$13,$AP$11,$AP$10,$AT$14,$AT$13,$AX$5,$AX$4,$BB$8,$BB$7) -> 7-7-0 | BC24: =$B$14+$F$11+$J$14+$N$11+$R$14+$V$5+$Z$8+$AD$14+$AH$11+$AL$14+$AP$11+$AT$14+$AX$5+$BB$8 -> 11282
A25: Lam i roen | B25: =RecordUpdate("0-0-0",$B$10,$B$11,0,0,0,0,0,0,0,0,0,0,0,0,0,0,0,0,0,0,0,0,0,0,0,0,0,0) -> 0-1-0 | C25: =$B$10 -> 798 | E25: Team-UhUh | F25: =RecordUpdate("0-0-0",$B$5,$B$4,$F$14,$F$13,0,0,0,0,0,0,0,0,0,0,0,0,0,0,0,0,0,0,0,0,0,0,0,0) -> 0-2-0 | G25: =$B$5+$F$14 -> 1714 | I25: FalchStars | J25: =RecordUpdate("0-0-0",$B$14,$B$13,$F$11,$F$10,$J$14,$J$13,0,0,0,0,0,0,0,0,0,0,0,0,0,0,0,0,0,0,0,0,0,0) -> 1-2-0 | K25: =$B$14+$F$11+$J$14 -> 2547 | M25: Weak Knees Revenge | N25: =RecordUpdate("0-0-0",$B$13,$B$14,$F$13,$F$14,$J$10,$J$11,$N$8,$N$7,0,0,0,0,0,0,0,0,0,0,0,0,0,0,0,0,0,0,0,0) -> 2-2-0 | O25: =$B$13+$F$13+$J$10+$N$8 -> 3259 | Q25: Weak Knees Revenge | R25: =RecordUpdate("0-0-0",$B$13,$B$14,$F$13,$F$14,$J$10,$J$11,$N$8,$N$7,$R$11,$R$10,0,0,0,0,0,0,0,0,0,0,0,0,0,0,0,0,0,0) -> 2-3-0 | S25: =$B$13+$F$13+$J$10+$N$8+$R$11 -> 3830 | U25: Weak Knees Revenge | V25: =RecordUpdate("0-0-0",$B$13,$B$14,$F$13,$F$14,$J$10,$J$11,$N$8,$N$7,$R$11,$R$10,$V$14,$V$13,0,0,0,0,0,0,0,0,0,0,0,0,0,0,0,0) -> 2-4-0 | W25: =$B$13+$F$13+$J$10+$N$8+$R$11+$V$14 -> 4636 | Y25: Weak Knees Revenge | Z25: =RecordUpdate("0-0-0",$B$13,$B$14,$F$13,$F$14,$J$10,$J$11,$N$8,$N$7,$R$11,$R$10,$V$14,$V$13,$Z$5,$Z$4,0,0,0,0,0,0,0,0,0,0,0,0,0,0) -> 2-5-0 | AA25: =$B$13+$F$13+$J$10+$N$8+$R$11+$V$14+$Z$5 -> 5551 | AC25: Weak Knees Revenge | AD25: =RecordUpdate("0-0-0",$B$13,$B$14,$F$13,$F$14,$J$10,$J$11,$N$8,$N$7,$R$11,$R$10,$V$14,$V$13,$Z$5,$Z$4,$AD$13,$AD$14,0,0,0,0,0,0,0,0,0,0,0,0) -> 3-5-0 | AE25: =$B$13+$F$13+$J$10+$N$8+$R$11+$V$14+$Z$5+$AD$13 -> 6306 | AG25: Weak Knees Revenge | AH25: =RecordUpdate("0-0-0",$B$13,$B$14,$F$13,$F$14,$J$10,$J$11,$N$8,$N$7,$R$11,$R$10,$V$14,$V$13,$Z$5,$Z$4,$AD$13,$AD$14,$AH$13,$AH$14,0,0,0,0,0,0,0,0,0,0) -> 3-6-0 | AI25: =$B$13+$F$13+$J$10+$N$8+$R$11+$V$14+$Z$5+$AD$13+$AH$13 -> 7238 | AK25: Lam i roen | AL25: =RecordUpdate("0-0-0",$B$10,$B$11,$F$8,$F$7,$J$8,$J$7,$N$10,$N$11,$R$5,$R$4,$V$13,$V$14,$Z$13,$Z$14,$AD$10,$AD$11,$AH$8,$AH$7,$AL$8,$AL$7,0,0,0,0,0,0,0,0) -> 4-6-0 | AM25: =$B$10+$F$8+$J$8+$N$10+$R$5+$V$13+$Z$13+$AD$10+$AH$8+$AL$8 -> 7893 | AO25: Team Ludoleif | AP25: =RecordUpdate("0-0-0",$B$4,$B$5,$F$4,$F$5,$J$4,$J$5,$N$4,$N$5,$R$4,$R$5,$V$4,$V$5,$Z$4,$Z$5,$AD$4,$AD$5,$AH$4,$AH$5,$AL$4,$AL$5,$AP$4,$AP$5,0,0,0,0,0,0) -> 4-7-0 | AQ25: =$B$4+$F$4+$J$4+$N$4+$R$4+$V$4+$Z$4+$AD$4+$AH$4+$AL$4+$AP$4 -> 9889 | AS25: Lam i roen | AT25: =RecordUpdate("0-0-0",$B$10,$B$11,$F$8,$F$7,$J$8,$J$7,$N$10,$N$11,$R$5,$R$4,$V$13,$V$14,$Z$13,$Z$14,$AD$10,$AD$11,$AH$8,$AH$7,$AL$8,$AL$7,$AP$10,$AP$11,$AT$5,$AT$4,0,0,0,0) -> 5-7-0 | AU25: =$B$10+$F$8+$J$8+$N$10+$R$5+$V$13+$Z$13+$AD$10+$AH$8+$AL$8+$AP$10+$AT$5 -> 9799 | AW25: Lam i roen | AX25: =RecordUpdate("0-0-0",$B$10,$B$11,$F$8,$F$7,$J$8,$J$7,$N$10,$N$11,$R$5,$R$4,$V$13,$V$14,$Z$13,$Z$14,$AD$10,$AD$11,$AH$8,$AH$7,$AL$8,$AL$7,$AP$10,$AP$11,$AT$5,$AT$4,$AX$13,$AX$14,0,0) -> 5-8-0 | AY25: =$B$10+$F$8+$J$8+$N$10+$R$5+$V$13+$Z$13+$AD$10+$AH$8+$AL$8+$AP$10+$AT$5+$AX$13 -> 10580 | BA25: Lam i roen | BB25: =RecordUpdate("0-0-0",$B$10,$B$11,$F$8,$F$7,$J$8,$J$7,$N$10,$N$11,$R$5,$R$4,$V$13,$V$14,$Z$13,$Z$14,$AD$10,$AD$11,$AH$8,$AH$7,$AL$8,$AL$7,$AP$10,$AP$11,$AT$5,$AT$4,$AX$13,$AX$14,$BB$13,$BB$14) -> 6-8-0 | BC25: =$B$10+$F$8+$J$8+$N$10+$R$5+$V$13+$Z$13+$AD$10+$AH$8+$AL$8+$AP$10+$AT$5+$AX$13+$BB$13 -> 11700
A26: Pilgaards Mannschaft | B26: =RecordUpdate("0-0-0",$B$7,$B$8,0,0,0,0,0,0,0,0,0,0,0,0,0,0,0,0,0,0,0,0,0,0,0,0,0,0) -> 0-1-0 | C26: =$B$7 -> 604 | E26: Pilgaards Mannschaft | F26: =RecordUpdate("0-0-0",$B$7,$B$8,$F$7,$F$8,0,0,0,0,0,0,0,0,0,0,0,0,0,0,0,0,0,0,0,0,0,0,0,0) -> 0-2-0 | G26: =$B$7+$F$7 -> 1472 | I26: Pilgaards Mannschaft | J26: =RecordUpdate("0-0-0",$B$7,$B$8,$F$7,$F$8,$J$5,$J$4,0,0,0,0,0,0,0,0,0,0,0,0,0,0,0,0,0,0,0,0,0,0) -> 0-3-0 | K26: =$B$7+$F$7+$J$5 -> 2344 | M26: Pilgaards Mannschaft | N26: =RecordUpdate("0-0-0",$B$7,$B$8,$F$7,$F$8,$J$5,$J$4,$N$7,$N$8,0,0,0,0,0,0,0,0,0,0,0,0,0,0,0,0,0,0,0,0) -> 1-3-0 | O26: =$B$7+$F$7+$J$5+$N$7 -> 3194 | Q26: Pilgaards Mannschaft | R26: =RecordUpdate("0-0-0",$B$7,$B$8,$F$7,$F$8,$J$5,$J$4,$N$7,$N$8,$R$7,$R$8,0,0,0,0,0,0,0,0,0,0,0,0,0,0,0,0,0,0) -> 1-4-0 | S26: =$B$7+$F$7+$J$5+$N$7+$R$7 -> 3947 | U26: Pilgaards Mannschaft | V26: =RecordUpdate("0-0-0",$B$7,$B$8,$F$7,$F$8,$J$5,$J$4,$N$7,$N$8,$R$7,$R$8,$V$7,$V$8,0,0,0,0,0,0,0,0,0,0,0,0,0,0,0,0) -> 1-5-0 | W26: =$B$7+$F$7+$J$5+$N$7+$R$7+$V$7 -> 4874 | Y26: Pilgaards Mannschaft | Z26: =RecordUpdate("0-0-0",$B$7,$B$8,$F$7,$F$8,$J$5,$J$4,$N$7,$N$8,$R$7,$R$8,$V$7,$V$8,$Z$7,$Z$8,0,0,0,0,0,0,0,0,0,0,0,0,0,0) -> 1-6-0 | AA26: =$B$7+$F$7+$J$5+$N$7+$R$7+$V$7+$Z$7 -> 5766 | AC26: Pilgaards Mannschaft | AD26: =RecordUpdate("0-0-0",$B$7,$B$8,$F$7,$F$8,$J$5,$J$4,$N$7,$N$8,$R$7,$R$8,$V$7,$V$8,$Z$7,$Z$8,$AD$7,$AD$8,0,0,0,0,0,0,0,0,0,0,0,0) -> 1-7-0 | AE26: =$B$7+$F$7+$J$5+$N$7+$R$7+$V$7+$Z$7+$AD$7 -> 6596 | AG26: Pilgaards Mannschaft | AH26: =RecordUpdate("0-0-0",$B$7,$B$8,$F$7,$F$8,$J$5,$J$4,$N$7,$N$8,$R$7,$R$8,$V$7,$V$8,$Z$7,$Z$8,$AD$7,$AD$8,$AH$7,$AH$8,0,0,0,0,0,0,0,0,0,0) -> 2-7-0 | AI26: =$B$7+$F$7+$J$5+$N$7+$R$7+$V$7+$Z$7+$AD$7+$AH$7 -> 7797 | AK26: Pilgaards Mannschaft | AL26: =RecordUpdate("0-0-0",$B$7,$B$8,$F$7,$F$8,$J$5,$J$4,$N$7,$N$8,$R$7,$R$8,$V$7,$V$8,$Z$7,$Z$8,$AD$7,$AD$8,$AH$7,$AH$8,$AL$5,$AL$4,0,0,0,0,0,0,0,0) -> 2-8-0 | AM26: =$B$7+$F$7+$J$5+$N$7+$R$7+$V$7+$Z$7+$AD$7+$AH$7+$AL$5 -> 8858 | AO26: Pilgaards Mannschaft | AP26: =RecordUpdate("0-0-0",$B$7,$B$8,$F$7,$F$8,$J$5,$J$4,$N$7,$N$8,$R$7,$R$8,$V$7,$V$8,$Z$7,$Z$8,$AD$7,$AD$8,$AH$7,$AH$8,$AL$5,$AL$4,$AP$7,$AP$8,0,0,0,0,0,0) -> 2-9-0 | AQ26: =$B$7+$F$7+$J$5+$N$7+$R$7+$V$7+$Z$7+$AD$7+$AH$7+$AL$5+$AP$7 -> 9788 | AS26: Pilgaards Mannschaft | AT26: =RecordUpdate("0-0-0",$B$7,$B$8,$F$7,$F$8,$J$5,$J$4,$N$7,$N$8,$R$7,$R$8,$V$7,$V$8,$Z$7,$Z$8,$AD$7,$AD$8,$AH$7,$AH$8,$AL$5,$AL$4,$AP$7,$AP$8,$AT$7,$AT$8,0,0,0,0) -> 3-9-0 | AU26: =$B$7+$F$7+$J$5+$N$7+$R$7+$V$7+$Z$7+$AD$7+$AH$7+$AL$5+$AP$7+$AT$7 -> 10776 | AW26: Pilgaards Mannschaft | AX26: =RecordUpdate("0-0-0",$B$7,$B$8,$F$7,$F$8,$J$5,$J$4,$N$7,$N$8,$R$7,$R$8,$V$7,$V$8,$Z$7,$Z$8,$AD$7,$AD$8,$AH$7,$AH$8,$AL$5,$AL$4,$AP$7,$AP$8,$AT$7,$AT$8,$AX$7,$AX$8,0,0) -> 3-10-0 | AY26: =$B$7+$F$7+$J$5+$N$7+$R$7+$V$7+$Z$7+$AD$7+$AH$7+$AL$5+$AP$7+$AT$7+$AX$7 -> 11694 | BA26: Pilgaards Mannschaft | BB26: =RecordUpdate("0-0-0",$B$7,$B$8,$F$7,$F$8,$J$5,$J$4,$N$7,$N$8,$R$7,$R$8,$V$7,$V$8,$Z$7,$Z$8,$AD$7,$AD$8,$AH$7,$AH$8,$AL$5,$AL$4,$AP$7,$AP$8,$AT$7,$AT$8,$AX$7,$AX$8,$BB$7,$BB$8) -> 3-11-0 | BC26: =$B$7+$F$7+$J$5+$N$7+$R$7+$V$7+$Z$7+$AD$7+$AH$7+$AL$5+$AP$7+$AT$7+$AX$7+$BB$7 -> 12536
B32: Record | C32: TPS | D32: TPC | F32: TPS/PG | G32: TPC/PG | J32: Record | K32: TPS | L32: TPC | N32: TPS/PG | O32: TPC/PG | R32: Record | S32: TPS | T32: TPC | V32: TPS/PG | W32: TPC/PG | Z32: Record | AA32: TPS | AB32: TPC | AD32: TPS/PG | AE32: TPC/PG | AH32: Record | AI32: TPS | AJ32: TPC | AL32: TPS/PG | AM32: TPC/PG | AP32: Record | AQ32: TPS | AR32: TPC | AT32: TPS/PG | AU32: TPC/PG | AX32: Record | AY32: TPS | AZ32: TPC | BB32: TPS/PG | BC32: TPC/PG | BF32: Record | BG32: TPS | BH32: TPC | BJ32: TPS/PG | BK32: TPC/PG
A33: Team Ludoleif | B33: =RecordUpdate("0-0-0",$B$4,$B$5,$F$4,$F$5,$J$4,$J$5,$N$4,$N$5,$R$4,$R$5,$V$4,$V$5,$Z$4,$Z$5,$AD$4,$AD$5,$AH$4,$AH$5,$AL$4,$AL$5,$AP$4,$AP$5,$AT$4,$AT$5,$AX$4,$AX$5,$BB$4,$BB$5) -> 7-7-0 | C33: =$B$4+$F$4+$J$4+$N$4+$R$4+$V$4+$Z$4+$AD$4+$AH$4+$AL$4+$AP$4+$AT$4+$AX$4+$BB$4 -> 12674 | D33: =$B$5+$F$5+$J$5+$N$5+$R$5+$V$5+$Z$5+$AD$5+$AH$5+$AL$5+$AP$5+$AT$5+$AX$5+$BB$5 -> 12417 | E33: This season | F33: =SUM(C33/GamesPlayed(B33)) -> 905.2857143 | G33: =SUM(D33/GamesPlayed(B33)) -> 886.9285714 | I33: Pilgaards Mannschaft | J33: =RecordUpdate("0-0-0",$B$7,$B$8,$F$7,$F$8,$J$5,$J$4,$N$7,$N$8,$R$7,$R$8,$V$7,$V$8,$Z$7,$Z$8,$AD$7,$AD$8,$AH$7,$AH$8,$AL$5,$AL$4,$AP$7,$AP$8,$AT$7,$AT$8,$AX$7,$AX$8,$BB$7,$BB$8) -> 3-11-0 | K33: =$B$7+$F$7+$J$5+$N$7+$R$7+$V$7+$Z$7+$AD$7+$AH$7+$AL$5+$AP$7+$AT$7+$AX$7+$BB$7 -> 12536 | L33: =$B$8+$F$8+$J$4+$N$8+$R$8+$V$8+$Z$8+$AD$8+$AH$8+$AL$4+$AP$8+$AT$8+$AX$8+$BB$8 -> 13441 | M33: This season | N33: =SUM(K33/GamesPlayed(J33)) -> 895.4285714 | O33: =SUM(L33/GamesPlayed(J33)) -> 960.0714286 | Q33: Lam i roen | R33: =RecordUpdate("0-0-0",$B$10,$B$11,$F$8,$F$7,$J$8,$J$7,$N$10,$N$11,$R$5,$R$4,$V$13,$V$14,$Z$13,$Z$14,$AD$10,$AD$11,$AH$8,$AH$7,$AL$8,$AL$7,$AP$10,$AP$11,$AT$5,$AT$4,$AX$13,$AX$14,$BB$13,$BB$14) -> 6-8-0 | S33: =$B$10+$F$8+$J$8+$N$10+$R$5+$V$13+$Z$13+$AD$10+$AH$8+$AL$8+$AP$10+$AT$5+$AX$13+$BB$13 -> 11700 | T33: =$B$11+$F$7+$J$7+$N$11+$R$4+$V$14+$Z$14+$AD$11+$AH$7+$AL$7+$AP$11+$AT$4+$AX$14+$BB$14 -> 12571 | U33: This season | V33: =SUM(S33/GamesPlayed(R33)) -> 835.7142857 | W33: =SUM(T33/GamesPlayed(R33)) -> 897.9285714 | Y33: Djohn | Z33: =RecordUpdate("0-0-0",$B$11,$B$10,$F$5,$F$4,$J$11,$J$10,$N$14,$N$13,$R$13,$R$14,$V$8,$V$7,$Z$11,$Z$10,$AD$11,$AD$10,$AH$5,$AH$4,$AL$11,$AL$10,$AP$14,$AP$13,$AT$13,$AT$14,$AX$8,$AX$7,$BB$11,$BB$10) -> 9-5-0 | AA33: =$B$11+$F$5+$J$11+$N$14+$R$13+$V$8+$Z$11+$AD$11+$AH$5+$AL$11+$AP$14+$AT$13+$AX$8+$BB$11 -> 12457 | AB33: =$B$10+$F$4+$J$10+$N$13+$R$14+$V$7+$Z$10+$AD$10+$AH$4+$AL$10+$AP$13+$AT$14+$AX$7+$BB$10 -> 11803 | AC33: This season | AD33: =SUM(AA33/GamesPlayed(Z33)) -> 889.7857143 | AE33: =SUM(AB33/GamesPlayed(Z33)) -> 843.0714286 | AG33: Nilsson Monkeys | AH33: =RecordUpdate("0-0-0",$B$8,$B$7,$F$10,$F$11,$J$7,$J$8,$N$5,$N$4,$R$10,$R$11,$V$10,$V$11,$Z$10,$Z$11,$AD$8,$AD$7,$AH$10,$AH$11,$AL$7,$AL$8,$AP$5,$AP$4,$AT$10,$AT$11,$AX$10,$AX$11,$BB$10,$BB$11) -> 9-5-0 | AI33: =$B$8+$F$10+$J$7+$N$5+$R$10+$V$10+$Z$10+$AD$8+$AH$10+$AL$7+$AP$5+$AT$10+$AX$10+$BB$10 -> 12902 | AJ33: =$B$7+$F$11+$J$8+$N$4+$R$11+$V$11+$Z$11+$AD$7+$AH$11+$AL$8+$AP$4+$AT$11+$AX$11+$BB$11 -> 11270 | AK33: This season | AL33: =SUM(AI33/GamesPlayed(AH33)) -> 921.5714286 | AM33: =SUM(AJ33/GamesPlayed(AH33)) -> 805 | AO33: Weak Knees Revenge | AP33: =RecordUpdate("0-0-0",$B$13,$B$14,$F$13,$F$14,$J$10,$J$11,$N$8,$N$7,$R$11,$R$10,$V$14,$V$13,$Z$5,$Z$4,$AD$13,$AD$14,$AH$13,$AH$14,$AL$10,$AL$11,$AP$8,$AP$7,$AT$11,$AT$10,$AX$14,$AX$13,$BB$5,$BB$4) -> 7-7-0 | AQ33: =$B$13+$F$13+$J$10+$N$8+$R$11+$V$14+$Z$5+$AD$13+$AH$13+$AL$10+$AP$8+$AT$11+$AX$14+$BB$5 -> 11826 | AR33: =$B$14+$F$14+$J$11+$N$7+$R$10+$V$13+$Z$4+$AD$14+$AH$14+$AL$11+$AP$7+$AT$10+$AX$13+$BB$4 -> 12344 | AS33: This season | AT33: =SUM(AQ33/GamesPlayed(AP33)) -> 844.7142857 | AU33: =SUM(AR33/GamesPlayed(AP33)) -> 881.7142857 | AW33: Team-UhUh | AX33: =RecordUpdate("0-0-0",$B$5,$B$4,$F$14,$F$13,$J$13,$J$14,$N$13,$N$14,$R$8,$R$7,$V$11,$V$10,$Z$14,$Z$13,$AD$5,$AD$4,$AH$14,$AH$13,$AL$13,$AL$14,$AP$13,$AP$14,$AT$8,$AT$7,$AX$11,$AX$10,$BB$14,$BB$13) -> 8-6-0 | AY33: =$B$5+$F$14+$J$13+$N$13+$R$8+$V$11+$Z$14+$AD$5+$AH$14+$AL$13+$AP$13+$AT$8+$AX$11+$BB$14 -> 12609 | AZ33: =$B$4+$F$13+$J$14+$N$14+$R$7+$V$10+$Z$13+$AD$4+$AH$13+$AL$14+$AP$14+$AT$7+$AX$10+$BB$13 -> 12599 | BA33: This season | BB33: =SUM(AY33/GamesPlayed(AX33)) -> 900.6428571 | BC33: =SUM(AZ33/GamesPlayed(AX33)) -> 899.9285714 | BE33: FalchStars | BF33: =RecordUpdate("0-0-0",$B$14,$B$13,$F$11,$F$10,$J$14,$J$13,$N$11,$N$10,$R$14,$R$13,$V$5,$V$4,$Z$8,$Z$7,$AD$14,$AD$13,$AH$11,$AH$10,$AL$14,$AL$13,$AP$11,$AP$10,$AT$14,$AT$13,$AX$5,$AX$4,$BB$8,$BB$7) -> 7-7-0 | BG33: =$B$14+$F$11+$J$14+$N$11+$R$14+$V$5+$Z$8+$AD$14+$AH$11+$AL$14+$AP$11+$AT$14+$AX$5+$BB$8 -> 11282 | BH33: =$B$13+$F$10+$J$13+$N$10+$R$13+$V$4+$Z$7+$AD$13+$AH$10+$AL$13+$AP$10+$AT$13+$AX$4+$BB$7 -> 11541 | BI33: This season | BJ33: =SUM(BG33/GamesPlayed(BF33)) -> 805.8571429 | BK33: =SUM(BH33/GamesPlayed(BF33)) -> 824.3571429
B34: =ATRecord('2006'!B34,B33) -> 22-20-0 | C34: =C33+'2006'!C34 -> 36756 | D34: =D33+'2006'!D34 -> 35004 | E34: All Time | F34: =SUM(C34/GamesPlayed(B34)) -> 875.1428571 | G34: =SUM(D34/GamesPlayed(B34)) -> 833.4285714 | J34: =ATRecord('2006'!J34,J33) -> 19-23-0 | K34: =K33+'2006'!K34 -> 35829 | L34: =L33+'2006'!L34 -> 35435 | M34: All Time | N34: =SUM(K34/GamesPlayed(J34)) -> 853.0714286 | O34: =SUM(L34/GamesPlayed(J34)) -> 843.6904762 | R34: =ATRecord('2006'!R34,R33) -> 16-26-0 | S34: =S33+'2006'!S34 -> 33685 | T34: =T33+'2006'!T34 -> 36381 | U34: All Time | V34: =SUM(S34/GamesPlayed(R34)) -> 802.0238095 | W34: =SUM(T34/GamesPlayed(R34)) -> 866.2142857 | Z34: =ATRecord('2006'!Z34,Z33) -> 30-12-0 | AA34: =AA33+'2006'!AA34 -> 37975 | AB34: =AB33+'2006'!AB34 -> 33023 | AC34: All Time | AD34: =SUM(AA34/GamesPlayed(Z34)) -> 904.1666667 | AE34: =SUM(AB34/GamesPlayed(Z34)) -> 786.2619048 | AH34: =ATRecord('2006'!AH34,AH33) -> 23-19-0 | AI34: =AI33+'2006'!AI34 -> 36050 | AJ34: =AJ33+'2006'!AJ34 -> 35386 | AK34: All Time | AL34: =SUM(AI34/GamesPlayed(AH34)) -> 858.3333333 | AM34: =SUM(AJ34/GamesPlayed(AH34)) -> 842.5238095 | AP34: =ATRecord('2006'!AP34,AP33) -> 16-26-0 | AQ34: =AQ33+'2006'!AQ34 -> 32408 | AR34: =AR33+'2006'!AR34 -> 36447 | AS34: All Time | AT34: =SUM(AQ34/GamesPlayed(AP34)) -> 771.6190476 | AU34: =SUM(AR34/GamesPlayed(AP34)) -> 867.7857143 | AX34: =ATRecord('2006'!AX34,AX33) -> 19-23-0 | AY34: =AY33+'2006'!AY34 -> 34780 | AZ34: =AZ33+'2006'!AZ34 -> 36558 | BA34: All Time | BB34: =SUM(AY34/GamesPlayed(AX34)) -> 828.0952381 | BC34: =SUM(AZ34/GamesPlayed(AX34)) -> 870.4285714 | BF34: =ATRecord('2006'!BF34,BF33) -> 17-11-0 | BG34: =BG33+'2006'!BG34 -> 25166 | BH34: =BH33+'2006'!BH34 -> 23225 | BI34: All Time | BJ34: =SUM(BG34/GamesPlayed(BF34)) -> 898.7857143 | BK34: =SUM(BH34/GamesPlayed(BF34)) -> 829.4642857
